Workbook

Sheet Instructions
A1: Payment in Lieu of Taxes Financial Agreement Forecasting Model (PFAF)
A2: Guide to the Payment in Lieu of Taxes Financial Agreement Forecasting Model
A4: Introduction
A6: The PILOT Financial Agreement Forecasting Model (PFAF model) produces 30-year project cash flow, PILOT payment, and municipality net benefit projections based on user-entered assumptions, 2022 Census data, and 2023 tax and budget information.
A7: The Model allows municipalities to forecast and understand the net financial impact of PILOT payments relative to the projected impact of the proposed project on municipal spending.
A8: The Model populates from user inputs on the "Inputs/Assumptions" tab and 2023 property tax and municipal budgeted expenditure data on the Data tab.
A9: Cells that are highlighted in yellow or with blue font are meant for user entry. All other cells are formula cells that should not be changed.
A10: For the Model to perform correctly, it is essential that operating expenses and debt service be entered as negative values.
A12: Interpreting and Using the Output
A13: The Model enables users to run their own project Net Cash Flow and PILOT calculations using different PILOT assumptions than those proposed by developers. These can be used in negotiations with developers to demonstrate project feasibility at PILOT levels that hold the municipal budget harmless or limit the net subsidy required from the municipality. For example, the Net Cash Flow data column shows developers the net profits they would make each year using the municipality's PILOT assumptions, while the Internal Rate of Return (IRR) figure calculates the overall profitability of the project over the life of the investment under those assumptions. In addition, municipalities can use the Net Benefit/Loss and Change in Municipal Property Tax Revenues data columns to show developers the cost to municipal taxpayers of subsidizing the project with a reduced tax liability from the PILOT, which can inform negotiations in reaching a reasonable PILOT level.
A21: Inputs & Assumptions Tab
A22: Projection Options
A24: Users have the option to select one of three projection methods, selected from a drop down box at the top of the Inputs & Assumptions Tab
B26: A: % of Actual Gross Revenues
B27: This option calculates PILOT payments as a user-specified percentage of actual gross revenues.
B29: B: % of Taxes
B30: This option calculates PILOT payments as a user-specified percentage of the full tax liability.
B32: C: Manual Entry
B33: This option allows the user to manually enter PILOT payments for each year.
A35: The assumptions for these options are entered in the PILOT Methods Assumptions section.
A37: Users may also select the methodology for allocating the PILOT between the municipality, county, and school district from a drop down box at the top of the Inputs & Assumptions Tab
B38: A. Share of Total Levy
B39: The PILOT is allocated between the municipality, county, and school district based on their shares of the combined levy.
B40: B. User Entered Allocation (Default)
B41: The user enters in the percentage PILOT allocation shares for the municipality, county, and school district
A43: In addition, users can specify if the project is already subject to a PILOT agreement using the "Existing PILOT Currently in Place?" drop down box. The default answer is "No". If "Yes" is selected, the user should enter in the PILOT payments under the existing agreement for the life of the project in column J of the Project Budget and Valuation Assumptions section.
A45: Project Type
A47: Users select from one of three project types, residential, commercial/industrial, and mixed-use. Each type has an assumptions section which is activated when that type is selected. This section projects the number of persons occupying the development. This number is multiplied by municipal spending per capita (municipal spending divided by daytime population) to estimate the municipal spending stemming from the project. Users can also indicate whether the project has affordable housing or not, which is strictly for informational purposes.
B49: For Residential Projects, users enter in the number of studio, 1 bedroom, 2 bedroom, and 3 bedroom units. The number of persons occupying the units are calculated based on multipliers from "Who Lives in New Jersey Housing: The Profile of Occupants of Residential Development in New Jersey,” published by Center for Urban Policy Research at Rutgers University. This also produces a public school children estimate for informational purposes that can be used to separately calculate direct school district impacts. https://bloustein.rutgers.edu/wp-content/uploads/2015/03/NJDM-updated-2018.pdf
B51: For Commercial/Industrial Projects, users enter in the projected number of occupants in a commercial or industrial building
B53: For Mixed-Use Projects, users enter in the projected number of housing units for the residential portion and the projected occupancy in the commercial or industrial portion.
A55: Project Assumptions
A57: In this section, users enter projected gross revenue, operating expenses, debt service, equity, and the full property tax liability for the property before and after improvements (i.e. new construction).
B59: Net Rents/Gross Revenue | C59: Projected project gross revenue from net rents (taking into account vacancies) and other forms of revenue.
B60: Operating Expenses | C60: All project operating expenses excluding PILOT payments. Must be entered as negative values.
B61: Existing PILOT Payments (Municipal Portion) | C61: The municipal portion of total PILOT payments for a property already subject to a PILOT agreement. This is only applicable if the project is currently subject to a PILOT agreement.
B62: Property Assessed Value Pre-Improvement | C62: Projected full tax assessment for the development before improvements (i.e. assessed value of vacant land)
B63: Property Assessed Value Post-Improvement | C63: Estimated full tax assessment for the development after improvements (i.e. new construction)
B64: Debt Service | C64: Anticipated annual debt service on debt issued for the project
B65: Equity (In)/Out | C65: Total funds invested in the property (enter as negative values) and projected proceeds from sale of the property (enter as positive values)
A67: Municipal Spending Assumptions
A69: In this section, users enter projected annual growth rates for the municipal budget. These are used to grow the additional municipal spending impact from the project. Users also enter the percentage of spending in ten key budget areas that would be affected by new residents or jobs. These entries flow to the municipal spending per capita calculation. Municipal spending per capita is used to project the additional cost to the municipality from the project. Users can also add the value of additional benefits and costs not captured by the model in the "Additional Net Benefit/Loss to Municipality" section. This may include the value of affordable housing, community facilities, parks and green space, and other public benefits contributed by the project. In addition, users can enter other project-associated costs not accounted for in the core budget areas in the "Additional Municipal Costs Outside Core Budget" section.
A73: Projection Tab
A75: The projection tab calculates the PILOT payments, the municipal, county and school district split, the project net cash flows, the internal rate of return, and the net cost or benefit to the municipality. It is populated by data in the "Data" tab and entries on the "Inputs & Assumptions" tab. Outputs are as follows:
B77: Year | C77: The year of the payment.
B78: Year Number | C78: The sequential year of the payment.
B79: Net Rents/Gross Revenue | C79: Projected gross revenue from net rents (taking into account vacancies) and other forms of project revenue.
B80: Operating Expenses | C80: All project operating expenses excluding PILOT payments.
B81: Property Assessed Value Pre-Improvement | C81: Projected full tax assessment for the development after improvements (i.e. new construction).
B82: Municipal Property Tax Revenue Pre-Improvement | C82: Property tax bill for property before improvements (i.e. vacant land).
B83: Property Assessed Value Post-Improvement | C83: Projected full tax assessment for the development before improvements (i.e. assessed value of vacant land).
B84: Total Property Taxes without PILOT | C84: Total property taxes (county, municipal, school) due on property post-improvement with no abatement or exemption.
B85: Municipal Property Taxes without PILOT | C85: Total municipal property taxes due on property post-improvement with no abatement or exemption.
B86: PILOT Payments | C86: Calculated PILOT payment based on selected projection option.
B87: Municipal PILOT | C87: Calculated municipal portion of PILOT payment, based on the municipal percentage of the total levy.
B88: County PILOT | C88: Calculated county portion of PILOT payment, based on the county percentage of the total levy.
B89: School PILOT | C89: Calculated school district portion of PILOT payment, based on the school district percentage of the total levy.
B90: Project Net Operating Income before Debt Service | C90: Total project net operating income before debt service. Calculated as the net rents/revenue minus operating expenses and the PILOT payment.
B91: Debt Service | C91: Anticipated annual debt service on debt issued for the project.
B92: Project Cash Flow | C92: Project Net Operating Income minus debt service.
B93: Equity (In)/Out | C93: Total funds invested in the property (enter as negative values) and proceeds from sale of the property (enter as positive values).
B94: Net Cash Flow | C94: The sum of Project Cash Flow and Equity In/Out. Used to compute the Internal Rate of Return (IRR).
B95: PILOT % of Annual Gross Revenue | C95: Total PILOT payments divided by total annual gross revenue.
B96: PILOT % of Conventional Taxes | C96: Total PILOT payments divided by total property tax liability without abatements or exemptions.
B97: Additional Municipal Costs | C97: Calculated additional municipal spending due to the project.
B98: Net Benefit (Loss) to Municipality | C98: Calculated net financial benefit or loss to the municipality. Calculated as the municipal PILOT payment less pre-improvement property taxes and additional municipal costs.
B99: Change in Municipal Property Tax Revenue due to Project | C99: Calculated change in municipal property tax revenue from the PILOT.
B100: Adjust PILOT to IRR Target Button | C100: Adjusts PILOT payments to produce the IRR entered in cell AB6.
B101: Adjust PILOT to Hold Municipality Harmless (Net Benefit/Loss) Button | C101: Adjusts PILOT payments to produce no net financial impact to the municipality over the life of the project.
B102: Adjust PILOT to Hold Municipality Harmless (Chg. in Prop Tax) Button | C102: Adjusts PILOT payments to produce no net change in municipal property tax revenues
B103: Remove PILOT Adjustment Button | C103: Removes PILOT adjustments and reverts back to original calculation.
A106: Data Tab
A108: This tab contains the raw source data used to calculate property tax liabilities and municipal spending. The data are based on the US Census Bureau's 2018-22 American Community Survey 5-Year Estimates (daytime population), DCA's 2023 Property Tax Information release, and the 2023 municipal User Friendly Budget submissions. Users have the option to enter in more recent tax and spending data on this tab, if desired
A111: The following 5 municipalities do not have 2023 User Friendly Budget data available to perform the Net Benefit/Loss calculation:
B112: Englewood Cliffs Borough, Bergen County
B113: Manchester Township, Ocean County
B114: Northvale Borough, Bergen County
B115: Waterford Township, Camden County
B116: West Cape May Borough, Cape May County

Sheet FAQ
A1: =Instructions!A1 -> Payment in Lieu of Taxes Financial Agreement Forecasting Model (PFAF)
A2: Frequently Asked Questions
A4: Can I clear out existing data in the model?
A5: You may clear out or replace any data in blue font or in a yellow-highlighted cell. The data in the Inputs and Assumptions tab are examples and should be replaced with actual project data and user assumptions.
A7: Can I print the model outputs?
A8: Yes, all of the model's tabs have been formatted to print.
A10: I have received a pro forma from the developer. However would I integrate that into the model?
A11: You would find the data corresponding to total operating expenses, debt service, total revenue or net rents, and enter them in the Project Budget & Valuation Assumptions section of the Inputs and Assumptions tab. The model will then calculate the IRR and municipality net benefit based on this data and the user-entered municipal spending, tax assessment, and PILOT method assumptions.
A13: I have received a proposed PILOT schedule from the developer. How do I use the model to determine if this is a net benefit to my town?
A14: You can enter in the PILOT numbers in the Manual Entry column of the PILOT Method Assumptions section on the Inputs and Assumptions tab. Select "Manual Entry" in the PILOT Method drop down menu to activate the scenario. The model will show the projected net benefit/loss on the Model tab.
A16: I would like to add additional costs to my municipality from the project beyond the core budget areas included in the model. How do I do that?
A17: Additional costs can be entered in the "Additional Municipal Costs Outside Core Budget" column in the Municipal Spending Assumptions section of the Inputs and Assumptions tab. These costs are added to the core budget costs projected by the model.
A19: The project provides additional benefits to my municipality beyond the PILOT payment. How do I account for this in the net benefit calculation?
A20: The estimated monetary value of additional benefits (such as affordable housing, parks and green space, or other developer contributions) or losses (i.e. noise pollution, environmental contamination) from the project can be entered in the "Additional Benefit/Loss to Municipality" column in the Municipal Spending Assumptions section of the Inputs and Assumptions tab. These benefits/losses will be added to the existing net benefit calculation.
A22: My projection shows a net loss to my municipality during the latter half of the project. Can I remedy that through the PILOT assumptions? | AN22: `
A23: Yes. You can adjust the % of Taxes, % of Gross Revenues, or Manual Entries on the Inputs & Assumptions tab in those net loss years to produce a net benefit.
A25: I have more recent tax and municipal budget information than is included in the model. How can I incorporate that into the calculation?
A26: You may enter more recent data for your municipality on the Data tab, replacing the data that is already there. Any data in blue font or yellow highlighting may be changed.
A28: I do not want to do a 30 year abatement, I would prefer a shorter timeframe. Does the model accommodate that?
A29: Yes. You may enter in data for any period of time less than 30 years, clearing out any data for years the PILOT would not be in effect on the Inputs and Assumptions tab.
A31: I want to calculate the fiscal impact of the project on the school district. Can I do that through this model? | AJ31: `
A32: The model produces two outputs that are relevant to that calculation, the projected number of new children from new developments (on the Inputs & Assumptions tab) and the School PILOT on the Model tab. However the calculation itself must be done outside the model based on school district data.
A35: I have entered in an IRR Target and clicked "Adjust PILOT to IRR Target" but the Current IRR is not matching. Why does this happen? | AJ35: `
A36: The model produces the IRR closest to the IRR Target that can be achieved through a PILOT. Because the PILOT is only one component of many that determine an IRR, In some cases, the target can only be approximated rather than exactly achieved.
A39: My projection shows nothing in the municipalilty net benefit/loss column despite entering in all the assumptions. How do I fix that?
A40: The lack of a net benefit/loss projection is due to the fact that the Division of Local Government Services does not have 2021 UFB information on file for your municipality. Simply enter in the requisite budget information on the Data tab if this is case and be sure to submit your UFB to the Division.

Sheet Inputs & Assumptions
A1: ="Payment in Lieu of Taxes Financial Agreement Forecasting Model "&"- "&VLOOKUP(Muni,$AL$4:$AM$567,2,FALSE)&IF(B11="",""," - ")&B11 -> Payment in Lieu of Taxes Financial Agreement Forecasting Model - Aberdeen Township, Monmouth County
A2: Inputs/Assumptions
H3: Existing PILOT Currently in Place?
B4: Select Municipality | H4: 2 | L4: Year 1 Municipal PILOT | M4: =-Model!K4 -> 128045.9704 | P4: Municipal Tax Rate (per $100 valuation) | Q4: =VLOOKUP(Muni,Data!E4:H567,4,FALSE) -> 0.4169664481 | AL4: =AL3+1 -> 1 | AM4: Aberdeen Township, Monmouth County | AU4: % of Actual Gross Revenue
B5: 1 | F5: First Year | G5: 2024 | H5: PILOT Allocation Methodology | L5: Average Municipal PILOT | M5: =-AVERAGE(Model!K4:K33) -> 203061.3424 | P5: Total Tax Rate (per $100 valuation) | Q5: =VLOOKUP(Muni,Data!E4:K567,7,FALSE) -> 1.994552295 | AL5: 2 | AM5: Absecon City, Atlantic County | AU5: % of Taxes
H6: 2 | L6: IRR (Internal Rate of Return) | M6: =Model!AB4 -> 0.04500872364 | P6: Mun. Spending/Daytime Pop. Ratio | Q6: =VLOOKUP(Muni,Data!$E$4:$S$567,15,FALSE) -> 260.8271518 | AL6: 3 | AM6: Alexandria Township, Hunterdon County | AU6: Manual Entry
B7: PILOT Method | F7: Project Type | H7: Includes Affordable Housing? | L7: Avg. Municipal Net Benefit (Loss) | M7: =IFERROR(AVERAGE(Model!Y4:Y33),"No Data") -> 113879.0345 | AL7: 4 | AM7: Allamuchy Township, Warren County
B8: 3 | F8: 1 | I8: 1 | AL8: 5 | AM8: Allendale Borough, Bergen County | AU8: Residential
AL9: =AL8+1 -> 6 | AM9: Allenhurst Borough, Monmouth County
B10: Name of Project | AL10: 7 | AM10: Allentown Borough, Monmouth County
AL11: 8 | AM11: Alloway Township, Salem County
AL12: =AL11+1 -> 9 | AM12: Alpha Borough, Warren County | AU12: Commercial/Industrial
B13: Residential Projects | I13: PILOT Allocation | AL13: 10 | AM13: Alpine Borough, Bergen County | AU13: Mixed Use
B14: Num. of Units | C14: Num. of Units | D14: Persons Multiplier | E14: Total New Persons | F14: Public School Multiplier | G14: Total New Public School Children | I14: Entity | J14: % | AL14: 11 | AM14: Andover Borough, Sussex County
B15: Studio | C15: 0 | D15: 1.45 | E15: =ROUND(D15*C15,0) -> 0 | F15: 0.06 | G15: =ROUND(F15*C15,0) -> 0 | I15: Municipal | J15: 0.95 | AL15: 12 | AM15: Andover Township, Sussex County | AU15: Yes
B16: 1 Bedroom | C16: 15 | D16: 1.45 | E16: =ROUND(D16*C16,0) -> 22 | F16: 0.06 | G16: =ROUND(F16*C16,0) -> 1 | I16: County | J16: 0.05 | AL16: 13 | AM16: Asbury Park City, Monmouth County | AU16: No
B17: 2 Bedroom | C17: 29 | D17: 2.23 | E17: =ROUND(D17*C17,0) -> 65 | F17: 0.19 | G17: =ROUND(F17*C17,0) -> 6 | I17: School | J17: 0 | AL17: 14 | AM17: Atlantic City, Atlantic County
B18: 3 Bedroom | C18: 12 | D18: 3 | E18: =ROUND(D18*C18,0) -> 36 | F18: 0.48 | G18: =ROUND(F18*C18,0) -> 6 | I18: TOTAL | J18: =SUM(J15:J17) -> 1 | AL18: 15 | AM18: Atlantic Highlands Borough, Monmouth County | AU18: Share of Total Levy
B19: TOTAL | C19: =SUM(C15:C18) -> 56 | E19: =SUM(E15:E18) -> 123 | G19: =SUM(G15:G18) -> 13 | AL19: 16 | AM19: Audubon Borough, Camden County | AU19: User Entered Allocation
AL20: 17 | AM20: Audubon Park Borough, Camden County
B21: Commercial/Industrial Projects | AL21: =AL20+1 -> 18 | AM21: Avalon Borough, Cape May County | AU21: Yes
C22: Num. of Persons | AL22: 19 | AM22: Avon-by-the-Sea Borough, Monmouth County | AU22: No
B23: Estimated Occupancy | C23: 0 | AL23: 20 | AM23: Barnegat Light Borough, Ocean County
AL24: 21 | AM24: Barnegat Township, Ocean County
B25: Mixed-Use Projects | AL25: 22 | AM25: Barrington Borough, Camden County
B26: Num. of Units | C26: Num. of Units | D26: Persons Multiplier | E26: Total New Persons | F26: Public School Multiplier | G26: Total New Public School Children | AL26: 23 | AM26: Bass River Township, Burlington County
B27: Residential Component | AL27: 24 | AM27: Bay Head Borough, Ocean County
B28: Studio | C28: 0 | D28: 1.45 | E28: =ROUND(D28*C28,0) -> 0 | F28: 0.06 | G28: =ROUND(F28*C28,0) -> 0 | AL28: 25 | AM28: Bayonne City, Hudson County
B29: 1 Bedroom | C29: 0 | D29: 1.45 | E29: =ROUND(D29*C29,0) -> 0 | F29: 0.06 | G29: =ROUND(F29*C29,0) -> 0 | AL29: 26 | AM29: Beach Haven Borough, Ocean County
B30: 2 Bedroom | C30: 0 | D30: 2.23 | E30: =ROUND(D30*C30,0) -> 0 | F30: 0.19 | G30: =ROUND(F30*C30,0) -> 0 | AL30: 27 | AM30: Beachwood Borough, Ocean County
B31: 3 Bedroom | C31: 0 | D31: 3 | E31: =ROUND(D31*C31,0) -> 0 | F31: 0.48 | G31: =ROUND(F31*C31,0) -> 0 | AL31: 28 | AM31: Bedminster Township, Somerset County
B32: TOTAL | C32: =SUM(C28:C31) -> 0 | E32: =SUM(E28:E31) -> 0 | G32: =SUM(G28:G31) -> 0 | AL32: 29 | AM32: Belleville Township, Essex County
B33: Commercial/Industrial Component | AL33: 30 | AM33: Bellmawr Borough, Camden County
B34: Estimated Occupancy | C34: 0 | AL34: 31 | AM34: Belmar Borough, Monmouth County
AL35: 32 | AM35: Belvidere Town, Warren County
B36: TOTAL NEW PERSONS | C36: =C34+SUM(E28:E31) -> 0 | AL36: =AL35+1 -> 33 | AM36: Bergenfield Borough, Bergen County
AL37: 34 | AM37: Berkeley Heights Township, Union County
C38: PILOT Method Assumptions | F38: Project Budget & Valuation Assumptions | M38: Municipal Spending Assumptions | AL38: 35 | AM38: Berkeley Township, Ocean County
B39: Year | C39: % of Actual Gross Revenue | D39: % of Taxes | E39: Total PILOT Payments (Manual Entry) | F39: Net Rents/Gross Revenue | G39: Operating Expenses (not including PILOT) | H39: Debt Service | I39: Equity (In)/Out | J39: Existing PILOT Payments (Municipal Portion) | K39: Property Assessed Value Pre-Improvement | L39: Property Assessed Value Post-Improvement | M39: Additional Benefit/Loss to Municipality | N39: Additional Municipal Costs Outside Core Budget | O39: % Growth in Municipal Budget | P39: Spending Area | Q39: % of Spending Applied in Municipal Cost Calculation | AL39: 36 | AM39: Berlin Borough, Camden County
B40: 1 | C40: 0.0628 | D40: 0.9 | E40: 92341 | F40: 1470394 | G40: =-1066661+E40 -> -974320 | H40: -362569 | I40: -8630249 | J40: =168285*$J$15 -> 159870.75 | K40: 6926200 | L40: =K40+(1003240) -> 7929440 | M40: 0 | N40: 0 | O40: -- | P40: General Government | Q40: 0.1 | AL40: 37 | AM40: Berlin Township, Camden County
B41: 2 | C41: 0.0628 | D41: 0.9 | E41: 95111.23 | F41: 1514505.82 | G41: =G40*1.03 -> -1003549.6 | H41: -362569 | J41: =J40*1.03 -> 164666.8725 | K41: 7133986 | L41: =L40*1.03 -> 8167323.2 | M41: 0 | N41: 0 | O41: 0.02 | P41: Land-Use Administration | Q41: 0.1 | AL41: 38 | AM41: Bernards Township, Somerset County
B42: 3 | C42: 0.0628 | D42: 0.9 | E42: 97964.5669 | F42: 1559940.995 | G42: =G41*1.03 -> -1033656.088 | H42: -362569 | J42: =J41*1.03 -> 169606.8787 | K42: 7348005.58 | L42: 8412342.896 | M42: 0 | N42: 0 | O42: 0.02 | P42: Uniform Construction Code | Q42: 0.5 | AL42: 39 | AM42: Bernardsville Borough, Somerset County
B43: 4 | C43: 0.0628 | D43: 0.9 | E43: 100903.5039 | F43: 1606739.224 | G43: -1064665.771 | H43: -362569 | J43: 174695.085 | K43: 7568445.747 | L43: 8664713.183 | M43: 0 | N43: 0 | O43: 0.02 | P43: Public Safety | Q43: 0.5 | AL43: 40 | AM43: Bethlehem Township, Hunterdon County
B44: 5 | C44: 0.0628 | D44: 0.9 | E44: 103930.609 | F44: 1654941.401 | G44: -1096605.744 | H44: -362569 | J44: 179935.9376 | K44: 7795499.12 | L44: 8924654.578 | M44: 0 | N44: 0 | O44: 0.02 | P44: Public Works | Q44: 0.1 | AL44: 41 | AM44: Beverly City, Burlington County | AU44: 505756 | AV44: 519298 | AW44: 533225 | AX44: 547552 | AY44: 562291 | AZ44: 577453 | BA44: 593049 | BB44: 609097 | BC44: 625605 | BD44: 642589 | BE44: 660061 | BF44: 678035 | BG44: 696526 | BH44: 715550 | BI44: 735120 | BJ44: 755256 | BK44: 775972 | BL44: 797286 | BM44: 819215 | BN44: 841777 | BO44: 864991 | BP44: 888875 | BQ44: 913450 | BR44: 938735 | BS44: 964752 | BT44: 991520 | BU44: 1019063 | BV44: 1047403 | BW44: 1076563 | BX44: 1106568
B45: 6 | C45: 0.0628 | D45: 0.9 | E45: 107048.5273 | F45: 1704589.643 | G45: -1129503.916 | H45: -362569 | J45: 185334.0157 | K45: 8029364.093 | L45: 9192394.216 | M45: 0 | N45: 0 | O45: 0.02 | P45: Health and Human Services | Q45: 0.1 | AL45: 42 | AM45: Blairstown Township, Warren County | AU45: =-AU44 -> -505756 | AV45: =-AV44 -> -519298 | AW45: -533225 | AX45: -547552 | AY45: -562291 | AZ45: -577453 | BA45: -593049 | BB45: -609097 | BC45: -625605 | BD45: -642589 | BE45: -660061 | BF45: -678035 | BG45: -696526 | BH45: -715550 | BI45: -735120 | BJ45: -755256 | BK45: -775972 | BL45: -797286 | BM45: -819215 | BN45: -841777 | BO45: -864991 | BP45: -888875 | BQ45: -913450 | BR45: -938735 | BS45: -964752 | BT45: -991520 | BU45: -1019063 | BV45: -1047403 | BW45: -1076563 | BX45: -1106568
B46: 7 | C46: 0.0628 | D46: 0.9 | E46: 110259.9831 | F46: 1755727.333 | G46: -1163389.034 | H46: -362569 | J46: 190894.0362 | K46: 8270245.016 | L46: 9468166.042 | M46: 0 | N46: 0 | O46: 0.02 | P46: Education (including Library) | Q46: 0.1 | AL46: 43 | AM46: Bloomfield Township, Essex County
B47: 8 | C47: 0.0628 | D47: 0.9 | E47: 113567.7826 | F47: 1808399.152 | G47: -1198290.705 | H47: -362569 | J47: 196620.8573 | K47: 8518352.367 | L47: 9752211.023 | M47: 0 | N47: 0 | O47: 0.02 | P47: Landfill / Solid Waste Disposal | Q47: 0.5 | AL47: 44 | AM47: Bloomingdale Borough, Passaic County | AU47: $42,635 $43,488 $44,357 $45,244 $46,148 $47,070 $48,011 $48,971 $49,950 $50,949 $51,967 $53,006 $54,066 $55,147 $56,249 $57,373 $58,520 $59,690 $60,883 $62,100 $63,342 $64,608 $65,900 $67,218 $68,562 $69,933 $71,331 $72,757 $74,212 $75,696
B48: 9 | C48: 0.0628 | D48: 0.9 | E48: 116974.8161 | F48: 1862651.127 | G48: -1234239.426 | H48: -362569 | J48: 202519.483 | K48: 8773902.938 | L48: 10044777.35 | M48: 0 | N48: 0 | O48: 0.02 | P48: Statutory Expenditures | Q48: 0.5 | AL48: 45 | AM48: Bloomsbury Borough, Hunterdon County
B49: 10 | C49: 0.0628 | D49: 0.8 | E49: 120484.0606 | F49: 1918530.661 | G49: -1271266.608 | H49: -362569 | J49: 208595.0675 | K49: 9037120.026 | L49: 10346120.67 | M49: 0 | N49: 0 | O49: 0.02 | P49: Court and Public Defender | Q49: 0.5 | AL49: 46 | AM49: Bogota Borough, Bergen County | AU49: 42635 | AV49: 43488 | AW49: 44357 | AX49: 45244 | AY49: 46148 | AZ49: 47070 | BA49: 48011 | BB49: 48971 | BC49: 49950 | BD49: 50949 | BE49: 51967 | BF49: 53006 | BG49: 54066 | BH49: 55147 | BI49: 56249 | BJ49: 57373 | BK49: 58520 | BL49: 59690 | BM49: 60883 | BN49: 62100 | BO49: 63342 | BP49: 64608 | BQ49: 65900 | BR49: 67218 | BS49: 68562 | BT49: 69933 | BU49: 71331 | BV49: 72757 | BW49: 74212 | BX49: 75696
B50: 11 | C50: 0.0628 | D50: 0.8 | E50: 124098.5824 | F50: 1976086.581 | G50: -1309404.607 | H50: -362569 | J50: 214852.9195 | K50: 9308233.627 | L50: 10656504.3 | M50: 0 | N50: 0 | O50: 0.02 | AL50: 47 | AM50: Boonton Town, Morris County
B51: 12 | C51: 0.0628 | D51: 0.8 | E51: 127821.5399 | F51: 2035369.178 | G51: -1348686.745 | H51: -362569 | J51: 221298.5071 | K51: 9587480.635 | L51: 10976199.42 | M51: 0 | N51: 0 | O51: 0.02 | AL51: 48 | AM51: Boonton Township, Morris County
B52: =B51+1 -> 13 | C52: 0.0628 | D52: 0.8 | E52: 131656.1861 | F52: 2096430.253 | G52: -1389147.347 | H52: -362569 | J52: 227937.4623 | K52: 9875105.054 | L52: 11305485.41 | M52: 0 | N52: 0 | O52: 0.02 | AL52: 49 | AM52: Bordentown City, Burlington County
B53: 14 | C53: 0.0628 | D53: 0.8 | E53: 135605.8716 | F53: 2159323.161 | G53: -1430821.768 | H53: -362569 | J53: 234775.5862 | K53: 10171358.21 | L53: 11644649.97 | M53: 0 | N53: 0 | O53: 0.02 | AL53: =AL52+1 -> 50 | AM53: Bordentown Township, Burlington County
B54: 15 | C54: 0.0628 | D54: 0.8 | E54: 139674.0478 | F54: 2224102.856 | G54: -1473746.421 | H54: -362569 | J54: 241818.8538 | K54: 10476498.95 | L54: 11993989.47 | M54: 0 | N54: 0 | O54: 0.02 | AL54: 51 | AM54: Bound Brook Borough, Somerset County
B55: 16 | C55: 0.0628 | D55: 0.8 | E55: 143864.2692 | F55: 2290825.942 | G55: -1517958.813 | H55: -362569 | J55: 249073.4194 | K55: 10790793.92 | L55: 12353809.15 | M55: 0 | N55: 0 | O55: 0.02 | AL55: 52 | AM55: Bradley Beach Borough, Monmouth County
B56: 17 | C56: 0.0628 | D56: 0.8 | E56: 148180.1973 | F56: 2359550.72 | G56: -1563497.578 | H56: -362569 | J56: 256545.6219 | K56: 11114517.74 | L56: 12724423.43 | M56: 0 | N56: 0 | O56: 0.02 | AL56: 53 | AM56: Branchburg Township, Somerset County
B57: 18 | C57: 0.0628 | D57: 0.8 | E57: 152625.6032 | F57: 2430337.241 | G57: -1610402.505 | H57: -362569 | J57: 264241.9906 | K57: 11447953.27 | L57: 13106156.13 | M57: 0 | N57: 0 | O57: 0.02 | AL57: 54 | AM57: Branchville Borough, Sussex County
B58: 19 | C58: 0.0628 | D58: 0.8 | E58: 157204.3713 | F58: 2503247.359 | G58: -1658714.58 | H58: -362569 | J58: 272169.2503 | K58: 11791391.87 | L58: 13499340.81 | M58: 0 | N58: 0 | O58: 0.02 | AL58: 55 | AM58: Brick Township, Ocean County
B59: 20 | C59: 0.0628 | D59: 0.8 | E59: 161920.5024 | F59: 2578344.779 | G59: -1708476.018 | H59: -362569 | J59: 280334.3278 | K59: 12145133.62 | L59: 13904321.04 | M59: 0 | N59: 0 | O59: 0.02 | AL59: 56 | AM59: Bridgeton City, Cumberland County
B60: 21 | C60: 0.0628 | D60: 0.8 | E60: 166778.1175 | F60: 2655695.123 | G60: -1759730.298 | H60: -362569 | J60: 288744.3577 | K60: 12509487.63 | L60: 14321450.67 | M60: 0 | N60: 0 | O60: 0.02 | AL60: 57 | AM60: Bridgewater Township, Somerset County
B61: 22 | C61: 0.0628 | D61: 0.8 | E61: 171781.461 | F61: 2735365.976 | G61: -1812522.207 | H61: -362569 | J61: 297406.6884 | K61: 12884772.26 | L61: 14751094.19 | M61: 0 | N61: 0 | O61: 0.02 | AL61: 58 | AM61: Brielle Borough, Monmouth County
B62: 23 | C62: 0.0628 | D62: 0.8 | E62: 176934.9049 | F62: 2817426.956 | G62: -1866897.873 | H62: -362569 | J62: 306328.8891 | K62: 13271315.43 | L62: 15193627.01 | M62: 0 | N62: 0 | O62: 0.02 | AL62: 59 | AM62: Brigantine City, Atlantic County
B63: 24 | C63: 0.0628 | D63: 0.8 | E63: 182242.952 | F63: 2901949.764 | G63: -1922904.81 | H63: -362569 | J63: 315518.7557 | K63: 13669454.89 | L63: 15649435.82 | M63: 0 | N63: 0 | O63: 0.02 | AL63: 60 | AM63: Brooklawn Borough, Camden County
B64: 25 | C64: 0.0628 | D64: 0.8 | E64: 187710.2406 | F64: 2989008.257 | G64: -1980591.954 | H64: -362569 | J64: 324984.3184 | K64: 14079538.54 | L64: 16118918.9 | M64: 0 | N64: 0 | O64: 0.02 | AL64: 61 | AM64: Buena Borough, Atlantic County
B65: 26 | C65: 0.0628 | D65: 0.8 | E65: 193341.5478 | F65: 3078678.505 | G65: -2040009.712 | H65: -362569 | J65: 334733.8479 | K65: 14501924.7 | L65: 16602486.47 | M65: 0 | N65: 0 | O65: 0.02 | AL65: 62 | AM65: Buena Vista Township, Atlantic County
B66: 27 | C66: 0.0628 | D66: 0.8 | E66: 199141.7942 | F66: 3171038.86 | G66: -2101210.004 | H66: -362569 | J66: 344775.8634 | K66: 14936982.44 | L66: 17100561.06 | M66: 0 | N66: 0 | O66: 0.02 | AL66: 63 | AM66: Burlington City, Burlington County
B67: 28 | C67: 0.0628 | D67: 0.8 | E67: 205116.0481 | F67: 3266170.026 | G67: -2164246.304 | H67: -362569 | J67: 355119.1393 | K67: 15385091.91 | L67: 17613577.89 | M67: 0 | N67: 0 | O67: 0.02 | AL67: =AL66+1 -> 64 | AM67: Burlington Township, Burlington County
B68: 29 | C68: 0.0628 | D68: 0.8 | E68: 211269.5295 | F68: 3364155.127 | G68: -2229173.693 | H68: -362569 | J68: 365772.7135 | K68: 15846644.67 | L68: 18141985.23 | M68: 0 | N68: 0 | O68: 0.02 | AL68: 65 | AM68: Butler Borough, Morris County
B69: 30 | C69: 0.0628 | D69: 0.8 | E69: 217607.6154 | F69: 3465079.781 | G69: -2296048.904 | H69: 0 | I69: =FV(0.03,30,0,I40) -> 20947879.51 | J69: 376745.8949 | K69: 16322044.01 | L69: 18686244.79 | M69: 0 | N69: 0 | O69: 0.02 | AL69: 66 | AM69: Byram Township, Sussex County
AL70: 67 | AM70: Caldwell Borough, Essex County
AL71: 68 | AM71: Califon Borough, Hunterdon County
AL72: 69 | AM72: Camden City, Camden County
AL73: 70 | AM73: Cape May City, Cape May County
AL74: 71 | AM74: Cape May Point Borough, Cape May County
AL75: 72 | AM75: Carlstadt Borough, Bergen County
AL76: =AL75+1 -> 73 | AM76: Carneys Point Township, Salem County
AL77: 74 | AM77: Carteret Borough, Middlesex County
AL78: 75 | AM78: Cedar Grove Township, Essex County
AL79: 76 | AM79: Chatham Borough, Morris County
AL80: 77 | AM80: Chatham Township, Morris County
AL81: 78 | AM81: Cherry Hill Township, Camden County
AL82: 79 | AM82: Chesilhurst Borough, Camden County
AL83: 80 | AM83: Chester Borough, Morris County
AL84: 81 | AM84: Chester Township, Morris County
AL85: 82 | AM85: Chesterfield Township, Burlington County
AL86: 83 | AM86: Cinnaminson Township, Burlington County
AL87: 84 | AM87: City of Orange Township, Essex County
AL88: 85 | AM88: Clark Township, Union County
AL89: 86 | AM89: Clayton Borough, Gloucester County
AL90: 87 | AM90: Clementon Borough, Camden County
AL91: 88 | AM91: Cliffside Park Borough, Bergen County
AL92: 89 | AM92: Clifton City, Passaic County
AL93: 90 | AM93: Clinton Town, Hunterdon County
AL94: 91 | AM94: Clinton Township, Hunterdon County
AL95: 92 | AM95: Closter Borough, Bergen County
AL96: 93 | AM96: Collingswood Borough, Camden County
AL97: 94 | AM97: Colts Neck Township, Monmouth County
AL98: 95 | AM98: Commercial Township, Cumberland County
AL99: 96 | AM99: Corbin City, Atlantic County
AL100: 97 | AM100: Cranbury Township, Middlesex County
AL101: 98 | AM101: Cranford Township, Union County
AL102: 99 | AM102: Cresskill Borough, Bergen County
AL103: 100 | AM103: Deal Borough, Monmouth County
AL104: 101 | AM104: Deerfield Township, Cumberland County
AL105: 102 | AM105: Delanco Township, Burlington County
AL106: 103 | AM106: Delaware Township, Hunterdon County
AL107: 104 | AM107: Delran Township, Burlington County
AL108: 105 | AM108: Demarest Borough, Bergen County
AL109: 106 | AM109: Dennis Township, Cape May County
AL110: 107 | AM110: Denville Township, Morris County
AL111: 108 | AM111: Deptford Township, Gloucester County
AL112: 109 | AM112: Dover Town, Morris County
AL113: 110 | AM113: Downe Township, Cumberland County
AL114: 111 | AM114: Dumont Borough, Bergen County
AL115: 112 | AM115: Dunellen Borough, Middlesex County
AL116: 113 | AM116: Eagleswood Township, Ocean County
AL117: 114 | AM117: East Amwell Township, Hunterdon County
AL118: 115 | AM118: East Brunswick Township, Middlesex County
AL119: 116 | AM119: East Greenwich Township, Gloucester County
AL120: 117 | AM120: East Hanover Township, Morris County
AL121: 118 | AM121: East Newark Borough, Hudson County
AL122: 119 | AM122: East Orange City, Essex County
AL123: 120 | AM123: East Rutherford Borough, Bergen County
AL124: 121 | AM124: East Windsor Township, Mercer County
AL125: 122 | AM125: Eastampton Township, Burlington County
AL126: 123 | AM126: Eatontown Borough, Monmouth County
AL127: 124 | AM127: Edgewater Borough, Bergen County
AL128: 125 | AM128: Edgewater Park Township, Burlington County
AL129: 126 | AM129: Edison Township, Middlesex County
AL130: 127 | AM130: Egg Harbor City, Atlantic County
AL131: 128 | AM131: Egg Harbor Township, Atlantic County
AL132: 129 | AM132: Elizabeth City, Union County
AL133: 130 | AM133: Elk Township, Gloucester County
AL134: 131 | AM134: Elmer Borough, Salem County
AL135: 132 | AM135: Elmwood Park Borough, Bergen County
AL136: 133 | AM136: Elsinboro Township, Salem County
AL137: 134 | AM137: Emerson Borough, Bergen County
AL138: 135 | AM138: Englewood City, Bergen County
AL139: 136 | AM139: Englewood Cliffs Borough, Bergen County
AL140: =AL139+1 -> 137 | AM140: Englishtown Borough, Monmouth County
AL141: 138 | AM141: Essex Fells Borough, Essex County
AL142: 139 | AM142: Estell Manor City, Atlantic County
AL143: 140 | AM143: Evesham Township, Burlington County
AL144: 141 | AM144: Ewing Township, Mercer County
AL145: 142 | AM145: Fair Haven Borough, Monmouth County
AL146: 143 | AM146: Fair Lawn Borough, Bergen County
AL147: 144 | AM147: Fairfield Township, Cumberland County
AL148: 145 | AM148: Fairfield Township, Essex County
AL149: 146 | AM149: Fairview Borough, Bergen County
AL150: 147 | AM150: Fanwood Borough, Union County
AL151: 148 | AM151: Far Hills Borough, Somerset County
AL152: 149 | AM152: Farmingdale Borough, Monmouth County
AL153: 150 | AM153: Fieldsboro Borough, Burlington County
AL154: 151 | AM154: Flemington Borough, Hunterdon County
AL155: 152 | AM155: Florence Township, Burlington County
AL156: 153 | AM156: Florham Park Borough, Morris County
AL157: 154 | AM157: Folsom Borough, Atlantic County
AL158: 155 | AM158: Fort Lee Borough, Bergen County
AL159: 156 | AM159: Frankford Township, Sussex County
AL160: 157 | AM160: Franklin Borough, Sussex County
AL161: 158 | AM161: Franklin Lakes Borough, Bergen County
AL162: 159 | AM162: Franklin Township, Gloucester County
AL163: 160 | AM163: Franklin Township, Hunterdon County
AL164: 161 | AM164: Franklin Township, Somerset County
AL165: 162 | AM165: Franklin Township, Warren County
AL166: 163 | AM166: Fredon Township, Sussex County
AL167: 164 | AM167: Freehold Borough, Monmouth County
AL168: 165 | AM168: Freehold Township, Monmouth County
AL169: 166 | AM169: Frelinghuysen Township, Warren County
AL170: 167 | AM170: Frenchtown Borough, Hunterdon County
AL171: 168 | AM171: Galloway Township, Atlantic County
AL172: 169 | AM172: Garfield City, Bergen County
AL173: 170 | AM173: Garwood Borough, Union County
AL174: 171 | AM174: Gibbsboro Borough, Camden County
AL175: 172 | AM175: Glassboro Borough, Gloucester County
AL176: 173 | AM176: Glen Gardner Borough, Hunterdon County
AL177: 174 | AM177: Glen Ridge Borough, Essex County
AL178: 175 | AM178: Glen Rock Borough, Bergen County
AL179: 176 | AM179: Gloucester City, Camden County
AL180: 177 | AM180: Gloucester Township, Camden County
AL181: 178 | AM181: Green Brook Township, Somerset County
AL182: 179 | AM182: Green Township, Sussex County
AL183: 180 | AM183: Greenwich Township, Cumberland County
AL184: 181 | AM184: Greenwich Township, Gloucester County
AL185: 182 | AM185: Greenwich Township, Warren County
AL186: 183 | AM186: Guttenberg Town, Hudson County
AL187: 184 | AM187: Hackensack City, Bergen County
AL188: 185 | AM188: Hackettstown Town, Warren County
AL189: 186 | AM189: Haddon Heights Borough, Camden County
AL190: 187 | AM190: Haddon Township, Camden County
AL191: 188 | AM191: Haddonfield Borough, Camden County
AL192: 189 | AM192: Hainesport Township, Burlington County
AL193: 190 | AM193: Haledon Borough, Passaic County
AL194: 191 | AM194: Hamburg Borough, Sussex County
AL195: 192 | AM195: Hamilton Township, Atlantic County
AL196: 193 | AM196: Hamilton Township, Mercer County
AL197: 194 | AM197: Hammonton Town, Atlantic County
AL198: 195 | AM198: Hampton Borough, Hunterdon County
AL199: 196 | AM199: Hampton Township, Sussex County
AL200: 197 | AM200: Hanover Township, Morris County
... 367 more rows

Sheet Model
A1: ='Inputs & Assumptions'!A1 -> Payment in Lieu of Taxes Financial Agreement Forecasting Model - Aberdeen Township, Monmouth County
A2: Projections
A3: Year | B3: Year Number | C3: Net Rents/Gross Revenue | D3: Operating Expenses | E3: Property Assessed Value Pre-Improvement | F3: =IF(existpilot=2,"Municipal Property Tax Revenue Pre-Improvement", "Municipal PILOT Revenue Pre-Improvement") -> Municipal Property Tax Revenue Pre-Improvement | G3: Property Assessed Value Post-Improvement | H3: Total Property Taxes without PILOT | I3: Municipal Property Taxes without PILOT | J3: PILOT Payments | K3: Municipal PILOT | L3: County PILOT | M3: School PILOT | N3: Project Net Operating Income before Debt Service | O3: Debt Service | P3: Project Cash Flow | Q3: Equity (In)/Out | R3: Net Cash Flow | S3: PILOT % of Annual Gross Revenue | T3: PILOT % of Conventional Taxes | U3: Additional Municipal Costs Outside Core Budget | V3: Additional Municipal Costs (Core Budget) | W3: Total Additional Municipal Costs | X3: Additional Net Benefit (Loss to Municipality) | Y3: Net Benefit (Loss) to Municipality | Z3: =IF(existpilot=2,"Change in Municipal Property Tax Revenue due to Project", "Change in Municipal PILOT Revenue due to Project") -> Change in Municipal Property Tax Revenue due to Project
A4: ='Inputs & Assumptions'!G5 -> 2024 | B4: 1 | C4: ='Inputs & Assumptions'!F40 -> 1470394 | D4: ='Inputs & Assumptions'!G40 -> -974320 | E4: ='Inputs & Assumptions'!K40 -> 6926200 | F4: =IF(existpilot=2,'Inputs & Assumptions'!$Q$4*(E4/100),'Inputs & Assumptions'!J40) -> 28879.93013 | G4: ='Inputs & Assumptions'!L40 -> 7929440 | H4: =(G4/100)*'Inputs & Assumptions'!$Q$5 -> 158156.8275 | I4: =(G4/100)*'Inputs & Assumptions'!$Q$4 -> 33063.10432 | J4: =IF(IF('Inputs & Assumptions'!$B$8=1,-C4*'Inputs & Assumptions'!$C40,IF('Inputs & Assumptions'!$B$8=2,-H4*'Inputs & Assumptions'!$D40,IF('Inputs & Assumptions'!$B$8=3,-'Inputs & Assumptions'!E40,"")))*$AA$10>0,0,IF('Inputs & Assumptions'!$B$8=1,-C4*'Inputs & Assumptions'!$C40,IF('Inputs & Assumptions'!$B$8=2,-H4*'Inputs & Assumptions'!$D40,IF('Inputs & Assumptions'!$B$8=3,-'Inputs & Assumptions'!E40,"")))*$AA$10) -> -134785.232 | K4: =IF(pilotmeth=1,VLOOKUP(Muni,Data!$E$4:$Q$567,11,FALSE),'Inputs & Assumptions'!$J$15)*J4 -> -128045.9704 | L4: =IF(pilotmeth=1,VLOOKUP(Muni,Data!$E$4:$Q$567,12,FALSE),'Inputs & Assumptions'!$J$16)*J4 -> -6739.2616 | M4: =IF(pilotmeth=1,VLOOKUP(Muni,Data!$E$4:$Q$567,13,FALSE),'Inputs & Assumptions'!$J$17)*J4 -> 0 | N4: =J4+D4+C4 -> 361288.768 | O4: ='Inputs & Assumptions'!H40 -> -362569 | P4: =SUM(N4:O4) -> -1280.231991 | Q4: ='Inputs & Assumptions'!I40 -> -8630249 | R4: =SUM(P4:Q4) -> -8631529.232 | S4: =IFERROR(-J4/C4,"--") -> 0.09166606501 | T4: =IFERROR(-J4/H4,"--") -> 0.8522251877 | U4: ='Inputs & Assumptions'!N40 -> 0 | V4: =IFERROR(IF(Type=1,'Inputs & Assumptions'!$Q$6*'Inputs & Assumptions'!E19,IF(Type=2,'Inputs & Assumptions'!$Q$6*'Inputs & Assumptions'!C23,IF(Type=3,'Inputs & Assumptions'!$Q$6*'Inputs & Assumptions'!C36,"--"))),"No Data") -> 32081.73967 | W4: =IFERROR(V4+U4,"--") -> 32081.73967 | X4: ='Inputs & Assumptions'!M40 -> 0 | Y4: =IFERROR(-K4-F4-W4+X4,"--") -> 67084.30059 | Z4: =-K4-F4 -> 99166.04027 | AA4: Current IRR | AB4: =IRR(R4:R33,0.1) -> 0.04500872364
A5: =A4+1 -> 2025 | B5: 2 | C5: ='Inputs & Assumptions'!F41 -> 1514505.82 | D5: ='Inputs & Assumptions'!G41 -> -1003549.6 | E5: ='Inputs & Assumptions'!K41 -> 7133986 | F5: =IF(existpilot=2,'Inputs & Assumptions'!$Q$4*(E5/100),'Inputs & Assumptions'!J41) -> 29746.32803 | G5: ='Inputs & Assumptions'!L41 -> 8167323.2 | H5: =(G5/100)*'Inputs & Assumptions'!$Q$5 -> 162901.5323 | I5: =(G5/100)*'Inputs & Assumptions'!$Q$4 -> 34054.99745 | J5: =IF(C5="","--",IF(IF('Inputs & Assumptions'!$B$8=1,-C5*'Inputs & Assumptions'!$C41,IF('Inputs & Assumptions'!$B$8=2,-H5*'Inputs & Assumptions'!$D41,IF('Inputs & Assumptions'!$B$8=3,-'Inputs & Assumptions'!E41,"")))*$AA$10>0,0,IF('Inputs & Assumptions'!$B$8=1,-C5*'Inputs & Assumptions'!$C41,IF('Inputs & Assumptions'!$B$8=2,-H5*'Inputs & Assumptions'!$D41,IF('Inputs & Assumptions'!$B$8=3,-'Inputs & Assumptions'!E41,"")))*$AA$10)) -> -138828.789 | K5: =IF(pilotmeth=1,VLOOKUP(Muni,Data!$E$4:$Q$567,11,FALSE),'Inputs & Assumptions'!$J$15)*J5 -> -131887.3495 | L5: =IF(pilotmeth=1,VLOOKUP(Muni,Data!$E$4:$Q$567,12,FALSE),'Inputs & Assumptions'!$J$16)*J5 -> -6941.439448 | M5: =IF(pilotmeth=1,VLOOKUP(Muni,Data!$E$4:$Q$567,13,FALSE),'Inputs & Assumptions'!$J$17)*J5 -> 0 | N5: =J5+D5+C5 -> 372127.431 | O5: ='Inputs & Assumptions'!H41 -> -362569 | P5: =SUM(N5:O5) -> 9558.431049 | Q5: ='Inputs & Assumptions'!I41 -> 0 | R5: =SUM(P5:Q5) -> 9558.431049 | S5: =IFERROR(-J5/C5,"--") -> 0.09166606501 | T5: =IFERROR(-J5/H5,"--") -> 0.8522251877 | U5: ='Inputs & Assumptions'!N41 -> 0 | V5: =IF(OR(C5>0),IFERROR(V4*((1+'Inputs & Assumptions'!O41)),"No Data"),"--") -> 32723.37447 | W5: =IFERROR(V5+U5,"--") -> 32723.37447 | X5: ='Inputs & Assumptions'!M41 -> 0 | Y5: =IFERROR(-K5-F5-W5+X5,"--") -> 69417.64701 | Z5: =-K5-F5 -> 102141.0215
A6: =A5+1 -> 2026 | B6: 3 | C6: ='Inputs & Assumptions'!F42 -> 1559940.995 | D6: ='Inputs & Assumptions'!G42 -> -1033656.088 | E6: ='Inputs & Assumptions'!K42 -> 7348005.58 | F6: =IF(existpilot=2,'Inputs & Assumptions'!$Q$4*(E6/100),'Inputs & Assumptions'!J42) -> 30638.71787 | G6: ='Inputs & Assumptions'!L42 -> 8412342.896 | H6: =(G6/100)*'Inputs & Assumptions'!$Q$5 -> 167788.5783 | I6: =(G6/100)*'Inputs & Assumptions'!$Q$4 -> 35076.64737 | J6: =IF(C6="","--",IF(IF('Inputs & Assumptions'!$B$8=1,-C6*'Inputs & Assumptions'!$C42,IF('Inputs & Assumptions'!$B$8=2,-H6*'Inputs & Assumptions'!$D42,IF('Inputs & Assumptions'!$B$8=3,-'Inputs & Assumptions'!E42,"")))*$AA$10>0,0,IF('Inputs & Assumptions'!$B$8=1,-C6*'Inputs & Assumptions'!$C42,IF('Inputs & Assumptions'!$B$8=2,-H6*'Inputs & Assumptions'!$D42,IF('Inputs & Assumptions'!$B$8=3,-'Inputs & Assumptions'!E42,"")))*$AA$10)) -> -142993.6526 | K6: =IF(pilotmeth=1,VLOOKUP(Muni,Data!$E$4:$Q$567,11,FALSE),'Inputs & Assumptions'!$J$15)*J6 -> -135843.97 | L6: =IF(pilotmeth=1,VLOOKUP(Muni,Data!$E$4:$Q$567,12,FALSE),'Inputs & Assumptions'!$J$16)*J6 -> -7149.682631 | M6: =IF(pilotmeth=1,VLOOKUP(Muni,Data!$E$4:$Q$567,13,FALSE),'Inputs & Assumptions'!$J$17)*J6 -> 0 | N6: 383291.254 | O6: ='Inputs & Assumptions'!H42 -> -362569 | P6: =SUM(N6:O6) -> 20722.25398 | Q6: ='Inputs & Assumptions'!I42 -> 0 | R6: =SUM(P6:Q6) -> 20722.25398 | S6: 0.09166606501 | T6: 0.8522251877 | U6: ='Inputs & Assumptions'!N42 -> 0 | V6: =IF(OR(C6>0),IFERROR(V5*((1+'Inputs & Assumptions'!O42)),"No Data"),"--") -> 33377.84196 | W6: 33377.84196 | X6: ='Inputs & Assumptions'!M42 -> 0 | Y6: =IFERROR(-K6-F6-W6+X6,"--") -> 71827.41016 | Z6: 105205.2521 | AA6: IRR Target | AB6: 0.045
A7: 2027 | B7: 4 | C7: ='Inputs & Assumptions'!F43 -> 1606739.224 | D7: ='Inputs & Assumptions'!G43 -> -1064665.771 | E7: ='Inputs & Assumptions'!K43 -> 7568445.747 | F7: =IF(existpilot=2,'Inputs & Assumptions'!$Q$4*(E7/100),'Inputs & Assumptions'!J43) -> 31557.87941 | G7: ='Inputs & Assumptions'!L43 -> 8664713.183 | H7: =(G7/100)*'Inputs & Assumptions'!$Q$5 -> 172822.2356 | I7: =(G7/100)*'Inputs & Assumptions'!$Q$4 -> 36128.94679 | J7: =IF(C7="","--",IF(IF('Inputs & Assumptions'!$B$8=1,-C7*'Inputs & Assumptions'!$C43,IF('Inputs & Assumptions'!$B$8=2,-H7*'Inputs & Assumptions'!$D43,IF('Inputs & Assumptions'!$B$8=3,-'Inputs & Assumptions'!E43,"")))*$AA$10>0,0,IF('Inputs & Assumptions'!$B$8=1,-C7*'Inputs & Assumptions'!$C43,IF('Inputs & Assumptions'!$B$8=2,-H7*'Inputs & Assumptions'!$D43,IF('Inputs & Assumptions'!$B$8=3,-'Inputs & Assumptions'!E43,"")))*$AA$10)) -> -147283.4622 | K7: =IF(pilotmeth=1,VLOOKUP(Muni,Data!$E$4:$Q$567,11,FALSE),'Inputs & Assumptions'!$J$15)*J7 -> -139919.2891 | L7: =IF(pilotmeth=1,VLOOKUP(Muni,Data!$E$4:$Q$567,12,FALSE),'Inputs & Assumptions'!$J$16)*J7 -> -7364.17311 | M7: =IF(pilotmeth=1,VLOOKUP(Muni,Data!$E$4:$Q$567,13,FALSE),'Inputs & Assumptions'!$J$17)*J7 -> 0 | N7: 394789.9916 | O7: ='Inputs & Assumptions'!H43 -> -362569 | P7: =SUM(N7:O7) -> 32220.9916 | Q7: ='Inputs & Assumptions'!I43 -> 0 | R7: 32220.9916 | S7: 0.09166606501 | T7: 0.8522251877 | U7: ='Inputs & Assumptions'!N43 -> 0 | V7: =IF(OR(C7>0),IFERROR(V6*((1+'Inputs & Assumptions'!O43)),"No Data"),"--") -> 34045.3988 | W7: 34045.3988 | X7: ='Inputs & Assumptions'!M43 -> 0 | Y7: 74316.01089 | Z7: 108361.4097
A8: 2028 | B8: 5 | C8: ='Inputs & Assumptions'!F44 -> 1654941.401 | D8: ='Inputs & Assumptions'!G44 -> -1096605.744 | E8: ='Inputs & Assumptions'!K44 -> 7795499.12 | F8: =IF(existpilot=2,'Inputs & Assumptions'!$Q$4*(E8/100),'Inputs & Assumptions'!J44) -> 32504.61579 | G8: ='Inputs & Assumptions'!L44 -> 8924654.578 | H8: =(G8/100)*'Inputs & Assumptions'!$Q$5 -> 178006.9027 | I8: =(G8/100)*'Inputs & Assumptions'!$Q$4 -> 37212.8152 | J8: =IF(C8="","--",IF(IF('Inputs & Assumptions'!$B$8=1,-C8*'Inputs & Assumptions'!$C44,IF('Inputs & Assumptions'!$B$8=2,-H8*'Inputs & Assumptions'!$D44,IF('Inputs & Assumptions'!$B$8=3,-'Inputs & Assumptions'!E44,"")))*$AA$10>0,0,IF('Inputs & Assumptions'!$B$8=1,-C8*'Inputs & Assumptions'!$C44,IF('Inputs & Assumptions'!$B$8=2,-H8*'Inputs & Assumptions'!$D44,IF('Inputs & Assumptions'!$B$8=3,-'Inputs & Assumptions'!E44,"")))*$AA$10)) -> -151701.9661 | K8: =IF(pilotmeth=1,VLOOKUP(Muni,Data!$E$4:$Q$567,11,FALSE),'Inputs & Assumptions'!$J$15)*J8 -> -144116.8678 | L8: =IF(pilotmeth=1,VLOOKUP(Muni,Data!$E$4:$Q$567,12,FALSE),'Inputs & Assumptions'!$J$16)*J8 -> -7585.098303 | M8: =IF(pilotmeth=1,VLOOKUP(Muni,Data!$E$4:$Q$567,13,FALSE),'Inputs & Assumptions'!$J$17)*J8 -> 0 | N8: 406633.6913 | O8: ='Inputs & Assumptions'!H44 -> -362569 | P8: 44064.69135 | Q8: ='Inputs & Assumptions'!I44 -> 0 | R8: =SUM(P8:Q8) -> 44064.69135 | S8: 0.09166606501 | T8: 0.8522251877 | U8: ='Inputs & Assumptions'!N44 -> 0 | V8: =IF(OR(C8>0),IFERROR(V7*((1+'Inputs & Assumptions'!O44)),"No Data"),"--") -> 34726.30677 | W8: 34726.30677 | X8: ='Inputs & Assumptions'!M44 -> 0 | Y8: 76885.9452 | Z8: 111612.252
A9: 2029 | B9: 6 | C9: ='Inputs & Assumptions'!F45 -> 1704589.643 | D9: ='Inputs & Assumptions'!G45 -> -1129503.916 | E9: ='Inputs & Assumptions'!K45 -> 8029364.093 | F9: =IF(existpilot=2,'Inputs & Assumptions'!$Q$4*(E9/100),'Inputs & Assumptions'!J45) -> 33479.75426 | G9: ='Inputs & Assumptions'!L45 -> 9192394.216 | H9: =(G9/100)*'Inputs & Assumptions'!$Q$5 -> 183347.1098 | I9: =(G9/100)*'Inputs & Assumptions'!$Q$4 -> 38329.19965 | J9: =IF(C9="","--",IF(IF('Inputs & Assumptions'!$B$8=1,-C9*'Inputs & Assumptions'!$C45,IF('Inputs & Assumptions'!$B$8=2,-H9*'Inputs & Assumptions'!$D45,IF('Inputs & Assumptions'!$B$8=3,-'Inputs & Assumptions'!E45,"")))*$AA$10>0,0,IF('Inputs & Assumptions'!$B$8=1,-C9*'Inputs & Assumptions'!$C45,IF('Inputs & Assumptions'!$B$8=2,-H9*'Inputs & Assumptions'!$D45,IF('Inputs & Assumptions'!$B$8=3,-'Inputs & Assumptions'!E45,"")))*$AA$10)) -> -156253.025 | K9: =IF(pilotmeth=1,VLOOKUP(Muni,Data!$E$4:$Q$567,11,FALSE),'Inputs & Assumptions'!$J$15)*J9 -> -148440.3738 | L9: =IF(pilotmeth=1,VLOOKUP(Muni,Data!$E$4:$Q$567,12,FALSE),'Inputs & Assumptions'!$J$16)*J9 -> -7812.651252 | M9: =IF(pilotmeth=1,VLOOKUP(Muni,Data!$E$4:$Q$567,13,FALSE),'Inputs & Assumptions'!$J$17)*J9 -> 0 | N9: 418832.7021 | O9: ='Inputs & Assumptions'!H45 -> -362569 | P9: 56263.70209 | Q9: ='Inputs & Assumptions'!I45 -> 0 | R9: 56263.70209 | S9: 0.09166606501 | T9: 0.8522251877 | U9: ='Inputs & Assumptions'!N45 -> 0 | V9: =IF(OR(C9>0),IFERROR(V8*((1+'Inputs & Assumptions'!O45)),"No Data"),"--") -> 35420.83291 | W9: 35420.83291 | X9: ='Inputs & Assumptions'!M45 -> 0 | Y9: 79539.78662 | Z9: 114960.6195 | AA9: PILOT Adjustment Factor
A10: 2030 | B10: 7 | C10: ='Inputs & Assumptions'!F46 -> 1755727.333 | D10: ='Inputs & Assumptions'!G46 -> -1163389.034 | E10: ='Inputs & Assumptions'!K46 -> 8270245.016 | F10: =IF(existpilot=2,'Inputs & Assumptions'!$Q$4*(E10/100),'Inputs & Assumptions'!J46) -> 34484.14689 | G10: ='Inputs & Assumptions'!L46 -> 9468166.042 | H10: =(G10/100)*'Inputs & Assumptions'!$Q$5 -> 188847.5231 | I10: =(G10/100)*'Inputs & Assumptions'!$Q$4 -> 39479.07564 | J10: =IF(C10="","--",IF(IF('Inputs & Assumptions'!$B$8=1,-C10*'Inputs & Assumptions'!$C46,IF('Inputs & Assumptions'!$B$8=2,-H10*'Inputs & Assumptions'!$D46,IF('Inputs & Assumptions'!$B$8=3,-'Inputs & Assumptions'!E46,"")))*$AA$10>0,0,IF('Inputs & Assumptions'!$B$8=1,-C10*'Inputs & Assumptions'!$C46,IF('Inputs & Assumptions'!$B$8=2,-H10*'Inputs & Assumptions'!$D46,IF('Inputs & Assumptions'!$B$8=3,-'Inputs & Assumptions'!E46,"")))*$AA$10)) -> -160940.6158 | K10: =IF(pilotmeth=1,VLOOKUP(Muni,Data!$E$4:$Q$567,11,FALSE),'Inputs & Assumptions'!$J$15)*J10 -> -152893.585 | L10: =IF(pilotmeth=1,VLOOKUP(Muni,Data!$E$4:$Q$567,12,FALSE),'Inputs & Assumptions'!$J$16)*J10 -> -8047.03079 | M10: =IF(pilotmeth=1,VLOOKUP(Muni,Data!$E$4:$Q$567,13,FALSE),'Inputs & Assumptions'!$J$17)*J10 -> 0 | N10: 431397.6832 | O10: ='Inputs & Assumptions'!H46 -> -362569 | P10: 68828.68315 | Q10: ='Inputs & Assumptions'!I46 -> 0 | R10: 68828.68315 | S10: 0.09166606501 | T10: 0.8522251877 | U10: ='Inputs & Assumptions'!N46 -> 0 | V10: =IF(OR(C10>0),IFERROR(V9*((1+'Inputs & Assumptions'!O46)),"No Data"),"--") -> 36129.24957 | W10: 36129.24957 | X10: ='Inputs & Assumptions'!M46 -> 0 | Y10: 82280.18855 | Z10: 118409.4381 | AA10: 1.459646657
A11: 2031 | B11: 8 | C11: ='Inputs & Assumptions'!F47 -> 1808399.152 | D11: ='Inputs & Assumptions'!G47 -> -1198290.705 | E11: ='Inputs & Assumptions'!K47 -> 8518352.367 | F11: =IF(existpilot=2,'Inputs & Assumptions'!$Q$4*(E11/100),'Inputs & Assumptions'!J47) -> 35518.6713 | G11: ='Inputs & Assumptions'!L47 -> 9752211.023 | H11: =(G11/100)*'Inputs & Assumptions'!$Q$5 -> 194512.9488 | I11: =(G11/100)*'Inputs & Assumptions'!$Q$4 -> 40663.44791 | J11: =IF(C11="","--",IF(IF('Inputs & Assumptions'!$B$8=1,-C11*'Inputs & Assumptions'!$C47,IF('Inputs & Assumptions'!$B$8=2,-H11*'Inputs & Assumptions'!$D47,IF('Inputs & Assumptions'!$B$8=3,-'Inputs & Assumptions'!E47,"")))*$AA$10>0,0,IF('Inputs & Assumptions'!$B$8=1,-C11*'Inputs & Assumptions'!$C47,IF('Inputs & Assumptions'!$B$8=2,-H11*'Inputs & Assumptions'!$D47,IF('Inputs & Assumptions'!$B$8=3,-'Inputs & Assumptions'!E47,"")))*$AA$10)) -> -165768.8343 | K11: =IF(pilotmeth=1,VLOOKUP(Muni,Data!$E$4:$Q$567,11,FALSE),'Inputs & Assumptions'!$J$15)*J11 -> -157480.3926 | L11: =IF(pilotmeth=1,VLOOKUP(Muni,Data!$E$4:$Q$567,12,FALSE),'Inputs & Assumptions'!$J$16)*J11 -> -8288.441714 | M11: =IF(pilotmeth=1,VLOOKUP(Muni,Data!$E$4:$Q$567,13,FALSE),'Inputs & Assumptions'!$J$17)*J11 -> 0 | N11: 444339.6136 | O11: ='Inputs & Assumptions'!H47 -> -362569 | P11: 81770.61365 | Q11: ='Inputs & Assumptions'!I47 -> 0 | R11: 81770.61365 | S11: 0.09166606501 | T11: 0.8522251877 | U11: ='Inputs & Assumptions'!N47 -> 0 | V11: =IF(OR(C11>0),IFERROR(V10*((1+'Inputs & Assumptions'!O47)),"No Data"),"--") -> 36851.83456 | W11: 36851.83456 | X11: ='Inputs & Assumptions'!M47 -> 0 | Y11: 85109.8867 | Z11: 121961.7213
A12: 2032 | B12: 9 | C12: ='Inputs & Assumptions'!F48 -> 1862651.127 | D12: ='Inputs & Assumptions'!G48 -> -1234239.426 | E12: ='Inputs & Assumptions'!K48 -> 8773902.938 | F12: =IF(existpilot=2,'Inputs & Assumptions'!$Q$4*(E12/100),'Inputs & Assumptions'!J48) -> 36584.23144 | G12: ='Inputs & Assumptions'!L48 -> 10044777.35 | H12: =(G12/100)*'Inputs & Assumptions'!$Q$5 -> 200348.3372 | I12: =(G12/100)*'Inputs & Assumptions'!$Q$4 -> 41883.35135 | J12: =IF(C12="","--",IF(IF('Inputs & Assumptions'!$B$8=1,-C12*'Inputs & Assumptions'!$C48,IF('Inputs & Assumptions'!$B$8=2,-H12*'Inputs & Assumptions'!$D48,IF('Inputs & Assumptions'!$B$8=3,-'Inputs & Assumptions'!E48,"")))*$AA$10>0,0,IF('Inputs & Assumptions'!$B$8=1,-C12*'Inputs & Assumptions'!$C48,IF('Inputs & Assumptions'!$B$8=2,-H12*'Inputs & Assumptions'!$D48,IF('Inputs & Assumptions'!$B$8=3,-'Inputs & Assumptions'!E48,"")))*$AA$10)) -> -170741.8993 | K12: =IF(pilotmeth=1,VLOOKUP(Muni,Data!$E$4:$Q$567,11,FALSE),'Inputs & Assumptions'!$J$15)*J12 -> -162204.8043 | L12: =IF(pilotmeth=1,VLOOKUP(Muni,Data!$E$4:$Q$567,12,FALSE),'Inputs & Assumptions'!$J$16)*J12 -> -8537.094965 | M12: =IF(pilotmeth=1,VLOOKUP(Muni,Data!$E$4:$Q$567,13,FALSE),'Inputs & Assumptions'!$J$17)*J12 -> 0 | N12: =J12+D12+C12 -> 457669.8021 | O12: ='Inputs & Assumptions'!H48 -> -362569 | P12: 95100.80205 | Q12: ='Inputs & Assumptions'!I48 -> 0 | R12: 95100.80205 | S12: 0.09166606501 | T12: 0.8522251877 | U12: ='Inputs & Assumptions'!N48 -> 0 | V12: =IF(OR(C12>0),IFERROR(V11*((1+'Inputs & Assumptions'!O48)),"No Data"),"--") -> 37588.87125 | W12: 37588.87125 | X12: ='Inputs & Assumptions'!M48 -> 0 | Y12: 88031.70165 | Z12: 125620.5729
A13: 2033 | B13: 10 | C13: ='Inputs & Assumptions'!F49 -> 1918530.661 | D13: ='Inputs & Assumptions'!G49 -> -1271266.608 | E13: ='Inputs & Assumptions'!K49 -> 9037120.026 | F13: =IF(existpilot=2,'Inputs & Assumptions'!$Q$4*(E13/100),'Inputs & Assumptions'!J49) -> 37681.75838 | G13: ='Inputs & Assumptions'!L49 -> 10346120.67 | H13: =(G13/100)*'Inputs & Assumptions'!$Q$5 -> 206358.7874 | I13: =(G13/100)*'Inputs & Assumptions'!$Q$4 -> 43139.85189 | J13: =IF(C13="","--",IF(IF('Inputs & Assumptions'!$B$8=1,-C13*'Inputs & Assumptions'!$C49,IF('Inputs & Assumptions'!$B$8=2,-H13*'Inputs & Assumptions'!$D49,IF('Inputs & Assumptions'!$B$8=3,-'Inputs & Assumptions'!E49,"")))*$AA$10>0,0,IF('Inputs & Assumptions'!$B$8=1,-C13*'Inputs & Assumptions'!$C49,IF('Inputs & Assumptions'!$B$8=2,-H13*'Inputs & Assumptions'!$D49,IF('Inputs & Assumptions'!$B$8=3,-'Inputs & Assumptions'!E49,"")))*$AA$10)) -> -175864.1563 | K13: =IF(pilotmeth=1,VLOOKUP(Muni,Data!$E$4:$Q$567,11,FALSE),'Inputs & Assumptions'!$J$15)*J13 -> -167070.9485 | L13: =IF(pilotmeth=1,VLOOKUP(Muni,Data!$E$4:$Q$567,12,FALSE),'Inputs & Assumptions'!$J$16)*J13 -> -8793.207814 | M13: =IF(pilotmeth=1,VLOOKUP(Muni,Data!$E$4:$Q$567,13,FALSE),'Inputs & Assumptions'!$J$17)*J13 -> 0 | N13: 471399.8961 | O13: ='Inputs & Assumptions'!H49 -> -362569 | P13: 108830.8961 | Q13: ='Inputs & Assumptions'!I49 -> 0 | R13: 108830.8961 | S13: 0.09166606501 | T13: 0.8522251877 | U13: ='Inputs & Assumptions'!N49 -> 0 | V13: =IF(OR(C13>0),IFERROR(V12*((1+'Inputs & Assumptions'!O49)),"No Data"),"--") -> 38340.64867 | W13: 38340.64867 | X13: ='Inputs & Assumptions'!M49 -> 0 | Y13: 91048.54141 | Z13: 129389.1901
A14: 2034 | B14: 11 | C14: ='Inputs & Assumptions'!F50 -> 1976086.581 | D14: ='Inputs & Assumptions'!G50 -> -1309404.607 | E14: ='Inputs & Assumptions'!K50 -> 9308233.627 | F14: =IF(existpilot=2,'Inputs & Assumptions'!$Q$4*(E14/100),'Inputs & Assumptions'!J50) -> 38812.21113 | G14: ='Inputs & Assumptions'!L50 -> 10656504.3 | H14: =(G14/100)*'Inputs & Assumptions'!$Q$5 -> 212549.551 | I14: =(G14/100)*'Inputs & Assumptions'!$Q$4 -> 44434.04745 | J14: =IF(C14="","--",IF(IF('Inputs & Assumptions'!$B$8=1,-C14*'Inputs & Assumptions'!$C50,IF('Inputs & Assumptions'!$B$8=2,-H14*'Inputs & Assumptions'!$D50,IF('Inputs & Assumptions'!$B$8=3,-'Inputs & Assumptions'!E50,"")))*$AA$10>0,0,IF('Inputs & Assumptions'!$B$8=1,-C14*'Inputs & Assumptions'!$C50,IF('Inputs & Assumptions'!$B$8=2,-H14*'Inputs & Assumptions'!$D50,IF('Inputs & Assumptions'!$B$8=3,-'Inputs & Assumptions'!E50,"")))*$AA$10)) -> -181140.081 | K14: =IF(pilotmeth=1,VLOOKUP(Muni,Data!$E$4:$Q$567,11,FALSE),'Inputs & Assumptions'!$J$15)*J14 -> -172083.0769 | L14: =IF(pilotmeth=1,VLOOKUP(Muni,Data!$E$4:$Q$567,12,FALSE),'Inputs & Assumptions'!$J$16)*J14 -> -9057.004048 | M14: =IF(pilotmeth=1,VLOOKUP(Muni,Data!$E$4:$Q$567,13,FALSE),'Inputs & Assumptions'!$J$17)*J14 -> 0 | N14: =IFERROR(J14+D14+C14,"--") -> 485541.893 | O14: ='Inputs & Assumptions'!H50 -> -362569 | P14: =IF(C14="","--",SUM(N14:O14)) -> 122972.893 | Q14: ='Inputs & Assumptions'!I50 -> 0 | R14: =IF(C14="","--",SUM(P14:Q14)) -> 122972.893 | S14: 0.09166606501 | T14: 0.8522251877 | U14: ='Inputs & Assumptions'!N50 -> 0 | V14: =IF(OR(C14>0),IFERROR(V13*((1+'Inputs & Assumptions'!O50)),"No Data"),"--") -> 39107.46165 | W14: 39107.46165 | X14: ='Inputs & Assumptions'!M50 -> 0 | Y14: 94163.40414 | Z14: 133270.8658
A15: 2035 | B15: 12 | C15: ='Inputs & Assumptions'!F51 -> 2035369.178 | D15: ='Inputs & Assumptions'!G51 -> -1348686.745 | E15: ='Inputs & Assumptions'!K51 -> 9587480.635 | F15: =IF(existpilot=2,'Inputs & Assumptions'!$Q$4*(E15/100),'Inputs & Assumptions'!J51) -> 39976.57746 | G15: ='Inputs & Assumptions'!L51 -> 10976199.42 | H15: =(G15/100)*'Inputs & Assumptions'!$Q$5 -> 218926.0375 | I15: =(G15/100)*'Inputs & Assumptions'!$Q$4 -> 45767.06887 | J15: =IF(C15="","--",IF(IF('Inputs & Assumptions'!$B$8=1,-C15*'Inputs & Assumptions'!$C51,IF('Inputs & Assumptions'!$B$8=2,-H15*'Inputs & Assumptions'!$D51,IF('Inputs & Assumptions'!$B$8=3,-'Inputs & Assumptions'!E51,"")))*$AA$10>0,0,IF('Inputs & Assumptions'!$B$8=1,-C15*'Inputs & Assumptions'!$C51,IF('Inputs & Assumptions'!$B$8=2,-H15*'Inputs & Assumptions'!$D51,IF('Inputs & Assumptions'!$B$8=3,-'Inputs & Assumptions'!E51,"")))*$AA$10)) -> -186574.2834 | K15: =IF(pilotmeth=1,VLOOKUP(Muni,Data!$E$4:$Q$567,11,FALSE),'Inputs & Assumptions'!$J$15)*J15 -> -177245.5692 | L15: =IF(pilotmeth=1,VLOOKUP(Muni,Data!$E$4:$Q$567,12,FALSE),'Inputs & Assumptions'!$J$16)*J15 -> -9328.71417 | M15: =IF(pilotmeth=1,VLOOKUP(Muni,Data!$E$4:$Q$567,13,FALSE),'Inputs & Assumptions'!$J$17)*J15 -> 0 | N15: =IFERROR(J15+D15+C15,"--") -> 500108.1498 | O15: ='Inputs & Assumptions'!H51 -> -362569 | P15: =IF(C15="","--",SUM(N15:O15)) -> 137539.1498 | Q15: ='Inputs & Assumptions'!I51 -> 0 | R15: =IF(C15="","--",SUM(P15:Q15)) -> 137539.1498 | S15: 0.09166606501 | T15: 0.8522251877 | U15: ='Inputs & Assumptions'!N51 -> 0 | V15: =IF(OR(C15>0),IFERROR(V14*((1+'Inputs & Assumptions'!O51)),"No Data"),"--") -> 39889.61088 | W15: 39889.61088 | X15: ='Inputs & Assumptions'!M51 -> 0 | Y15: 97379.38088 | Z15: 137268.9918
A16: 2036 | B16: =B15+1 -> 13 | C16: ='Inputs & Assumptions'!F52 -> 2096430.253 | D16: ='Inputs & Assumptions'!G52 -> -1389147.347 | E16: ='Inputs & Assumptions'!K52 -> 9875105.054 | F16: =IF(existpilot=2,'Inputs & Assumptions'!$Q$4*(E16/100),'Inputs & Assumptions'!J52) -> 41175.87479 | G16: ='Inputs & Assumptions'!L52 -> 11305485.41 | H16: =(G16/100)*'Inputs & Assumptions'!$Q$5 -> 225493.8186 | I16: =(G16/100)*'Inputs & Assumptions'!$Q$4 -> 47140.08094 | J16: =IF(C16="","--",IF(IF('Inputs & Assumptions'!$B$8=1,-C16*'Inputs & Assumptions'!$C52,IF('Inputs & Assumptions'!$B$8=2,-H16*'Inputs & Assumptions'!$D52,IF('Inputs & Assumptions'!$B$8=3,-'Inputs & Assumptions'!E52,"")))*$AA$10>0,0,IF('Inputs & Assumptions'!$B$8=1,-C16*'Inputs & Assumptions'!$C52,IF('Inputs & Assumptions'!$B$8=2,-H16*'Inputs & Assumptions'!$D52,IF('Inputs & Assumptions'!$B$8=3,-'Inputs & Assumptions'!E52,"")))*$AA$10)) -> -192171.5119 | K16: =IF(pilotmeth=1,VLOOKUP(Muni,Data!$E$4:$Q$567,11,FALSE),'Inputs & Assumptions'!$J$15)*J16 -> -182562.9363 | L16: =IF(pilotmeth=1,VLOOKUP(Muni,Data!$E$4:$Q$567,12,FALSE),'Inputs & Assumptions'!$J$16)*J16 -> -9608.575595 | M16: =IF(pilotmeth=1,VLOOKUP(Muni,Data!$E$4:$Q$567,13,FALSE),'Inputs & Assumptions'!$J$17)*J16 -> 0 | N16: 515111.3943 | O16: ='Inputs & Assumptions'!H52 -> -362569 | P16: 152542.3943 | Q16: ='Inputs & Assumptions'!I52 -> 0 | R16: 152542.3943 | S16: 0.09166606501 | T16: 0.8522251877 | U16: ='Inputs & Assumptions'!N52 -> 0 | V16: =IF(OR(C16>0),IFERROR(V15*((1+'Inputs & Assumptions'!O52)),"No Data"),"--") -> 40687.4031 | W16: 40687.4031 | X16: ='Inputs & Assumptions'!M52 -> 0 | Y16: 100699.6584 | Z16: 141387.0615
A17: 2037 | B17: =B16+1 -> 14 | C17: ='Inputs & Assumptions'!F53 -> 2159323.161 | D17: ='Inputs & Assumptions'!G53 -> -1430821.768 | E17: ='Inputs & Assumptions'!K53 -> 10171358.21 | F17: =IF(existpilot=2,'Inputs & Assumptions'!$Q$4*(E17/100),'Inputs & Assumptions'!J53) -> 42411.15103 | G17: ='Inputs & Assumptions'!L53 -> 11644649.97 | H17: =(G17/100)*'Inputs & Assumptions'!$Q$5 -> 232258.6332 | I17: =(G17/100)*'Inputs & Assumptions'!$Q$4 -> 48554.28336 | J17: =IF(C17="","--",IF(IF('Inputs & Assumptions'!$B$8=1,-C17*'Inputs & Assumptions'!$C53,IF('Inputs & Assumptions'!$B$8=2,-H17*'Inputs & Assumptions'!$D53,IF('Inputs & Assumptions'!$B$8=3,-'Inputs & Assumptions'!E53,"")))*$AA$10>0,0,IF('Inputs & Assumptions'!$B$8=1,-C17*'Inputs & Assumptions'!$C53,IF('Inputs & Assumptions'!$B$8=2,-H17*'Inputs & Assumptions'!$D53,IF('Inputs & Assumptions'!$B$8=3,-'Inputs & Assumptions'!E53,"")))*$AA$10)) -> -197936.6573 | K17: =IF(pilotmeth=1,VLOOKUP(Muni,Data!$E$4:$Q$567,11,FALSE),'Inputs & Assumptions'!$J$15)*J17 -> -188039.8244 | L17: =IF(pilotmeth=1,VLOOKUP(Muni,Data!$E$4:$Q$567,12,FALSE),'Inputs & Assumptions'!$J$16)*J17 -> -9896.832863 | M17: =IF(pilotmeth=1,VLOOKUP(Muni,Data!$E$4:$Q$567,13,FALSE),'Inputs & Assumptions'!$J$17)*J17 -> 0 | N17: 530564.7361 | O17: ='Inputs & Assumptions'!H53 -> -362569 | P17: 167995.7361 | Q17: ='Inputs & Assumptions'!I53 -> 0 | R17: 167995.7361 | S17: 0.09166606501 | T17: 0.8522251877 | U17: ='Inputs & Assumptions'!N53 -> 0 | V17: =IF(OR(C17>0),IFERROR(V16*((1+'Inputs & Assumptions'!O53)),"No Data"),"--") -> 41501.15116 | W17: 41501.15116 | X17: ='Inputs & Assumptions'!M53 -> 0 | Y17: 104127.5222 | Z17: 145628.6734
A18: 2038 | B18: 15 | C18: ='Inputs & Assumptions'!F54 -> 2224102.856 | D18: ='Inputs & Assumptions'!G54 -> -1473746.421 | E18: ='Inputs & Assumptions'!K54 -> 10476498.95 | F18: =IF(existpilot=2,'Inputs & Assumptions'!$Q$4*(E18/100),'Inputs & Assumptions'!J54) -> 43683.48556 | G18: ='Inputs & Assumptions'!L54 -> 11993989.47 | H18: =(G18/100)*'Inputs & Assumptions'!$Q$5 -> 239226.3922 | I18: =(G18/100)*'Inputs & Assumptions'!$Q$4 -> 50010.91186 | J18: =IF(C18="","--",IF(IF('Inputs & Assumptions'!$B$8=1,-C18*'Inputs & Assumptions'!$C54,IF('Inputs & Assumptions'!$B$8=2,-H18*'Inputs & Assumptions'!$D54,IF('Inputs & Assumptions'!$B$8=3,-'Inputs & Assumptions'!E54,"")))*$AA$10>0,0,IF('Inputs & Assumptions'!$B$8=1,-C18*'Inputs & Assumptions'!$C54,IF('Inputs & Assumptions'!$B$8=2,-H18*'Inputs & Assumptions'!$D54,IF('Inputs & Assumptions'!$B$8=3,-'Inputs & Assumptions'!E54,"")))*$AA$10)) -> -203874.757 | K18: =IF(pilotmeth=1,VLOOKUP(Muni,Data!$E$4:$Q$567,11,FALSE),'Inputs & Assumptions'!$J$15)*J18 -> -193681.0191 | L18: =IF(pilotmeth=1,VLOOKUP(Muni,Data!$E$4:$Q$567,12,FALSE),'Inputs & Assumptions'!$J$16)*J18 -> -10193.73785 | M18: =IF(pilotmeth=1,VLOOKUP(Muni,Data!$E$4:$Q$567,13,FALSE),'Inputs & Assumptions'!$J$17)*J18 -> 0 | N18: 546481.6782 | O18: ='Inputs & Assumptions'!H54 -> -362569 | P18: 183912.6782 | Q18: ='Inputs & Assumptions'!I54 -> 0 | R18: 183912.6782 | S18: 0.09166606501 | T18: 0.8522251877 | U18: ='Inputs & Assumptions'!N54 -> 0 | V18: =IF(OR(C18>0),IFERROR(V17*((1+'Inputs & Assumptions'!O54)),"No Data"),"--") -> 42331.17418 | W18: 42331.17418 | X18: ='Inputs & Assumptions'!M54 -> 0 | Y18: 107666.3594 | Z18: 149997.5336
A19: 2039 | B19: 16 | C19: ='Inputs & Assumptions'!F55 -> 2290825.942 | D19: ='Inputs & Assumptions'!G55 -> -1517958.813 | E19: ='Inputs & Assumptions'!K55 -> 10790793.92 | F19: =IF(existpilot=2,'Inputs & Assumptions'!$Q$4*(E19/100),'Inputs & Assumptions'!J55) -> 44993.99013 | G19: ='Inputs & Assumptions'!L55 -> 12353809.15 | H19: =(G19/100)*'Inputs & Assumptions'!$Q$5 -> 246403.1839 | I19: =(G19/100)*'Inputs & Assumptions'!$Q$4 -> 51511.23922 | J19: =IF(C19="","--",IF(IF('Inputs & Assumptions'!$B$8=1,-C19*'Inputs & Assumptions'!$C55,IF('Inputs & Assumptions'!$B$8=2,-H19*'Inputs & Assumptions'!$D55,IF('Inputs & Assumptions'!$B$8=3,-'Inputs & Assumptions'!E55,"")))*$AA$10>0,0,IF('Inputs & Assumptions'!$B$8=1,-C19*'Inputs & Assumptions'!$C55,IF('Inputs & Assumptions'!$B$8=2,-H19*'Inputs & Assumptions'!$D55,IF('Inputs & Assumptions'!$B$8=3,-'Inputs & Assumptions'!E55,"")))*$AA$10)) -> -209990.9997 | K19: =IF(pilotmeth=1,VLOOKUP(Muni,Data!$E$4:$Q$567,11,FALSE),'Inputs & Assumptions'!$J$15)*J19 -> -199491.4497 | L19: =IF(pilotmeth=1,VLOOKUP(Muni,Data!$E$4:$Q$567,12,FALSE),'Inputs & Assumptions'!$J$16)*J19 -> -10499.54998 | M19: =IF(pilotmeth=1,VLOOKUP(Muni,Data!$E$4:$Q$567,13,FALSE),'Inputs & Assumptions'!$J$17)*J19 -> 0 | N19: 562876.1285 | O19: ='Inputs & Assumptions'!H55 -> -362569 | P19: 200307.1285 | Q19: ='Inputs & Assumptions'!I55 -> 0 | R19: 200307.1285 | S19: 0.09166606501 | T19: 0.8522251877 | U19: ='Inputs & Assumptions'!N55 -> 0 | V19: =IF(OR(C19>0),IFERROR(V18*((1+'Inputs & Assumptions'!O55)),"No Data"),"--") -> 43177.79767 | W19: 43177.79767 | X19: ='Inputs & Assumptions'!M55 -> 0 | Y19: 111319.6619 | Z19: 154497.4596
A20: 2040 | B20: 17 | C20: ='Inputs & Assumptions'!F56 -> 2359550.72 | D20: ='Inputs & Assumptions'!G56 -> -1563497.578 | E20: ='Inputs & Assumptions'!K56 -> 11114517.74 | F20: =IF(existpilot=2,'Inputs & Assumptions'!$Q$4*(E20/100),'Inputs & Assumptions'!J56) -> 46343.80983 | G20: ='Inputs & Assumptions'!L56 -> 12724423.43 | H20: =(G20/100)*'Inputs & Assumptions'!$Q$5 -> 253795.2795 | I20: =(G20/100)*'Inputs & Assumptions'!$Q$4 -> 53056.5764 | J20: =IF(C20="","--",IF(IF('Inputs & Assumptions'!$B$8=1,-C20*'Inputs & Assumptions'!$C56,IF('Inputs & Assumptions'!$B$8=2,-H20*'Inputs & Assumptions'!$D56,IF('Inputs & Assumptions'!$B$8=3,-'Inputs & Assumptions'!E56,"")))*$AA$10>0,0,IF('Inputs & Assumptions'!$B$8=1,-C20*'Inputs & Assumptions'!$C56,IF('Inputs & Assumptions'!$B$8=2,-H20*'Inputs & Assumptions'!$D56,IF('Inputs & Assumptions'!$B$8=3,-'Inputs & Assumptions'!E56,"")))*$AA$10)) -> -216290.7297 | K20: =IF(pilotmeth=1,VLOOKUP(Muni,Data!$E$4:$Q$567,11,FALSE),'Inputs & Assumptions'!$J$15)*J20 -> -205476.1932 | L20: =IF(pilotmeth=1,VLOOKUP(Muni,Data!$E$4:$Q$567,12,FALSE),'Inputs & Assumptions'!$J$16)*J20 -> -10814.53648 | M20: =IF(pilotmeth=1,VLOOKUP(Muni,Data!$E$4:$Q$567,13,FALSE),'Inputs & Assumptions'!$J$17)*J20 -> 0 | N20: 579762.4124 | O20: ='Inputs & Assumptions'!H56 -> -362569 | P20: 217193.4124 | Q20: ='Inputs & Assumptions'!I56 -> 0 | R20: 217193.4124 | S20: 0.09166606501 | T20: 0.8522251877 | U20: ='Inputs & Assumptions'!N56 -> 0 | V20: =IF(OR(C20>0),IFERROR(V19*((1+'Inputs & Assumptions'!O56)),"No Data"),"--") -> 44041.35362 | W20: 44041.35362 | X20: ='Inputs & Assumptions'!M56 -> 0 | Y20: 115091.0297 | Z20: 159132.3834
A21: 2041 | B21: 18 | C21: ='Inputs & Assumptions'!F57 -> 2430337.241 | D21: ='Inputs & Assumptions'!G57 -> -1610402.505 | E21: ='Inputs & Assumptions'!K57 -> 11447953.27 | F21: =IF(existpilot=2,'Inputs & Assumptions'!$Q$4*(E21/100),'Inputs & Assumptions'!J57) -> 47734.12413 | G21: ='Inputs & Assumptions'!L57 -> 13106156.13 | H21: =(G21/100)*'Inputs & Assumptions'!$Q$5 -> 261409.1378 | I21: =(G21/100)*'Inputs & Assumptions'!$Q$4 -> 54648.27369 | J21: =IF(C21="","--",IF(IF('Inputs & Assumptions'!$B$8=1,-C21*'Inputs & Assumptions'!$C57,IF('Inputs & Assumptions'!$B$8=2,-H21*'Inputs & Assumptions'!$D57,IF('Inputs & Assumptions'!$B$8=3,-'Inputs & Assumptions'!E57,"")))*$AA$10>0,0,IF('Inputs & Assumptions'!$B$8=1,-C21*'Inputs & Assumptions'!$C57,IF('Inputs & Assumptions'!$B$8=2,-H21*'Inputs & Assumptions'!$D57,IF('Inputs & Assumptions'!$B$8=3,-'Inputs & Assumptions'!E57,"")))*$AA$10)) -> -222779.4516 | K21: =IF(pilotmeth=1,VLOOKUP(Muni,Data!$E$4:$Q$567,11,FALSE),'Inputs & Assumptions'!$J$15)*J21 -> -211640.479 | L21: =IF(pilotmeth=1,VLOOKUP(Muni,Data!$E$4:$Q$567,12,FALSE),'Inputs & Assumptions'!$J$16)*J21 -> -11138.97258 | M21: =IF(pilotmeth=1,VLOOKUP(Muni,Data!$E$4:$Q$567,13,FALSE),'Inputs & Assumptions'!$J$17)*J21 -> 0 | N21: 597155.2848 | O21: ='Inputs & Assumptions'!H57 -> -362569 | P21: 234586.2848 | Q21: ='Inputs & Assumptions'!I57 -> 0 | R21: 234586.2848 | S21: 0.09166606501 | T21: 0.8522251877 | U21: ='Inputs & Assumptions'!N57 -> 0 | V21: =IF(OR(C21>0),IFERROR(V20*((1+'Inputs & Assumptions'!O57)),"No Data"),"--") -> 44922.18069 | W21: 44922.18069 | X21: ='Inputs & Assumptions'!M57 -> 0 | Y21: 118984.1742 | Z21: 163906.3549
A22: 2042 | B22: 19 | C22: ='Inputs & Assumptions'!F58 -> 2503247.359 | D22: ='Inputs & Assumptions'!G58 -> -1658714.58 | E22: ='Inputs & Assumptions'!K58 -> 11791391.87 | F22: =IF(existpilot=2,'Inputs & Assumptions'!$Q$4*(E22/100),'Inputs & Assumptions'!J58) -> 49166.14785 | G22: ='Inputs & Assumptions'!L58 -> 13499340.81 | H22: =(G22/100)*'Inputs & Assumptions'!$Q$5 -> 269251.412 | I22: =(G22/100)*'Inputs & Assumptions'!$Q$4 -> 56287.7219 | J22: =IF(C22="","--",IF(IF('Inputs & Assumptions'!$B$8=1,-C22*'Inputs & Assumptions'!$C58,IF('Inputs & Assumptions'!$B$8=2,-H22*'Inputs & Assumptions'!$D58,IF('Inputs & Assumptions'!$B$8=3,-'Inputs & Assumptions'!E58,"")))*$AA$10>0,0,IF('Inputs & Assumptions'!$B$8=1,-C22*'Inputs & Assumptions'!$C58,IF('Inputs & Assumptions'!$B$8=2,-H22*'Inputs & Assumptions'!$D58,IF('Inputs & Assumptions'!$B$8=3,-'Inputs & Assumptions'!E58,"")))*$AA$10)) -> -229462.8351 | K22: =IF(pilotmeth=1,VLOOKUP(Muni,Data!$E$4:$Q$567,11,FALSE),'Inputs & Assumptions'!$J$15)*J22 -> -217989.6934 | L22: =IF(pilotmeth=1,VLOOKUP(Muni,Data!$E$4:$Q$567,12,FALSE),'Inputs & Assumptions'!$J$16)*J22 -> -11473.14176 | M22: =IF(pilotmeth=1,VLOOKUP(Muni,Data!$E$4:$Q$567,13,FALSE),'Inputs & Assumptions'!$J$17)*J22 -> 0 | N22: 615069.9433 | O22: ='Inputs & Assumptions'!H58 -> -362569 | P22: 252500.9433 | Q22: ='Inputs & Assumptions'!I58 -> 0 | R22: 252500.9433 | S22: 0.09166606501 | T22: 0.8522251877 | U22: ='Inputs & Assumptions'!N58 -> 0 | V22: =IF(OR(C22>0),IFERROR(V21*((1+'Inputs & Assumptions'!O58)),"No Data"),"--") -> 45820.6243 | W22: 45820.6243 | X22: ='Inputs & Assumptions'!M58 -> 0 | Y22: 123002.9212 | Z22: 168823.5455
A23: 2043 | B23: 20 | C23: ='Inputs & Assumptions'!F59 -> 2578344.779 | D23: ='Inputs & Assumptions'!G59 -> -1708476.018 | E23: ='Inputs & Assumptions'!K59 -> 12145133.62 | F23: =IF(existpilot=2,'Inputs & Assumptions'!$Q$4*(E23/100),'Inputs & Assumptions'!J59) -> 50641.13229 | G23: ='Inputs & Assumptions'!L59 -> 13904321.04 | H23: =(G23/100)*'Inputs & Assumptions'!$Q$5 -> 277328.9543 | I23: =(G23/100)*'Inputs & Assumptions'!$Q$4 -> 57976.35356 | J23: =IF(C23="","--",IF(IF('Inputs & Assumptions'!$B$8=1,-C23*'Inputs & Assumptions'!$C59,IF('Inputs & Assumptions'!$B$8=2,-H23*'Inputs & Assumptions'!$D59,IF('Inputs & Assumptions'!$B$8=3,-'Inputs & Assumptions'!E59,"")))*$AA$10>0,0,IF('Inputs & Assumptions'!$B$8=1,-C23*'Inputs & Assumptions'!$C59,IF('Inputs & Assumptions'!$B$8=2,-H23*'Inputs & Assumptions'!$D59,IF('Inputs & Assumptions'!$B$8=3,-'Inputs & Assumptions'!E59,"")))*$AA$10)) -> -236346.7202 | K23: =IF(pilotmeth=1,VLOOKUP(Muni,Data!$E$4:$Q$567,11,FALSE),'Inputs & Assumptions'!$J$15)*J23 -> -224529.3842 | L23: =IF(pilotmeth=1,VLOOKUP(Muni,Data!$E$4:$Q$567,12,FALSE),'Inputs & Assumptions'!$J$16)*J23 -> -11817.33601 | M23: =IF(pilotmeth=1,VLOOKUP(Muni,Data!$E$4:$Q$567,13,FALSE),'Inputs & Assumptions'!$J$17)*J23 -> 0 | N23: 633522.0416 | O23: ='Inputs & Assumptions'!H59 -> -362569 | P23: 270953.0416 | Q23: ='Inputs & Assumptions'!I59 -> 0 | R23: 270953.0416 | S23: 0.09166606501 | T23: 0.8522251877 | U23: ='Inputs & Assumptions'!N59 -> 0 | V23: =IF(OR(C23>0),IFERROR(V22*((1+'Inputs & Assumptions'!O59)),"No Data"),"--") -> 46737.03679 | W23: 46737.03679 | X23: ='Inputs & Assumptions'!M59 -> 0 | Y23: 127151.2151 | Z23: 173888.2519
A24: 2044 | B24: 21 | C24: ='Inputs & Assumptions'!F60 -> 2655695.123 | D24: ='Inputs & Assumptions'!G60 -> -1759730.298 | E24: ='Inputs & Assumptions'!K60 -> 12509487.63 | F24: =IF(existpilot=2,'Inputs & Assumptions'!$Q$4*(E24/100),'Inputs & Assumptions'!J60) -> 52160.36626 | G24: ='Inputs & Assumptions'!L60 -> 14321450.67 | H24: =(G24/100)*'Inputs & Assumptions'!$Q$5 -> 285648.823 | I24: =(G24/100)*'Inputs & Assumptions'!$Q$4 -> 59715.64416 | J24: =IF(C24="","--",IF(IF('Inputs & Assumptions'!$B$8=1,-C24*'Inputs & Assumptions'!$C60,IF('Inputs & Assumptions'!$B$8=2,-H24*'Inputs & Assumptions'!$D60,IF('Inputs & Assumptions'!$B$8=3,-'Inputs & Assumptions'!E60,"")))*$AA$10>0,0,IF('Inputs & Assumptions'!$B$8=1,-C24*'Inputs & Assumptions'!$C60,IF('Inputs & Assumptions'!$B$8=2,-H24*'Inputs & Assumptions'!$D60,IF('Inputs & Assumptions'!$B$8=3,-'Inputs & Assumptions'!E60,"")))*$AA$10)) -> -243437.1218 | K24: =IF(pilotmeth=1,VLOOKUP(Muni,Data!$E$4:$Q$567,11,FALSE),'Inputs & Assumptions'!$J$15)*J24 -> -231265.2657 | L24: =IF(pilotmeth=1,VLOOKUP(Muni,Data!$E$4:$Q$567,12,FALSE),'Inputs & Assumptions'!$J$16)*J24 -> -12171.85609 | M24: =IF(pilotmeth=1,VLOOKUP(Muni,Data!$E$4:$Q$567,13,FALSE),'Inputs & Assumptions'!$J$17)*J24 -> 0 | N24: 652527.7029 | O24: ='Inputs & Assumptions'!H60 -> -362569 | P24: 289958.7029 | Q24: ='Inputs & Assumptions'!I60 -> 0 | R24: 289958.7029 | S24: 0.09166606501 | T24: 0.8522251877 | U24: ='Inputs & Assumptions'!N60 -> 0 | V24: =IF(OR(C24>0),IFERROR(V23*((1+'Inputs & Assumptions'!O60)),"No Data"),"--") -> 47671.77753 | W24: 47671.77753 | X24: ='Inputs & Assumptions'!M60 -> 0 | Y24: 131433.1219 | Z24: 179104.8994
A25: 2045 | B25: 22 | C25: ='Inputs & Assumptions'!F61 -> 2735365.976 | D25: ='Inputs & Assumptions'!G61 -> -1812522.207 | E25: ='Inputs & Assumptions'!K61 -> 12884772.26 | F25: =IF(existpilot=2,'Inputs & Assumptions'!$Q$4*(E25/100),'Inputs & Assumptions'!J61) -> 53725.17724 | G25: ='Inputs & Assumptions'!L61 -> 14751094.19 | H25: =(G25/100)*'Inputs & Assumptions'!$Q$5 -> 294218.2877 | I25: =(G25/100)*'Inputs & Assumptions'!$Q$4 -> 61507.11349 | J25: =IF(C25="","--",IF(IF('Inputs & Assumptions'!$B$8=1,-C25*'Inputs & Assumptions'!$C61,IF('Inputs & Assumptions'!$B$8=2,-H25*'Inputs & Assumptions'!$D61,IF('Inputs & Assumptions'!$B$8=3,-'Inputs & Assumptions'!E61,"")))*$AA$10>0,0,IF('Inputs & Assumptions'!$B$8=1,-C25*'Inputs & Assumptions'!$C61,IF('Inputs & Assumptions'!$B$8=2,-H25*'Inputs & Assumptions'!$D61,IF('Inputs & Assumptions'!$B$8=3,-'Inputs & Assumptions'!E61,"")))*$AA$10)) -> -250740.2354 | K25: =IF(pilotmeth=1,VLOOKUP(Muni,Data!$E$4:$Q$567,11,FALSE),'Inputs & Assumptions'!$J$15)*J25 -> -238203.2236 | L25: =IF(pilotmeth=1,VLOOKUP(Muni,Data!$E$4:$Q$567,12,FALSE),'Inputs & Assumptions'!$J$16)*J25 -> -12537.01177 | M25: =IF(pilotmeth=1,VLOOKUP(Muni,Data!$E$4:$Q$567,13,FALSE),'Inputs & Assumptions'!$J$17)*J25 -> 0 | N25: 672103.5339 | O25: ='Inputs & Assumptions'!H61 -> -362569 | P25: 309534.5339 | Q25: ='Inputs & Assumptions'!I61 -> 0 | R25: 309534.5339 | S25: 0.09166606501 | T25: 0.8522251877 | U25: ='Inputs & Assumptions'!N61 -> 0 | V25: =IF(OR(C25>0),IFERROR(V24*((1+'Inputs & Assumptions'!O61)),"No Data"),"--") -> 48625.21308 | W25: 48625.21308 | X25: ='Inputs & Assumptions'!M61 -> 0 | Y25: 135852.8333 | Z25: 184478.0464
A26: 2046 | B26: 23 | C26: ='Inputs & Assumptions'!F62 -> 2817426.956 | D26: ='Inputs & Assumptions'!G62 -> -1866897.873 | E26: ='Inputs & Assumptions'!K62 -> 13271315.43 | F26: =IF(existpilot=2,'Inputs & Assumptions'!$Q$4*(E26/100),'Inputs & Assumptions'!J62) -> 55336.93256 | G26: ='Inputs & Assumptions'!L62 -> 15193627.01 | H26: =(G26/100)*'Inputs & Assumptions'!$Q$5 -> 303044.8363 | I26: =(G26/100)*'Inputs & Assumptions'!$Q$4 -> 63352.32689 | J26: =IF(C26="","--",IF(IF('Inputs & Assumptions'!$B$8=1,-C26*'Inputs & Assumptions'!$C62,IF('Inputs & Assumptions'!$B$8=2,-H26*'Inputs & Assumptions'!$D62,IF('Inputs & Assumptions'!$B$8=3,-'Inputs & Assumptions'!E62,"")))*$AA$10>0,0,IF('Inputs & Assumptions'!$B$8=1,-C26*'Inputs & Assumptions'!$C62,IF('Inputs & Assumptions'!$B$8=2,-H26*'Inputs & Assumptions'!$D62,IF('Inputs & Assumptions'!$B$8=3,-'Inputs & Assumptions'!E62,"")))*$AA$10)) -> -258262.4425 | K26: =IF(pilotmeth=1,VLOOKUP(Muni,Data!$E$4:$Q$567,11,FALSE),'Inputs & Assumptions'!$J$15)*J26 -> -245349.3204 | L26: =IF(pilotmeth=1,VLOOKUP(Muni,Data!$E$4:$Q$567,12,FALSE),'Inputs & Assumptions'!$J$16)*J26 -> -12913.12212 | M26: =IF(pilotmeth=1,VLOOKUP(Muni,Data!$E$4:$Q$567,13,FALSE),'Inputs & Assumptions'!$J$17)*J26 -> 0 | N26: 692266.64 | O26: ='Inputs & Assumptions'!H62 -> -362569 | P26: 329697.64 | Q26: ='Inputs & Assumptions'!I62 -> 0 | R26: 329697.64 | S26: 0.09166606501 | T26: 0.8522251877 | U26: ='Inputs & Assumptions'!N62 -> 0 | V26: =IF(OR(C26>0),IFERROR(V25*((1+'Inputs & Assumptions'!O62)),"No Data"),"--") -> 49597.71734 | W26: 49597.71734 | X26: ='Inputs & Assumptions'!M62 -> 0 | Y26: 140414.6705 | Z26: 190012.3878
A27: 2047 | B27: 24 | C27: ='Inputs & Assumptions'!F63 -> 2901949.764 | D27: ='Inputs & Assumptions'!G63 -> -1922904.81 | E27: ='Inputs & Assumptions'!K63 -> 13669454.89 | F27: =IF(existpilot=2,'Inputs & Assumptions'!$Q$4*(E27/100),'Inputs & Assumptions'!J63) -> 56997.04054 | G27: ='Inputs & Assumptions'!L63 -> 15649435.82 | H27: =(G27/100)*'Inputs & Assumptions'!$Q$5 -> 312136.1814 | I27: =(G27/100)*'Inputs & Assumptions'!$Q$4 -> 65252.8967 | J27: =IF(C27="","--",IF(IF('Inputs & Assumptions'!$B$8=1,-C27*'Inputs & Assumptions'!$C63,IF('Inputs & Assumptions'!$B$8=2,-H27*'Inputs & Assumptions'!$D63,IF('Inputs & Assumptions'!$B$8=3,-'Inputs & Assumptions'!E63,"")))*$AA$10>0,0,IF('Inputs & Assumptions'!$B$8=1,-C27*'Inputs & Assumptions'!$C63,IF('Inputs & Assumptions'!$B$8=2,-H27*'Inputs & Assumptions'!$D63,IF('Inputs & Assumptions'!$B$8=3,-'Inputs & Assumptions'!E63,"")))*$AA$10)) -> -266010.3158 | K27: =IF(pilotmeth=1,VLOOKUP(Muni,Data!$E$4:$Q$567,11,FALSE),'Inputs & Assumptions'!$J$15)*J27 -> -252709.8 | L27: =IF(pilotmeth=1,VLOOKUP(Muni,Data!$E$4:$Q$567,12,FALSE),'Inputs & Assumptions'!$J$16)*J27 -> -13300.51579 | M27: =IF(pilotmeth=1,VLOOKUP(Muni,Data!$E$4:$Q$567,13,FALSE),'Inputs & Assumptions'!$J$17)*J27 -> 0 | N27: 713034.6392 | O27: ='Inputs & Assumptions'!H63 -> -362569 | P27: 350465.6392 | Q27: ='Inputs & Assumptions'!I63 -> 0 | R27: 350465.6392 | S27: 0.09166606501 | T27: 0.8522251877 | U27: ='Inputs & Assumptions'!N63 -> 0 | V27: =IF(OR(C27>0),IFERROR(V26*((1+'Inputs & Assumptions'!O63)),"No Data"),"--") -> 50589.67169 | W27: 50589.67169 | X27: ='Inputs & Assumptions'!M63 -> 0 | Y27: 145123.0877 | Z27: 195712.7594
A28: 2048 | B28: 25 | C28: ='Inputs & Assumptions'!F64 -> 2989008.257 | D28: ='Inputs & Assumptions'!G64 -> -1980591.954 | E28: ='Inputs & Assumptions'!K64 -> 14079538.54 | F28: =IF(existpilot=2,'Inputs & Assumptions'!$Q$4*(E28/100),'Inputs & Assumptions'!J64) -> 58706.95175 | G28: ='Inputs & Assumptions'!L64 -> 16118918.9 | H28: =(G28/100)*'Inputs & Assumptions'!$Q$5 -> 321500.2668 | I28: =(G28/100)*'Inputs & Assumptions'!$Q$4 -> 67210.4836 | J28: =IF(C28="","--",IF(IF('Inputs & Assumptions'!$B$8=1,-C28*'Inputs & Assumptions'!$C64,IF('Inputs & Assumptions'!$B$8=2,-H28*'Inputs & Assumptions'!$D64,IF('Inputs & Assumptions'!$B$8=3,-'Inputs & Assumptions'!E64,"")))*$AA$10>0,0,IF('Inputs & Assumptions'!$B$8=1,-C28*'Inputs & Assumptions'!$C64,IF('Inputs & Assumptions'!$B$8=2,-H28*'Inputs & Assumptions'!$D64,IF('Inputs & Assumptions'!$B$8=3,-'Inputs & Assumptions'!E64,"")))*$AA$10)) -> -273990.6252 | K28: =IF(pilotmeth=1,VLOOKUP(Muni,Data!$E$4:$Q$567,11,FALSE),'Inputs & Assumptions'!$J$15)*J28 -> -260291.094 | L28: =IF(pilotmeth=1,VLOOKUP(Muni,Data!$E$4:$Q$567,12,FALSE),'Inputs & Assumptions'!$J$16)*J28 -> -13699.53126 | M28: =IF(pilotmeth=1,VLOOKUP(Muni,Data!$E$4:$Q$567,13,FALSE),'Inputs & Assumptions'!$J$17)*J28 -> 0 | N28: 734425.6783 | O28: ='Inputs & Assumptions'!H64 -> -362569 | P28: 371856.6783 | Q28: ='Inputs & Assumptions'!I64 -> 0 | R28: 371856.6783 | S28: 0.09166606501 | T28: 0.8522251877 | U28: ='Inputs & Assumptions'!N64 -> 0 | V28: =IF(OR(C28>0),IFERROR(V27*((1+'Inputs & Assumptions'!O64)),"No Data"),"--") -> 51601.46512 | W28: 51601.46512 | X28: ='Inputs & Assumptions'!M64 -> 0 | Y28: 149982.6771 | Z28: 201584.1422
A29: 2049 | B29: 26 | C29: ='Inputs & Assumptions'!F65 -> 3078678.505 | D29: ='Inputs & Assumptions'!G65 -> -2040009.712 | E29: ='Inputs & Assumptions'!K65 -> 14501924.7 | F29: =IF(existpilot=2,'Inputs & Assumptions'!$Q$4*(E29/100),'Inputs & Assumptions'!J65) -> 60468.16031 | G29: ='Inputs & Assumptions'!L65 -> 16602486.47 | H29: =(G29/100)*'Inputs & Assumptions'!$Q$5 -> 331145.2748 | I29: =(G29/100)*'Inputs & Assumptions'!$Q$4 -> 69226.79811 | J29: =IF(C29="","--",IF(IF('Inputs & Assumptions'!$B$8=1,-C29*'Inputs & Assumptions'!$C65,IF('Inputs & Assumptions'!$B$8=2,-H29*'Inputs & Assumptions'!$D65,IF('Inputs & Assumptions'!$B$8=3,-'Inputs & Assumptions'!E65,"")))*$AA$10>0,0,IF('Inputs & Assumptions'!$B$8=1,-C29*'Inputs & Assumptions'!$C65,IF('Inputs & Assumptions'!$B$8=2,-H29*'Inputs & Assumptions'!$D65,IF('Inputs & Assumptions'!$B$8=3,-'Inputs & Assumptions'!E65,"")))*$AA$10)) -> -282210.344 | K29: =IF(pilotmeth=1,VLOOKUP(Muni,Data!$E$4:$Q$567,11,FALSE),'Inputs & Assumptions'!$J$15)*J29 -> -268099.8268 | L29: =IF(pilotmeth=1,VLOOKUP(Muni,Data!$E$4:$Q$567,12,FALSE),'Inputs & Assumptions'!$J$16)*J29 -> -14110.5172 | M29: =IF(pilotmeth=1,VLOOKUP(Muni,Data!$E$4:$Q$567,13,FALSE),'Inputs & Assumptions'!$J$17)*J29 -> 0 | N29: 756458.4487 | O29: ='Inputs & Assumptions'!H65 -> -362569 | P29: 393889.4487 | Q29: ='Inputs & Assumptions'!I65 -> 0 | R29: 393889.4487 | S29: 0.09166606501 | T29: 0.8522251877 | U29: ='Inputs & Assumptions'!N65 -> 0 | V29: =IF(OR(C29>0),IFERROR(V28*((1+'Inputs & Assumptions'!O65)),"No Data"),"--") -> 52633.49442 | W29: 52633.49442 | X29: ='Inputs & Assumptions'!M65 -> 0 | Y29: 154998.1721 | Z29: 207631.6665
A30: 2050 | B30: 27 | C30: ='Inputs & Assumptions'!F66 -> 3171038.86 | D30: ='Inputs & Assumptions'!G66 -> -2101210.004 | E30: ='Inputs & Assumptions'!K66 -> 14936982.44 | F30: =IF(existpilot=2,'Inputs & Assumptions'!$Q$4*(E30/100),'Inputs & Assumptions'!J66) -> 62282.20512 | G30: ='Inputs & Assumptions'!L66 -> 17100561.06 | H30: =(G30/100)*'Inputs & Assumptions'!$Q$5 -> 341079.6331 | I30: =(G30/100)*'Inputs & Assumptions'!$Q$4 -> 71303.60205 | J30: =IF(C30="","--",IF(IF('Inputs & Assumptions'!$B$8=1,-C30*'Inputs & Assumptions'!$C66,IF('Inputs & Assumptions'!$B$8=2,-H30*'Inputs & Assumptions'!$D66,IF('Inputs & Assumptions'!$B$8=3,-'Inputs & Assumptions'!E66,"")))*$AA$10>0,0,IF('Inputs & Assumptions'!$B$8=1,-C30*'Inputs & Assumptions'!$C66,IF('Inputs & Assumptions'!$B$8=2,-H30*'Inputs & Assumptions'!$D66,IF('Inputs & Assumptions'!$B$8=3,-'Inputs & Assumptions'!E66,"")))*$AA$10)) -> -290676.6543 | K30: =IF(pilotmeth=1,VLOOKUP(Muni,Data!$E$4:$Q$567,11,FALSE),'Inputs & Assumptions'!$J$15)*J30 -> -276142.8216 | L30: =IF(pilotmeth=1,VLOOKUP(Muni,Data!$E$4:$Q$567,12,FALSE),'Inputs & Assumptions'!$J$16)*J30 -> -14533.83272 | M30: =IF(pilotmeth=1,VLOOKUP(Muni,Data!$E$4:$Q$567,13,FALSE),'Inputs & Assumptions'!$J$17)*J30 -> 0 | N30: 779152.2021 | O30: ='Inputs & Assumptions'!H66 -> -362569 | P30: 416583.2021 | Q30: ='Inputs & Assumptions'!I66 -> 0 | R30: 416583.2021 | S30: 0.09166606501 | T30: 0.8522251877 | U30: ='Inputs & Assumptions'!N66 -> 0 | V30: =IF(OR(C30>0),IFERROR(V29*((1+'Inputs & Assumptions'!O66)),"No Data"),"--") -> 53686.16431 | W30: 53686.16431 | X30: ='Inputs & Assumptions'!M66 -> 0 | Y30: 160174.4522 | Z30: 213860.6165
A31: 2051 | B31: 28 | C31: ='Inputs & Assumptions'!F67 -> 3266170.026 | D31: ='Inputs & Assumptions'!G67 -> -2164246.304 | E31: ='Inputs & Assumptions'!K67 -> 15385091.91 | F31: =IF(existpilot=2,'Inputs & Assumptions'!$Q$4*(E31/100),'Inputs & Assumptions'!J67) -> 64150.67127 | G31: ='Inputs & Assumptions'!L67 -> 17613577.89 | H31: =(G31/100)*'Inputs & Assumptions'!$Q$5 -> 351312.0221 | I31: =(G31/100)*'Inputs & Assumptions'!$Q$4 -> 73442.71011 | J31: =IF(C31="","--",IF(IF('Inputs & Assumptions'!$B$8=1,-C31*'Inputs & Assumptions'!$C67,IF('Inputs & Assumptions'!$B$8=2,-H31*'Inputs & Assumptions'!$D67,IF('Inputs & Assumptions'!$B$8=3,-'Inputs & Assumptions'!E67,"")))*$AA$10>0,0,IF('Inputs & Assumptions'!$B$8=1,-C31*'Inputs & Assumptions'!$C67,IF('Inputs & Assumptions'!$B$8=2,-H31*'Inputs & Assumptions'!$D67,IF('Inputs & Assumptions'!$B$8=3,-'Inputs & Assumptions'!E67,"")))*$AA$10)) -> -299396.9539 | K31: =IF(pilotmeth=1,VLOOKUP(Muni,Data!$E$4:$Q$567,11,FALSE),'Inputs & Assumptions'!$J$15)*J31 -> -284427.1062 | L31: =IF(pilotmeth=1,VLOOKUP(Muni,Data!$E$4:$Q$567,12,FALSE),'Inputs & Assumptions'!$J$16)*J31 -> -14969.8477 | M31: =IF(pilotmeth=1,VLOOKUP(Muni,Data!$E$4:$Q$567,13,FALSE),'Inputs & Assumptions'!$J$17)*J31 -> 0 | N31: 802526.7682 | O31: ='Inputs & Assumptions'!H67 -> -362569 | P31: 439957.7682 | Q31: ='Inputs & Assumptions'!I67 -> 0 | R31: 439957.7682 | S31: 0.09166606501 | T31: 0.8522251877 | U31: ='Inputs & Assumptions'!N67 -> 0 | V31: =IF(OR(C31>0),IFERROR(V30*((1+'Inputs & Assumptions'!O67)),"No Data"),"--") -> 54759.8876 | W31: 54759.8876 | X31: ='Inputs & Assumptions'!M67 -> 0 | Y31: 165516.5474 | Z31: 220276.435
A32: 2052 | B32: 29 | C32: ='Inputs & Assumptions'!F68 -> 3364155.127 | D32: ='Inputs & Assumptions'!G68 -> -2229173.693 | E32: ='Inputs & Assumptions'!K68 -> 15846644.67 | F32: =IF(existpilot=2,'Inputs & Assumptions'!$Q$4*(E32/100),'Inputs & Assumptions'!J68) -> 66075.19141 | G32: ='Inputs & Assumptions'!L68 -> 18141985.23 | H32: =(G32/100)*'Inputs & Assumptions'!$Q$5 -> 361851.3827 | I32: =(G32/100)*'Inputs & Assumptions'!$Q$4 -> 75645.99142 | J32: =IF(C32="","--",IF(IF('Inputs & Assumptions'!$B$8=1,-C32*'Inputs & Assumptions'!$C68,IF('Inputs & Assumptions'!$B$8=2,-H32*'Inputs & Assumptions'!$D68,IF('Inputs & Assumptions'!$B$8=3,-'Inputs & Assumptions'!E68,"")))*$AA$10>0,0,IF('Inputs & Assumptions'!$B$8=1,-C32*'Inputs & Assumptions'!$C68,IF('Inputs & Assumptions'!$B$8=2,-H32*'Inputs & Assumptions'!$D68,IF('Inputs & Assumptions'!$B$8=3,-'Inputs & Assumptions'!E68,"")))*$AA$10)) -> -308378.8626 | K32: =IF(pilotmeth=1,VLOOKUP(Muni,Data!$E$4:$Q$567,11,FALSE),'Inputs & Assumptions'!$J$15)*J32 -> -292959.9194 | L32: =IF(pilotmeth=1,VLOOKUP(Muni,Data!$E$4:$Q$567,12,FALSE),'Inputs & Assumptions'!$J$16)*J32 -> -15418.94313 | M32: =IF(pilotmeth=1,VLOOKUP(Muni,Data!$E$4:$Q$567,13,FALSE),'Inputs & Assumptions'!$J$17)*J32 -> 0 | N32: 826602.5713 | O32: ='Inputs & Assumptions'!H68 -> -362569 | P32: 464033.5713 | Q32: ='Inputs & Assumptions'!I68 -> 0 | R32: 464033.5713 | S32: 0.09166606501 | T32: 0.8522251877 | U32: ='Inputs & Assumptions'!N68 -> 0 | V32: =IF(OR(C32>0),IFERROR(V31*((1+'Inputs & Assumptions'!O68)),"No Data"),"--") -> 55855.08535 | W32: 55855.08535 | X32: ='Inputs & Assumptions'!M68 -> 0 | Y32: 171029.6427 | Z32: 226884.728
A33: 2053 | B33: 30 | C33: ='Inputs & Assumptions'!F69 -> 3465079.781 | D33: ='Inputs & Assumptions'!G69 -> -2296048.904 | E33: ='Inputs & Assumptions'!K69 -> 16322044.01 | F33: =IF(existpilot=2,'Inputs & Assumptions'!$Q$4*(E33/100),'Inputs & Assumptions'!J69) -> 68057.44715 | G33: ='Inputs & Assumptions'!L69 -> 18686244.79 | H33: =(G33/100)*'Inputs & Assumptions'!$Q$5 -> 372706.9242 | I33: =(G33/100)*'Inputs & Assumptions'!$Q$4 -> 77915.37116 | J33: =IF(C33="","--",IF(IF('Inputs & Assumptions'!$B$8=1,-C33*'Inputs & Assumptions'!$C69,IF('Inputs & Assumptions'!$B$8=2,-H33*'Inputs & Assumptions'!$D69,IF('Inputs & Assumptions'!$B$8=3,-'Inputs & Assumptions'!E69,"")))*$AA$10>0,0,IF('Inputs & Assumptions'!$B$8=1,-C33*'Inputs & Assumptions'!$C69,IF('Inputs & Assumptions'!$B$8=2,-H33*'Inputs & Assumptions'!$D69,IF('Inputs & Assumptions'!$B$8=3,-'Inputs & Assumptions'!E69,"")))*$AA$10)) -> -317630.2284 | K33: =IF(pilotmeth=1,VLOOKUP(Muni,Data!$E$4:$Q$567,11,FALSE),'Inputs & Assumptions'!$J$15)*J33 -> -301748.717 | L33: =IF(pilotmeth=1,VLOOKUP(Muni,Data!$E$4:$Q$567,12,FALSE),'Inputs & Assumptions'!$J$16)*J33 -> -15881.51142 | M33: =IF(pilotmeth=1,VLOOKUP(Muni,Data!$E$4:$Q$567,13,FALSE),'Inputs & Assumptions'!$J$17)*J33 -> 0 | N33: 851400.6484 | O33: ='Inputs & Assumptions'!H69 -> 0 | P33: 851400.6484 | Q33: ='Inputs & Assumptions'!I69 -> 20947879.51 | R33: 21799280.16 | S33: 0.09166606501 | T33: 0.8522251877 | U33: ='Inputs & Assumptions'!N69 -> 0 | V33: =IF(OR(C33>0),IFERROR(V32*((1+'Inputs & Assumptions'!O69)),"No Data"),"--") -> 56972.18705 | W33: 56972.18705 | X33: ='Inputs & Assumptions'!M69 -> 0 | Y33: 176719.0828 | Z33: 233691.2699
B35: TOTAL | C35: =SUM(C4:C33) -> 69954605.8 | D35: -46353679.03 | E35: 329516844.3 | F35: 1373974.681 | G35: 377246404.3 | H35: 7524376.815 | I35: 1572990.933 | J35: -6412463.443 | K35: -6091840.271 | L35: -320623.1722 | M35: 0 | N35: 17188463.33 | O35: -10514501 | P35: 6673962.328 | Q35: 12317630.51 | R35: 18991592.84 | V35: =SUM(V4:V33) -> 1301494.556 | W35: =SUM(W4:W33) -> 1301494.556 | X35: =SUM(X4:X33) -> 0 | Y35: 3416371.034 | Z35: =SUM(Z4:Z33) -> 4717865.59

Sheet Data
A1: ='Inputs & Assumptions'!A1 -> Payment in Lieu of Taxes Financial Agreement Forecasting Model - Aberdeen Township, Monmouth County
A2: Data
A3: Municode | B3: Municipality | C3: County | D3: Census FIPS | E3: ID | F3: 2023 Net Valuation Taxable | G3: 2023 Total Municipal Tax Levy | H3: 2023 Total Municipal Tax Rate | I3: 2023 Municipal Expenditures Applicable to Project | J3: 2020 Land Area (in Acres) | K3: 2023 CY Total Rate | L3: 2023 County Levy | M3: 2023 School Levy | N3: 2023 Total Levy | O3: 2023 Municipal Share of Levy | P3: 2023 County Share of Levy | Q3: 2023 School Share of Levy | R3: Daytime Pop. (2018-22 Estimate) | S3: Municipal Spending/Daytime Pop. Ratio | T3: General Government Approp. | U3: Land-Use Administration Approp. | V3: Uniform Construction Code Approp. | W3: Public Safety Approp. | X3: Public Works Approp. | Y3: Health and Human Services Approp. | Z3: Education (including Library) Approp. | AA3: Landfill / Solid Waste Disposal Approp. | AB3: Statutory Expenditures Approp. | AC3: Court and Public Defender Approp. | AD3: General Government Appl. to Project | AE3: Land-Use Admin. Appl. to Project | AF3: Uniform Construction Code Appl. to Project | AG3: Public Safety Appl. to Project | AH3: Public Works Appl. to Project | AI3: Health and Human Services Appl. to Project | AJ3: Education (including Library) Appl. to Project | AK3: Landfill / Solid Waste Disposal Appl. to Project | AL3: Statutory Expenditures Appl. to Project | AM3: Court and Public Defender Appl. to Project
A4: 1330 | B4: Aberdeen Township | C4: Monmouth | D4: 3402500070 | E4: 1 | F4: 3076814300 | G4: 12829283.3 | H4: =G4/(F4/100) -> 0.4169664481 | I4: =IF(IFERROR(SUM(AD4:AM4),"--")=0,"--",IFERROR(SUM(AD4:AM4),"--")) -> 5946076.58 | J4: 3484.420434 | K4: 1.994552295 | L4: 6487416.93 | M4: 42051970 | N4: 61368670.23 | O4: =G4/N4 -> 0.2090526526 | P4: =L4/N4 -> 0.1057121966 | Q4: =M4/N4 -> 0.6852351508 | R4: 22797 | S4: =IFERROR(I4/R4,"--") -> 260.8271518 | T4: 12081118.2 | U4: 0 | V4: 275235 | W4: 5835234.34 | X4: 1296912 | Y4: 103503 | Z4: 950000 | AA4: 0 | AB4: 2745737.18 | AC4: 149640 | AD4: =IFERROR(T4*'Inputs & Assumptions'!$Q$40,"--") -> 1208111.82 | AE4: =IFERROR(U4*'Inputs & Assumptions'!$Q$41,"--") -> 0 | AF4: =IFERROR(V4*'Inputs & Assumptions'!$Q$42,"--") -> 137617.5 | AG4: =IFERROR(W4*'Inputs & Assumptions'!$Q$43,"--") -> 2917617.17 | AH4: =IFERROR(X4*'Inputs & Assumptions'!$Q$44,"--") -> 129691.2 | AI4: =IFERROR(Y4*'Inputs & Assumptions'!$Q$45,"--") -> 10350.3 | AJ4: =IFERROR(Z4*'Inputs & Assumptions'!$Q$46,"--") -> 95000 | AK4: =IFERROR(AA4*'Inputs & Assumptions'!$Q$47,"--") -> 0 | AL4: =IFERROR(AB4*'Inputs & Assumptions'!$Q$48,"--") -> 1372868.59 | AM4: =IFERROR(AC4*'Inputs & Assumptions'!$Q$49,"--") -> 74820
A5: 0101 | B5: Absecon City | C5: Atlantic | D5: 3400100100 | E5: =E4+1 -> 2 | F5: 723339500 | G5: 7370830 | H5: 1.019000068 | I5: 3673263.5 | J5: 3499.667571 | K5: 3.322947464 | L5: 4246067.57 | M5: 12419294 | N5: 24036191.57 | O5: 0.3066554857 | P5: 0.1766530924 | Q5: 0.5166914219 | R5: 11203 | S5: 327.8821298 | T5: 1300000 | U5: 30200 | V5: 156000 | W5: 3224000 | X5: 1134000 | Y5: 8400 | Z5: 0 | AA5: 1909000 | AB5: 1423807 | AC5: 139200 | AD5: =IFERROR(T5*'Inputs & Assumptions'!$Q$40,"--") -> 130000 | AE5: =IFERROR(U5*'Inputs & Assumptions'!$Q$41,"--") -> 3020 | AF5: =IFERROR(V5*'Inputs & Assumptions'!$Q$42,"--") -> 78000 | AG5: =IFERROR(W5*'Inputs & Assumptions'!$Q$43,"--") -> 1612000 | AH5: =IFERROR(X5*'Inputs & Assumptions'!$Q$44,"--") -> 113400 | AI5: =IFERROR(Y5*'Inputs & Assumptions'!$Q$45,"--") -> 840 | AJ5: =IFERROR(Z5*'Inputs & Assumptions'!$Q$46,"--") -> 0 | AK5: =IFERROR(AA5*'Inputs & Assumptions'!$Q$47,"--") -> 954500 | AL5: =IFERROR(AB5*'Inputs & Assumptions'!$Q$48,"--") -> 711903.5 | AM5: =IFERROR(AC5*'Inputs & Assumptions'!$Q$49,"--") -> 69600
A6: 1001 | B6: Alexandria Township | C6: Hunterdon | D6: 3401900550 | E6: 3 | F6: 724429749 | G6: 2281217.23 | H6: 0.3148983367 | I6: 566451.756 | J6: 17621.43755 | K6: 2.796734849 | L6: 3356379.02 | M6: 14622783 | N6: 20260379.25 | O6: 0.1125949915 | P6: 0.165662201 | Q6: 0.7217428075 | R6: 5413 | S6: 104.6465465 | T6: 658459.98 | U6: 42454 | V6: 243000 | W6: 293600 | X6: 1070550.58 | Y6: 16575 | Z6: 84800 | AA6: 0 | AB6: 181735.6 | AC6: 40000 | AD6: =IFERROR(T6*'Inputs & Assumptions'!$Q$40,"--") -> 65845.998 | AE6: =IFERROR(U6*'Inputs & Assumptions'!$Q$41,"--") -> 4245.4 | AF6: =IFERROR(V6*'Inputs & Assumptions'!$Q$42,"--") -> 121500 | AG6: =IFERROR(W6*'Inputs & Assumptions'!$Q$43,"--") -> 146800 | AH6: =IFERROR(X6*'Inputs & Assumptions'!$Q$44,"--") -> 107055.058 | AI6: =IFERROR(Y6*'Inputs & Assumptions'!$Q$45,"--") -> 1657.5 | AJ6: =IFERROR(Z6*'Inputs & Assumptions'!$Q$46,"--") -> 8480 | AK6: =IFERROR(AA6*'Inputs & Assumptions'!$Q$47,"--") -> 0 | AL6: =IFERROR(AB6*'Inputs & Assumptions'!$Q$48,"--") -> 90867.8 | AM6: =IFERROR(AC6*'Inputs & Assumptions'!$Q$49,"--") -> 20000
A7: 2101 | B7: Allamuchy Township | C7: Warren | D7: 3404100670 | E7: 4 | F7: 599642300 | G7: 2709072 | H7: 0.451781337 | I7: 444501.373 | J7: 12794.996 | K7: 3.095293583 | L7: 5341765.63 | M7: 10509852 | N7: 18560689.63 | O7: 0.1459575077 | P7: 0.2877999544 | Q7: 0.5662425378 | R7: 5878 | S7: 75.62119309 | T7: 670376 | U7: 42500 | V7: 15000 | W7: 147724 | X7: 1550783.83 | Y7: 90010 | Z7: 0 | AA7: 0 | AB7: 186502 | AC7: 69042.78 | AD7: =IFERROR(T7*'Inputs & Assumptions'!$Q$40,"--") -> 67037.6 | AE7: =IFERROR(U7*'Inputs & Assumptions'!$Q$41,"--") -> 4250 | AF7: =IFERROR(V7*'Inputs & Assumptions'!$Q$42,"--") -> 7500 | AG7: =IFERROR(W7*'Inputs & Assumptions'!$Q$43,"--") -> 73862 | AH7: =IFERROR(X7*'Inputs & Assumptions'!$Q$44,"--") -> 155078.383 | AI7: =IFERROR(Y7*'Inputs & Assumptions'!$Q$45,"--") -> 9001 | AJ7: =IFERROR(Z7*'Inputs & Assumptions'!$Q$46,"--") -> 0 | AK7: =IFERROR(AA7*'Inputs & Assumptions'!$Q$47,"--") -> 0 | AL7: =IFERROR(AB7*'Inputs & Assumptions'!$Q$48,"--") -> 93251 | AM7: =IFERROR(AC7*'Inputs & Assumptions'!$Q$49,"--") -> 34521.39
A8: 0201 | B8: Allendale Borough | C8: Bergen | D8: 3400300700 | E8: 5 | F8: 2035931500 | G8: 11771102 | H8: 0.5781678804 | I8: 2942549.5 | J8: 1982.143142 | K8: 2.198912648 | L8: 4924173.25 | M8: 28073080 | N8: 44768355.25 | O8: 0.2629335372 | P8: 0.1099922752 | Q8: 0.6270741876 | R8: 9482 | S8: 310.3300464 | T8: 1116420 | U8: 88600 | V8: 243950 | W8: 3406349 | X8: 2222006 | Y8: 56000 | Z8: 691949 | AA8: 0 | AB8: 1375330 | AC8: 24475 | AD8: =IFERROR(T8*'Inputs & Assumptions'!$Q$40,"--") -> 111642 | AE8: =IFERROR(U8*'Inputs & Assumptions'!$Q$41,"--") -> 8860 | AF8: =IFERROR(V8*'Inputs & Assumptions'!$Q$42,"--") -> 121975 | AG8: =IFERROR(W8*'Inputs & Assumptions'!$Q$43,"--") -> 1703174.5 | AH8: =IFERROR(X8*'Inputs & Assumptions'!$Q$44,"--") -> 222200.6 | AI8: =IFERROR(Y8*'Inputs & Assumptions'!$Q$45,"--") -> 5600 | AJ8: =IFERROR(Z8*'Inputs & Assumptions'!$Q$46,"--") -> 69194.9 | AK8: =IFERROR(AA8*'Inputs & Assumptions'!$Q$47,"--") -> 0 | AL8: =IFERROR(AB8*'Inputs & Assumptions'!$Q$48,"--") -> 687665 | AM8: =IFERROR(AC8*'Inputs & Assumptions'!$Q$49,"--") -> 12237.5
A9: 1301 | B9: Allenhurst Borough | C9: Monmouth | D9: 3402500730 | E9: 6 | F9: 925246300 | G9: 3053118.69 | H9: 0.3299790218 | I9: 1228508.393 | J9: 160.3075736 | K9: 0.6236784422 | L9: 2308814.02 | M9: 408629 | N9: 5770561.71 | O9: 0.5290851816 | P9: 0.400102128 | Q9: 0.07081269043 | R9: 541 | S9: 2270.810338 | T9: 615795 | U9: 114385 | V9: 0 | W9: 1438850.66 | X9: 944645.63 | Y9: 20500 | Z9: 0 | AA9: 0 | AB9: 624121 | AC9: 54980 | AD9: =IFERROR(T9*'Inputs & Assumptions'!$Q$40,"--") -> 61579.5 | AE9: =IFERROR(U9*'Inputs & Assumptions'!$Q$41,"--") -> 11438.5 | AF9: =IFERROR(V9*'Inputs & Assumptions'!$Q$42,"--") -> 0 | AG9: =IFERROR(W9*'Inputs & Assumptions'!$Q$43,"--") -> 719425.33 | AH9: =IFERROR(X9*'Inputs & Assumptions'!$Q$44,"--") -> 94464.563 | AI9: =IFERROR(Y9*'Inputs & Assumptions'!$Q$45,"--") -> 2050 | AJ9: =IFERROR(Z9*'Inputs & Assumptions'!$Q$46,"--") -> 0 | AK9: =IFERROR(AA9*'Inputs & Assumptions'!$Q$47,"--") -> 0 | AL9: =IFERROR(AB9*'Inputs & Assumptions'!$Q$48,"--") -> 312060.5 | AM9: =IFERROR(AC9*'Inputs & Assumptions'!$Q$49,"--") -> 27490
A10: 1302 | B10: Allentown Borough | C10: Monmouth | D10: 3402500760 | E10: 7 | F10: 193121000 | G10: 1885890.04 | H10: 0.976532868 | I10: 897520.419 | J10: 381.5569926 | K10: 2.877853279 | L10: 476933.99 | M10: 3194915 | N10: 5557739.03 | O10: 0.3393268431 | P10: 0.08581439096 | Q10: 0.5748587659 | R10: 2632 | S10: 341.0031987 | T10: 2137534.19 | U10: 9700 | V10: 1450 | W10: 696300 | X10: 168500 | Y10: 1500 | Z10: 3000 | AA10: 238000 | AB10: 321569 | AC10: 73675 | AD10: =IFERROR(T10*'Inputs & Assumptions'!$Q$40,"--") -> 213753.419 | AE10: =IFERROR(U10*'Inputs & Assumptions'!$Q$41,"--") -> 970 | AF10: =IFERROR(V10*'Inputs & Assumptions'!$Q$42,"--") -> 725 | AG10: =IFERROR(W10*'Inputs & Assumptions'!$Q$43,"--") -> 348150 | AH10: =IFERROR(X10*'Inputs & Assumptions'!$Q$44,"--") -> 16850 | AI10: =IFERROR(Y10*'Inputs & Assumptions'!$Q$45,"--") -> 150 | AJ10: =IFERROR(Z10*'Inputs & Assumptions'!$Q$46,"--") -> 300 | AK10: =IFERROR(AA10*'Inputs & Assumptions'!$Q$47,"--") -> 119000 | AL10: =IFERROR(AB10*'Inputs & Assumptions'!$Q$48,"--") -> 160784.5 | AM10: =IFERROR(AC10*'Inputs & Assumptions'!$Q$49,"--") -> 36837.5
A11: 1701 | B11: Alloway Township | C11: Salem | D11: 3403300880 | E11: 8 | F11: 287646235 | G11: 831039.17 | H11: 0.2889101503 | I11: 261328.608 | J11: 21425.34015 | K11: 3.288917215 | L11: 4057321.37 | M11: 4572086 | N11: 9460446.54 | O11: 0.08784354591 | P11: 0.4288720784 | Q11: 0.4832843757 | R11: 3626 | S11: 72.07076889 | T11: 332175 | U11: 7500 | V11: 55150 | W11: 45175 | X11: 689989.38 | Y11: 12900 | Z11: 0 | AA11: 125739.34 | AB11: 88080 | AC11: 0 | AD11: =IFERROR(T11*'Inputs & Assumptions'!$Q$40,"--") -> 33217.5 | AE11: =IFERROR(U11*'Inputs & Assumptions'!$Q$41,"--") -> 750 | AF11: =IFERROR(V11*'Inputs & Assumptions'!$Q$42,"--") -> 27575 | AG11: =IFERROR(W11*'Inputs & Assumptions'!$Q$43,"--") -> 22587.5 | AH11: =IFERROR(X11*'Inputs & Assumptions'!$Q$44,"--") -> 68998.938 | AI11: =IFERROR(Y11*'Inputs & Assumptions'!$Q$45,"--") -> 1290 | AJ11: =IFERROR(Z11*'Inputs & Assumptions'!$Q$46,"--") -> 0 | AK11: =IFERROR(AA11*'Inputs & Assumptions'!$Q$47,"--") -> 62869.67 | AL11: =IFERROR(AB11*'Inputs & Assumptions'!$Q$48,"--") -> 44040 | AM11: =IFERROR(AC11*'Inputs & Assumptions'!$Q$49,"--") -> 0
A12: 2102 | B12: Alpha Borough | C12: Warren | D12: 3404101030 | E12: 9 | F12: 217952746 | G12: 1931772.27 | H12: 0.8863261902 | I12: 337031.715 | J12: 1075.628527 | K12: 3.455267368 | L12: 1439157.84 | M12: 4159920 | N12: 7530850.11 | O12: 0.2565145026 | P12: 0.1911016444 | Q12: 0.552383853 | R12: 3104 | S12: 108.5798051 | T12: 1334120 | U12: 31925 | V12: 42550 | W12: 123985.86 | X12: 604567 | Y12: 8875 | Z12: 81075.85 | AA12: 0 | AB12: 95415 | AC12: 0 | AD12: =IFERROR(T12*'Inputs & Assumptions'!$Q$40,"--") -> 133412 | AE12: =IFERROR(U12*'Inputs & Assumptions'!$Q$41,"--") -> 3192.5 | AF12: =IFERROR(V12*'Inputs & Assumptions'!$Q$42,"--") -> 21275 | AG12: =IFERROR(W12*'Inputs & Assumptions'!$Q$43,"--") -> 61992.93 | AH12: =IFERROR(X12*'Inputs & Assumptions'!$Q$44,"--") -> 60456.7 | AI12: =IFERROR(Y12*'Inputs & Assumptions'!$Q$45,"--") -> 887.5 | AJ12: =IFERROR(Z12*'Inputs & Assumptions'!$Q$46,"--") -> 8107.585 | AK12: =IFERROR(AA12*'Inputs & Assumptions'!$Q$47,"--") -> 0 | AL12: =IFERROR(AB12*'Inputs & Assumptions'!$Q$48,"--") -> 47707.5 | AM12: =IFERROR(AC12*'Inputs & Assumptions'!$Q$49,"--") -> 0
A13: 0202 | B13: Alpine Borough | C13: Bergen | D13: 3400301090 | E13: 10 | F13: 1977359600 | G13: 3902024 | H13: 0.1973350725 | I13: 1813843.5 | J13: 4096.623518 | K13: 0.7891775527 | L13: 4440577.1 | M13: 7262277 | N13: 15604878.1 | O13: 0.2500515528 | P13: 0.2845633956 | Q13: 0.4653850516 | R13: 1899 | S13: 955.157188 | T13: 590200 | U13: 25800 | V13: 153600 | W13: 2305390 | X13: 538200 | Y13: 33850 | Z13: 0 | AA13: 0 | AB13: 900137 | AC13: 30950 | AD13: =IFERROR(T13*'Inputs & Assumptions'!$Q$40,"--") -> 59020 | AE13: =IFERROR(U13*'Inputs & Assumptions'!$Q$41,"--") -> 2580 | AF13: =IFERROR(V13*'Inputs & Assumptions'!$Q$42,"--") -> 76800 | AG13: =IFERROR(W13*'Inputs & Assumptions'!$Q$43,"--") -> 1152695 | AH13: =IFERROR(X13*'Inputs & Assumptions'!$Q$44,"--") -> 53820 | AI13: =IFERROR(Y13*'Inputs & Assumptions'!$Q$45,"--") -> 3385 | AJ13: =IFERROR(Z13*'Inputs & Assumptions'!$Q$46,"--") -> 0 | AK13: =IFERROR(AA13*'Inputs & Assumptions'!$Q$47,"--") -> 0 | AL13: =IFERROR(AB13*'Inputs & Assumptions'!$Q$48,"--") -> 450068.5 | AM13: =IFERROR(AC13*'Inputs & Assumptions'!$Q$49,"--") -> 15475
A14: 1901 | B14: Andover Borough | C14: Sussex | D14: 3403701330 | E14: 11 | F14: 67631500 | G14: 396261.27 | H14: 0.5859122894 | I14: 97431.265 | J14: 862.6361309 | K14: 3.238483754 | L14: 434330.87 | M14: 1359643 | N14: 2190235.14 | O14: 0.1809217936 | P14: 0.1983033064 | Q14: 0.6207749 | R14: 1044 | S14: 93.32496648 | T14: 226695 | U14: 17649 | V14: 21954 | W14: 33668 | X14: 133784 | Y14: 5353 | Z14: 500 | AA14: 28817.33 | AB14: 33627 | AC14: 0 | AD14: =IFERROR(T14*'Inputs & Assumptions'!$Q$40,"--") -> 22669.5 | AE14: =IFERROR(U14*'Inputs & Assumptions'!$Q$41,"--") -> 1764.9 | AF14: =IFERROR(V14*'Inputs & Assumptions'!$Q$42,"--") -> 10977 | AG14: =IFERROR(W14*'Inputs & Assumptions'!$Q$43,"--") -> 16834 | AH14: =IFERROR(X14*'Inputs & Assumptions'!$Q$44,"--") -> 13378.4 | AI14: =IFERROR(Y14*'Inputs & Assumptions'!$Q$45,"--") -> 535.3 | AJ14: =IFERROR(Z14*'Inputs & Assumptions'!$Q$46,"--") -> 50 | AK14: =IFERROR(AA14*'Inputs & Assumptions'!$Q$47,"--") -> 14408.665 | AL14: =IFERROR(AB14*'Inputs & Assumptions'!$Q$48,"--") -> 16813.5 | AM14: =IFERROR(AC14*'Inputs & Assumptions'!$Q$49,"--") -> 0
A15: 1902 | B15: Andover Township | C15: Sussex | D15: 3403701360 | E15: 12 | F15: 641709715 | G15: 7297672.4 | H15: 1.1372233 | I15: 2255182.522 | J15: 12828.47185 | K15: 4.060293175 | L15: 4444565.36 | M15: 14313058 | N15: 26055295.76 | O15: 0.2800840362 | P15: 0.1705820345 | Q15: 0.5493339293 | R15: 7519 | S15: 299.9311773 | T15: 1060059.21 | U15: 110206 | V15: 0 | W15: 2183208.16 | X15: 1269829.21 | Y15: 11375 | Z15: 0 | AA15: 702000 | AB15: 1032428 | AC15: 102435 | AD15: =IFERROR(T15*'Inputs & Assumptions'!$Q$40,"--") -> 106005.921 | AE15: =IFERROR(U15*'Inputs & Assumptions'!$Q$41,"--") -> 11020.6 | AF15: =IFERROR(V15*'Inputs & Assumptions'!$Q$42,"--") -> 0 | AG15: =IFERROR(W15*'Inputs & Assumptions'!$Q$43,"--") -> 1091604.08 | AH15: =IFERROR(X15*'Inputs & Assumptions'!$Q$44,"--") -> 126982.921 | AI15: =IFERROR(Y15*'Inputs & Assumptions'!$Q$45,"--") -> 1137.5 | AJ15: =IFERROR(Z15*'Inputs & Assumptions'!$Q$46,"--") -> 0 | AK15: =IFERROR(AA15*'Inputs & Assumptions'!$Q$47,"--") -> 351000 | AL15: =IFERROR(AB15*'Inputs & Assumptions'!$Q$48,"--") -> 516214 | AM15: =IFERROR(AC15*'Inputs & Assumptions'!$Q$49,"--") -> 51217.5
A16: 1303 | B16: Asbury Park City | C16: Monmouth | D16: 3402501960 | E16: 13 | F16: 2679737380 | G16: 16893926.41 | H16: 0.6304321661 | I16: 16853041.05 | J16: 914.549985 | K16: 1.545091523 | L16: 5698526.68 | M16: 18811942 | N16: 41404395.09 | O16: 0.408022539 | P16: 0.1376309609 | Q16: 0.4543465002 | R16: 19357 | S16: 870.6432325 | T16: 3432371 | U16: 1252890 | V16: 1027575 | W16: 19232274.33 | X16: 9752251.17 | Y16: 693679.58 | Z16: 827707.12 | AA16: 2022000 | AB16: 7833543 | AC16: 398910 | AD16: =IFERROR(T16*'Inputs & Assumptions'!$Q$40,"--") -> 343237.1 | AE16: =IFERROR(U16*'Inputs & Assumptions'!$Q$41,"--") -> 125289 | AF16: =IFERROR(V16*'Inputs & Assumptions'!$Q$42,"--") -> 513787.5 | AG16: =IFERROR(W16*'Inputs & Assumptions'!$Q$43,"--") -> 9616137.165 | AH16: =IFERROR(X16*'Inputs & Assumptions'!$Q$44,"--") -> 975225.117 | AI16: =IFERROR(Y16*'Inputs & Assumptions'!$Q$45,"--") -> 69367.958 | AJ16: =IFERROR(Z16*'Inputs & Assumptions'!$Q$46,"--") -> 82770.712 | AK16: =IFERROR(AA16*'Inputs & Assumptions'!$Q$47,"--") -> 1011000 | AL16: =IFERROR(AB16*'Inputs & Assumptions'!$Q$48,"--") -> 3916771.5 | AM16: =IFERROR(AC16*'Inputs & Assumptions'!$Q$49,"--") -> 199455
A17: 0102 | B17: Atlantic City City | C17: Atlantic | D17: 3400102080 | E17: 14 | F17: 2398818833 | G17: 38235972.24 | H17: 1.593949977 | I17: 50764615.62 | J17: 6886.699118 | K17: 3.564840707 | L17: 12303259 | M17: 34974839 | N17: 85514070.24 | O17: 0.447130772 | P17: 0.1438740896 | Q17: 0.4089951385 | R17: 63745 | S17: 796.3701564 | T17: 14323128.72 | U17: 3384137.94 | V17: 4132287 | W17: 64153900.94 | X17: 18667249.16 | Y17: 3036000 | Z17: 1653119 | AA17: 0 | AB17: 23400966.33 | AC17: 1629350 | AD17: =IFERROR(T17*'Inputs & Assumptions'!$Q$40,"--") -> 1432312.872 | AE17: =IFERROR(U17*'Inputs & Assumptions'!$Q$41,"--") -> 338413.794 | AF17: =IFERROR(V17*'Inputs & Assumptions'!$Q$42,"--") -> 2066143.5 | AG17: =IFERROR(W17*'Inputs & Assumptions'!$Q$43,"--") -> 32076950.47 | AH17: =IFERROR(X17*'Inputs & Assumptions'!$Q$44,"--") -> 1866724.916 | AI17: =IFERROR(Y17*'Inputs & Assumptions'!$Q$45,"--") -> 303600 | AJ17: =IFERROR(Z17*'Inputs & Assumptions'!$Q$46,"--") -> 165311.9 | AK17: =IFERROR(AA17*'Inputs & Assumptions'!$Q$47,"--") -> 0 | AL17: =IFERROR(AB17*'Inputs & Assumptions'!$Q$48,"--") -> 11700483.16 | AM17: =IFERROR(AC17*'Inputs & Assumptions'!$Q$49,"--") -> 814675
A18: 1304 | B18: Atlantic Highlands Borough | C18: Monmouth | D18: 3402502110 | E18: 15 | F18: 1093866100 | G18: 5938834.99 | H18: 0.5429215687 | I18: 2708282.386 | J18: 809.0014357 | K18: 1.707317998 | L18: 2606575.81 | M18: 10130362 | N18: 18675772.8 | O18: 0.3179967466 | P18: 0.1395699036 | Q18: 0.5424333498 | R18: 5662 | S18: 478.3261014 | T18: 6650141.96 | U18: 56500 | V18: 93000 | W18: 2046256.44 | X18: 746200 | Y18: 0 | Z18: 1500 | AA18: 521500 | AB18: 1145439.94 | AC18: 119500 | AD18: =IFERROR(T18*'Inputs & Assumptions'!$Q$40,"--") -> 665014.196 | AE18: =IFERROR(U18*'Inputs & Assumptions'!$Q$41,"--") -> 5650 | AF18: =IFERROR(V18*'Inputs & Assumptions'!$Q$42,"--") -> 46500 | AG18: =IFERROR(W18*'Inputs & Assumptions'!$Q$43,"--") -> 1023128.22 | AH18: =IFERROR(X18*'Inputs & Assumptions'!$Q$44,"--") -> 74620 | AI18: =IFERROR(Y18*'Inputs & Assumptions'!$Q$45,"--") -> 0 | AJ18: =IFERROR(Z18*'Inputs & Assumptions'!$Q$46,"--") -> 150 | AK18: =IFERROR(AA18*'Inputs & Assumptions'!$Q$47,"--") -> 260750 | AL18: =IFERROR(AB18*'Inputs & Assumptions'!$Q$48,"--") -> 572719.97 | AM18: =IFERROR(AC18*'Inputs & Assumptions'!$Q$49,"--") -> 59750
A19: 0401 | B19: Audubon Borough | C19: Camden | D19: 3400702200 | E19: 16 | F19: 712606904 | G19: 7096000 | H19: 0.995780417 | I19: 2563638.721 | J19: 948.5830539 | K19: 3.90251526 | L19: 5946933.17 | M19: 14766660 | N19: 27809593.17 | O19: 0.2551637472 | P19: 0.2138446663 | Q19: 0.5309915866 | R19: 10733 | S19: 238.8557459 | T19: 678850 | U19: 42875 | V19: 62153 | W19: 2692104 | X19: 1538906 | Y19: 0 | Z19: 291016.21 | AA19: 512325 | AB19: 1179236 | AC19: 171130 | AD19: =IFERROR(T19*'Inputs & Assumptions'!$Q$40,"--") -> 67885 | AE19: =IFERROR(U19*'Inputs & Assumptions'!$Q$41,"--") -> 4287.5 | AF19: =IFERROR(V19*'Inputs & Assumptions'!$Q$42,"--") -> 31076.5 | AG19: =IFERROR(W19*'Inputs & Assumptions'!$Q$43,"--") -> 1346052 | AH19: =IFERROR(X19*'Inputs & Assumptions'!$Q$44,"--") -> 153890.6 | AI19: =IFERROR(Y19*'Inputs & Assumptions'!$Q$45,"--") -> 0 | AJ19: =IFERROR(Z19*'Inputs & Assumptions'!$Q$46,"--") -> 29101.621 | AK19: =IFERROR(AA19*'Inputs & Assumptions'!$Q$47,"--") -> 256162.5 | AL19: =IFERROR(AB19*'Inputs & Assumptions'!$Q$48,"--") -> 589618 | AM19: =IFERROR(AC19*'Inputs & Assumptions'!$Q$49,"--") -> 85565
A20: 0402 | B20: Audubon Park Borough | C20: Camden | D20: 3400702230 | E20: 17 | F20: 20700000 | G20: 884000 | H20: 4.270531401 | I20: 67488.309 | J20: 96.27369972 | K20: 6.6664343 | L20: 150156.9 | M20: 345795 | N20: 1379951.9 | O20: 0.6406020384 | P20: 0.1088131405 | Q20: 0.2505848211 | R20: 1350 | S20: 49.99134 | T20: 180112.64 | U20: 0 | V20: 0 | W20: 33702.02 | X20: 102000 | Y20: 7080.8 | Z20: 20796 | AA20: 0 | AB20: 39276.71 | AC20: 0 | AD20: =IFERROR(T20*'Inputs & Assumptions'!$Q$40,"--") -> 18011.264 | AE20: =IFERROR(U20*'Inputs & Assumptions'!$Q$41,"--") -> 0 | AF20: =IFERROR(V20*'Inputs & Assumptions'!$Q$42,"--") -> 0 | AG20: =IFERROR(W20*'Inputs & Assumptions'!$Q$43,"--") -> 16851.01 | AH20: =IFERROR(X20*'Inputs & Assumptions'!$Q$44,"--") -> 10200 | AI20: =IFERROR(Y20*'Inputs & Assumptions'!$Q$45,"--") -> 708.08 | AJ20: =IFERROR(Z20*'Inputs & Assumptions'!$Q$46,"--") -> 2079.6 | AK20: =IFERROR(AA20*'Inputs & Assumptions'!$Q$47,"--") -> 0 | AL20: =IFERROR(AB20*'Inputs & Assumptions'!$Q$48,"--") -> 19638.355 | AM20: =IFERROR(AC20*'Inputs & Assumptions'!$Q$49,"--") -> 0
A21: 0501 | B21: Avalon Borough | C21: Cape May | D21: 3400902320 | E21: 18 | F21: 9784358053 | G21: 24838505 | H21: 0.2538593218 | I21: 4633918.707 | J21: 2732.755824 | K21: 0.6065236144 | L21: 31365669.11 | M21: 3140268 | N21: 59344442.11 | O21: 0.4185481254 | P21: 0.5285359167 | Q21: 0.0529159579 | R21: 2940 | S21: 1576.162825 | T21: 2623667.979 | U21: 90455.00338 | V21: 270992.0034 | W21: 3887586.012 | X21: 5395467.003 | Y21: 58037.0008 | Z21: 4668505 | AA21: 305000 | AB21: 2050868 | AC21: 186165.0015 | AD21: =IFERROR(T21*'Inputs & Assumptions'!$Q$40,"--") -> 262366.7979 | AE21: =IFERROR(U21*'Inputs & Assumptions'!$Q$41,"--") -> 9045.500338 | AF21: =IFERROR(V21*'Inputs & Assumptions'!$Q$42,"--") -> 135496.0017 | AG21: =IFERROR(W21*'Inputs & Assumptions'!$Q$43,"--") -> 1943793.006 | AH21: =IFERROR(X21*'Inputs & Assumptions'!$Q$44,"--") -> 539546.7003 | AI21: =IFERROR(Y21*'Inputs & Assumptions'!$Q$45,"--") -> 5803.70008 | AJ21: =IFERROR(Z21*'Inputs & Assumptions'!$Q$46,"--") -> 466850.5 | AK21: =IFERROR(AA21*'Inputs & Assumptions'!$Q$47,"--") -> 152500 | AL21: =IFERROR(AB21*'Inputs & Assumptions'!$Q$48,"--") -> 1025434 | AM21: =IFERROR(AC21*'Inputs & Assumptions'!$Q$49,"--") -> 93082.50077
A22: 1305 | B22: Avon-by-the-Sea Borough | C22: Monmouth | D22: 3402502440 | E22: 19 | F22: 1382869400 | G22: 4128504.52 | H22: 0.2985462344 | I22: 1729180.32 | J22: 272.3530149 | K22: 0.8528189083 | L22: 3312108.2 | M22: 4352759 | N22: 11793371.72 | O22: 0.3500699052 | P22: 0.2808448914 | Q22: 0.3690852034 | R22: 2266 | S22: 763.0981112 | T22: 1617425 | U22: 21600 | V22: 158850 | W22: 1650869.61 | X22: 1207359.15 | Y22: 12150 | Z22: 485691 | AA22: 175000 | AB22: 781796 | AC22: 23000 | AD22: =IFERROR(T22*'Inputs & Assumptions'!$Q$40,"--") -> 161742.5 | AE22: =IFERROR(U22*'Inputs & Assumptions'!$Q$41,"--") -> 2160 | AF22: =IFERROR(V22*'Inputs & Assumptions'!$Q$42,"--") -> 79425 | AG22: =IFERROR(W22*'Inputs & Assumptions'!$Q$43,"--") -> 825434.805 | AH22: =IFERROR(X22*'Inputs & Assumptions'!$Q$44,"--") -> 120735.915 | AI22: =IFERROR(Y22*'Inputs & Assumptions'!$Q$45,"--") -> 1215 | AJ22: =IFERROR(Z22*'Inputs & Assumptions'!$Q$46,"--") -> 48569.1 | AK22: =IFERROR(AA22*'Inputs & Assumptions'!$Q$47,"--") -> 87500 | AL22: =IFERROR(AB22*'Inputs & Assumptions'!$Q$48,"--") -> 390898 | AM22: =IFERROR(AC22*'Inputs & Assumptions'!$Q$49,"--") -> 11500
A23: 1501 | B23: Barnegat Light Borough | C23: Ocean | D23: 3402903130 | E23: 20 | F23: 1052290400 | G23: 2695412.94 | H23: 0.2561472517 | I23: 427663.864 | J23: 531.7253423 | K23: 0.8906276623 | L23: 4587414.45 | M23: 2089162 | N23: 9371989.39 | O23: 0.2876030721 | P23: 0.489481396 | Q23: 0.2229155319 | R23: 860 | S23: 497.2835628 | T23: 528983.64 | U23: 30250 | V23: 28000 | W23: 130800 | X23: 288000 | Y23: 10100 | Z23: 0 | AA23: 381000 | AB23: 144061 | AC23: 0 | AD23: =IFERROR(T23*'Inputs & Assumptions'!$Q$40,"--") -> 52898.364 | AE23: =IFERROR(U23*'Inputs & Assumptions'!$Q$41,"--") -> 3025 | AF23: =IFERROR(V23*'Inputs & Assumptions'!$Q$42,"--") -> 14000 | AG23: =IFERROR(W23*'Inputs & Assumptions'!$Q$43,"--") -> 65400 | AH23: =IFERROR(X23*'Inputs & Assumptions'!$Q$44,"--") -> 28800 | AI23: =IFERROR(Y23*'Inputs & Assumptions'!$Q$45,"--") -> 1010 | AJ23: =IFERROR(Z23*'Inputs & Assumptions'!$Q$46,"--") -> 0 | AK23: =IFERROR(AA23*'Inputs & Assumptions'!$Q$47,"--") -> 190500 | AL23: =IFERROR(AB23*'Inputs & Assumptions'!$Q$48,"--") -> 72030.5 | AM23: =IFERROR(AC23*'Inputs & Assumptions'!$Q$49,"--") -> 0
A24: 1533 | B24: Barnegat Township | C24: Ocean | D24: 3402903050 | E24: 21 | F24: 2659511900 | G24: 25824681.25 | H24: 0.9710308591 | I24: 9270754.075 | J24: 21912.95004 | K24: 2.910600244 | L24: 12839255.59 | M24: 38743823 | N24: 77407759.84 | O24: 0.3336187651 | P24: 0.1658652261 | Q24: 0.5005160087 | R24: 26200 | S24: 353.8455754 | T24: 8286600 | U24: 179200 | V24: 1254100 | W24: 9280093.3 | X24: 4359474.25 | Y24: 49350 | Z24: 0 | AA24: 916000 | AB24: 4193790 | AC24: 322600 | AD24: =IFERROR(T24*'Inputs & Assumptions'!$Q$40,"--") -> 828660 | AE24: =IFERROR(U24*'Inputs & Assumptions'!$Q$41,"--") -> 17920 | AF24: =IFERROR(V24*'Inputs & Assumptions'!$Q$42,"--") -> 627050 | AG24: =IFERROR(W24*'Inputs & Assumptions'!$Q$43,"--") -> 4640046.65 | AH24: =IFERROR(X24*'Inputs & Assumptions'!$Q$44,"--") -> 435947.425 | AI24: =IFERROR(Y24*'Inputs & Assumptions'!$Q$45,"--") -> 4935 | AJ24: =IFERROR(Z24*'Inputs & Assumptions'!$Q$46,"--") -> 0 | AK24: =IFERROR(AA24*'Inputs & Assumptions'!$Q$47,"--") -> 458000 | AL24: =IFERROR(AB24*'Inputs & Assumptions'!$Q$48,"--") -> 2096895 | AM24: =IFERROR(AC24*'Inputs & Assumptions'!$Q$49,"--") -> 161300
A25: 0403 | B25: Barrington Borough | C25: Camden | D25: 3400703250 | E25: 22 | F25: 494723876 | G25: 6458104.19 | H25: 1.305395697 | I25: 2216442.093 | J25: 1011.980137 | K25: 4.622588688 | L25: 4691853.74 | M25: 11719092 | N25: 22869049.93 | O25: 0.2823949491 | P25: 0.2051617253 | Q25: 0.5124433256 | R25: 9146 | S25: 242.3400495 | T25: 791030.08 | U25: 23625 | V25: 0 | W25: 2081805.89 | X25: 1430483.05 | Y25: 24193 | Z25: 0 | AA25: 727589 | AB25: 1040623.07 | AC25: 129000 | AD25: =IFERROR(T25*'Inputs & Assumptions'!$Q$40,"--") -> 79103.008 | AE25: =IFERROR(U25*'Inputs & Assumptions'!$Q$41,"--") -> 2362.5 | AF25: =IFERROR(V25*'Inputs & Assumptions'!$Q$42,"--") -> 0 | AG25: =IFERROR(W25*'Inputs & Assumptions'!$Q$43,"--") -> 1040902.945 | AH25: =IFERROR(X25*'Inputs & Assumptions'!$Q$44,"--") -> 143048.305 | AI25: =IFERROR(Y25*'Inputs & Assumptions'!$Q$45,"--") -> 2419.3 | AJ25: =IFERROR(Z25*'Inputs & Assumptions'!$Q$46,"--") -> 0 | AK25: =IFERROR(AA25*'Inputs & Assumptions'!$Q$47,"--") -> 363794.5 | AL25: =IFERROR(AB25*'Inputs & Assumptions'!$Q$48,"--") -> 520311.535 | AM25: =IFERROR(AC25*'Inputs & Assumptions'!$Q$49,"--") -> 64500
A26: 0301 | B26: Bass River Township | C26: Burlington | D26: 3400503370 | E26: 23 | F26: 174601886 | G26: 654323.65 | H26: 0.3747517653 | I26: 237831.5 | J26: 48079.38726 | K26: 2.193790014 | L26: 724718.09 | M26: 2451357 | N26: 3830398.74 | O26: 0.1708238997 | P26: 0.1892017357 | Q26: 0.6399743647 | R26: 2347 | S26: 101.3342565 | T26: 349800 | U26: 25200 | V26: 5900 | W26: 89500 | X26: 311985 | Y26: 6000 | Z26: 0 | AA26: 3000 | AB26: 61666 | AC26: 177000 | AD26: =IFERROR(T26*'Inputs & Assumptions'!$Q$40,"--") -> 34980 | AE26: =IFERROR(U26*'Inputs & Assumptions'!$Q$41,"--") -> 2520 | AF26: =IFERROR(V26*'Inputs & Assumptions'!$Q$42,"--") -> 2950 | AG26: =IFERROR(W26*'Inputs & Assumptions'!$Q$43,"--") -> 44750 | AH26: =IFERROR(X26*'Inputs & Assumptions'!$Q$44,"--") -> 31198.5 | AI26: =IFERROR(Y26*'Inputs & Assumptions'!$Q$45,"--") -> 600 | AJ26: =IFERROR(Z26*'Inputs & Assumptions'!$Q$46,"--") -> 0 | AK26: =IFERROR(AA26*'Inputs & Assumptions'!$Q$47,"--") -> 1500 | AL26: =IFERROR(AB26*'Inputs & Assumptions'!$Q$48,"--") -> 30833 | AM26: =IFERROR(AC26*'Inputs & Assumptions'!$Q$49,"--") -> 88500
A27: 1502 | B27: Bay Head Borough | C27: Ocean | D27: 3402903520 | E27: 24 | F27: 1659556000 | G27: 4316358.53 | H27: 0.2600911647 | I27: 1396404.77 | J27: 374.7195895 | K27: 0.9709743413 | L27: 7925194.41 | M27: 3872310 | N27: 16113862.94 | O27: 0.2678661564 | P27: 0.4918246133 | Q27: 0.2403092303 | R27: 1785 | S27: 782.299591 | T27: 653001 | U27: 77000 | V27: 163100 | W27: 1532983.96 | X27: 464150 | Y27: 5850 | Z27: 3000 | AA27: 246520.38 | AB27: 560105 | AC27: 49500 | AD27: =IFERROR(T27*'Inputs & Assumptions'!$Q$40,"--") -> 65300.1 | AE27: =IFERROR(U27*'Inputs & Assumptions'!$Q$41,"--") -> 7700 | AF27: =IFERROR(V27*'Inputs & Assumptions'!$Q$42,"--") -> 81550 | AG27: =IFERROR(W27*'Inputs & Assumptions'!$Q$43,"--") -> 766491.98 | AH27: =IFERROR(X27*'Inputs & Assumptions'!$Q$44,"--") -> 46415 | AI27: =IFERROR(Y27*'Inputs & Assumptions'!$Q$45,"--") -> 585 | AJ27: =IFERROR(Z27*'Inputs & Assumptions'!$Q$46,"--") -> 300 | AK27: =IFERROR(AA27*'Inputs & Assumptions'!$Q$47,"--") -> 123260.19 | AL27: =IFERROR(AB27*'Inputs & Assumptions'!$Q$48,"--") -> 280052.5 | AM27: =IFERROR(AC27*'Inputs & Assumptions'!$Q$49,"--") -> 24750
A28: 0901 | B28: Bayonne City | C28: Hudson | D28: 3401703580 | E28: 25 | F28: 7604155436 | G28: 89140066.04 | H28: 1.172254655 | I28: 40698392.24 | J28: 3725.750369 | K28: 2.682005743 | L28: 33175585.46 | M28: 81628234 | N28: 203943885.5 | O28: 0.4370813365 | P28: 0.1626701648 | Q28: 0.4002484987 | R28: 78576 | S28: 517.9494024 | T28: 9343805 | U28: 894200 | V28: 0 | W28: 51063622.27 | X28: 11356177.63 | Y28: 2371657.5 | Z28: 3020630.96 | AA28: 4200000 | AB28: 19360868 | AC28: 1375000 | AD28: =IFERROR(T28*'Inputs & Assumptions'!$Q$40,"--") -> 934380.5 | AE28: =IFERROR(U28*'Inputs & Assumptions'!$Q$41,"--") -> 89420 | AF28: =IFERROR(V28*'Inputs & Assumptions'!$Q$42,"--") -> 0 | AG28: =IFERROR(W28*'Inputs & Assumptions'!$Q$43,"--") -> 25531811.14 | AH28: =IFERROR(X28*'Inputs & Assumptions'!$Q$44,"--") -> 1135617.763 | AI28: =IFERROR(Y28*'Inputs & Assumptions'!$Q$45,"--") -> 237165.75 | AJ28: =IFERROR(Z28*'Inputs & Assumptions'!$Q$46,"--") -> 302063.096 | AK28: =IFERROR(AA28*'Inputs & Assumptions'!$Q$47,"--") -> 2100000 | AL28: =IFERROR(AB28*'Inputs & Assumptions'!$Q$48,"--") -> 9680434 | AM28: =IFERROR(AC28*'Inputs & Assumptions'!$Q$49,"--") -> 687500
A29: 1503 | B29: Beach Haven Borough | C29: Ocean | D29: 3402903940 | E29: 26 | F29: 2163622600 | G29: 9550909.82 | H29: 0.4414314132 | I29: 2700522.454 | J29: 626.7986046 | K29: 1.210854735 | L29: 9998684.87 | M29: 6648732 | N29: 26198326.69 | O29: 0.3645618261 | P29: 0.3816535685 | Q29: 0.2537846054 | R29: 2125 | S29: 1270.834096 | T29: 2282237 | U29: 81700 | V29: 218370 | W29: 2526355.39 | X29: 1663902.59 | Y29: 100000 | Z29: 1047873 | AA29: 240000 | AB29: 1267802 | AC29: 113375 | AD29: =IFERROR(T29*'Inputs & Assumptions'!$Q$40,"--") -> 228223.7 | AE29: =IFERROR(U29*'Inputs & Assumptions'!$Q$41,"--") -> 8170 | AF29: =IFERROR(V29*'Inputs & Assumptions'!$Q$42,"--") -> 109185 | AG29: =IFERROR(W29*'Inputs & Assumptions'!$Q$43,"--") -> 1263177.695 | AH29: =IFERROR(X29*'Inputs & Assumptions'!$Q$44,"--") -> 166390.259 | AI29: =IFERROR(Y29*'Inputs & Assumptions'!$Q$45,"--") -> 10000 | AJ29: =IFERROR(Z29*'Inputs & Assumptions'!$Q$46,"--") -> 104787.3 | AK29: =IFERROR(AA29*'Inputs & Assumptions'!$Q$47,"--") -> 120000 | AL29: =IFERROR(AB29*'Inputs & Assumptions'!$Q$48,"--") -> 633901 | AM29: =IFERROR(AC29*'Inputs & Assumptions'!$Q$49,"--") -> 56687.5
A30: 1504 | B30: Beachwood Borough | C30: Ocean | D30: 3402904180 | E30: 27 | F30: 826188800 | G30: 8980471.37 | H30: 1.086975685 | I30: 2861300.877 | J30: 1768.374589 | K30: 2.740728249 | L30: 4271001.46 | M30: 9392117 | N30: 22643589.83 | O30: 0.3966010442 | P30: 0.1886185668 | Q30: 0.4147803891 | R30: 11560 | S30: 247.5173769 | T30: 884150 | U30: 25225 | V30: 157850 | W30: 2974274.34 | X30: 3857665.31 | Y30: 29455.86 | Z30: 5000 | AA30: 0 | AB30: 1458878.18 | AC30: 171300 | AD30: =IFERROR(T30*'Inputs & Assumptions'!$Q$40,"--") -> 88415 | AE30: =IFERROR(U30*'Inputs & Assumptions'!$Q$41,"--") -> 2522.5 | AF30: =IFERROR(V30*'Inputs & Assumptions'!$Q$42,"--") -> 78925 | AG30: =IFERROR(W30*'Inputs & Assumptions'!$Q$43,"--") -> 1487137.17 | AH30: =IFERROR(X30*'Inputs & Assumptions'!$Q$44,"--") -> 385766.531 | AI30: =IFERROR(Y30*'Inputs & Assumptions'!$Q$45,"--") -> 2945.586 | AJ30: =IFERROR(Z30*'Inputs & Assumptions'!$Q$46,"--") -> 500 | AK30: =IFERROR(AA30*'Inputs & Assumptions'!$Q$47,"--") -> 0 | AL30: =IFERROR(AB30*'Inputs & Assumptions'!$Q$48,"--") -> 729439.09 | AM30: =IFERROR(AC30*'Inputs & Assumptions'!$Q$49,"--") -> 85650
A31: 1801 | B31: Bedminster Township | C31: Somerset | D31: 3403504450 | E31: 28 | F31: 2606572000 | G31: 8203538.28 | H31: 0.3147251747 | I31: 2544012.929 | J31: 16718.59146 | K31: 1.339707665 | L31: 8660368.6 | M31: 18056538 | N31: 34920444.88 | O31: 0.2349207837 | P31: 0.2480028141 | Q31: 0.5170764021 | R31: 14046 | S31: 181.1201003 | T31: 1358627 | U31: 70343 | V31: 312603 | W31: 2815191.04 | X31: 1408039.94 | Y31: 120985.2 | Z31: 875307 | AA31: 0 | AB31: 1148962.21 | AC31: 44609.18 | AD31: =IFERROR(T31*'Inputs & Assumptions'!$Q$40,"--") -> 135862.7 | AE31: =IFERROR(U31*'Inputs & Assumptions'!$Q$41,"--") -> 7034.3 | AF31: =IFERROR(V31*'Inputs & Assumptions'!$Q$42,"--") -> 156301.5 | AG31: =IFERROR(W31*'Inputs & Assumptions'!$Q$43,"--") -> 1407595.52 | AH31: =IFERROR(X31*'Inputs & Assumptions'!$Q$44,"--") -> 140803.994 | AI31: =IFERROR(Y31*'Inputs & Assumptions'!$Q$45,"--") -> 12098.52 | AJ31: =IFERROR(Z31*'Inputs & Assumptions'!$Q$46,"--") -> 87530.7 | AK31: =IFERROR(AA31*'Inputs & Assumptions'!$Q$47,"--") -> 0 | AL31: =IFERROR(AB31*'Inputs & Assumptions'!$Q$48,"--") -> 574481.105 | AM31: =IFERROR(AC31*'Inputs & Assumptions'!$Q$49,"--") -> 22304.59
A32: 0701 | B32: Belleville Township | C32: Essex | D32: 3401304695 | E32: 29 | F32: 3106413400 | G32: 58086891.42 | H32: 1.869902165 | I32: 18829970.41 | J32: 2109.329219 | K32: 3.913233718 | L32: 16351478.16 | M32: 47122847 | N32: 121561216.6 | O32: 0.4778406555 | P32: 0.1345122945 | Q32: 0.38764705 | R32: 44308 | S32: 424.9790198 | T32: 5144000 | U32: 124000 | V32: 1075000 | W32: 23645270 | X32: 7860000 | Y32: 1035500 | Z32: 1258009.25 | AA32: 0 | AB32: 9485368.97 | AC32: 370000 | AD32: =IFERROR(T32*'Inputs & Assumptions'!$Q$40,"--") -> 514400 | AE32: =IFERROR(U32*'Inputs & Assumptions'!$Q$41,"--") -> 12400 | AF32: =IFERROR(V32*'Inputs & Assumptions'!$Q$42,"--") -> 537500 | AG32: =IFERROR(W32*'Inputs & Assumptions'!$Q$43,"--") -> 11822635 | AH32: =IFERROR(X32*'Inputs & Assumptions'!$Q$44,"--") -> 786000 | AI32: =IFERROR(Y32*'Inputs & Assumptions'!$Q$45,"--") -> 103550 | AJ32: =IFERROR(Z32*'Inputs & Assumptions'!$Q$46,"--") -> 125800.925 | AK32: =IFERROR(AA32*'Inputs & Assumptions'!$Q$47,"--") -> 0 | AL32: =IFERROR(AB32*'Inputs & Assumptions'!$Q$48,"--") -> 4742684.485 | AM32: =IFERROR(AC32*'Inputs & Assumptions'!$Q$49,"--") -> 185000
A33: 0404 | B33: Bellmawr Borough | C33: Camden | D33: 3400704750 | E33: 30 | F33: 814458600 | G33: 9805511.55 | H33: 1.203930016 | I33: 3763404.015 | J33: 1909.949605 | K33: 3.7753858 | L33: 6793574.78 | M33: 14149868 | N33: 30748954.33 | O33: 0.3188892684 | P33: 0.2209367742 | Q33: 0.4601739574 | R33: 17002 | S33: 221.3506655 | T33: 3567428.16 | U33: 27345 | V33: 185000 | W33: 4146790 | X33: 2749206.99 | Y33: 48300 | Z33: 0 | AA33: 0 | AB33: 1639082 | AC33: 277480 | AD33: =IFERROR(T33*'Inputs & Assumptions'!$Q$40,"--") -> 356742.816 | AE33: =IFERROR(U33*'Inputs & Assumptions'!$Q$41,"--") -> 2734.5 | AF33: =IFERROR(V33*'Inputs & Assumptions'!$Q$42,"--") -> 92500 | AG33: =IFERROR(W33*'Inputs & Assumptions'!$Q$43,"--") -> 2073395 | AH33: =IFERROR(X33*'Inputs & Assumptions'!$Q$44,"--") -> 274920.699 | AI33: =IFERROR(Y33*'Inputs & Assumptions'!$Q$45,"--") -> 4830 | AJ33: =IFERROR(Z33*'Inputs & Assumptions'!$Q$46,"--") -> 0 | AK33: =IFERROR(AA33*'Inputs & Assumptions'!$Q$47,"--") -> 0 | AL33: =IFERROR(AB33*'Inputs & Assumptions'!$Q$48,"--") -> 819541 | AM33: =IFERROR(AC33*'Inputs & Assumptions'!$Q$49,"--") -> 138740
A34: 1306 | B34: Belmar Borough | C34: Monmouth | D34: 3402504930 | E34: 31 | F34: 1764770000 | G34: 9564185.21 | H34: 0.5419508044 | I34: 5068497.05 | J34: 668.8984253 | K34: 1.405660068 | L34: 5372178.98 | M34: 9870303 | N34: 24806667.19 | O34: 0.3855489791 | P34: 0.2165619 | Q34: 0.3978891209 | R34: 8588 | S34: 590.1836341 | T34: 2993580 | U34: 49000 | V34: 109750 | W34: 5719222 | X34: 4016153 | Y34: 36000 | Z34: 786808.2 | AA34: 630000 | AB34: 1944018.86 | AC34: 157695 | AD34: =IFERROR(T34*'Inputs & Assumptions'!$Q$40,"--") -> 299358 | AE34: =IFERROR(U34*'Inputs & Assumptions'!$Q$41,"--") -> 4900 | AF34: =IFERROR(V34*'Inputs & Assumptions'!$Q$42,"--") -> 54875 | AG34: =IFERROR(W34*'Inputs & Assumptions'!$Q$43,"--") -> 2859611 | AH34: =IFERROR(X34*'Inputs & Assumptions'!$Q$44,"--") -> 401615.3 | AI34: =IFERROR(Y34*'Inputs & Assumptions'!$Q$45,"--") -> 3600 | AJ34: =IFERROR(Z34*'Inputs & Assumptions'!$Q$46,"--") -> 78680.82 | AK34: =IFERROR(AA34*'Inputs & Assumptions'!$Q$47,"--") -> 315000 | AL34: =IFERROR(AB34*'Inputs & Assumptions'!$Q$48,"--") -> 972009.43 | AM34: =IFERROR(AC34*'Inputs & Assumptions'!$Q$49,"--") -> 78847.5
A35: 2103 | B35: Belvidere Town | C35: Warren | D35: 3404104990 | E35: 32 | F35: 253062250 | G35: 2208885.68 | H35: 0.8728625783 | I35: 899486.73 | J35: 927.6435995 | K35: 3.077136886 | L35: 1480647.16 | M35: 4097539 | N35: 7787071.84 | O35: 0.2836606269 | P35: 0.1901417106 | Q35: 0.5261976625 | R35: 3337 | S35: 269.5495145 | T35: 1226900 | U35: 13110 | V35: 30800 | W35: 906059.46 | X35: 461200 | Y35: 11500 | Z35: 25000 | AA35: 1500 | AB35: 424845 | AC35: 88227 | AD35: =IFERROR(T35*'Inputs & Assumptions'!$Q$40,"--") -> 122690 | AE35: =IFERROR(U35*'Inputs & Assumptions'!$Q$41,"--") -> 1311 | AF35: =IFERROR(V35*'Inputs & Assumptions'!$Q$42,"--") -> 15400 | AG35: =IFERROR(W35*'Inputs & Assumptions'!$Q$43,"--") -> 453029.73 | AH35: =IFERROR(X35*'Inputs & Assumptions'!$Q$44,"--") -> 46120 | AI35: =IFERROR(Y35*'Inputs & Assumptions'!$Q$45,"--") -> 1150 | AJ35: =IFERROR(Z35*'Inputs & Assumptions'!$Q$46,"--") -> 2500 | AK35: =IFERROR(AA35*'Inputs & Assumptions'!$Q$47,"--") -> 750 | AL35: =IFERROR(AB35*'Inputs & Assumptions'!$Q$48,"--") -> 212422.5 | AM35: =IFERROR(AC35*'Inputs & Assumptions'!$Q$49,"--") -> 44113.5
A36: 0203 | B36: Bergenfield Borough | C36: Bergen | D36: 3400305170 | E36: 33 | F36: 2724843330 | G36: 32110000 | H36: 1.178416375 | I36: 8886533.5 | J36: 1858.64363 | K36: 3.409485724 | L36: 9045790.33 | M36: 51747354 | N36: 92903144.33 | O36: 0.3456287753 | P36: 0.09736796742 | Q36: 0.5570032572 | R36: 31362 | S36: 283.3535329 | T36: 2417380 | U36: 49750 | V36: 506100 | W36: 10123575 | X36: 4699690 | Y36: 420780 | Z36: 1550000 | AA36: 1319160 | AB36: 3791987 | AC36: 204725 | AD36: =IFERROR(T36*'Inputs & Assumptions'!$Q$40,"--") -> 241738 | AE36: =IFERROR(U36*'Inputs & Assumptions'!$Q$41,"--") -> 4975 | AF36: =IFERROR(V36*'Inputs & Assumptions'!$Q$42,"--") -> 253050 | AG36: =IFERROR(W36*'Inputs & Assumptions'!$Q$43,"--") -> 5061787.5 | AH36: =IFERROR(X36*'Inputs & Assumptions'!$Q$44,"--") -> 469969 | AI36: =IFERROR(Y36*'Inputs & Assumptions'!$Q$45,"--") -> 42078 | AJ36: =IFERROR(Z36*'Inputs & Assumptions'!$Q$46,"--") -> 155000 | AK36: =IFERROR(AA36*'Inputs & Assumptions'!$Q$47,"--") -> 659580 | AL36: =IFERROR(AB36*'Inputs & Assumptions'!$Q$48,"--") -> 1895993.5 | AM36: =IFERROR(AC36*'Inputs & Assumptions'!$Q$49,"--") -> 102362.5
A37: 2001 | B37: Berkeley Heights Township | C37: Union | D37: 3403905320 | E37: 34 | F37: 1840736255 | G37: 16036103.07 | H37: 0.8711787485 | I37: 4683196.175 | J37: 3981.028409 | K37: 4.224636431 | L37: 15193093.35 | M37: 46535218 | N37: 77764414.42 | O37: 0.2062138986 | P37: 0.1953733396 | Q37: 0.5984127618 | R37: 18105 | S37: 258.6686647 | T37: 4750168.75 | U37: 175050 | V37: 528800 | W37: 4572770.4 | X37: 1671470 | Y37: 14000 | Z37: 1231916 | AA37: 550000 | AB37: 2112301 | AC37: 34000 | AD37: =IFERROR(T37*'Inputs & Assumptions'!$Q$40,"--") -> 475016.875 | AE37: =IFERROR(U37*'Inputs & Assumptions'!$Q$41,"--") -> 17505 | AF37: =IFERROR(V37*'Inputs & Assumptions'!$Q$42,"--") -> 264400 | AG37: =IFERROR(W37*'Inputs & Assumptions'!$Q$43,"--") -> 2286385.2 | AH37: =IFERROR(X37*'Inputs & Assumptions'!$Q$44,"--") -> 167147 | AI37: =IFERROR(Y37*'Inputs & Assumptions'!$Q$45,"--") -> 1400 | AJ37: =IFERROR(Z37*'Inputs & Assumptions'!$Q$46,"--") -> 123191.6 | AK37: =IFERROR(AA37*'Inputs & Assumptions'!$Q$47,"--") -> 275000 | AL37: =IFERROR(AB37*'Inputs & Assumptions'!$Q$48,"--") -> 1056150.5 | AM37: =IFERROR(AC37*'Inputs & Assumptions'!$Q$49,"--") -> 17000
A38: 1505 | B38: Berkeley Township | C38: Ocean | D38: 3402905305 | E38: 35 | F38: 5348753700 | G38: 38245468.13 | H38: 0.715035133 | I38: 12069431.49 | J38: 27334.15398 | K38: 2.319402803 | L38: 27540891.14 | M38: 58272784 | N38: 124059143.3 | O38: 0.3082841548 | P38: 0.2219980762 | Q38: 0.469717769 | R38: 47828 | S38: 252.3507462 | T38: 3360650 | U38: 291134 | V38: 289600 | W38: 12870910.98 | X38: 5520936 | Y38: 245205 | Z38: 2361000 | AA38: 2275000 | AB38: 5976442 | AC38: 371125 | AD38: =IFERROR(T38*'Inputs & Assumptions'!$Q$40,"--") -> 336065 | AE38: =IFERROR(U38*'Inputs & Assumptions'!$Q$41,"--") -> 29113.4 | AF38: =IFERROR(V38*'Inputs & Assumptions'!$Q$42,"--") -> 144800 | AG38: =IFERROR(W38*'Inputs & Assumptions'!$Q$43,"--") -> 6435455.49 | AH38: =IFERROR(X38*'Inputs & Assumptions'!$Q$44,"--") -> 552093.6 | AI38: =IFERROR(Y38*'Inputs & Assumptions'!$Q$45,"--") -> 24520.5 | AJ38: =IFERROR(Z38*'Inputs & Assumptions'!$Q$46,"--") -> 236100 | AK38: =IFERROR(AA38*'Inputs & Assumptions'!$Q$47,"--") -> 1137500 | AL38: =IFERROR(AB38*'Inputs & Assumptions'!$Q$48,"--") -> 2988221 | AM38: =IFERROR(AC38*'Inputs & Assumptions'!$Q$49,"--") -> 185562.5
A39: 0405 | B39: Berlin Borough | C39: Camden | D39: 3400705440 | E39: 36 | F39: 795350885 | G39: 6845129.48 | H39: 0.8606427187 | I39: 2844186.67 | J39: 2299.998371 | K39: 3.379880982 | L39: 6303868.82 | M39: 13732915 | N39: 26881913.3 | O39: 0.2546369897 | P39: 0.2345022376 | Q39: 0.5108607727 | R39: 11280 | S39: 252.1442083 | T39: 4188505.06 | U39: 39300 | V39: 177050 | W39: 2597711.77 | X39: 1010018.79 | Y39: 26001 | Z39: 300453 | AA39: 445000 | AB39: 1202761 | AC39: 152995 | AD39: =IFERROR(T39*'Inputs & Assumptions'!$Q$40,"--") -> 418850.506 | AE39: =IFERROR(U39*'Inputs & Assumptions'!$Q$41,"--") -> 3930 | AF39: =IFERROR(V39*'Inputs & Assumptions'!$Q$42,"--") -> 88525 | AG39: =IFERROR(W39*'Inputs & Assumptions'!$Q$43,"--") -> 1298855.885 | AH39: =IFERROR(X39*'Inputs & Assumptions'!$Q$44,"--") -> 101001.879 | AI39: =IFERROR(Y39*'Inputs & Assumptions'!$Q$45,"--") -> 2600.1 | AJ39: =IFERROR(Z39*'Inputs & Assumptions'!$Q$46,"--") -> 30045.3 | AK39: =IFERROR(AA39*'Inputs & Assumptions'!$Q$47,"--") -> 222500 | AL39: =IFERROR(AB39*'Inputs & Assumptions'!$Q$48,"--") -> 601380.5 | AM39: =IFERROR(AC39*'Inputs & Assumptions'!$Q$49,"--") -> 76497.5
A40: 0406 | B40: Berlin Township | C40: Camden | D40: 3400705470 | E40: 37 | F40: 640896380 | G40: 8369153.81 | H40: 1.305851316 | I40: 2248689.2 | J40: 2139.126162 | K40: 3.83445486 | L40: 5709293.58 | M40: 10496435 | N40: 24574882.39 | O40: 0.3405572274 | P40: 0.2323223155 | Q40: 0.4271204571 | R40: 9838 | S40: 228.5717829 | T40: 831740 | U40: 26480 | V40: 159430 | W40: 2183155 | X40: 1850592 | Y40: 6000 | Z40: 40600 | AA40: 340000 | AB40: 1107152 | AC40: 156559 | AD40: =IFERROR(T40*'Inputs & Assumptions'!$Q$40,"--") -> 83174 | AE40: =IFERROR(U40*'Inputs & Assumptions'!$Q$41,"--") -> 2648 | AF40: =IFERROR(V40*'Inputs & Assumptions'!$Q$42,"--") -> 79715 | AG40: =IFERROR(W40*'Inputs & Assumptions'!$Q$43,"--") -> 1091577.5 | AH40: =IFERROR(X40*'Inputs & Assumptions'!$Q$44,"--") -> 185059.2 | AI40: =IFERROR(Y40*'Inputs & Assumptions'!$Q$45,"--") -> 600 | AJ40: =IFERROR(Z40*'Inputs & Assumptions'!$Q$46,"--") -> 4060 | AK40: =IFERROR(AA40*'Inputs & Assumptions'!$Q$47,"--") -> 170000 | AL40: =IFERROR(AB40*'Inputs & Assumptions'!$Q$48,"--") -> 553576 | AM40: =IFERROR(AC40*'Inputs & Assumptions'!$Q$49,"--") -> 78279.5
A41: 1802 | B41: Bernards Township | C41: Somerset | D41: 3403505560 | E41: 38 | F41: 7776475200 | G41: 24545153.9 | H41: 0.3156334106 | I41: 7136159.805 | J41: 15488.9432 | K41: 1.885857084 | L41: 25678189.53 | M41: 96429865 | N41: 146653208.4 | O41: 0.1673686799 | P41: 0.1750946318 | Q41: 0.6575366883 | R41: 42084 | S41: 169.5694279 | T41: 4725341 | U41: 644683 | V41: 1288316 | W41: 6321761.62 | X41: 5115336 | Y41: 1056449.5 | Z41: 2575958 | AA41: 313522 | AB41: 3525166.49 | AC41: 0 | AD41: =IFERROR(T41*'Inputs & Assumptions'!$Q$40,"--") -> 472534.1 | AE41: =IFERROR(U41*'Inputs & Assumptions'!$Q$41,"--") -> 64468.3 | AF41: =IFERROR(V41*'Inputs & Assumptions'!$Q$42,"--") -> 644158 | AG41: =IFERROR(W41*'Inputs & Assumptions'!$Q$43,"--") -> 3160880.81 | AH41: =IFERROR(X41*'Inputs & Assumptions'!$Q$44,"--") -> 511533.6 | AI41: =IFERROR(Y41*'Inputs & Assumptions'!$Q$45,"--") -> 105644.95 | AJ41: =IFERROR(Z41*'Inputs & Assumptions'!$Q$46,"--") -> 257595.8 | AK41: =IFERROR(AA41*'Inputs & Assumptions'!$Q$47,"--") -> 156761 | AL41: =IFERROR(AB41*'Inputs & Assumptions'!$Q$48,"--") -> 1762583.245 | AM41: =IFERROR(AC41*'Inputs & Assumptions'!$Q$49,"--") -> 0
A42: 1803 | B42: Bernardsville Borough | C42: Somerset | D42: 3403505590 | E42: 39 | F42: 2442659000 | G42: 12754778.27 | H42: 0.5221677799 | I42: 3501621.167 | J42: 8214.734569 | K42: 2.008369744 | L42: 7991976.03 | M42: 28310870 | N42: 49057624.3 | O42: 0.2599958406 | P42: 0.1629099685 | Q42: 0.5770941908 | R42: 10177 | S42: 344.0720416 | T42: 2465967.87 | U42: 237290 | V42: 245000 | W42: 3693195.54 | X42: 2202420 | Y42: 150735.56 | Z42: 891904.34 | AA42: 158200 | AB42: 1717183.24 | AC42: 0 | AD42: =IFERROR(T42*'Inputs & Assumptions'!$Q$40,"--") -> 246596.787 | AE42: =IFERROR(U42*'Inputs & Assumptions'!$Q$41,"--") -> 23729 | AF42: =IFERROR(V42*'Inputs & Assumptions'!$Q$42,"--") -> 122500 | AG42: =IFERROR(W42*'Inputs & Assumptions'!$Q$43,"--") -> 1846597.77 | AH42: =IFERROR(X42*'Inputs & Assumptions'!$Q$44,"--") -> 220242 | AI42: =IFERROR(Y42*'Inputs & Assumptions'!$Q$45,"--") -> 15073.556 | AJ42: =IFERROR(Z42*'Inputs & Assumptions'!$Q$46,"--") -> 89190.434 | AK42: =IFERROR(AA42*'Inputs & Assumptions'!$Q$47,"--") -> 79100 | AL42: =IFERROR(AB42*'Inputs & Assumptions'!$Q$48,"--") -> 858591.62 | AM42: =IFERROR(AC42*'Inputs & Assumptions'!$Q$49,"--") -> 0
A43: 1002 | B43: Bethlehem Township | C43: Hunterdon | D43: 3401905650 | E43: 40 | F43: 528057093 | G43: 2384190.62 | H43: 0.4515024325 | I43: 401993.091 | J43: 13236.82914 | K43: 3.13554548 | L43: 2531437.69 | M43: 11641842 | N43: 16557470.31 | O43: 0.14399486 | P43: 0.1528879498 | Q43: 0.7031171901 | R43: 4048 | S43: 99.30659363 | T43: 456676.7 | U43: 67275 | V43: 0 | W43: 258659.8 | X43: 950039.36 | Y43: 6500 | Z43: 0 | AA43: 3500 | AB43: 175274 | AC43: 70454.17 | AD43: =IFERROR(T43*'Inputs & Assumptions'!$Q$40,"--") -> 45667.67 | AE43: =IFERROR(U43*'Inputs & Assumptions'!$Q$41,"--") -> 6727.5 | AF43: =IFERROR(V43*'Inputs & Assumptions'!$Q$42,"--") -> 0 | AG43: =IFERROR(W43*'Inputs & Assumptions'!$Q$43,"--") -> 129329.9 | AH43: =IFERROR(X43*'Inputs & Assumptions'!$Q$44,"--") -> 95003.936 | AI43: =IFERROR(Y43*'Inputs & Assumptions'!$Q$45,"--") -> 650 | AJ43: =IFERROR(Z43*'Inputs & Assumptions'!$Q$46,"--") -> 0 | AK43: =IFERROR(AA43*'Inputs & Assumptions'!$Q$47,"--") -> 1750 | AL43: =IFERROR(AB43*'Inputs & Assumptions'!$Q$48,"--") -> 87637 | AM43: =IFERROR(AC43*'Inputs & Assumptions'!$Q$49,"--") -> 35227.085
A44: 0302 | B44: Beverly City | C44: Burlington | D44: 3400505740 | E44: 41 | F44: 119816748 | G44: 2207156.36 | H44: 1.842110053 | I44: 957724.672 | J44: 346.402807 | K44: 4.799287667 | L44: 535801.05 | M44: 3007393 | N44: 5750350.41 | O44: 0.3838298891 | P44: 0.09317711301 | Q44: 0.5229929979 | R44: 2632 | S44: 363.877155 | T44: 679180.27 | U44: 38000 | V44: 76438 | W44: 990870 | X44: 317550 | Y44: 6500 | Z44: 1500 | AA44: 121000 | AB44: 415695.29 | AC44: 102900 | AD44: =IFERROR(T44*'Inputs & Assumptions'!$Q$40,"--") -> 67918.027 | AE44: =IFERROR(U44*'Inputs & Assumptions'!$Q$41,"--") -> 3800 | AF44: =IFERROR(V44*'Inputs & Assumptions'!$Q$42,"--") -> 38219 | AG44: =IFERROR(W44*'Inputs & Assumptions'!$Q$43,"--") -> 495435 | AH44: =IFERROR(X44*'Inputs & Assumptions'!$Q$44,"--") -> 31755 | AI44: =IFERROR(Y44*'Inputs & Assumptions'!$Q$45,"--") -> 650 | AJ44: =IFERROR(Z44*'Inputs & Assumptions'!$Q$46,"--") -> 150 | AK44: =IFERROR(AA44*'Inputs & Assumptions'!$Q$47,"--") -> 60500 | AL44: =IFERROR(AB44*'Inputs & Assumptions'!$Q$48,"--") -> 207847.645 | AM44: =IFERROR(AC44*'Inputs & Assumptions'!$Q$49,"--") -> 51450
A45: 2104 | B45: Blairstown Township | C45: Warren | D45: 3404106160 | E45: 42 | F45: 706372803 | G45: 1928763.57 | H45: 0.2730517882 | I45: 1028915.676 | J45: 19127.53138 | K45: 2.881269407 | L45: 5434498.9 | M45: 12989241 | N45: 20352503.47 | O45: 0.0947678782 | P45: 0.2670186942 | Q45: 0.6382134276 | R45: 7110 | S45: 144.7138785 | T45: 652904.86 | U45: 78661 | V45: 0 | W45: 1166173.96 | X45: 541501 | Y45: 19300 | Z45: 0 | AA45: 0 | AB45: 568184.02 | AC45: 65000 | AD45: =IFERROR(T45*'Inputs & Assumptions'!$Q$40,"--") -> 65290.486 | AE45: =IFERROR(U45*'Inputs & Assumptions'!$Q$41,"--") -> 7866.1 | AF45: =IFERROR(V45*'Inputs & Assumptions'!$Q$42,"--") -> 0 | AG45: =IFERROR(W45*'Inputs & Assumptions'!$Q$43,"--") -> 583086.98 | AH45: =IFERROR(X45*'Inputs & Assumptions'!$Q$44,"--") -> 54150.1 | AI45: =IFERROR(Y45*'Inputs & Assumptions'!$Q$45,"--") -> 1930 | AJ45: =IFERROR(Z45*'Inputs & Assumptions'!$Q$46,"--") -> 0 | AK45: =IFERROR(AA45*'Inputs & Assumptions'!$Q$47,"--") -> 0 | AL45: =IFERROR(AB45*'Inputs & Assumptions'!$Q$48,"--") -> 284092.01 | AM45: =IFERROR(AC45*'Inputs & Assumptions'!$Q$49,"--") -> 32500
A46: 0702 | B46: Bloomfield Township | C46: Essex | D46: 3401306260 | E46: 43 | F46: 5322238200 | G46: 65822180.04 | H46: 1.23673871 | I46: 25798559.77 | J46: 3415.629289 | K46: 3.267069865 | L46: 26746051.32 | M46: 81313009 | N46: 173881240.4 | O46: 0.3785467593 | P46: 0.1538179235 | Q46: 0.4676353173 | R46: 62146 | S46: 415.1282427 | T46: 16442920.32 | U46: 455050 | V46: 591700 | W46: 29374250 | X46: 2668500 | Y46: 2474150 | Z46: 2059811.742 | AA46: 5000000 | AB46: 11049983.13 | AC46: 761100 | AD46: =IFERROR(T46*'Inputs & Assumptions'!$Q$40,"--") -> 1644292.032 | AE46: =IFERROR(U46*'Inputs & Assumptions'!$Q$41,"--") -> 45505 | AF46: =IFERROR(V46*'Inputs & Assumptions'!$Q$42,"--") -> 295850 | AG46: =IFERROR(W46*'Inputs & Assumptions'!$Q$43,"--") -> 14687125 | AH46: =IFERROR(X46*'Inputs & Assumptions'!$Q$44,"--") -> 266850 | AI46: =IFERROR(Y46*'Inputs & Assumptions'!$Q$45,"--") -> 247415 | AJ46: =IFERROR(Z46*'Inputs & Assumptions'!$Q$46,"--") -> 205981.1742 | AK46: =IFERROR(AA46*'Inputs & Assumptions'!$Q$47,"--") -> 2500000 | AL46: =IFERROR(AB46*'Inputs & Assumptions'!$Q$48,"--") -> 5524991.565 | AM46: =IFERROR(AC46*'Inputs & Assumptions'!$Q$49,"--") -> 380550
A47: 1601 | B47: Bloomingdale Borough | C47: Passaic | D47: 3403106340 | E47: 44 | F47: 728690400 | G47: 8573566.05 | H47: 1.17657184 | I47: 2963000.9 | J47: 5632.435713 | K47: 4.501783357 | L47: 5899364.1 | M47: 18331133 | N47: 32804063.15 | O47: 0.2613568329 | P47: 0.1798363841 | Q47: 0.5588067831 | R47: 8427 | S47: 351.6080337 | T47: 1329780 | U47: 99570 | V47: 129250 | W47: 2832310 | X47: 1179200 | Y47: 198350 | Z47: 442809 | AA47: 360000 | AB47: 1814200 | AC47: 140300 | AD47: =IFERROR(T47*'Inputs & Assumptions'!$Q$40,"--") -> 132978 | AE47: =IFERROR(U47*'Inputs & Assumptions'!$Q$41,"--") -> 9957 | AF47: =IFERROR(V47*'Inputs & Assumptions'!$Q$42,"--") -> 64625 | AG47: =IFERROR(W47*'Inputs & Assumptions'!$Q$43,"--") -> 1416155 | AH47: =IFERROR(X47*'Inputs & Assumptions'!$Q$44,"--") -> 117920 | AI47: =IFERROR(Y47*'Inputs & Assumptions'!$Q$45,"--") -> 19835 | AJ47: =IFERROR(Z47*'Inputs & Assumptions'!$Q$46,"--") -> 44280.9 | AK47: =IFERROR(AA47*'Inputs & Assumptions'!$Q$47,"--") -> 180000 | AL47: =IFERROR(AB47*'Inputs & Assumptions'!$Q$48,"--") -> 907100 | AM47: =IFERROR(AC47*'Inputs & Assumptions'!$Q$49,"--") -> 70150
A48: 1003 | B48: Bloomsbury Borough | C48: Hunterdon | D48: 3401906370 | E48: 45 | F48: 88564095 | G48: 643728.79 | H48: 0.7268507514 | I48: 167062.157 | J48: 596.7718536 | K48: 3.390709237 | L48: 384330.16 | M48: 1974892 | N48: 3002950.95 | O48: 0.2143654028 | P48: 0.1279841617 | Q48: 0.6576504355 | R48: 1180 | S48: 141.5780992 | T48: 272435 | U48: 9825 | V48: 0 | W48: 44175 | X48: 362416.57 | Y48: 5750 | Z48: 0 | AA48: 78500 | AB48: 31364 | AC48: 50000 | AD48: =IFERROR(T48*'Inputs & Assumptions'!$Q$40,"--") -> 27243.5 | AE48: =IFERROR(U48*'Inputs & Assumptions'!$Q$41,"--") -> 982.5 | AF48: =IFERROR(V48*'Inputs & Assumptions'!$Q$42,"--") -> 0 | AG48: =IFERROR(W48*'Inputs & Assumptions'!$Q$43,"--") -> 22087.5 | AH48: =IFERROR(X48*'Inputs & Assumptions'!$Q$44,"--") -> 36241.657 | AI48: =IFERROR(Y48*'Inputs & Assumptions'!$Q$45,"--") -> 575 | AJ48: =IFERROR(Z48*'Inputs & Assumptions'!$Q$46,"--") -> 0 | AK48: =IFERROR(AA48*'Inputs & Assumptions'!$Q$47,"--") -> 39250 | AL48: =IFERROR(AB48*'Inputs & Assumptions'!$Q$48,"--") -> 15682 | AM48: =IFERROR(AC48*'Inputs & Assumptions'!$Q$49,"--") -> 25000
A49: 0204 | B49: Bogota Borough | C49: Bergen | D49: 3400306490 | E49: 46 | F49: 645705500 | G49: 9128255 | H49: 1.413687045 | I49: 2583932.4 | J49: 482.9638103 | K49: 4.29374053 | L49: 2426227.76 | M49: 16170436 | N49: 27724918.76 | O49: 0.329243706 | P49: 0.08751072568 | Q49: 0.5832455684 | R49: 9824 | S49: 263.0224349 | T49: 1060345 | U49: 7705 | V49: 176850 | W49: 3028642 | X49: 1807785 | Y49: 95345 | Z49: 335574 | AA49: 400000 | AB49: 901022 | AC49: 0 | AD49: =IFERROR(T49*'Inputs & Assumptions'!$Q$40,"--") -> 106034.5 | AE49: =IFERROR(U49*'Inputs & Assumptions'!$Q$41,"--") -> 770.5 | AF49: =IFERROR(V49*'Inputs & Assumptions'!$Q$42,"--") -> 88425 | AG49: =IFERROR(W49*'Inputs & Assumptions'!$Q$43,"--") -> 1514321 | AH49: =IFERROR(X49*'Inputs & Assumptions'!$Q$44,"--") -> 180778.5 | AI49: =IFERROR(Y49*'Inputs & Assumptions'!$Q$45,"--") -> 9534.5 | AJ49: =IFERROR(Z49*'Inputs & Assumptions'!$Q$46,"--") -> 33557.4 | AK49: =IFERROR(AA49*'Inputs & Assumptions'!$Q$47,"--") -> 200000 | AL49: =IFERROR(AB49*'Inputs & Assumptions'!$Q$48,"--") -> 450511 | AM49: =IFERROR(AC49*'Inputs & Assumptions'!$Q$49,"--") -> 0
A50: 1401 | B50: Boonton Town | C50: Morris | D50: 3402706610 | E50: 47 | F50: 1100443900 | G50: 10122465.56 | H50: 0.9198529393 | I50: 4122790.5 | J50: 1494.687947 | K50: 3.290308461 | L50: 3664444.19 | M50: 22421089 | N50: 36207998.75 | O50: 0.2795643479 | P50: 0.1012053777 | Q50: 0.6192302744 | R50: 11482 | S50: 359.0655374 | T50: 1024465 | U50: 151110 | V50: 208520 | W50: 4366260 | X50: 4882035 | Y50: 66700 | Z50: 529100 | AA50: 541500 | AB50: 1568149 | AC50: 230470 | AD50: =IFERROR(T50*'Inputs & Assumptions'!$Q$40,"--") -> 102446.5 | AE50: =IFERROR(U50*'Inputs & Assumptions'!$Q$41,"--") -> 15111 | AF50: =IFERROR(V50*'Inputs & Assumptions'!$Q$42,"--") -> 104260 | AG50: =IFERROR(W50*'Inputs & Assumptions'!$Q$43,"--") -> 2183130 | AH50: =IFERROR(X50*'Inputs & Assumptions'!$Q$44,"--") -> 488203.5 | AI50: =IFERROR(Y50*'Inputs & Assumptions'!$Q$45,"--") -> 6670 | AJ50: =IFERROR(Z50*'Inputs & Assumptions'!$Q$46,"--") -> 52910 | AK50: =IFERROR(AA50*'Inputs & Assumptions'!$Q$47,"--") -> 270750 | AL50: =IFERROR(AB50*'Inputs & Assumptions'!$Q$48,"--") -> 784074.5 | AM50: =IFERROR(AC50*'Inputs & Assumptions'!$Q$49,"--") -> 115235
A51: 1402 | B51: Boonton Township | C51: Morris | D51: 3402706640 | E51: 48 | F51: 869852900 | G51: 4436249.08 | H51: 0.5099999184 | I51: 1670064.304 | J51: 5203.885721 | K51: 2.476896463 | L51: 2653955.63 | M51: 14455151 | N51: 21545355.71 | O51: 0.2059028006 | P51: 0.1231799403 | Q51: 0.6709172591 | R51: 4925 | S51: 339.0993511 | T51: 766685 | U51: 90630 | V51: 1850 | W51: 2085127.32 | X51: 1177651.84 | Y51: 65715 | Z51: 0 | AA51: 0 | AB51: 797353.92 | AC51: 35661 | AD51: =IFERROR(T51*'Inputs & Assumptions'!$Q$40,"--") -> 76668.5 | AE51: =IFERROR(U51*'Inputs & Assumptions'!$Q$41,"--") -> 9063 | AF51: =IFERROR(V51*'Inputs & Assumptions'!$Q$42,"--") -> 925 | AG51: =IFERROR(W51*'Inputs & Assumptions'!$Q$43,"--") -> 1042563.66 | AH51: =IFERROR(X51*'Inputs & Assumptions'!$Q$44,"--") -> 117765.184 | AI51: =IFERROR(Y51*'Inputs & Assumptions'!$Q$45,"--") -> 6571.5 | AJ51: =IFERROR(Z51*'Inputs & Assumptions'!$Q$46,"--") -> 0 | AK51: =IFERROR(AA51*'Inputs & Assumptions'!$Q$47,"--") -> 0 | AL51: =IFERROR(AB51*'Inputs & Assumptions'!$Q$48,"--") -> 398676.96 | AM51: =IFERROR(AC51*'Inputs & Assumptions'!$Q$49,"--") -> 17830.5
A52: 0303 | B52: Bordentown City | C52: Burlington | D52: 3400506670 | E52: 49 | F52: 349805880 | G52: 4215599 | H52: 1.205125254 | I52: 1812583.684 | J52: 598.10128 | K52: 3.530942493 | L52: 1570756.46 | M52: 6565089 | N52: 12351444.46 | O52: 0.3413041295 | P52: 0.1271718838 | Q52: 0.5315239866 | R52: 5641 | S52: 321.3231136 | T52: 1895844.79 | U52: 49750 | V52: 0 | W52: 1851500 | X52: 1003361 | Y52: 0 | Z52: 0 | AA52: 374369 | AB52: 809507.21 | AC52: 0 | AD52: =IFERROR(T52*'Inputs & Assumptions'!$Q$40,"--") -> 189584.479 | AE52: =IFERROR(U52*'Inputs & Assumptions'!$Q$41,"--") -> 4975 | AF52: =IFERROR(V52*'Inputs & Assumptions'!$Q$42,"--") -> 0 | AG52: =IFERROR(W52*'Inputs & Assumptions'!$Q$43,"--") -> 925750 | AH52: =IFERROR(X52*'Inputs & Assumptions'!$Q$44,"--") -> 100336.1 | AI52: =IFERROR(Y52*'Inputs & Assumptions'!$Q$45,"--") -> 0 | AJ52: =IFERROR(Z52*'Inputs & Assumptions'!$Q$46,"--") -> 0 | AK52: =IFERROR(AA52*'Inputs & Assumptions'!$Q$47,"--") -> 187184.5 | AL52: =IFERROR(AB52*'Inputs & Assumptions'!$Q$48,"--") -> 404753.605 | AM52: =IFERROR(AC52*'Inputs & Assumptions'!$Q$49,"--") -> 0
A53: 0304 | B53: Bordentown Township | C53: Burlington | D53: 3400506700 | E53: 50 | F53: 1369345514 | G53: 8259296.85 | H53: 0.6031565274 | I53: 3347967.427 | J53: 5544.101506 | K53: 3.093229029 | L53: 6358118.09 | M53: 27739578 | N53: 42356992.94 | O53: 0.1949925213 | P53: 0.1501078724 | Q53: 0.6548996063 | R53: 15373 | S53: 217.7823084 | T53: 1206837 | U53: 193080 | V53: 381800 | W53: 3406359.37 | X53: 1801460.42 | Y53: 2500 | Z53: 0 | AA53: 425000 | AB53: 1587000 | AC53: 255000 | AD53: =IFERROR(T53*'Inputs & Assumptions'!$Q$40,"--") -> 120683.7 | AE53: =IFERROR(U53*'Inputs & Assumptions'!$Q$41,"--") -> 19308 | AF53: =IFERROR(V53*'Inputs & Assumptions'!$Q$42,"--") -> 190900 | AG53: =IFERROR(W53*'Inputs & Assumptions'!$Q$43,"--") -> 1703179.685 | AH53: =IFERROR(X53*'Inputs & Assumptions'!$Q$44,"--") -> 180146.042 | AI53: =IFERROR(Y53*'Inputs & Assumptions'!$Q$45,"--") -> 250 | AJ53: =IFERROR(Z53*'Inputs & Assumptions'!$Q$46,"--") -> 0 | AK53: =IFERROR(AA53*'Inputs & Assumptions'!$Q$47,"--") -> 212500 | AL53: =IFERROR(AB53*'Inputs & Assumptions'!$Q$48,"--") -> 793500 | AM53: =IFERROR(AC53*'Inputs & Assumptions'!$Q$49,"--") -> 127500
A54: 1804 | B54: Bound Brook Borough | C54: Somerset | D54: 3403506790 | E54: 51 | F54: 1166160100 | G54: 9330050.81 | H54: 0.8000660295 | I54: 4316469.23 | J54: 1063.229772 | K54: 2.357149741 | L54: 4169475.97 | M54: 13988613 | N54: 27488139.78 | O54: 0.3394209606 | P54: 0.1516827258 | Q54: 0.5088963135 | R54: 14246 | S54: 302.9951727 | T54: 3188635.42 | U54: 273459 | V54: 237000 | W54: 5104847.56 | X54: 2024325 | Y54: 141588.08 | Z54: 131737 | AA54: 0 | AB54: 1883637 | AC54: 255505 | AD54: =IFERROR(T54*'Inputs & Assumptions'!$Q$40,"--") -> 318863.542 | AE54: =IFERROR(U54*'Inputs & Assumptions'!$Q$41,"--") -> 27345.9 | AF54: =IFERROR(V54*'Inputs & Assumptions'!$Q$42,"--") -> 118500 | AG54: =IFERROR(W54*'Inputs & Assumptions'!$Q$43,"--") -> 2552423.78 | AH54: =IFERROR(X54*'Inputs & Assumptions'!$Q$44,"--") -> 202432.5 | AI54: =IFERROR(Y54*'Inputs & Assumptions'!$Q$45,"--") -> 14158.808 | AJ54: =IFERROR(Z54*'Inputs & Assumptions'!$Q$46,"--") -> 13173.7 | AK54: =IFERROR(AA54*'Inputs & Assumptions'!$Q$47,"--") -> 0 | AL54: =IFERROR(AB54*'Inputs & Assumptions'!$Q$48,"--") -> 941818.5 | AM54: =IFERROR(AC54*'Inputs & Assumptions'!$Q$49,"--") -> 127752.5
A55: 1307 | B55: Bradley Beach Borough | C55: Monmouth | D55: 3402506970 | E55: 52 | F55: 2096149400 | G55: 8694478.02 | H55: 0.4147833174 | I55: 3212518.335 | J55: 390.6914864 | K55: 0.9431717644 | L55: 4369199.26 | M55: 6706612 | N55: 19770289.28 | O55: 0.439774952 | P55: 0.2209982463 | Q55: 0.3392268016 | R55: 4702 | S55: 683.2238058 | T55: 4613173.19 | U55: 55800 | V55: 274600 | W55: 2764050 | X55: 1364627 | Y55: 138700 | Z55: 634163.16 | AA55: 460000 | AB55: 1455384 | AC55: 109710 | AD55: =IFERROR(T55*'Inputs & Assumptions'!$Q$40,"--") -> 461317.319 | AE55: =IFERROR(U55*'Inputs & Assumptions'!$Q$41,"--") -> 5580 | AF55: =IFERROR(V55*'Inputs & Assumptions'!$Q$42,"--") -> 137300 | AG55: =IFERROR(W55*'Inputs & Assumptions'!$Q$43,"--") -> 1382025 | AH55: =IFERROR(X55*'Inputs & Assumptions'!$Q$44,"--") -> 136462.7 | AI55: =IFERROR(Y55*'Inputs & Assumptions'!$Q$45,"--") -> 13870 | AJ55: =IFERROR(Z55*'Inputs & Assumptions'!$Q$46,"--") -> 63416.316 | AK55: =IFERROR(AA55*'Inputs & Assumptions'!$Q$47,"--") -> 230000 | AL55: =IFERROR(AB55*'Inputs & Assumptions'!$Q$48,"--") -> 727692 | AM55: =IFERROR(AC55*'Inputs & Assumptions'!$Q$49,"--") -> 54855
A56: 1805 | B56: Branchburg Township | C56: Somerset | D56: 3403507180 | E56: 53 | F56: 4063196500 | G56: 13994507.12 | H56: 0.3444211256 | I56: 5033117.375 | J56: 12845.17023 | K56: 1.870262597 | L56: 15538929.28 | M56: 46459008 | N56: 75992444.4 | O56: 0.1841565596 | P56: 0.2044799243 | Q56: 0.611363516 | R56: 27701 | S56: 181.6944289 | T56: 3838000 | U56: 105400 | V56: 564600 | W56: 4435577.1 | X56: 2940675 | Y56: 5735598.25 | Z56: 0 | AA56: 0 | AB56: 2542123 | AC56: 0 | AD56: =IFERROR(T56*'Inputs & Assumptions'!$Q$40,"--") -> 383800 | AE56: =IFERROR(U56*'Inputs & Assumptions'!$Q$41,"--") -> 10540 | AF56: =IFERROR(V56*'Inputs & Assumptions'!$Q$42,"--") -> 282300 | AG56: =IFERROR(W56*'Inputs & Assumptions'!$Q$43,"--") -> 2217788.55 | AH56: =IFERROR(X56*'Inputs & Assumptions'!$Q$44,"--") -> 294067.5 | AI56: =IFERROR(Y56*'Inputs & Assumptions'!$Q$45,"--") -> 573559.825 | AJ56: =IFERROR(Z56*'Inputs & Assumptions'!$Q$46,"--") -> 0 | AK56: =IFERROR(AA56*'Inputs & Assumptions'!$Q$47,"--") -> 0 | AL56: =IFERROR(AB56*'Inputs & Assumptions'!$Q$48,"--") -> 1271061.5 | AM56: =IFERROR(AC56*'Inputs & Assumptions'!$Q$49,"--") -> 0
A57: 1903 | B57: Branchville Borough | C57: Sussex | D57: 3403707300 | E57: 54 | F57: 128326900 | G57: 239106.6 | H57: 0.1863261717 | I57: 283593.565 | J57: 379.4175551 | K57: 2.408867572 | L57: 742625.48 | M57: 2109493 | N57: 3091225.08 | O57: 0.07735011001 | P57: 0.2402366249 | Q57: 0.6824132651 | R57: 1649 | S57: 171.9791176 | T57: 1077475 | U57: 7500 | V57: 32000 | W57: 52709.93 | X57: 223200 | Y57: 926 | Z57: 0 | AA57: 155000 | AB57: 65657 | AC57: 0 | AD57: =IFERROR(T57*'Inputs & Assumptions'!$Q$40,"--") -> 107747.5 | AE57: =IFERROR(U57*'Inputs & Assumptions'!$Q$41,"--") -> 750 | AF57: =IFERROR(V57*'Inputs & Assumptions'!$Q$42,"--") -> 16000 | AG57: =IFERROR(W57*'Inputs & Assumptions'!$Q$43,"--") -> 26354.965 | AH57: =IFERROR(X57*'Inputs & Assumptions'!$Q$44,"--") -> 22320 | AI57: =IFERROR(Y57*'Inputs & Assumptions'!$Q$45,"--") -> 92.6 | AJ57: =IFERROR(Z57*'Inputs & Assumptions'!$Q$46,"--") -> 0 | AK57: =IFERROR(AA57*'Inputs & Assumptions'!$Q$47,"--") -> 77500 | AL57: =IFERROR(AB57*'Inputs & Assumptions'!$Q$48,"--") -> 32828.5 | AM57: =IFERROR(AC57*'Inputs & Assumptions'!$Q$49,"--") -> 0
A58: 1506 | B58: Brick Township | C58: Ocean | D58: 3402907420 | E58: 55 | F58: 10550818600 | G58: 81601476.24 | H58: 0.7734136974 | I58: 26315874.37 | J58: 16375.48429 | K58: 2.406900339 | L58: 51972070.42 | M58: 120374142 | N58: 253947688.7 | O58: 0.3213318328 | P58: 0.2046565995 | Q58: 0.4740115676 | R58: 88199 | S58: 298.3693054 | T58: 7316026 | U58: 652150 | V58: 2038650 | W58: 29390196.89 | X58: 9241680.81 | Y58: 628258 | Z58: 0 | AA58: 3224588.88 | AB58: 13404050 | AC58: 1006640 | AD58: =IFERROR(T58*'Inputs & Assumptions'!$Q$40,"--") -> 731602.6 | AE58: =IFERROR(U58*'Inputs & Assumptions'!$Q$41,"--") -> 65215 | AF58: =IFERROR(V58*'Inputs & Assumptions'!$Q$42,"--") -> 1019325 | AG58: =IFERROR(W58*'Inputs & Assumptions'!$Q$43,"--") -> 14695098.45 | AH58: =IFERROR(X58*'Inputs & Assumptions'!$Q$44,"--") -> 924168.081 | AI58: =IFERROR(Y58*'Inputs & Assumptions'!$Q$45,"--") -> 62825.8 | AJ58: =IFERROR(Z58*'Inputs & Assumptions'!$Q$46,"--") -> 0 | AK58: =IFERROR(AA58*'Inputs & Assumptions'!$Q$47,"--") -> 1612294.44 | AL58: =IFERROR(AB58*'Inputs & Assumptions'!$Q$48,"--") -> 6702025 | AM58: =IFERROR(AC58*'Inputs & Assumptions'!$Q$49,"--") -> 503320
A59: 0601 | B59: Bridgeton City | C59: Cumberland | D59: 3401107600 | E59: 56 | F59: 490492740 | G59: 14811151.84 | H59: 3.019647516 | I59: 9235087.875 | J59: 3986.159303 | K59: 5.07182029 | L59: 6385960.47 | M59: 3679798 | N59: 24876910.31 | O59: 0.5953774667 | P59: 0.2567023151 | Q59: 0.1479202182 | R59: 33020 | S59: 279.6816437 | T59: 3214094.68 | U59: 31300 | V59: 188865 | W59: 10737594.98 | X59: 4100550 | Y59: 236426.67 | Z59: 309879.35 | AA59: 1521708.63 | AB59: 4003057 | AC59: 440500 | AD59: =IFERROR(T59*'Inputs & Assumptions'!$Q$40,"--") -> 321409.468 | AE59: =IFERROR(U59*'Inputs & Assumptions'!$Q$41,"--") -> 3130 | AF59: =IFERROR(V59*'Inputs & Assumptions'!$Q$42,"--") -> 94432.5 | AG59: =IFERROR(W59*'Inputs & Assumptions'!$Q$43,"--") -> 5368797.49 | AH59: =IFERROR(X59*'Inputs & Assumptions'!$Q$44,"--") -> 410055 | AI59: =IFERROR(Y59*'Inputs & Assumptions'!$Q$45,"--") -> 23642.667 | AJ59: =IFERROR(Z59*'Inputs & Assumptions'!$Q$46,"--") -> 30987.935 | AK59: =IFERROR(AA59*'Inputs & Assumptions'!$Q$47,"--") -> 760854.315 | AL59: =IFERROR(AB59*'Inputs & Assumptions'!$Q$48,"--") -> 2001528.5 | AM59: =IFERROR(AC59*'Inputs & Assumptions'!$Q$49,"--") -> 220250
A60: 1806 | B60: Bridgewater Township | C60: Somerset | D60: 3403507720 | E60: 57 | F60: 10431873000 | G60: 24398195.9 | H60: 0.2338812589 | I60: 10266488.41 | J60: 20408.0129 | K60: 1.957702294 | L60: 40377989.18 | M60: 139448832 | N60: 204225017.1 | O60: 0.1194672242 | P60: 0.1977132369 | Q60: 0.6828195389 | R60: 72571 | S60: 141.4681955 | T60: 12471324.14 | U60: 287000 | V60: 1212000 | W60: 10368700 | X60: 2955500 | Y60: 578025 | Z60: 125000 | AA60: 0 | AB60: 5393907 | AC60: 275000 | AD60: =IFERROR(T60*'Inputs & Assumptions'!$Q$40,"--") -> 1247132.414 | AE60: =IFERROR(U60*'Inputs & Assumptions'!$Q$41,"--") -> 28700 | AF60: =IFERROR(V60*'Inputs & Assumptions'!$Q$42,"--") -> 606000 | AG60: =IFERROR(W60*'Inputs & Assumptions'!$Q$43,"--") -> 5184350 | AH60: =IFERROR(X60*'Inputs & Assumptions'!$Q$44,"--") -> 295550 | AI60: =IFERROR(Y60*'Inputs & Assumptions'!$Q$45,"--") -> 57802.5 | AJ60: =IFERROR(Z60*'Inputs & Assumptions'!$Q$46,"--") -> 12500 | AK60: =IFERROR(AA60*'Inputs & Assumptions'!$Q$47,"--") -> 0 | AL60: =IFERROR(AB60*'Inputs & Assumptions'!$Q$48,"--") -> 2696953.5 | AM60: =IFERROR(AC60*'Inputs & Assumptions'!$Q$49,"--") -> 137500
A61: 1308 | B61: Brielle Borough | C61: Monmouth | D61: 3402507750 | E61: 58 | F61: 2242307800 | G61: 9110572.36 | H61: 0.406303379 | I61: 3077498.933 | J61: 1123.528897 | K61: 1.284054872 | L61: 5065200.2 | M61: 14616690 | N61: 28792462.56 | O61: 0.316422131 | P61: 0.1759210484 | Q61: 0.5076568206 | R61: 6184 | S61: 497.6550668 | T61: 2837437 | U61: 75500 | V61: 2300 | W61: 3113067.63 | X61: 827314.18 | Y61: 86750 | Z61: 180000 | AA61: 905000 | AB61: 1277230 | AC61: 56000 | AD61: =IFERROR(T61*'Inputs & Assumptions'!$Q$40,"--") -> 283743.7 | AE61: =IFERROR(U61*'Inputs & Assumptions'!$Q$41,"--") -> 7550 | AF61: =IFERROR(V61*'Inputs & Assumptions'!$Q$42,"--") -> 1150 | AG61: =IFERROR(W61*'Inputs & Assumptions'!$Q$43,"--") -> 1556533.815 | AH61: =IFERROR(X61*'Inputs & Assumptions'!$Q$44,"--") -> 82731.418 | AI61: =IFERROR(Y61*'Inputs & Assumptions'!$Q$45,"--") -> 8675 | AJ61: =IFERROR(Z61*'Inputs & Assumptions'!$Q$46,"--") -> 18000 | AK61: =IFERROR(AA61*'Inputs & Assumptions'!$Q$47,"--") -> 452500 | AL61: =IFERROR(AB61*'Inputs & Assumptions'!$Q$48,"--") -> 638615 | AM61: =IFERROR(AC61*'Inputs & Assumptions'!$Q$49,"--") -> 28000
A62: 0103 | B62: Brigantine City | C62: Atlantic | D62: 3400107810 | E62: 59 | F62: 3434155000 | G62: 23455881 | H62: 0.68301754 | I62: 9052669.405 | J62: 4174.320584 | K62: 1.847419584 | L62: 23119705.57 | M62: 16867665.44 | N62: 63443252.01 | O62: 0.3697143551 | P62: 0.3644155184 | Q62: 0.2658701265 | R62: 8833 | S62: 1024.869173 | T62: 6751900 | U62: 51510 | V62: 398800 | W62: 9593050 | X62: 3475540 | Y62: 18500 | Z62: 0 | AA62: 1493350 | AB62: 4387448.81 | AC62: 173200 | AD62: =IFERROR(T62*'Inputs & Assumptions'!$Q$40,"--") -> 675190 | AE62: =IFERROR(U62*'Inputs & Assumptions'!$Q$41,"--") -> 5151 | AF62: =IFERROR(V62*'Inputs & Assumptions'!$Q$42,"--") -> 199400 | AG62: =IFERROR(W62*'Inputs & Assumptions'!$Q$43,"--") -> 4796525 | AH62: =IFERROR(X62*'Inputs & Assumptions'!$Q$44,"--") -> 347554 | AI62: =IFERROR(Y62*'Inputs & Assumptions'!$Q$45,"--") -> 1850 | AJ62: =IFERROR(Z62*'Inputs & Assumptions'!$Q$46,"--") -> 0 | AK62: =IFERROR(AA62*'Inputs & Assumptions'!$Q$47,"--") -> 746675 | AL62: =IFERROR(AB62*'Inputs & Assumptions'!$Q$48,"--") -> 2193724.405 | AM62: =IFERROR(AC62*'Inputs & Assumptions'!$Q$49,"--") -> 86600
A63: 0407 | B63: Brooklawn Borough | C63: Camden | D63: 3400708170 | E63: 60 | F63: 120051500 | G63: 2297483.41 | H63: 1.913748191 | I63: 821902.765 | J63: 312.6153608 | K63: 4.117493734 | L63: 1091109.58 | M63: 1554520 | N63: 4943112.99 | O63: 0.4647847247 | P63: 0.2207332873 | Q63: 0.314481988 | R63: 2436 | S63: 337.3985078 | T63: 554100 | U63: 10000 | V63: 32500 | W63: 943700 | X63: 605323 | Y63: 13500 | Z63: 0 | AA63: 85000 | AB63: 346020.93 | AC63: 0 | AD63: =IFERROR(T63*'Inputs & Assumptions'!$Q$40,"--") -> 55410 | AE63: =IFERROR(U63*'Inputs & Assumptions'!$Q$41,"--") -> 1000 | AF63: =IFERROR(V63*'Inputs & Assumptions'!$Q$42,"--") -> 16250 | AG63: =IFERROR(W63*'Inputs & Assumptions'!$Q$43,"--") -> 471850 | AH63: =IFERROR(X63*'Inputs & Assumptions'!$Q$44,"--") -> 60532.3 | AI63: =IFERROR(Y63*'Inputs & Assumptions'!$Q$45,"--") -> 1350 | AJ63: =IFERROR(Z63*'Inputs & Assumptions'!$Q$46,"--") -> 0 | AK63: =IFERROR(AA63*'Inputs & Assumptions'!$Q$47,"--") -> 42500 | AL63: =IFERROR(AB63*'Inputs & Assumptions'!$Q$48,"--") -> 173010.465 | AM63: =IFERROR(AC63*'Inputs & Assumptions'!$Q$49,"--") -> 0
A64: 0104 | B64: Buena Borough | C64: Atlantic | D64: 3400108680 | E64: 61 | F64: 290684400 | G64: 3237035.87 | H64: 1.11359119 | I64: 716674.15 | J64: 4846.573216 | K64: 3.369523153 | L64: 1621419.29 | M64: 4936223 | N64: 9794678.16 | O64: 0.3304892532 | P64: 0.1655408441 | Q64: 0.5039699028 | R64: 5243 | S64: 136.6916174 | T64: 486376.98 | U64: 17293 | V64: 92510 | W64: 455117 | X64: 869976.52 | Y64: 19800 | Z64: 12760 | AA64: 392000 | AB64: 212480 | AC64: 0 | AD64: =IFERROR(T64*'Inputs & Assumptions'!$Q$40,"--") -> 48637.698 | AE64: =IFERROR(U64*'Inputs & Assumptions'!$Q$41,"--") -> 1729.3 | AF64: =IFERROR(V64*'Inputs & Assumptions'!$Q$42,"--") -> 46255 | AG64: =IFERROR(W64*'Inputs & Assumptions'!$Q$43,"--") -> 227558.5 | AH64: =IFERROR(X64*'Inputs & Assumptions'!$Q$44,"--") -> 86997.652 | AI64: =IFERROR(Y64*'Inputs & Assumptions'!$Q$45,"--") -> 1980 | AJ64: =IFERROR(Z64*'Inputs & Assumptions'!$Q$46,"--") -> 1276 | AK64: =IFERROR(AA64*'Inputs & Assumptions'!$Q$47,"--") -> 196000 | AL64: =IFERROR(AB64*'Inputs & Assumptions'!$Q$48,"--") -> 106240 | AM64: =IFERROR(AC64*'Inputs & Assumptions'!$Q$49,"--") -> 0
A65: 0105 | B65: Buena Vista Township | C65: Atlantic | D65: 3400108710 | E65: 62 | F65: 649654350 | G65: 3636620.56 | H65: 0.5597777587 | I65: 532757.5 | J65: 26290.99854 | K65: 2.82206564 | L65: 3434028.63 | M65: 11263023 | N65: 18333672.19 | O65: 0.1983574552 | P65: 0.1873071905 | Q65: 0.6143353543 | R65: 9486 | S65: 56.16250264 | T65: 1038745 | U65: 36760 | V65: 0 | W65: 21300 | X65: 1390000 | Y65: 32200 | Z65: 0 | AA65: 278500 | AB65: 266174 | AC65: 0 | AD65: =IFERROR(T65*'Inputs & Assumptions'!$Q$40,"--") -> 103874.5 | AE65: =IFERROR(U65*'Inputs & Assumptions'!$Q$41,"--") -> 3676 | AF65: =IFERROR(V65*'Inputs & Assumptions'!$Q$42,"--") -> 0 | AG65: =IFERROR(W65*'Inputs & Assumptions'!$Q$43,"--") -> 10650 | AH65: =IFERROR(X65*'Inputs & Assumptions'!$Q$44,"--") -> 139000 | AI65: =IFERROR(Y65*'Inputs & Assumptions'!$Q$45,"--") -> 3220 | AJ65: =IFERROR(Z65*'Inputs & Assumptions'!$Q$46,"--") -> 0 | AK65: =IFERROR(AA65*'Inputs & Assumptions'!$Q$47,"--") -> 139250 | AL65: =IFERROR(AB65*'Inputs & Assumptions'!$Q$48,"--") -> 133087 | AM65: =IFERROR(AC65*'Inputs & Assumptions'!$Q$49,"--") -> 0
A66: 0305 | B66: Burlington City | C66: Burlington | D66: 3400508920 | E66: 63 | F66: 604339780 | G66: 9000811.52 | H66: 1.489362742 | I66: 5720808.364 | J66: 1942.539826 | K66: 4.253999485 | L66: 2712935.61 | M66: 13994864 | N66: 25708611.13 | O66: 0.3501088205 | P66: 0.1055263389 | Q66: 0.5443648406 | R66: 13924 | S66: 410.8595493 | T66: 1789955.29 | U66: 66800 | V66: 617800 | W66: 5790072.67 | X66: 7010370 | Y66: 59900 | Z66: 66000 | AA66: 567068 | AB66: 2206371 | AC66: 461700 | AD66: =IFERROR(T66*'Inputs & Assumptions'!$Q$40,"--") -> 178995.529 | AE66: =IFERROR(U66*'Inputs & Assumptions'!$Q$41,"--") -> 6680 | AF66: =IFERROR(V66*'Inputs & Assumptions'!$Q$42,"--") -> 308900 | AG66: =IFERROR(W66*'Inputs & Assumptions'!$Q$43,"--") -> 2895036.335 | AH66: =IFERROR(X66*'Inputs & Assumptions'!$Q$44,"--") -> 701037 | AI66: =IFERROR(Y66*'Inputs & Assumptions'!$Q$45,"--") -> 5990 | AJ66: =IFERROR(Z66*'Inputs & Assumptions'!$Q$46,"--") -> 6600 | AK66: =IFERROR(AA66*'Inputs & Assumptions'!$Q$47,"--") -> 283534 | AL66: =IFERROR(AB66*'Inputs & Assumptions'!$Q$48,"--") -> 1103185.5 | AM66: =IFERROR(AC66*'Inputs & Assumptions'!$Q$49,"--") -> 230850
A67: 0306 | B67: Burlington Township | C67: Burlington | D67: 3400508950 | E67: 64 | F67: 2516444623 | G67: 13349890.61 | H67: 0.5305060357 | I67: 6661919.4 | J67: 8624.69829 | K67: 2.888724004 | L67: 11790932.26 | M67: 47552317 | N67: 72693139.87 | O67: 0.1836471864 | P67: 0.1622014441 | Q67: 0.6541513695 | R67: 32826 | S67: 202.9464266 | T67: 2990386 | U67: 136407 | V67: 559726 | W67: 6362067 | X67: 10792266 | Y67: 25000 | Z67: 8500 | AA67: 0 | AB67: 3418526 | AC67: 193008 | AD67: =IFERROR(T67*'Inputs & Assumptions'!$Q$40,"--") -> 299038.6 | AE67: =IFERROR(U67*'Inputs & Assumptions'!$Q$41,"--") -> 13640.7 | AF67: =IFERROR(V67*'Inputs & Assumptions'!$Q$42,"--") -> 279863 | AG67: =IFERROR(W67*'Inputs & Assumptions'!$Q$43,"--") -> 3181033.5 | AH67: =IFERROR(X67*'Inputs & Assumptions'!$Q$44,"--") -> 1079226.6 | AI67: =IFERROR(Y67*'Inputs & Assumptions'!$Q$45,"--") -> 2500 | AJ67: =IFERROR(Z67*'Inputs & Assumptions'!$Q$46,"--") -> 850 | AK67: =IFERROR(AA67*'Inputs & Assumptions'!$Q$47,"--") -> 0 | AL67: =IFERROR(AB67*'Inputs & Assumptions'!$Q$48,"--") -> 1709263 | AM67: =IFERROR(AC67*'Inputs & Assumptions'!$Q$49,"--") -> 96504
A68: 1403 | B68: Butler Borough | C68: Morris | D68: 3402709040 | E68: 65 | F68: 1181716005 | G68: 8605788.69 | H68: =G68/(F68/100) -> 0.728245082 | I68: =IF(IFERROR(SUM(AD68:AM68),"--")=0,"--",IFERROR(SUM(AD68:AM68),"--")) -> 11760661.11 | J68: 1301.564298 | K68: 2.653185646 | L68: 3102469.73 | M68: 19644861 | N68: 31353119.42 | O68: =G68/N68 -> 0.2744795047 | P68: =L68/N68 -> 0.09895250576 | Q68: =M68/N68 -> 0.6265679895 | R68: 10813 | S68: =IFERROR(I68/R68,"--") -> 1087.640905 | T68: 2251456.61 | U68: 77910 | V68: 0 | W68: 3199464.48 | X68: 6715858.69 | Y68: 255108 | Z68: 397785 | AA68: 16317602.08 | AB68: 2063757 | AC68: 875 | AD68: =IFERROR(T68*'Inputs & Assumptions'!$Q$40,"--") -> 225145.661 | AE68: =IFERROR(U68*'Inputs & Assumptions'!$Q$41,"--") -> 7791 | AF68: =IFERROR(V68*'Inputs & Assumptions'!$Q$42,"--") -> 0 | AG68: =IFERROR(W68*'Inputs & Assumptions'!$Q$43,"--") -> 1599732.24 | AH68: =IFERROR(X68*'Inputs & Assumptions'!$Q$44,"--") -> 671585.869 | AI68: =IFERROR(Y68*'Inputs & Assumptions'!$Q$45,"--") -> 25510.8 | AJ68: =IFERROR(Z68*'Inputs & Assumptions'!$Q$46,"--") -> 39778.5 | AK68: =IFERROR(AA68*'Inputs & Assumptions'!$Q$47,"--") -> 8158801.04 | AL68: =IFERROR(AB68*'Inputs & Assumptions'!$Q$48,"--") -> 1031878.5 | AM68: =IFERROR(AC68*'Inputs & Assumptions'!$Q$49,"--") -> 437.5
A69: 1904 | B69: Byram Township | C69: Sussex | D69: 3403709160 | E69: =E68+1 -> 66 | F69: 926550900 | G69: 9187319 | H69: 0.991561176 | I69: 2703703.906 | J69: 13779.55635 | K69: 3.761859706 | L69: 6116647.96 | M69: 19551578 | N69: 34855544.96 | O69: 0.26358271 | P69: 0.1754856499 | Q69: 0.5609316401 | R69: 9281 | S69: 291.3160119 | T69: 1139314 | U69: 177950 | V69: 100 | W69: 2396371.76 | X69: 2201341.26 | Y69: 39500 | Z69: 0 | AA69: 988200 | AB69: 1164661 | AC69: 146454 | AD69: =IFERROR(T69*'Inputs & Assumptions'!$Q$40,"--") -> 113931.4 | AE69: =IFERROR(U69*'Inputs & Assumptions'!$Q$41,"--") -> 17795 | AF69: =IFERROR(V69*'Inputs & Assumptions'!$Q$42,"--") -> 50 | AG69: =IFERROR(W69*'Inputs & Assumptions'!$Q$43,"--") -> 1198185.88 | AH69: =IFERROR(X69*'Inputs & Assumptions'!$Q$44,"--") -> 220134.126 | AI69: =IFERROR(Y69*'Inputs & Assumptions'!$Q$45,"--") -> 3950 | AJ69: =IFERROR(Z69*'Inputs & Assumptions'!$Q$46,"--") -> 0 | AK69: =IFERROR(AA69*'Inputs & Assumptions'!$Q$47,"--") -> 494100 | AL69: =IFERROR(AB69*'Inputs & Assumptions'!$Q$48,"--") -> 582330.5 | AM69: =IFERROR(AC69*'Inputs & Assumptions'!$Q$49,"--") -> 73227
A70: 0703 | B70: Caldwell Borough | C70: Essex | D70: 3401309250 | E70: 67 | F70: 1050029100 | G70: 9893568.56 | H70: 0.9422185118 | I70: 3438240.518 | J70: 753.9869045 | K70: 3.101703259 | L70: 5754105.26 | M70: 16921113 | N70: 32568786.82 | O70: 0.30377455 | P70: 0.1766754559 | Q70: 0.5195499941 | R70: 11048 | S70: 311.2093155 | T70: 6430782 | U70: 139234 | V70: 217912 | W70: 3380544.56 | X70: 2210713.88 | Y70: 221415.3 | Z70: 575828.1 | AA70: 102000 | AB70: 1117084.82 | AC70: 143345 | AD70: =IFERROR(T70*'Inputs & Assumptions'!$Q$40,"--") -> 643078.2 | AE70: =IFERROR(U70*'Inputs & Assumptions'!$Q$41,"--") -> 13923.4 | AF70: =IFERROR(V70*'Inputs & Assumptions'!$Q$42,"--") -> 108956 | AG70: =IFERROR(W70*'Inputs & Assumptions'!$Q$43,"--") -> 1690272.28 | AH70: =IFERROR(X70*'Inputs & Assumptions'!$Q$44,"--") -> 221071.388 | AI70: =IFERROR(Y70*'Inputs & Assumptions'!$Q$45,"--") -> 22141.53 | AJ70: =IFERROR(Z70*'Inputs & Assumptions'!$Q$46,"--") -> 57582.81 | AK70: =IFERROR(AA70*'Inputs & Assumptions'!$Q$47,"--") -> 51000 | AL70: =IFERROR(AB70*'Inputs & Assumptions'!$Q$48,"--") -> 558542.41 | AM70: =IFERROR(AC70*'Inputs & Assumptions'!$Q$49,"--") -> 71672.5
A71: 1004 | B71: Califon Borough | C71: Hunterdon | D71: 3401909280 | E71: 68 | F71: 148982708 | G71: 1092435 | H71: 0.7332629502 | I71: 112314.4 | J71: 613.6669358 | K71: 3.671299994 | L71: 651312.15 | M71: 3725855 | N71: 5469602.15 | O71: 0.1997284208 | P71: 0.1190785238 | Q71: 0.6811930553 | R71: 1134 | S71: 99.04268078 | T71: 387753 | U71: 24992 | V71: 0 | W71: 76049 | X71: 119824 | Y71: 8250 | Z71: 100 | AA71: 0 | AB71: 36396 | AC71: 4000 | AD71: =IFERROR(T71*'Inputs & Assumptions'!$Q$40,"--") -> 38775.3 | AE71: =IFERROR(U71*'Inputs & Assumptions'!$Q$41,"--") -> 2499.2 | AF71: =IFERROR(V71*'Inputs & Assumptions'!$Q$42,"--") -> 0 | AG71: =IFERROR(W71*'Inputs & Assumptions'!$Q$43,"--") -> 38024.5 | AH71: =IFERROR(X71*'Inputs & Assumptions'!$Q$44,"--") -> 11982.4 | AI71: =IFERROR(Y71*'Inputs & Assumptions'!$Q$45,"--") -> 825 | AJ71: =IFERROR(Z71*'Inputs & Assumptions'!$Q$46,"--") -> 10 | AK71: =IFERROR(AA71*'Inputs & Assumptions'!$Q$47,"--") -> 0 | AL71: =IFERROR(AB71*'Inputs & Assumptions'!$Q$48,"--") -> 18198 | AM71: =IFERROR(AC71*'Inputs & Assumptions'!$Q$49,"--") -> 2000
A72: 0408 | B72: Camden City | C72: Camden | D72: 3400710000 | E72: 69 | F72: 1734341564 | G72: 29663493.79 | H72: 1.710360543 | I72: 77050988.7 | J72: 5709.659573 | K72: 3.424406418 | L72: 15858942.03 | M72: 13868468 | N72: 59390903.82 | O72: 0.4994619021 | P72: 0.267026447 | Q72: 0.2335116509 | R72: 98322 | S72: 783.6596967 | T72: 14216920 | U72: 5949565 | V72: 0 | W72: 110433155 | X72: 33056672 | Y72: 3008200 | Z72: 0 | AA72: 13500000 | AB72: 18922551 | AC72: 0 | AD72: =IFERROR(T72*'Inputs & Assumptions'!$Q$40,"--") -> 1421692 | AE72: =IFERROR(U72*'Inputs & Assumptions'!$Q$41,"--") -> 594956.5 | AF72: =IFERROR(V72*'Inputs & Assumptions'!$Q$42,"--") -> 0 | AG72: =IFERROR(W72*'Inputs & Assumptions'!$Q$43,"--") -> 55216577.5 | AH72: =IFERROR(X72*'Inputs & Assumptions'!$Q$44,"--") -> 3305667.2 | AI72: =IFERROR(Y72*'Inputs & Assumptions'!$Q$45,"--") -> 300820 | AJ72: =IFERROR(Z72*'Inputs & Assumptions'!$Q$46,"--") -> 0 | AK72: =IFERROR(AA72*'Inputs & Assumptions'!$Q$47,"--") -> 6750000 | AL72: =IFERROR(AB72*'Inputs & Assumptions'!$Q$48,"--") -> 9461275.5 | AM72: =IFERROR(AC72*'Inputs & Assumptions'!$Q$49,"--") -> 0
A73: 0502 | B73: Cape May City | C73: Cape May | D73: 3400910270 | E73: 70 | F73: 2972014100 | G73: 10726011.27 | H73: 0.3609004167 | I73: 5095901.295 | J73: 1582.845968 | K73: 1.070516287 | L73: 11162036.72 | M73: 9927847 | N73: 31815894.99 | O73: 0.3371274413 | P73: 0.3508320833 | Q73: 0.3120404755 | R73: 6444 | S73: 790.7978422 | T73: 1852600 | U73: 105400 | V73: 443800 | W73: 4855550.09 | X73: 8876917.5 | Y73: 194200 | Z73: 0 | AA73: 0 | AB73: 2449329 | AC73: 237300 | AD73: =IFERROR(T73*'Inputs & Assumptions'!$Q$40,"--") -> 185260 | AE73: =IFERROR(U73*'Inputs & Assumptions'!$Q$41,"--") -> 10540 | AF73: =IFERROR(V73*'Inputs & Assumptions'!$Q$42,"--") -> 221900 | AG73: =IFERROR(W73*'Inputs & Assumptions'!$Q$43,"--") -> 2427775.045 | AH73: =IFERROR(X73*'Inputs & Assumptions'!$Q$44,"--") -> 887691.75 | AI73: =IFERROR(Y73*'Inputs & Assumptions'!$Q$45,"--") -> 19420 | AJ73: =IFERROR(Z73*'Inputs & Assumptions'!$Q$46,"--") -> 0 | AK73: =IFERROR(AA73*'Inputs & Assumptions'!$Q$47,"--") -> 0 | AL73: =IFERROR(AB73*'Inputs & Assumptions'!$Q$48,"--") -> 1224664.5 | AM73: =IFERROR(AC73*'Inputs & Assumptions'!$Q$49,"--") -> 118650
A74: 0503 | B74: Cape May Point Borough | C74: Cape May | D74: 3400910330 | E74: 71 | F74: 480217200 | G74: 1599675 | H74: 0.3331148905 | I74: 405105.405 | J74: 188.7800323 | K74: 0.7262266345 | L74: 1784672.21 | M74: 103118 | N74: 3487465.21 | O74: 0.4586927478 | P74: 0.5117390719 | Q74: 0.02956818027 | R74: 309 | S74: 1311.020728 | T74: 500650 | U74: 22650 | V74: 33950 | W74: 364169 | X74: 946217 | Y74: 1800 | Z74: 0 | AA74: 0 | AB74: 102593 | AC74: 15235.41 | AD74: =IFERROR(T74*'Inputs & Assumptions'!$Q$40,"--") -> 50065 | AE74: =IFERROR(U74*'Inputs & Assumptions'!$Q$41,"--") -> 2265 | AF74: =IFERROR(V74*'Inputs & Assumptions'!$Q$42,"--") -> 16975 | AG74: =IFERROR(W74*'Inputs & Assumptions'!$Q$43,"--") -> 182084.5 | AH74: =IFERROR(X74*'Inputs & Assumptions'!$Q$44,"--") -> 94621.7 | AI74: =IFERROR(Y74*'Inputs & Assumptions'!$Q$45,"--") -> 180 | AJ74: =IFERROR(Z74*'Inputs & Assumptions'!$Q$46,"--") -> 0 | AK74: =IFERROR(AA74*'Inputs & Assumptions'!$Q$47,"--") -> 0 | AL74: =IFERROR(AB74*'Inputs & Assumptions'!$Q$48,"--") -> 51296.5 | AM74: =IFERROR(AC74*'Inputs & Assumptions'!$Q$49,"--") -> 7617.705
A75: 0205 | B75: Carlstadt Borough | C75: Bergen | D75: 3400310480 | E75: 72 | F75: 3014869684 | G75: 22157450.55 | H75: 0.7349389152 | I75: 5302849.978 | J75: 2525.809353 | K75: 1.64402842 | L75: 6984074.88 | M75: 20423789 | N75: 49565314.43 | O75: 0.4470354078 | P75: 0.140906498 | Q75: 0.4120580942 | R75: 15491 | S75: 342.3181188 | T75: 1969800 | U75: 106500 | V75: 216000 | W75: 6319709.2 | X75: 3459514.88 | Y75: 119000 | Z75: 939446.4 | AA75: 0 | AB75: 2650138.5 | AC75: 101000 | AD75: =IFERROR(T75*'Inputs & Assumptions'!$Q$40,"--") -> 196980 | AE75: =IFERROR(U75*'Inputs & Assumptions'!$Q$41,"--") -> 10650 | AF75: =IFERROR(V75*'Inputs & Assumptions'!$Q$42,"--") -> 108000 | AG75: =IFERROR(W75*'Inputs & Assumptions'!$Q$43,"--") -> 3159854.6 | AH75: =IFERROR(X75*'Inputs & Assumptions'!$Q$44,"--") -> 345951.488 | AI75: =IFERROR(Y75*'Inputs & Assumptions'!$Q$45,"--") -> 11900 | AJ75: =IFERROR(Z75*'Inputs & Assumptions'!$Q$46,"--") -> 93944.64 | AK75: =IFERROR(AA75*'Inputs & Assumptions'!$Q$47,"--") -> 0 | AL75: =IFERROR(AB75*'Inputs & Assumptions'!$Q$48,"--") -> 1325069.25 | AM75: =IFERROR(AC75*'Inputs & Assumptions'!$Q$49,"--") -> 50500
A76: 1713 | B76: Carneys Point Township | C76: Salem | D76: 3403310610 | E76: 73 | F76: 674818100 | G76: 4885666.94 | H76: 0.7239976136 | I76: 2624905.28 | J76: 10823.58439 | K76: 3.55953733 | L76: 9698446.24 | M76: 9436289 | N76: 24020402.18 | O76: 0.2033965503 | P76: 0.4037586951 | Q76: 0.3928447546 | R76: 10942 | S76: 239.8926412 | T76: 1105575 | U76: 71350 | V76: 400900 | W76: 2899219.06 | X76: 900850 | Y76: 93850 | Z76: 0 | AA76: 383700 | AB76: 997311 | AC76: 134355.5 | AD76: =IFERROR(T76*'Inputs & Assumptions'!$Q$40,"--") -> 110557.5 | AE76: =IFERROR(U76*'Inputs & Assumptions'!$Q$41,"--") -> 7135 | AF76: =IFERROR(V76*'Inputs & Assumptions'!$Q$42,"--") -> 200450 | AG76: =IFERROR(W76*'Inputs & Assumptions'!$Q$43,"--") -> 1449609.53 | AH76: =IFERROR(X76*'Inputs & Assumptions'!$Q$44,"--") -> 90085 | AI76: =IFERROR(Y76*'Inputs & Assumptions'!$Q$45,"--") -> 9385 | AJ76: =IFERROR(Z76*'Inputs & Assumptions'!$Q$46,"--") -> 0 | AK76: =IFERROR(AA76*'Inputs & Assumptions'!$Q$47,"--") -> 191850 | AL76: =IFERROR(AB76*'Inputs & Assumptions'!$Q$48,"--") -> 498655.5 | AM76: =IFERROR(AC76*'Inputs & Assumptions'!$Q$49,"--") -> 67177.75
A77: 1201 | B77: Carteret Borough | C77: Middlesex | D77: 3402310750 | E77: 74 | F77: 2591450283 | G77: 36755089.28 | H77: 1.41832122 | I77: 11721309.72 | J77: 2810.207515 | K77: 3.105224555 | L77: 13922329.23 | M77: 29792932 | N77: 80470350.51 | O77: 0.4567531898 | P77: 0.1730119124 | Q77: 0.3702348978 | R77: 33037 | S77: 354.7934048 | T77: 3917500 | U77: 1778100 | V77: 338000 | W77: 12474448.65 | X77: 9143531.28 | Y77: 207808.69 | Z77: 1182471.24 | AA77: 1945942.08 | AB77: 5017096.46 | AC77: 421250 | AD77: =IFERROR(T77*'Inputs & Assumptions'!$Q$40,"--") -> 391750 | AE77: =IFERROR(U77*'Inputs & Assumptions'!$Q$41,"--") -> 177810 | AF77: =IFERROR(V77*'Inputs & Assumptions'!$Q$42,"--") -> 169000 | AG77: =IFERROR(W77*'Inputs & Assumptions'!$Q$43,"--") -> 6237224.325 | AH77: =IFERROR(X77*'Inputs & Assumptions'!$Q$44,"--") -> 914353.128 | AI77: =IFERROR(Y77*'Inputs & Assumptions'!$Q$45,"--") -> 20780.869 | AJ77: =IFERROR(Z77*'Inputs & Assumptions'!$Q$46,"--") -> 118247.124 | AK77: =IFERROR(AA77*'Inputs & Assumptions'!$Q$47,"--") -> 972971.04 | AL77: =IFERROR(AB77*'Inputs & Assumptions'!$Q$48,"--") -> 2508548.23 | AM77: =IFERROR(AC77*'Inputs & Assumptions'!$Q$49,"--") -> 210625
A78: 0704 | B78: Cedar Grove Township | C78: Essex | D78: 3401311200 | E78: 75 | F78: 2258487200 | G78: 12379919.72 | H78: 0.54815098 | I78: 5006003.164 | J78: 2711.571983 | K78: 2.529759911 | L78: 11598810.05 | M78: 33155574 | N78: 57134303.77 | O78: 0.2166810288 | P78: 0.2030095632 | Q78: 0.580309408 | R78: 16604 | S78: 301.4938066 | T78: 1070496 | U78: 78689 | V78: 332521 | W78: 5607103.44 | X78: 3586587.44 | Y78: 222179 | Z78: 949303 | AA78: 0 | AB78: 2571744 | AC78: 319187 | AD78: =IFERROR(T78*'Inputs & Assumptions'!$Q$40,"--") -> 107049.6 | AE78: =IFERROR(U78*'Inputs & Assumptions'!$Q$41,"--") -> 7868.9 | AF78: =IFERROR(V78*'Inputs & Assumptions'!$Q$42,"--") -> 166260.5 | AG78: =IFERROR(W78*'Inputs & Assumptions'!$Q$43,"--") -> 2803551.72 | AH78: =IFERROR(X78*'Inputs & Assumptions'!$Q$44,"--") -> 358658.744 | AI78: =IFERROR(Y78*'Inputs & Assumptions'!$Q$45,"--") -> 22217.9 | AJ78: =IFERROR(Z78*'Inputs & Assumptions'!$Q$46,"--") -> 94930.3 | AK78: =IFERROR(AA78*'Inputs & Assumptions'!$Q$47,"--") -> 0 | AL78: =IFERROR(AB78*'Inputs & Assumptions'!$Q$48,"--") -> 1285872 | AM78: =IFERROR(AC78*'Inputs & Assumptions'!$Q$49,"--") -> 159593.5
A79: 1404 | B79: Chatham Borough | C79: Morris | D79: 3402712100 | E79: 76 | F79: 3103569950 | G79: 10473734.83 | H79: 0.3374737802 | I79: 4085912.107 | J79: 1502.287422 | K79: 1.553125879 | L79: 7363070.23 | M79: 30365543 | N79: 48202348.06 | O79: 0.217286818 | P79: 0.1527533518 | Q79: 0.6299598302 | R79: 12492 | S79: 327.0823012 | T79: 1522450 | U79: 105580 | V79: 0 | W79: 4218292 | X79: 2778020 | Y79: 148228 | Z79: 1064048.07 | AA79: 1004588 | AB79: 1646679 | AC79: 178600 | AD79: =IFERROR(T79*'Inputs & Assumptions'!$Q$40,"--") -> 152245 | AE79: =IFERROR(U79*'Inputs & Assumptions'!$Q$41,"--") -> 10558 | AF79: =IFERROR(V79*'Inputs & Assumptions'!$Q$42,"--") -> 0 | AG79: =IFERROR(W79*'Inputs & Assumptions'!$Q$43,"--") -> 2109146 | AH79: =IFERROR(X79*'Inputs & Assumptions'!$Q$44,"--") -> 277802 | AI79: =IFERROR(Y79*'Inputs & Assumptions'!$Q$45,"--") -> 14822.8 | AJ79: =IFERROR(Z79*'Inputs & Assumptions'!$Q$46,"--") -> 106404.807 | AK79: =IFERROR(AA79*'Inputs & Assumptions'!$Q$47,"--") -> 502294 | AL79: =IFERROR(AB79*'Inputs & Assumptions'!$Q$48,"--") -> 823339.5 | AM79: =IFERROR(AC79*'Inputs & Assumptions'!$Q$49,"--") -> 89300
A80: 1405 | B80: Chatham Township | C80: Morris | D80: 3402712130 | E80: 77 | F80: 3382492697 | G80: 12619600.64 | H80: 0.3730858207 | I80: 3828630.914 | J80: 5810.120224 | K80: 1.955932727 | L80: 10595330 | M80: 42944351 | N80: 66159281.64 | O80: 0.1907457325 | P80: 0.1601488066 | Q80: 0.6491054609 | R80: 12980 | S80: 294.9638609 | T80: 2914005 | U80: 83900 | V80: 395000 | W80: 3940754.06 | X80: 3225143.63 | Y80: 149600 | Z80: 1257680.21 | AA80: 0 | AB80: 1734442 | AC80: 61000 | AD80: =IFERROR(T80*'Inputs & Assumptions'!$Q$40,"--") -> 291400.5 | AE80: =IFERROR(U80*'Inputs & Assumptions'!$Q$41,"--") -> 8390 | AF80: =IFERROR(V80*'Inputs & Assumptions'!$Q$42,"--") -> 197500 | AG80: =IFERROR(W80*'Inputs & Assumptions'!$Q$43,"--") -> 1970377.03 | AH80: =IFERROR(X80*'Inputs & Assumptions'!$Q$44,"--") -> 322514.363 | AI80: =IFERROR(Y80*'Inputs & Assumptions'!$Q$45,"--") -> 14960 | AJ80: =IFERROR(Z80*'Inputs & Assumptions'!$Q$46,"--") -> 125768.021 | AK80: =IFERROR(AA80*'Inputs & Assumptions'!$Q$47,"--") -> 0 | AL80: =IFERROR(AB80*'Inputs & Assumptions'!$Q$48,"--") -> 867221 | AM80: =IFERROR(AC80*'Inputs & Assumptions'!$Q$49,"--") -> 30500
A81: 0409 | B81: Cherry Hill Township | C81: Camden | D81: 3400712280 | E81: 78 | F81: 8043351361 | G81: 47541239.94 | H81: 0.5910625783 | I81: 18731189.38 | J81: 15406.09003 | K81: 3.896789223 | L81: 72610550.07 | M81: 193280659 | N81: 313432449 | O81: 0.1516793813 | P81: 0.2316625171 | Q81: 0.6166581016 | R81: 111417 | S81: 168.1178759 | T81: 7404232 | U81: 2746010 | V81: 1595927 | W81: 19282262 | X81: 12807817 | Y81: 0 | Z81: 3184609.82 | AA81: 2735000 | AB81: 8144156 | AC81: 476500 | AD81: =IFERROR(T81*'Inputs & Assumptions'!$Q$40,"--") -> 740423.2 | AE81: =IFERROR(U81*'Inputs & Assumptions'!$Q$41,"--") -> 274601 | AF81: =IFERROR(V81*'Inputs & Assumptions'!$Q$42,"--") -> 797963.5 | AG81: =IFERROR(W81*'Inputs & Assumptions'!$Q$43,"--") -> 9641131 | AH81: =IFERROR(X81*'Inputs & Assumptions'!$Q$44,"--") -> 1280781.7 | AI81: =IFERROR(Y81*'Inputs & Assumptions'!$Q$45,"--") -> 0 | AJ81: =IFERROR(Z81*'Inputs & Assumptions'!$Q$46,"--") -> 318460.982 | AK81: =IFERROR(AA81*'Inputs & Assumptions'!$Q$47,"--") -> 1367500 | AL81: =IFERROR(AB81*'Inputs & Assumptions'!$Q$48,"--") -> 4072078 | AM81: =IFERROR(AC81*'Inputs & Assumptions'!$Q$49,"--") -> 238250
A82: 0410 | B82: Chesilhurst Borough | C82: Camden | D82: 3400712550 | E82: 79 | F82: 89339600 | G82: 1771084.88 | H82: 1.982418636 | I82: 883235.345 | J82: 1097.845516 | K82: 3.845546947 | L82: 738848.38 | M82: 925663 | N82: 3435596.26 | O82: 0.5155101898 | P82: 0.2150568123 | Q82: 0.2694329979 | R82: 1639 | S82: 538.8867267 | T82: 494089 | U82: 32250 | V82: 0 | W82: 994120 | X82: 231014 | Y82: 36258 | Z82: 0 | AA82: 118233 | AB82: 404260.49 | AC82: 91135 | AD82: =IFERROR(T82*'Inputs & Assumptions'!$Q$40,"--") -> 49408.9 | AE82: =IFERROR(U82*'Inputs & Assumptions'!$Q$41,"--") -> 3225 | AF82: =IFERROR(V82*'Inputs & Assumptions'!$Q$42,"--") -> 0 | AG82: =IFERROR(W82*'Inputs & Assumptions'!$Q$43,"--") -> 497060 | AH82: =IFERROR(X82*'Inputs & Assumptions'!$Q$44,"--") -> 23101.4 | AI82: =IFERROR(Y82*'Inputs & Assumptions'!$Q$45,"--") -> 3625.8 | AJ82: =IFERROR(Z82*'Inputs & Assumptions'!$Q$46,"--") -> 0 | AK82: =IFERROR(AA82*'Inputs & Assumptions'!$Q$47,"--") -> 59116.5 | AL82: =IFERROR(AB82*'Inputs & Assumptions'!$Q$48,"--") -> 202130.245 | AM82: =IFERROR(AC82*'Inputs & Assumptions'!$Q$49,"--") -> 45567.5
A83: 1406 | B83: Chester Borough | C83: Morris | D83: 3402712580 | E83: 80 | F83: 438594534 | G83: 4007148.03 | H83: 0.9136338279 | I83: 1195041.354 | J83: 1019.052538 | K83: 2.628256215 | L83: 1115411.07 | M83: 6404829 | N83: 11527388.1 | O83: 0.3476197726 | P83: 0.09676182153 | Q83: 0.5556184059 | R83: 3936 | S83: 303.6182302 | T83: 690861.94 | U83: 75980 | V83: 113330 | W83: 1510574 | X83: 976350 | Y83: 72335 | Z83: 145436.6 | AA83: 164150 | AB83: 209836 | AC83: 0 | AD83: =IFERROR(T83*'Inputs & Assumptions'!$Q$40,"--") -> 69086.194 | AE83: =IFERROR(U83*'Inputs & Assumptions'!$Q$41,"--") -> 7598 | AF83: =IFERROR(V83*'Inputs & Assumptions'!$Q$42,"--") -> 56665 | AG83: =IFERROR(W83*'Inputs & Assumptions'!$Q$43,"--") -> 755287 | AH83: =IFERROR(X83*'Inputs & Assumptions'!$Q$44,"--") -> 97635 | AI83: =IFERROR(Y83*'Inputs & Assumptions'!$Q$45,"--") -> 7233.5 | AJ83: =IFERROR(Z83*'Inputs & Assumptions'!$Q$46,"--") -> 14543.66 | AK83: =IFERROR(AA83*'Inputs & Assumptions'!$Q$47,"--") -> 82075 | AL83: =IFERROR(AB83*'Inputs & Assumptions'!$Q$48,"--") -> 104918 | AM83: =IFERROR(AC83*'Inputs & Assumptions'!$Q$49,"--") -> 0
A84: 1407 | B84: Chester Township | C84: Morris | D84: 3402712610 | E84: 81 | F84: 1820865062 | G84: 10092948.46 | H84: 0.5542941468 | I84: 3034612.891 | J84: 18644.22236 | K84: 2.534993746 | L84: 5153127.99 | M84: 30912739 | N84: 46158815.45 | O84: 0.2186570076 | P84: 0.1116390865 | Q84: 0.6697039059 | R84: 9857 | S84: 307.8637406 | T84: 1348953.91 | U84: 212046.5 | V84: 232550 | W84: 2366727.8 | X84: 1864553.1 | Y84: 100100 | Z84: 672041.4 | AA84: 1195100 | AB84: 1364921 | AC84: 70388 | AD84: =IFERROR(T84*'Inputs & Assumptions'!$Q$40,"--") -> 134895.391 | AE84: =IFERROR(U84*'Inputs & Assumptions'!$Q$41,"--") -> 21204.65 | AF84: =IFERROR(V84*'Inputs & Assumptions'!$Q$42,"--") -> 116275 | AG84: =IFERROR(W84*'Inputs & Assumptions'!$Q$43,"--") -> 1183363.9 | AH84: =IFERROR(X84*'Inputs & Assumptions'!$Q$44,"--") -> 186455.31 | AI84: =IFERROR(Y84*'Inputs & Assumptions'!$Q$45,"--") -> 10010 | AJ84: =IFERROR(Z84*'Inputs & Assumptions'!$Q$46,"--") -> 67204.14 | AK84: =IFERROR(AA84*'Inputs & Assumptions'!$Q$47,"--") -> 597550 | AL84: =IFERROR(AB84*'Inputs & Assumptions'!$Q$48,"--") -> 682460.5 | AM84: =IFERROR(AC84*'Inputs & Assumptions'!$Q$49,"--") -> 35194
A85: 0307 | B85: Chesterfield Township | C85: Burlington | D85: 3400512670 | E85: 82 | F85: 842271737 | G85: 3484000 | H85: 0.4136432278 | I85: 1340110 | J85: 13639.28358 | K85: 3.12151687 | L85: 3594442.36 | M85: 19213212 | N85: 26291654.36 | O85: 0.1325135327 | P85: 0.136714195 | Q85: 0.7307722723 | R85: 10397 | S85: 128.8939117 | T85: 1440150 | U85: 33100 | V85: 145500 | W85: 1470761.32 | X85: 544350 | Y85: 15250 | Z85: 25000 | AA85: 0 | AB85: 652388.68 | AC85: 0 | AD85: =IFERROR(T85*'Inputs & Assumptions'!$Q$40,"--") -> 144015 | AE85: =IFERROR(U85*'Inputs & Assumptions'!$Q$41,"--") -> 3310 | AF85: =IFERROR(V85*'Inputs & Assumptions'!$Q$42,"--") -> 72750 | AG85: =IFERROR(W85*'Inputs & Assumptions'!$Q$43,"--") -> 735380.66 | AH85: =IFERROR(X85*'Inputs & Assumptions'!$Q$44,"--") -> 54435 | AI85: =IFERROR(Y85*'Inputs & Assumptions'!$Q$45,"--") -> 1525 | AJ85: =IFERROR(Z85*'Inputs & Assumptions'!$Q$46,"--") -> 2500 | AK85: =IFERROR(AA85*'Inputs & Assumptions'!$Q$47,"--") -> 0 | AL85: =IFERROR(AB85*'Inputs & Assumptions'!$Q$48,"--") -> 326194.34 | AM85: =IFERROR(AC85*'Inputs & Assumptions'!$Q$49,"--") -> 0
A86: 0308 | B86: Cinnaminson Township | C86: Burlington | D86: 3400512940 | E86: 83 | F86: 1634110171 | G86: 10347039.43 | H86: 0.6331910549 | I86: 4295005.269 | J86: 4751.272617 | K86: 3.476451966 | L86: 8197807.73 | M86: 38264208 | N86: 56809055.16 | O86: 0.1821371505 | P86: 0.1443045956 | Q86: 0.6735582539 | R86: 22606 | S86: 189.99404 | T86: 2151824.69 | U86: 125650 | V86: 322020 | W86: 4194415 | X86: 1821336 | Y86: 26657 | Z86: 0 | AA86: 1363500 | AB86: 1624082 | AC86: 260900 | AD86: =IFERROR(T86*'Inputs & Assumptions'!$Q$40,"--") -> 215182.469 | AE86: =IFERROR(U86*'Inputs & Assumptions'!$Q$41,"--") -> 12565 | AF86: =IFERROR(V86*'Inputs & Assumptions'!$Q$42,"--") -> 161010 | AG86: =IFERROR(W86*'Inputs & Assumptions'!$Q$43,"--") -> 2097207.5 | AH86: =IFERROR(X86*'Inputs & Assumptions'!$Q$44,"--") -> 182133.6 | AI86: =IFERROR(Y86*'Inputs & Assumptions'!$Q$45,"--") -> 2665.7 | AJ86: =IFERROR(Z86*'Inputs & Assumptions'!$Q$46,"--") -> 0 | AK86: =IFERROR(AA86*'Inputs & Assumptions'!$Q$47,"--") -> 681750 | AL86: =IFERROR(AB86*'Inputs & Assumptions'!$Q$48,"--") -> 812041 | AM86: =IFERROR(AC86*'Inputs & Assumptions'!$Q$49,"--") -> 130450
A87: 0717 | B87: City of Orange Township | C87: Essex | D87: 3401313045 | E87: 84 | F87: 2266551600 | G87: 62172153 | H87: 2.743028352 | I87: 22780385.3 | J87: 1416.110939 | K87: 3.726640779 | L87: 8900944.2 | M87: 13393139 | N87: 84466236.2 | O87: 0.7360592326 | P87: 0.1053787241 | Q87: 0.1585620433 | R87: 38669 | S87: 589.1123459 | T87: 9049033 | U87: 39600 | V87: 787885 | W87: 28100474.41 | X87: 18569233 | Y87: 2229560 | Z87: 917000 | AA87: 0 | AB87: 9298975 | AC87: 1212551 | AD87: =IFERROR(T87*'Inputs & Assumptions'!$Q$40,"--") -> 904903.3 | AE87: =IFERROR(U87*'Inputs & Assumptions'!$Q$41,"--") -> 3960 | AF87: =IFERROR(V87*'Inputs & Assumptions'!$Q$42,"--") -> 393942.5 | AG87: =IFERROR(W87*'Inputs & Assumptions'!$Q$43,"--") -> 14050237.21 | AH87: =IFERROR(X87*'Inputs & Assumptions'!$Q$44,"--") -> 1856923.3 | AI87: =IFERROR(Y87*'Inputs & Assumptions'!$Q$45,"--") -> 222956 | AJ87: =IFERROR(Z87*'Inputs & Assumptions'!$Q$46,"--") -> 91700 | AK87: =IFERROR(AA87*'Inputs & Assumptions'!$Q$47,"--") -> 0 | AL87: =IFERROR(AB87*'Inputs & Assumptions'!$Q$48,"--") -> 4649487.5 | AM87: =IFERROR(AC87*'Inputs & Assumptions'!$Q$49,"--") -> 606275.5
A88: 2002 | B88: Clark Township | C88: Union | D88: 3403913150 | E88: 85 | F88: 3244681115 | G88: 21091583 | H88: 0.6500356199 | I88: 5858507.8 | J88: 2734.86215 | K88: 2.180970745 | L88: 13879569.89 | M88: 35794393 | N88: 70765545.89 | O88: 0.2980487571 | P88: 0.1961345697 | Q88: 0.5058166732 | R88: 22160 | S88: 264.3730957 | T88: 3247785 | U88: 57710 | V88: 701415 | W88: 6347910 | X88: 2441275 | Y88: 331585 | Z88: 1117628 | AA88: 0 | AB88: 2940997 | AC88: 287497 | AD88: =IFERROR(T88*'Inputs & Assumptions'!$Q$40,"--") -> 324778.5 | AE88: =IFERROR(U88*'Inputs & Assumptions'!$Q$41,"--") -> 5771 | AF88: =IFERROR(V88*'Inputs & Assumptions'!$Q$42,"--") -> 350707.5 | AG88: =IFERROR(W88*'Inputs & Assumptions'!$Q$43,"--") -> 3173955 | AH88: =IFERROR(X88*'Inputs & Assumptions'!$Q$44,"--") -> 244127.5 | AI88: =IFERROR(Y88*'Inputs & Assumptions'!$Q$45,"--") -> 33158.5 | AJ88: =IFERROR(Z88*'Inputs & Assumptions'!$Q$46,"--") -> 111762.8 | AK88: =IFERROR(AA88*'Inputs & Assumptions'!$Q$47,"--") -> 0 | AL88: =IFERROR(AB88*'Inputs & Assumptions'!$Q$48,"--") -> 1470498.5 | AM88: =IFERROR(AC88*'Inputs & Assumptions'!$Q$49,"--") -> 143748.5
A89: 0801 | B89: Clayton Borough | C89: Gloucester | D89: 3401513360 | E89: 86 | F89: 473189900 | G89: 5228009 | H89: 1.104843742 | I89: 2204552.938 | J89: 4527.823961 | K89: 4.040084736 | L89: 3745046.92 | M89: 10144217 | N89: 19117272.92 | O89: 0.2734704381 | P89: 0.1958985958 | Q89: 0.5306309662 | R89: 10050 | S89: 219.3585013 | T89: 942337.38 | U89: 30840 | V89: 106590 | W89: 2364205.76 | X89: 2397892.2 | Y89: 74516 | Z89: 0 | AA89: 316500 | AB89: 932693 | AC89: 0 | AD89: =IFERROR(T89*'Inputs & Assumptions'!$Q$40,"--") -> 94233.738 | AE89: =IFERROR(U89*'Inputs & Assumptions'!$Q$41,"--") -> 3084 | AF89: =IFERROR(V89*'Inputs & Assumptions'!$Q$42,"--") -> 53295 | AG89: =IFERROR(W89*'Inputs & Assumptions'!$Q$43,"--") -> 1182102.88 | AH89: =IFERROR(X89*'Inputs & Assumptions'!$Q$44,"--") -> 239789.22 | AI89: =IFERROR(Y89*'Inputs & Assumptions'!$Q$45,"--") -> 7451.6 | AJ89: =IFERROR(Z89*'Inputs & Assumptions'!$Q$46,"--") -> 0 | AK89: =IFERROR(AA89*'Inputs & Assumptions'!$Q$47,"--") -> 158250 | AL89: =IFERROR(AB89*'Inputs & Assumptions'!$Q$48,"--") -> 466346.5 | AM89: =IFERROR(AC89*'Inputs & Assumptions'!$Q$49,"--") -> 0
A90: 0411 | B90: Clementon Borough | C90: Camden | D90: 3400713420 | E90: 87 | F90: 257039811 | G90: 4608922.13 | H90: 1.793077155 | I90: 1791450.865 | J90: 1211.381743 | K90: 4.431453383 | L90: 2279187.27 | M90: 4502490 | N90: 11390599.4 | O90: 0.4046250744 | P90: 0.200093708 | Q90: 0.3952812176 | R90: 6025 | S90: 297.3362432 | T90: 595451 | U90: 17170 | V90: 132400 | W90: 1854676.55 | X90: 1703700 | Y90: 50002 | Z90: 0 | AA90: 227703.58 | AB90: 768857 | AC90: 126000 | AD90: =IFERROR(T90*'Inputs & Assumptions'!$Q$40,"--") -> 59545.1 | AE90: =IFERROR(U90*'Inputs & Assumptions'!$Q$41,"--") -> 1717 | AF90: =IFERROR(V90*'Inputs & Assumptions'!$Q$42,"--") -> 66200 | AG90: =IFERROR(W90*'Inputs & Assumptions'!$Q$43,"--") -> 927338.275 | AH90: =IFERROR(X90*'Inputs & Assumptions'!$Q$44,"--") -> 170370 | AI90: =IFERROR(Y90*'Inputs & Assumptions'!$Q$45,"--") -> 5000.2 | AJ90: =IFERROR(Z90*'Inputs & Assumptions'!$Q$46,"--") -> 0 | AK90: =IFERROR(AA90*'Inputs & Assumptions'!$Q$47,"--") -> 113851.79 | AL90: =IFERROR(AB90*'Inputs & Assumptions'!$Q$48,"--") -> 384428.5 | AM90: =IFERROR(AC90*'Inputs & Assumptions'!$Q$49,"--") -> 63000
A91: 0206 | B91: Cliffside Park Borough | C91: Bergen | D91: 3400313570 | E91: 88 | F91: 3023251674 | G91: 33237799 | H91: 1.099405626 | I91: 8614893.8 | J91: 611.6945414 | K91: 2.675300824 | L91: 9530427.96 | M91: 38112850 | N91: 80881076.96 | O91: 0.4109465434 | P91: 0.1178326046 | Q91: 0.4712208521 | R91: 27333 | S91: 315.1828852 | T91: 3002000 | U91: 15000 | V91: 577000 | W91: 9890500 | X91: 4149554 | Y91: 223000 | Z91: 1300064 | AA91: 697571 | AB91: 4326793 | AC91: 0 | AD91: =IFERROR(T91*'Inputs & Assumptions'!$Q$40,"--") -> 300200 | AE91: =IFERROR(U91*'Inputs & Assumptions'!$Q$41,"--") -> 1500 | AF91: =IFERROR(V91*'Inputs & Assumptions'!$Q$42,"--") -> 288500 | AG91: =IFERROR(W91*'Inputs & Assumptions'!$Q$43,"--") -> 4945250 | AH91: =IFERROR(X91*'Inputs & Assumptions'!$Q$44,"--") -> 414955.4 | AI91: =IFERROR(Y91*'Inputs & Assumptions'!$Q$45,"--") -> 22300 | AJ91: =IFERROR(Z91*'Inputs & Assumptions'!$Q$46,"--") -> 130006.4 | AK91: =IFERROR(AA91*'Inputs & Assumptions'!$Q$47,"--") -> 348785.5 | AL91: =IFERROR(AB91*'Inputs & Assumptions'!$Q$48,"--") -> 2163396.5 | AM91: =IFERROR(AC91*'Inputs & Assumptions'!$Q$49,"--") -> 0
A92: 1602 | B92: Clifton City | C92: Passaic | D92: 3403113690 | E92: 89 | F92: 5378136068 | G92: 91538946 | H92: 1.702057085 | I92: 36351815.22 | J92: 7216.053885 | K92: 5.793018145 | L92: 71803188.29 | M92: 148214264 | N92: 311556398.3 | O92: 0.2938117994 | P92: 0.2304661008 | Q92: 0.4757220998 | R92: 113739 | S92: 319.6073046 | T92: 5853852 | U92: 654250 | V92: 1057500 | W92: 41597929.15 | X92: 8174193.43 | Y92: 3013032 | Z92: 4238179 | AA92: 8610000 | AB92: 15914050 | AC92: 1137450 | AD92: =IFERROR(T92*'Inputs & Assumptions'!$Q$40,"--") -> 585385.2 | AE92: =IFERROR(U92*'Inputs & Assumptions'!$Q$41,"--") -> 65425 | AF92: =IFERROR(V92*'Inputs & Assumptions'!$Q$42,"--") -> 528750 | AG92: =IFERROR(W92*'Inputs & Assumptions'!$Q$43,"--") -> 20798964.57 | AH92: =IFERROR(X92*'Inputs & Assumptions'!$Q$44,"--") -> 817419.343 | AI92: =IFERROR(Y92*'Inputs & Assumptions'!$Q$45,"--") -> 301303.2 | AJ92: =IFERROR(Z92*'Inputs & Assumptions'!$Q$46,"--") -> 423817.9 | AK92: =IFERROR(AA92*'Inputs & Assumptions'!$Q$47,"--") -> 4305000 | AL92: =IFERROR(AB92*'Inputs & Assumptions'!$Q$48,"--") -> 7957025 | AM92: =IFERROR(AC92*'Inputs & Assumptions'!$Q$49,"--") -> 568725
A93: 1005 | B93: Clinton Town | C93: Hunterdon | D93: 3401913720 | E93: 90 | F93: 443689100 | G93: 3624441.51 | H93: 0.8168876608 | I93: 2028087.291 | J93: 861.7529766 | K93: 3.131395617 | L93: 1734948.52 | M93: 8534271 | N93: 13893661.03 | O93: 0.2608701553 | P93: 0.1248733877 | Q93: 0.6142564571 | R93: 4231 | S93: 479.3399411 | T93: 640673.41 | U93: 50350 | V93: 92300 | W93: 1626655.62 | X93: 5152176.4 | Y93: 10000 | Z93: 0 | AA93: 303700 | AB93: 862879 | AC93: 0 | AD93: =IFERROR(T93*'Inputs & Assumptions'!$Q$40,"--") -> 64067.341 | AE93: =IFERROR(U93*'Inputs & Assumptions'!$Q$41,"--") -> 5035 | AF93: =IFERROR(V93*'Inputs & Assumptions'!$Q$42,"--") -> 46150 | AG93: =IFERROR(W93*'Inputs & Assumptions'!$Q$43,"--") -> 813327.81 | AH93: =IFERROR(X93*'Inputs & Assumptions'!$Q$44,"--") -> 515217.64 | AI93: =IFERROR(Y93*'Inputs & Assumptions'!$Q$45,"--") -> 1000 | AJ93: =IFERROR(Z93*'Inputs & Assumptions'!$Q$46,"--") -> 0 | AK93: =IFERROR(AA93*'Inputs & Assumptions'!$Q$47,"--") -> 151850 | AL93: =IFERROR(AB93*'Inputs & Assumptions'!$Q$48,"--") -> 431439.5 | AM93: =IFERROR(AC93*'Inputs & Assumptions'!$Q$49,"--") -> 0
A94: 1006 | B94: Clinton Township | C94: Hunterdon | D94: 3401913750 | E94: 91 | F94: 2155482300 | G94: 10721881.81 | H94: 0.4974237928 | I94: 3263058.795 | J94: 19115.92238 | K94: 2.888665623 | L94: 9077750.39 | M94: 42465044 | N94: 62264676.2 | O94: 0.1721984673 | P94: 0.145792943 | Q94: 0.6820085896 | R94: 17500 | S94: 186.4605026 | T94: 1154700 | U94: 118600 | V94: 293800 | W94: 3687839.23 | X94: 1540700 | Y94: 19500 | Z94: 0 | AA94: 0 | AB94: 1544578.36 | AC94: 433200 | AD94: =IFERROR(T94*'Inputs & Assumptions'!$Q$40,"--") -> 115470 | AE94: =IFERROR(U94*'Inputs & Assumptions'!$Q$41,"--") -> 11860 | AF94: =IFERROR(V94*'Inputs & Assumptions'!$Q$42,"--") -> 146900 | AG94: =IFERROR(W94*'Inputs & Assumptions'!$Q$43,"--") -> 1843919.615 | AH94: =IFERROR(X94*'Inputs & Assumptions'!$Q$44,"--") -> 154070 | AI94: =IFERROR(Y94*'Inputs & Assumptions'!$Q$45,"--") -> 1950 | AJ94: =IFERROR(Z94*'Inputs & Assumptions'!$Q$46,"--") -> 0 | AK94: =IFERROR(AA94*'Inputs & Assumptions'!$Q$47,"--") -> 0 | AL94: =IFERROR(AB94*'Inputs & Assumptions'!$Q$48,"--") -> 772289.18 | AM94: =IFERROR(AC94*'Inputs & Assumptions'!$Q$49,"--") -> 216600
A95: 0207 | B95: Closter Borough | C95: Bergen | D95: 3400313810 | E95: 92 | F95: 2608131600 | G95: 14338115 | H95: 0.5497466079 | I95: 3924258.6 | J95: 2022.550045 | K95: 2.143972657 | L95: 6212534.37 | M95: 35366979 | N95: 55917628.37 | O95: 0.2564149342 | P95: 0.1111015354 | Q95: 0.6324835303 | R95: 11578 | S95: 338.9409743 | T95: 1377285 | U95: 71500 | V95: 496240 | W95: 3985962 | X95: 2839318 | Y95: 140793 | Z95: 859670 | AA95: 354750 | AB95: 1850652 | AC95: 103200 | AD95: =IFERROR(T95*'Inputs & Assumptions'!$Q$40,"--") -> 137728.5 | AE95: =IFERROR(U95*'Inputs & Assumptions'!$Q$41,"--") -> 7150 | AF95: =IFERROR(V95*'Inputs & Assumptions'!$Q$42,"--") -> 248120 | AG95: =IFERROR(W95*'Inputs & Assumptions'!$Q$43,"--") -> 1992981 | AH95: =IFERROR(X95*'Inputs & Assumptions'!$Q$44,"--") -> 283931.8 | AI95: =IFERROR(Y95*'Inputs & Assumptions'!$Q$45,"--") -> 14079.3 | AJ95: =IFERROR(Z95*'Inputs & Assumptions'!$Q$46,"--") -> 85967 | AK95: =IFERROR(AA95*'Inputs & Assumptions'!$Q$47,"--") -> 177375 | AL95: =IFERROR(AB95*'Inputs & Assumptions'!$Q$48,"--") -> 925326 | AM95: =IFERROR(AC95*'Inputs & Assumptions'!$Q$49,"--") -> 51600
A96: 0412 | B96: Collingswood Borough | C96: Camden | D96: 3400714260 | E96: 93 | F96: 1076079400 | G96: 12505673 | H96: 1.16215151 | I96: 4949196.795 | J96: 1171.212556 | K96: 3.821850699 | L96: 9356953.07 | M96: 19263522 | N96: 41126148.07 | O96: 0.3040808242 | P96: 0.2275183432 | Q96: 0.4684008327 | R96: 17567 | S96: 281.732612 | T96: 1149800 | U96: 78500 | V96: 186500 | W96: 5243006.44 | X96: 5776446.65 | Y96: 71133 | Z96: 716476 | AA96: 645725 | AB96: 2055691.02 | AC96: 209000 | AD96: =IFERROR(T96*'Inputs & Assumptions'!$Q$40,"--") -> 114980 | AE96: =IFERROR(U96*'Inputs & Assumptions'!$Q$41,"--") -> 7850 | AF96: =IFERROR(V96*'Inputs & Assumptions'!$Q$42,"--") -> 93250 | AG96: =IFERROR(W96*'Inputs & Assumptions'!$Q$43,"--") -> 2621503.22 | AH96: =IFERROR(X96*'Inputs & Assumptions'!$Q$44,"--") -> 577644.665 | AI96: =IFERROR(Y96*'Inputs & Assumptions'!$Q$45,"--") -> 7113.3 | AJ96: =IFERROR(Z96*'Inputs & Assumptions'!$Q$46,"--") -> 71647.6 | AK96: =IFERROR(AA96*'Inputs & Assumptions'!$Q$47,"--") -> 322862.5 | AL96: =IFERROR(AB96*'Inputs & Assumptions'!$Q$48,"--") -> 1027845.51 | AM96: =IFERROR(AC96*'Inputs & Assumptions'!$Q$49,"--") -> 104500
A97: 1309 | B97: Colts Neck Township | C97: Monmouth | D97: 3402514560 | E97: 94 | F97: 3694327513 | G97: 10580293.44 | H97: 0.2863929471 | I97: 2863985.987 | J97: 19657.74913 | K97: 1.555506256 | L97: 8415734.16 | M97: 38469468 | N97: 57465495.6 | O97: 0.1841155867 | P97: 0.1464484744 | Q97: 0.6694359389 | R97: 13137 | S97: 218.0091335 | T97: 1325798.89 | U97: 163687.65 | V97: 68850 | W97: 3352187.99 | X97: 2459250.5 | Y97: 179995.93 | Z97: 59485 | AA97: 40000 | AB97: 1337109 | AC97: 92181.39 | AD97: =IFERROR(T97*'Inputs & Assumptions'!$Q$40,"--") -> 132579.889 | AE97: =IFERROR(U97*'Inputs & Assumptions'!$Q$41,"--") -> 16368.765 | AF97: =IFERROR(V97*'Inputs & Assumptions'!$Q$42,"--") -> 34425 | AG97: =IFERROR(W97*'Inputs & Assumptions'!$Q$43,"--") -> 1676093.995 | AH97: =IFERROR(X97*'Inputs & Assumptions'!$Q$44,"--") -> 245925.05 | AI97: =IFERROR(Y97*'Inputs & Assumptions'!$Q$45,"--") -> 17999.593 | AJ97: =IFERROR(Z97*'Inputs & Assumptions'!$Q$46,"--") -> 5948.5 | AK97: =IFERROR(AA97*'Inputs & Assumptions'!$Q$47,"--") -> 20000 | AL97: =IFERROR(AB97*'Inputs & Assumptions'!$Q$48,"--") -> 668554.5 | AM97: =IFERROR(AC97*'Inputs & Assumptions'!$Q$49,"--") -> 46090.695
A98: 0602 | B98: Commercial Township | C98: Cumberland | D98: 3401114710 | E98: 95 | F98: 271092200 | G98: 1731863.65 | H98: 0.6388467282 | I98: 466823.84 | J98: 20424.64556 | K98: 2.573963637 | L98: 2899300 | M98: 2346651 | N98: 6977814.65 | O98: 0.2481957084 | P98: 0.4155025815 | Q98: 0.3363017102 | R98: 4982 | S98: 93.70209554 | T98: 701445 | U98: 7100 | V98: 153700 | W98: 7890 | X98: 1221443.9 | Y98: 72900 | Z98: 27514.5 | AA98: 208300 | AB98: 157677 | AC98: 0 | AD98: =IFERROR(T98*'Inputs & Assumptions'!$Q$40,"--") -> 70144.5 | AE98: =IFERROR(U98*'Inputs & Assumptions'!$Q$41,"--") -> 710 | AF98: =IFERROR(V98*'Inputs & Assumptions'!$Q$42,"--") -> 76850 | AG98: =IFERROR(W98*'Inputs & Assumptions'!$Q$43,"--") -> 3945 | AH98: =IFERROR(X98*'Inputs & Assumptions'!$Q$44,"--") -> 122144.39 | AI98: =IFERROR(Y98*'Inputs & Assumptions'!$Q$45,"--") -> 7290 | AJ98: =IFERROR(Z98*'Inputs & Assumptions'!$Q$46,"--") -> 2751.45 | AK98: =IFERROR(AA98*'Inputs & Assumptions'!$Q$47,"--") -> 104150 | AL98: =IFERROR(AB98*'Inputs & Assumptions'!$Q$48,"--") -> 78838.5 | AM98: =IFERROR(AC98*'Inputs & Assumptions'!$Q$49,"--") -> 0
A99: 0106 | B99: Corbin City | C99: Atlantic | D99: 3400115160 | E99: 96 | F99: 50635800 | G99: 189030 | H99: 0.3733129525 | I99: 50779.2 | J99: 4926.259974 | K99: 2.10442908 | L99: 297784.5 | M99: 578780 | N99: 1065594.5 | O99: 0.1773939336 | P99: 0.2794538635 | Q99: 0.5431522028 | R99: 740 | S99: 68.62054054 | T99: 200931 | U99: 17100 | V99: 0 | W99: 4901 | X99: 111930 | Y99: 6801 | Z99: 0 | AA99: 0 | AB99: 24005 | AC99: 5300 | AD99: =IFERROR(T99*'Inputs & Assumptions'!$Q$40,"--") -> 20093.1 | AE99: =IFERROR(U99*'Inputs & Assumptions'!$Q$41,"--") -> 1710 | AF99: =IFERROR(V99*'Inputs & Assumptions'!$Q$42,"--") -> 0 | AG99: =IFERROR(W99*'Inputs & Assumptions'!$Q$43,"--") -> 2450.5 | AH99: =IFERROR(X99*'Inputs & Assumptions'!$Q$44,"--") -> 11193 | AI99: =IFERROR(Y99*'Inputs & Assumptions'!$Q$45,"--") -> 680.1 | AJ99: =IFERROR(Z99*'Inputs & Assumptions'!$Q$46,"--") -> 0 | AK99: =IFERROR(AA99*'Inputs & Assumptions'!$Q$47,"--") -> 0 | AL99: =IFERROR(AB99*'Inputs & Assumptions'!$Q$48,"--") -> 12002.5 | AM99: =IFERROR(AC99*'Inputs & Assumptions'!$Q$49,"--") -> 2650
A100: 1202 | B100: Cranbury Township | C100: Middlesex | D100: 3402315550 | E100: 97 | F100: 1958654900 | G100: 7828637.38 | H100: 0.3996945751 | I100: 2490746.574 | J100: 8501.251164 | K100: 1.807011871 | L100: 8072346.17 | M100: 19492143 | N100: 35393126.55 | O100: 0.2211908962 | P100: 0.2280766622 | Q100: 0.5507324416 | R100: 13558 | S100: 183.7104716 | T100: 1051831.64 | U100: 297177 | V100: 156111 | W100: 2899968.5 | X100: 841629.6 | Y100: 35825 | Z100: 715188 | AA100: 0 | AB100: 1337083.4 | AC100: 0 | AD100: =IFERROR(T100*'Inputs & Assumptions'!$Q$40,"--") -> 105183.164 | AE100: =IFERROR(U100*'Inputs & Assumptions'!$Q$41,"--") -> 29717.7 | AF100: =IFERROR(V100*'Inputs & Assumptions'!$Q$42,"--") -> 78055.5 | AG100: =IFERROR(W100*'Inputs & Assumptions'!$Q$43,"--") -> 1449984.25 | AH100: =IFERROR(X100*'Inputs & Assumptions'!$Q$44,"--") -> 84162.96 | AI100: =IFERROR(Y100*'Inputs & Assumptions'!$Q$45,"--") -> 3582.5 | AJ100: =IFERROR(Z100*'Inputs & Assumptions'!$Q$46,"--") -> 71518.8 | AK100: =IFERROR(AA100*'Inputs & Assumptions'!$Q$47,"--") -> 0 | AL100: =IFERROR(AB100*'Inputs & Assumptions'!$Q$48,"--") -> 668541.7 | AM100: =IFERROR(AC100*'Inputs & Assumptions'!$Q$49,"--") -> 0
A101: 2003 | B101: Cranford Township | C101: Union | D101: 3403915640 | E101: 98 | F101: 1680985916 | G101: 27407561.69 | H101: 1.630445647 | I101: 10226751.9 | J101: 3094.438634 | K101: 6.666017383 | L101: 21327226.67 | M101: 63320025 | N101: 112054813.4 | O101: 0.2445906683 | P101: 0.190328519 | Q101: 0.5650808127 | R101: 33317 | S101: 306.9529639 | T101: 2878375 | U101: 332701.51 | V101: 727200 | W101: 12851007.73 | X101: 3637671.82 | Y101: 345200 | Z101: 1726082 | AA101: 0 | AB101: 4808361 | AC101: 282929 | AD101: =IFERROR(T101*'Inputs & Assumptions'!$Q$40,"--") -> 287837.5 | AE101: =IFERROR(U101*'Inputs & Assumptions'!$Q$41,"--") -> 33270.151 | AF101: =IFERROR(V101*'Inputs & Assumptions'!$Q$42,"--") -> 363600 | AG101: =IFERROR(W101*'Inputs & Assumptions'!$Q$43,"--") -> 6425503.865 | AH101: =IFERROR(X101*'Inputs & Assumptions'!$Q$44,"--") -> 363767.182 | AI101: =IFERROR(Y101*'Inputs & Assumptions'!$Q$45,"--") -> 34520 | AJ101: =IFERROR(Z101*'Inputs & Assumptions'!$Q$46,"--") -> 172608.2 | AK101: =IFERROR(AA101*'Inputs & Assumptions'!$Q$47,"--") -> 0 | AL101: =IFERROR(AB101*'Inputs & Assumptions'!$Q$48,"--") -> 2404180.5 | AM101: =IFERROR(AC101*'Inputs & Assumptions'!$Q$49,"--") -> 141464.5
A102: 0208 | B102: Cresskill Borough | C102: Bergen | D102: 3400315820 | E102: 99 | F102: 2436714500 | G102: 18587030 | H102: 0.7627906347 | I102: 5442440.8 | J102: 1321.407593 | K102: 2.320257766 | L102: 6140356.42 | M102: 31810671 | N102: 56538057.42 | O102: 0.3287525403 | P102: 0.1086057198 | Q102: 0.5626417399 | R102: 10546 | S102: 516.066831 | T102: 1677900 | U102: 75300 | V102: 251275 | W102: 6535050 | X102: 3355228 | Y102: 175400 | Z102: 899455 | AA102: 352000 | AB102: 2407300 | AC102: 102600 | AD102: =IFERROR(T102*'Inputs & Assumptions'!$Q$40,"--") -> 167790 | AE102: =IFERROR(U102*'Inputs & Assumptions'!$Q$41,"--") -> 7530 | AF102: =IFERROR(V102*'Inputs & Assumptions'!$Q$42,"--") -> 125637.5 | AG102: =IFERROR(W102*'Inputs & Assumptions'!$Q$43,"--") -> 3267525 | AH102: =IFERROR(X102*'Inputs & Assumptions'!$Q$44,"--") -> 335522.8 | AI102: =IFERROR(Y102*'Inputs & Assumptions'!$Q$45,"--") -> 17540 | AJ102: =IFERROR(Z102*'Inputs & Assumptions'!$Q$46,"--") -> 89945.5 | AK102: =IFERROR(AA102*'Inputs & Assumptions'!$Q$47,"--") -> 176000 | AL102: =IFERROR(AB102*'Inputs & Assumptions'!$Q$48,"--") -> 1203650 | AM102: =IFERROR(AC102*'Inputs & Assumptions'!$Q$49,"--") -> 51300
A103: 1310 | B103: Deal Borough | C103: Monmouth | D103: 3402516660 | E103: 100 | F103: 4296290300 | G103: 8386040.57 | H103: 0.195192596 | I103: 2946699.543 | J103: 757.9116777 | K103: 0.4598670681 | L103: 9198681.67 | M103: 2172502 | N103: 19757224.24 | O103: 0.4244543904 | P103: 0.46558573 | Q103: 0.1099598797 | R103: 930 | S103: 3168.494132 | T103: 2164895.43 | U103: 121150 | V103: 263800 | W103: 2975100 | X103: 1049450 | Y103: 44500 | Z103: 0 | AA103: 260000 | AB103: 1531000 | AC103: 187500 | AD103: =IFERROR(T103*'Inputs & Assumptions'!$Q$40,"--") -> 216489.543 | AE103: =IFERROR(U103*'Inputs & Assumptions'!$Q$41,"--") -> 12115 | AF103: =IFERROR(V103*'Inputs & Assumptions'!$Q$42,"--") -> 131900 | AG103: =IFERROR(W103*'Inputs & Assumptions'!$Q$43,"--") -> 1487550 | AH103: =IFERROR(X103*'Inputs & Assumptions'!$Q$44,"--") -> 104945 | AI103: =IFERROR(Y103*'Inputs & Assumptions'!$Q$45,"--") -> 4450 | AJ103: =IFERROR(Z103*'Inputs & Assumptions'!$Q$46,"--") -> 0 | AK103: =IFERROR(AA103*'Inputs & Assumptions'!$Q$47,"--") -> 130000 | AL103: =IFERROR(AB103*'Inputs & Assumptions'!$Q$48,"--") -> 765500 | AM103: =IFERROR(AC103*'Inputs & Assumptions'!$Q$49,"--") -> 93750
A104: 0603 | B104: Deerfield Township | C104: Cumberland | D104: 3401116900 | E104: 101 | F104: 195319140 | G104: 236521.31 | H104: 0.1210947939 | I104: 280811.98 | J104: 10778.67251 | K104: 3.651147809 | L104: 2523508.19 | M104: 4371361 | N104: 7131390.5 | O104: 0.03316622614 | P104: 0.3538592074 | Q104: 0.6129745665 | R104: 3988 | S104: 70.41423771 | T104: 497254 | U104: 22915 | V104: 14052 | W104: 211550 | X104: 565538.8 | Y104: 52407 | Z104: 0 | AA104: 650 | AB104: 107749 | AC104: 0 | AD104: =IFERROR(T104*'Inputs & Assumptions'!$Q$40,"--") -> 49725.4 | AE104: =IFERROR(U104*'Inputs & Assumptions'!$Q$41,"--") -> 2291.5 | AF104: =IFERROR(V104*'Inputs & Assumptions'!$Q$42,"--") -> 7026 | AG104: =IFERROR(W104*'Inputs & Assumptions'!$Q$43,"--") -> 105775 | AH104: =IFERROR(X104*'Inputs & Assumptions'!$Q$44,"--") -> 56553.88 | AI104: =IFERROR(Y104*'Inputs & Assumptions'!$Q$45,"--") -> 5240.7 | AJ104: =IFERROR(Z104*'Inputs & Assumptions'!$Q$46,"--") -> 0 | AK104: =IFERROR(AA104*'Inputs & Assumptions'!$Q$47,"--") -> 325 | AL104: =IFERROR(AB104*'Inputs & Assumptions'!$Q$48,"--") -> 53874.5 | AM104: =IFERROR(AC104*'Inputs & Assumptions'!$Q$49,"--") -> 0
A105: 0309 | B105: Delanco Township | C105: Burlington | D105: 3400517080 | E105: 102 | F105: 427585179 | G105: 4900979.24 | H105: 1.146199513 | I105: 1720296.105 | J105: 1508.868083 | K105: 3.41534757 | L105: 1945860.78 | M105: 7756680 | N105: 14603520.02 | O105: 0.3356025967 | P105: 0.1332460104 | Q105: 0.5311513929 | R105: 6314 | S105: 272.4574129 | T105: 811730 | U105: 134000 | V105: 129000 | W105: 1821412.04 | X105: 1202695.85 | Y105: 15975 | Z105: 118000 | AA105: 252500 | AB105: 704775 | AC105: 76425 | AD105: =IFERROR(T105*'Inputs & Assumptions'!$Q$40,"--") -> 81173 | AE105: =IFERROR(U105*'Inputs & Assumptions'!$Q$41,"--") -> 13400 | AF105: =IFERROR(V105*'Inputs & Assumptions'!$Q$42,"--") -> 64500 | AG105: =IFERROR(W105*'Inputs & Assumptions'!$Q$43,"--") -> 910706.02 | AH105: =IFERROR(X105*'Inputs & Assumptions'!$Q$44,"--") -> 120269.585 | AI105: =IFERROR(Y105*'Inputs & Assumptions'!$Q$45,"--") -> 1597.5 | AJ105: =IFERROR(Z105*'Inputs & Assumptions'!$Q$46,"--") -> 11800 | AK105: =IFERROR(AA105*'Inputs & Assumptions'!$Q$47,"--") -> 126250 | AL105: =IFERROR(AB105*'Inputs & Assumptions'!$Q$48,"--") -> 352387.5 | AM105: =IFERROR(AC105*'Inputs & Assumptions'!$Q$49,"--") -> 38212.5
A106: 1007 | B106: Delaware Township | C106: Hunterdon | D106: 3401917170 | E106: 103 | F106: 811753930 | G106: 4261711.8 | H106: 0.5250004518 | I106: 1088792.338 | J106: 23459.57333 | K106: 2.677485497 | L106: 3902638.95 | M106: 13570243 | N106: 21734593.75 | O106: 0.1960796622 | P106: 0.1795588634 | Q106: 0.6243614744 | R106: 5208 | S106: 209.0615088 | T106: 566301.18 | U106: 82090 | V106: 125790 | W106: 1117027.66 | X106: 971500 | Y106: 7500 | Z106: 0 | AA106: 0 | AB106: 512112 | AC106: 97176.78 | AD106: =IFERROR(T106*'Inputs & Assumptions'!$Q$40,"--") -> 56630.118 | AE106: =IFERROR(U106*'Inputs & Assumptions'!$Q$41,"--") -> 8209 | AF106: =IFERROR(V106*'Inputs & Assumptions'!$Q$42,"--") -> 62895 | AG106: =IFERROR(W106*'Inputs & Assumptions'!$Q$43,"--") -> 558513.83 | AH106: =IFERROR(X106*'Inputs & Assumptions'!$Q$44,"--") -> 97150 | AI106: =IFERROR(Y106*'Inputs & Assumptions'!$Q$45,"--") -> 750 | AJ106: =IFERROR(Z106*'Inputs & Assumptions'!$Q$46,"--") -> 0 | AK106: =IFERROR(AA106*'Inputs & Assumptions'!$Q$47,"--") -> 0 | AL106: =IFERROR(AB106*'Inputs & Assumptions'!$Q$48,"--") -> 256056 | AM106: =IFERROR(AC106*'Inputs & Assumptions'!$Q$49,"--") -> 48588.39
A107: 0310 | B107: Delran Township | C107: Burlington | D107: 3400517440 | E107: 104 | F107: 1436142273 | G107: 11749400 | H107: 0.8181222864 | I107: 4492663.724 | J107: 4243.199204 | K107: 3.774168042 | L107: 6980787.71 | M107: 35472235 | N107: 54202422.71 | O107: 0.2167689083 | P107: 0.1287910643 | Q107: 0.6544400273 | R107: 22496 | S107: 199.7094472 | T107: 4675654.69 | U107: 118462 | V107: 308232 | W107: 4390619 | X107: 2777777 | Y107: 63732 | Z107: 0 | AA107: 659750 | AB107: 1899777.31 | AC107: 199824 | AD107: =IFERROR(T107*'Inputs & Assumptions'!$Q$40,"--") -> 467565.469 | AE107: =IFERROR(U107*'Inputs & Assumptions'!$Q$41,"--") -> 11846.2 | AF107: =IFERROR(V107*'Inputs & Assumptions'!$Q$42,"--") -> 154116 | AG107: =IFERROR(W107*'Inputs & Assumptions'!$Q$43,"--") -> 2195309.5 | AH107: =IFERROR(X107*'Inputs & Assumptions'!$Q$44,"--") -> 277777.7 | AI107: =IFERROR(Y107*'Inputs & Assumptions'!$Q$45,"--") -> 6373.2 | AJ107: =IFERROR(Z107*'Inputs & Assumptions'!$Q$46,"--") -> 0 | AK107: =IFERROR(AA107*'Inputs & Assumptions'!$Q$47,"--") -> 329875 | AL107: =IFERROR(AB107*'Inputs & Assumptions'!$Q$48,"--") -> 949888.655 | AM107: =IFERROR(AC107*'Inputs & Assumptions'!$Q$49,"--") -> 99912
A108: 0209 | B108: Demarest Borough | C108: Bergen | D108: 3400317530 | E108: 105 | F108: 1382192510 | G108: 9279961 | H108: 0.6713942474 | I108: 2675109.7 | J108: 1326.364772 | K108: 2.917909858 | L108: 4200724.5 | M108: 26850446 | N108: 40331131.5 | O108: 0.2300942387 | P108: 0.1041558802 | Q108: 0.6657498811 | R108: 5627 | S108: 475.4060245 | T108: 1062102 | U108: 9996 | V108: 205865 | W108: 3146992 | X108: 2013228 | Y108: 48794 | Z108: 588052 | AA108: 0 | AB108: 1193207 | AC108: 59721 | AD108: =IFERROR(T108*'Inputs & Assumptions'!$Q$40,"--") -> 106210.2 | AE108: =IFERROR(U108*'Inputs & Assumptions'!$Q$41,"--") -> 999.6 | AF108: =IFERROR(V108*'Inputs & Assumptions'!$Q$42,"--") -> 102932.5 | AG108: =IFERROR(W108*'Inputs & Assumptions'!$Q$43,"--") -> 1573496 | AH108: =IFERROR(X108*'Inputs & Assumptions'!$Q$44,"--") -> 201322.8 | AI108: =IFERROR(Y108*'Inputs & Assumptions'!$Q$45,"--") -> 4879.4 | AJ108: =IFERROR(Z108*'Inputs & Assumptions'!$Q$46,"--") -> 58805.2 | AK108: =IFERROR(AA108*'Inputs & Assumptions'!$Q$47,"--") -> 0 | AL108: =IFERROR(AB108*'Inputs & Assumptions'!$Q$48,"--") -> 596603.5 | AM108: =IFERROR(AC108*'Inputs & Assumptions'!$Q$49,"--") -> 29860.5
A109: 0504 | B109: Dennis Township | C109: Cape May | D109: 3400917560 | E109: 106 | F109: 901016247 | G109: 2171815.58 | H109: 0.2410406679 | I109: 609667.129 | J109: 38669.25693 | K109: 1.805219074 | L109: 2901870.57 | M109: 11191631 | N109: 16265317.15 | O109: 0.1335243303 | P109: 0.1784084837 | Q109: 0.688067186 | R109: 7700 | S109: 79.17754922 | T109: 836035 | U109: 35000 | V109: 0 | W109: 319100 | X109: 1122967.08 | Y109: 100614.21 | Z109: 0 | AA109: 260000 | AB109: 221311 | AC109: 0 | AD109: =IFERROR(T109*'Inputs & Assumptions'!$Q$40,"--") -> 83603.5 | AE109: =IFERROR(U109*'Inputs & Assumptions'!$Q$41,"--") -> 3500 | AF109: =IFERROR(V109*'Inputs & Assumptions'!$Q$42,"--") -> 0 | AG109: =IFERROR(W109*'Inputs & Assumptions'!$Q$43,"--") -> 159550 | AH109: =IFERROR(X109*'Inputs & Assumptions'!$Q$44,"--") -> 112296.708 | AI109: =IFERROR(Y109*'Inputs & Assumptions'!$Q$45,"--") -> 10061.421 | AJ109: =IFERROR(Z109*'Inputs & Assumptions'!$Q$46,"--") -> 0 | AK109: =IFERROR(AA109*'Inputs & Assumptions'!$Q$47,"--") -> 130000 | AL109: =IFERROR(AB109*'Inputs & Assumptions'!$Q$48,"--") -> 110655.5 | AM109: =IFERROR(AC109*'Inputs & Assumptions'!$Q$49,"--") -> 0
A110: 1408 | B110: Denville Township | C110: Morris | D110: 3402717650 | E110: 107 | F110: 3095150900 | G110: 16275984.24 | H110: 0.5258543046 | I110: 5933095.688 | J110: 7674.606659 | K110: 2.644609654 | L110: 9634966.28 | M110: 55943709 | N110: 81854659.52 | O110: 0.1988400457 | P110: 0.1177082201 | Q110: 0.6834517342 | R110: 24650 | S110: 240.693537 | T110: 2178956 | U110: 217977 | V110: 435188 | W110: 5566468.14 | X110: 5958417 | Y110: 435248 | Z110: 1251133.18 | AA110: 767000 | AB110: 2808557 | AC110: 280632 | AD110: =IFERROR(T110*'Inputs & Assumptions'!$Q$40,"--") -> 217895.6 | AE110: =IFERROR(U110*'Inputs & Assumptions'!$Q$41,"--") -> 21797.7 | AF110: =IFERROR(V110*'Inputs & Assumptions'!$Q$42,"--") -> 217594 | AG110: =IFERROR(W110*'Inputs & Assumptions'!$Q$43,"--") -> 2783234.07 | AH110: =IFERROR(X110*'Inputs & Assumptions'!$Q$44,"--") -> 595841.7 | AI110: =IFERROR(Y110*'Inputs & Assumptions'!$Q$45,"--") -> 43524.8 | AJ110: =IFERROR(Z110*'Inputs & Assumptions'!$Q$46,"--") -> 125113.318 | AK110: =IFERROR(AA110*'Inputs & Assumptions'!$Q$47,"--") -> 383500 | AL110: =IFERROR(AB110*'Inputs & Assumptions'!$Q$48,"--") -> 1404278.5 | AM110: =IFERROR(AC110*'Inputs & Assumptions'!$Q$49,"--") -> 140316
A111: 0802 | B111: Deptford Township | C111: Gloucester | D111: 3401517710 | E111: 108 | F111: 2851637498 | G111: 25665621.28 | H111: 0.9000309926 | I111: 8012649.575 | J111: 11092.03883 | K111: 3.267479502 | L111: 19565945.44 | M111: 47945104 | N111: 93176670.72 | O111: 0.2754511519 | P111: 0.2099875998 | Q111: 0.5145612483 | R111: 42379 | S111: 189.0712281 | T111: 2964600 | U111: 321000 | V111: 614500 | W111: 7934033.07 | X111: 4625315.4 | Y111: 256000 | Z111: 1161915 | AA111: 1410000 | AB111: 3646000 | AC111: 555000 | AD111: =IFERROR(T111*'Inputs & Assumptions'!$Q$40,"--") -> 296460 | AE111: =IFERROR(U111*'Inputs & Assumptions'!$Q$41,"--") -> 32100 | AF111: =IFERROR(V111*'Inputs & Assumptions'!$Q$42,"--") -> 307250 | AG111: =IFERROR(W111*'Inputs & Assumptions'!$Q$43,"--") -> 3967016.535 | AH111: =IFERROR(X111*'Inputs & Assumptions'!$Q$44,"--") -> 462531.54 | AI111: =IFERROR(Y111*'Inputs & Assumptions'!$Q$45,"--") -> 25600 | AJ111: =IFERROR(Z111*'Inputs & Assumptions'!$Q$46,"--") -> 116191.5 | AK111: =IFERROR(AA111*'Inputs & Assumptions'!$Q$47,"--") -> 705000 | AL111: =IFERROR(AB111*'Inputs & Assumptions'!$Q$48,"--") -> 1823000 | AM111: =IFERROR(AC111*'Inputs & Assumptions'!$Q$49,"--") -> 277500
A112: 1409 | B112: Dover Town | C112: Morris | D112: 3402718070 | E112: 109 | F112: 1305359600 | G112: 20096115.76 | H112: 1.539508022 | I112: 7937302.224 | J112: 1712.433907 | K112: 3.156324595 | L112: 4236627.35 | M112: 16868643 | N112: 41201386.11 | O112: 0.4877533903 | P112: 0.1028273015 | Q112: 0.4094193082 | R112: 23693 | S112: 335.0062138 | T112: 2044151.739 | U112: 28550 | V112: 539750 | W112: 8362014.06 | X112: 4891303.045 | Y112: 375000 | Z112: 551959.31 | AA112: 1565000 | AB112: 3508623.57 | AC112: 321024 | AD112: =IFERROR(T112*'Inputs & Assumptions'!$Q$40,"--") -> 204415.1739 | AE112: =IFERROR(U112*'Inputs & Assumptions'!$Q$41,"--") -> 2855 | AF112: =IFERROR(V112*'Inputs & Assumptions'!$Q$42,"--") -> 269875 | AG112: =IFERROR(W112*'Inputs & Assumptions'!$Q$43,"--") -> 4181007.03 | AH112: =IFERROR(X112*'Inputs & Assumptions'!$Q$44,"--") -> 489130.3045 | AI112: =IFERROR(Y112*'Inputs & Assumptions'!$Q$45,"--") -> 37500 | AJ112: =IFERROR(Z112*'Inputs & Assumptions'!$Q$46,"--") -> 55195.931 | AK112: =IFERROR(AA112*'Inputs & Assumptions'!$Q$47,"--") -> 782500 | AL112: =IFERROR(AB112*'Inputs & Assumptions'!$Q$48,"--") -> 1754311.785 | AM112: =IFERROR(AC112*'Inputs & Assumptions'!$Q$49,"--") -> 160512
A113: 0604 | B113: Downe Township | C113: Cumberland | D113: 3401118220 | E113: 110 | F113: 159512900 | G113: 600042.68 | H113: 0.3761718833 | I113: 124367.2 | J113: 30977.91704 | K113: 2.434503573 | L113: 1573760.57 | M113: 1709544 | N113: 3883347.25 | O113: 0.1545168746 | P113: 0.4052587803 | Q113: 0.4402243451 | R113: 1729 | S113: 71.93013302 | T113: 378956 | U113: 25200 | V113: 0 | W113: 16000 | X113: 410101 | Y113: 19500 | Z113: 0 | AA113: 0 | AB113: 65983 | AC113: 0 | AD113: =IFERROR(T113*'Inputs & Assumptions'!$Q$40,"--") -> 37895.6 | AE113: =IFERROR(U113*'Inputs & Assumptions'!$Q$41,"--") -> 2520 | AF113: =IFERROR(V113*'Inputs & Assumptions'!$Q$42,"--") -> 0 | AG113: =IFERROR(W113*'Inputs & Assumptions'!$Q$43,"--") -> 8000 | AH113: =IFERROR(X113*'Inputs & Assumptions'!$Q$44,"--") -> 41010.1 | AI113: =IFERROR(Y113*'Inputs & Assumptions'!$Q$45,"--") -> 1950 | AJ113: =IFERROR(Z113*'Inputs & Assumptions'!$Q$46,"--") -> 0 | AK113: =IFERROR(AA113*'Inputs & Assumptions'!$Q$47,"--") -> 0 | AL113: =IFERROR(AB113*'Inputs & Assumptions'!$Q$48,"--") -> 32991.5 | AM113: =IFERROR(AC113*'Inputs & Assumptions'!$Q$49,"--") -> 0
A114: 0210 | B114: Dumont Borough | C114: Bergen | D114: 3400318400 | E114: 111 | F114: 1694594040 | G114: 22196440 | H114: 1.309838196 | I114: 5239390.7 | J114: 1247.617014 | K114: 3.964721531 | L114: 6150831.76 | M114: 38838663 | N114: 67185934.76 | O114: 0.3303733152 | P114: 0.09154939619 | Q114: 0.5780772886 | R114: 19908 | S114: 263.1801638 | T114: 1371918 | U114: 31680 | V114: 263757 | W114: 6088580 | X114: 5042169 | Y114: 365372 | Z114: 854283 | AA114: 0 | AB114: 2447815 | AC114: 145545 | AD114: =IFERROR(T114*'Inputs & Assumptions'!$Q$40,"--") -> 137191.8 | AE114: =IFERROR(U114*'Inputs & Assumptions'!$Q$41,"--") -> 3168 | AF114: =IFERROR(V114*'Inputs & Assumptions'!$Q$42,"--") -> 131878.5 | AG114: =IFERROR(W114*'Inputs & Assumptions'!$Q$43,"--") -> 3044290 | AH114: =IFERROR(X114*'Inputs & Assumptions'!$Q$44,"--") -> 504216.9 | AI114: =IFERROR(Y114*'Inputs & Assumptions'!$Q$45,"--") -> 36537.2 | AJ114: =IFERROR(Z114*'Inputs & Assumptions'!$Q$46,"--") -> 85428.3 | AK114: =IFERROR(AA114*'Inputs & Assumptions'!$Q$47,"--") -> 0 | AL114: =IFERROR(AB114*'Inputs & Assumptions'!$Q$48,"--") -> 1223907.5 | AM114: =IFERROR(AC114*'Inputs & Assumptions'!$Q$49,"--") -> 72772.5
A115: 1203 | B115: Dunellen Borough | C115: Middlesex | D115: 3402318490 | E115: 112 | F115: 845663000 | G115: 6251631.74 | H115: 0.7392580425 | I115: 2244731.1 | J115: 679.818749 | K115: 2.707232291 | L115: 3154420.07 | M115: 13488010 | N115: 22894061.81 | O115: 0.2730678283 | P115: 0.1377833299 | Q115: 0.5891488418 | R115: 8635 | S115: 259.9572785 | T115: 1588385 | U115: 67600 | V115: 169500 | W115: 2526170 | X115: 763580 | Y115: 74650 | Z115: 282338 | AA115: 32761.6 | AB115: 1015320 | AC115: 190400 | AD115: =IFERROR(T115*'Inputs & Assumptions'!$Q$40,"--") -> 158838.5 | AE115: =IFERROR(U115*'Inputs & Assumptions'!$Q$41,"--") -> 6760 | AF115: =IFERROR(V115*'Inputs & Assumptions'!$Q$42,"--") -> 84750 | AG115: =IFERROR(W115*'Inputs & Assumptions'!$Q$43,"--") -> 1263085 | AH115: =IFERROR(X115*'Inputs & Assumptions'!$Q$44,"--") -> 76358 | AI115: =IFERROR(Y115*'Inputs & Assumptions'!$Q$45,"--") -> 7465 | AJ115: =IFERROR(Z115*'Inputs & Assumptions'!$Q$46,"--") -> 28233.8 | AK115: =IFERROR(AA115*'Inputs & Assumptions'!$Q$47,"--") -> 16380.8 | AL115: =IFERROR(AB115*'Inputs & Assumptions'!$Q$48,"--") -> 507660 | AM115: =IFERROR(AC115*'Inputs & Assumptions'!$Q$49,"--") -> 95200
A116: 1508 | B116: Eagleswood Township | C116: Ocean | D116: 3402918670 | E116: 113 | F116: 237141800 | G116: 1050218.91 | H116: 0.44286537 | I116: 187433.14 | J116: 10306.098 | K116: 2.741141789 | L116: 1046228.07 | M116: 4403946 | N116: 6500392.98 | O116: 0.1615623722 | P116: 0.1609484339 | Q116: 0.6774891939 | R116: 2301 | S116: 81.45725337 | T116: 442502 | U116: 4501 | V116: 16100 | W116: 74002 | X116: 520108.4 | Y116: 4200 | Z116: 0 | AA116: 3200 | AB116: 87302 | AC116: 0 | AD116: =IFERROR(T116*'Inputs & Assumptions'!$Q$40,"--") -> 44250.2 | AE116: =IFERROR(U116*'Inputs & Assumptions'!$Q$41,"--") -> 450.1 | AF116: =IFERROR(V116*'Inputs & Assumptions'!$Q$42,"--") -> 8050 | AG116: =IFERROR(W116*'Inputs & Assumptions'!$Q$43,"--") -> 37001 | AH116: =IFERROR(X116*'Inputs & Assumptions'!$Q$44,"--") -> 52010.84 | AI116: =IFERROR(Y116*'Inputs & Assumptions'!$Q$45,"--") -> 420 | AJ116: =IFERROR(Z116*'Inputs & Assumptions'!$Q$46,"--") -> 0 | AK116: =IFERROR(AA116*'Inputs & Assumptions'!$Q$47,"--") -> 1600 | AL116: =IFERROR(AB116*'Inputs & Assumptions'!$Q$48,"--") -> 43651 | AM116: =IFERROR(AC116*'Inputs & Assumptions'!$Q$49,"--") -> 0
A117: 1008 | B117: East Amwell Township | C117: Hunterdon | D117: 3401918820 | E117: 114 | F117: 675063273 | G117: 1720741.89 | H117: 0.2549008306 | I117: 236990.703 | J117: 18211.15702 | K117: 2.569723314 | L117: 3249734.42 | M117: 12376782 | N117: 17347258.31 | O117: 0.09919388178 | P117: 0.1873341805 | Q117: 0.7134719377 | R117: 4428 | S117: 53.52093564 | T117: 484024.63 | U117: 50657 | V117: 0 | W117: 41003 | X117: 491728.4 | Y117: 27007 | Z117: 0 | AA117: 100 | AB117: 166089 | AC117: 56106 | AD117: =IFERROR(T117*'Inputs & Assumptions'!$Q$40,"--") -> 48402.463 | AE117: =IFERROR(U117*'Inputs & Assumptions'!$Q$41,"--") -> 5065.7 | AF117: =IFERROR(V117*'Inputs & Assumptions'!$Q$42,"--") -> 0 | AG117: =IFERROR(W117*'Inputs & Assumptions'!$Q$43,"--") -> 20501.5 | AH117: =IFERROR(X117*'Inputs & Assumptions'!$Q$44,"--") -> 49172.84 | AI117: =IFERROR(Y117*'Inputs & Assumptions'!$Q$45,"--") -> 2700.7 | AJ117: =IFERROR(Z117*'Inputs & Assumptions'!$Q$46,"--") -> 0 | AK117: =IFERROR(AA117*'Inputs & Assumptions'!$Q$47,"--") -> 50 | AL117: =IFERROR(AB117*'Inputs & Assumptions'!$Q$48,"--") -> 83044.5 | AM117: =IFERROR(AC117*'Inputs & Assumptions'!$Q$49,"--") -> 28053
A118: 1204 | B118: East Brunswick Township | C118: Middlesex | D118: 3402319000 | E118: 115 | F118: 1919893250 | G118: 45716881.09 | H118: 2.38121995 | I118: 15232438.97 | J118: 13941.92058 | K118: 11.50142126 | L118: 32000575.35 | M118: 143097554 | N118: 220815010.4 | O118: 0.2070370171 | P118: 0.14492029 | Q118: 0.6480426929 | R118: 67248 | S118: 226.5114051 | T118: 4169159 | U118: 887530.5 | V118: 0 | W118: 15413260.91 | X118: 5415692 | Y118: 717718.66 | Z118: 4250000 | AA118: 3582000 | AB118: 7680997 | AC118: 700600 | AD118: =IFERROR(T118*'Inputs & Assumptions'!$Q$40,"--") -> 416915.9 | AE118: =IFERROR(U118*'Inputs & Assumptions'!$Q$41,"--") -> 88753.05 | AF118: =IFERROR(V118*'Inputs & Assumptions'!$Q$42,"--") -> 0 | AG118: =IFERROR(W118*'Inputs & Assumptions'!$Q$43,"--") -> 7706630.455 | AH118: =IFERROR(X118*'Inputs & Assumptions'!$Q$44,"--") -> 541569.2 | AI118: =IFERROR(Y118*'Inputs & Assumptions'!$Q$45,"--") -> 71771.866 | AJ118: =IFERROR(Z118*'Inputs & Assumptions'!$Q$46,"--") -> 425000 | AK118: =IFERROR(AA118*'Inputs & Assumptions'!$Q$47,"--") -> 1791000 | AL118: =IFERROR(AB118*'Inputs & Assumptions'!$Q$48,"--") -> 3840498.5 | AM118: =IFERROR(AC118*'Inputs & Assumptions'!$Q$49,"--") -> 350300
A119: 0803 | B119: East Greenwich Township | C119: Gloucester | D119: 3401519180 | E119: 116 | F119: 1273439300 | G119: 4470184.55 | H119: 0.351032401 | I119: 2433284.5 | J119: 9243.792894 | K119: 3.077112868 | L119: 9509146.02 | M119: 25205834 | N119: 39185164.57 | O119: 0.1140784937 | P119: 0.242672096 | Q119: 0.6432494102 | R119: 13246 | S119: 183.6995697 | T119: 4093000 | U119: 5000 | V119: 174005 | W119: 2237182 | X119: 1234200 | Y119: 3000 | Z119: 0 | AA119: 0 | AB119: 1099226 | AC119: 289116 | AD119: =IFERROR(T119*'Inputs & Assumptions'!$Q$40,"--") -> 409300 | AE119: =IFERROR(U119*'Inputs & Assumptions'!$Q$41,"--") -> 500 | AF119: =IFERROR(V119*'Inputs & Assumptions'!$Q$42,"--") -> 87002.5 | AG119: =IFERROR(W119*'Inputs & Assumptions'!$Q$43,"--") -> 1118591 | AH119: =IFERROR(X119*'Inputs & Assumptions'!$Q$44,"--") -> 123420 | AI119: =IFERROR(Y119*'Inputs & Assumptions'!$Q$45,"--") -> 300 | AJ119: =IFERROR(Z119*'Inputs & Assumptions'!$Q$46,"--") -> 0 | AK119: =IFERROR(AA119*'Inputs & Assumptions'!$Q$47,"--") -> 0 | AL119: =IFERROR(AB119*'Inputs & Assumptions'!$Q$48,"--") -> 549613 | AM119: =IFERROR(AC119*'Inputs & Assumptions'!$Q$49,"--") -> 144558
A120: 1410 | B120: East Hanover Township | C120: Morris | D120: 3402719210 | E120: 117 | F120: 2496741139 | G120: 19885513.59 | H120: 0.796458763 | I120: 5933694.318 | J120: 5039.882194 | K120: 2.494006576 | L120: 8888632.59 | M120: 33494742 | N120: 62268888.18 | O120: 0.3193491031 | P120: 0.1427459659 | Q120: 0.537904931 | R120: 24075 | S120: 246.4670537 | T120: 1940764 | U120: 84650 | V120: 397240 | W120: 6133300.98 | X120: 6951688.28 | Y120: 854539 | Z120: 1172867 | AA120: 0 | AB120: 2940945 | AC120: 195001 | AD120: =IFERROR(T120*'Inputs & Assumptions'!$Q$40,"--") -> 194076.4 | AE120: =IFERROR(U120*'Inputs & Assumptions'!$Q$41,"--") -> 8465 | AF120: =IFERROR(V120*'Inputs & Assumptions'!$Q$42,"--") -> 198620 | AG120: =IFERROR(W120*'Inputs & Assumptions'!$Q$43,"--") -> 3066650.49 | AH120: =IFERROR(X120*'Inputs & Assumptions'!$Q$44,"--") -> 695168.828 | AI120: =IFERROR(Y120*'Inputs & Assumptions'!$Q$45,"--") -> 85453.9 | AJ120: =IFERROR(Z120*'Inputs & Assumptions'!$Q$46,"--") -> 117286.7 | AK120: =IFERROR(AA120*'Inputs & Assumptions'!$Q$47,"--") -> 0 | AL120: =IFERROR(AB120*'Inputs & Assumptions'!$Q$48,"--") -> 1470472.5 | AM120: =IFERROR(AC120*'Inputs & Assumptions'!$Q$49,"--") -> 97500.5
A121: 0902 | B121: East Newark Borough | C121: Hudson | D121: 3401719360 | E121: 118 | F121: 160376298 | G121: 2061170.15 | H121: 1.28520871 | I121: 887012.355 | J121: 65.61510052 | K121: 2.810636657 | L121: 945773.87 | M121: 1500651 | N121: 4507595.02 | O121: 0.4572660456 | P121: 0.2098178443 | Q121: 0.3329161101 | R121: 3181 | S121: 278.8470151 | T121: 660080 | U121: 11000 | V121: 40000 | W121: 1024710 | X121: 484000 | Y121: 27700 | Z121: 0 | AA121: 0 | AB121: 392808.71 | AC121: 79950 | AD121: =IFERROR(T121*'Inputs & Assumptions'!$Q$40,"--") -> 66008 | AE121: =IFERROR(U121*'Inputs & Assumptions'!$Q$41,"--") -> 1100 | AF121: =IFERROR(V121*'Inputs & Assumptions'!$Q$42,"--") -> 20000 | AG121: =IFERROR(W121*'Inputs & Assumptions'!$Q$43,"--") -> 512355 | AH121: =IFERROR(X121*'Inputs & Assumptions'!$Q$44,"--") -> 48400 | AI121: =IFERROR(Y121*'Inputs & Assumptions'!$Q$45,"--") -> 2770 | AJ121: =IFERROR(Z121*'Inputs & Assumptions'!$Q$46,"--") -> 0 | AK121: =IFERROR(AA121*'Inputs & Assumptions'!$Q$47,"--") -> 0 | AL121: =IFERROR(AB121*'Inputs & Assumptions'!$Q$48,"--") -> 196404.355 | AM121: =IFERROR(AC121*'Inputs & Assumptions'!$Q$49,"--") -> 39975
A122: 0705 | B122: East Orange City | C122: Essex | D122: 3401319390 | E122: 119 | F122: 4757119600 | G122: 99046659.43 | H122: 2.082072089 | I122: 44537232.26 | J122: 2513.656221 | K122: 3.167937353 | L122: 21107501.3 | M122: 30548408 | N122: 150702568.7 | O122: 0.6572327218 | P122: 0.1400606604 | Q122: 0.2027066178 | R122: 78727 | S122: 565.7173811 | T122: 18542206.52 | U122: 54914 | V122: 2740353.4 | W122: 49116132.54 | X122: 32901485.62 | Y122: 7417567.18 | Z122: 4415414 | AA122: 97253.19 | AB122: 21850856.53 | AC122: 2603551.4 | AD122: =IFERROR(T122*'Inputs & Assumptions'!$Q$40,"--") -> 1854220.652 | AE122: =IFERROR(U122*'Inputs & Assumptions'!$Q$41,"--") -> 5491.4 | AF122: =IFERROR(V122*'Inputs & Assumptions'!$Q$42,"--") -> 1370176.7 | AG122: =IFERROR(W122*'Inputs & Assumptions'!$Q$43,"--") -> 24558066.27 | AH122: =IFERROR(X122*'Inputs & Assumptions'!$Q$44,"--") -> 3290148.562 | AI122: =IFERROR(Y122*'Inputs & Assumptions'!$Q$45,"--") -> 741756.718 | AJ122: =IFERROR(Z122*'Inputs & Assumptions'!$Q$46,"--") -> 441541.4 | AK122: =IFERROR(AA122*'Inputs & Assumptions'!$Q$47,"--") -> 48626.595 | AL122: =IFERROR(AB122*'Inputs & Assumptions'!$Q$48,"--") -> 10925428.26 | AM122: =IFERROR(AC122*'Inputs & Assumptions'!$Q$49,"--") -> 1301775.7
A123: 0212 | B123: East Rutherford Borough | C123: Bergen | D123: 3400319510 | E123: 120 | F123: 2731366455 | G123: 12224131.5 | H123: 0.4475463729 | I123: 7234553.627 | J123: 2375.36474 | K123: 1.62290207 | L123: 6424683.24 | M123: 25678588 | N123: 44327402.74 | O123: 0.2757691799 | P123: 0.1449370557 | Q123: 0.5792937644 | R123: 18201 | S123: 397.4811069 | T123: 2286700 | U123: 68000 | V123: 284500 | W123: 8306800 | X123: 5704460 | Y123: 89000 | Z123: 873026.27 | AA123: 508040 | AB123: 3254530 | AC123: 311000 | AD123: =IFERROR(T123*'Inputs & Assumptions'!$Q$40,"--") -> 228670 | AE123: =IFERROR(U123*'Inputs & Assumptions'!$Q$41,"--") -> 6800 | AF123: =IFERROR(V123*'Inputs & Assumptions'!$Q$42,"--") -> 142250 | AG123: =IFERROR(W123*'Inputs & Assumptions'!$Q$43,"--") -> 4153400 | AH123: =IFERROR(X123*'Inputs & Assumptions'!$Q$44,"--") -> 570446 | AI123: =IFERROR(Y123*'Inputs & Assumptions'!$Q$45,"--") -> 8900 | AJ123: =IFERROR(Z123*'Inputs & Assumptions'!$Q$46,"--") -> 87302.627 | AK123: =IFERROR(AA123*'Inputs & Assumptions'!$Q$47,"--") -> 254020 | AL123: =IFERROR(AB123*'Inputs & Assumptions'!$Q$48,"--") -> 1627265 | AM123: =IFERROR(AC123*'Inputs & Assumptions'!$Q$49,"--") -> 155500
A124: 1101 | B124: East Windsor Township | C124: Mercer | D124: 3402119780 | E124: 121 | F124: 2862969000 | G124: 12386357.09 | H124: 0.4326402797 | I124: 5582708.18 | J124: 9963.114387 | K124: 3.39799882 | L124: 22075014.74 | M124: 62822281 | N124: 97283652.83 | O124: 0.1273220806 | P124: 0.2269139172 | Q124: 0.6457640022 | R124: 35061 | S124: 159.2284356 | T124: 1251219 | U124: 73385 | V124: 460616 | W124: 6451791.56 | X124: 2282146 | Y124: 399454 | Z124: 0 | AA124: 0 | AB124: 2997342 | AC124: 454426 | AD124: =IFERROR(T124*'Inputs & Assumptions'!$Q$40,"--") -> 125121.9 | AE124: =IFERROR(U124*'Inputs & Assumptions'!$Q$41,"--") -> 7338.5 | AF124: =IFERROR(V124*'Inputs & Assumptions'!$Q$42,"--") -> 230308 | AG124: =IFERROR(W124*'Inputs & Assumptions'!$Q$43,"--") -> 3225895.78 | AH124: =IFERROR(X124*'Inputs & Assumptions'!$Q$44,"--") -> 228214.6 | AI124: =IFERROR(Y124*'Inputs & Assumptions'!$Q$45,"--") -> 39945.4 | AJ124: =IFERROR(Z124*'Inputs & Assumptions'!$Q$46,"--") -> 0 | AK124: =IFERROR(AA124*'Inputs & Assumptions'!$Q$47,"--") -> 0 | AL124: =IFERROR(AB124*'Inputs & Assumptions'!$Q$48,"--") -> 1498671 | AM124: =IFERROR(AC124*'Inputs & Assumptions'!$Q$49,"--") -> 227213
A125: 0311 | B125: Eastampton Township | C125: Burlington | D125: 3400518790 | E125: 122 | F125: 524426029 | G125: 5471121.3 | H125: 1.043258915 | I125: 2044382.675 | J125: 3667.283777 | K125: 3.223254357 | L125: 2497114.53 | M125: 8935349 | N125: 16903584.83 | O125: 0.323666332 | P125: 0.1477269204 | Q125: 0.5286067476 | R125: 7149 | S125: 285.9676423 | T125: 783600 | U125: 121000 | V125: 276000 | W125: 2319275 | X125: 628161.75 | Y125: 7000 | Z125: 0 | AA125: 195000 | AB125: 990538 | AC125: 0 | AD125: =IFERROR(T125*'Inputs & Assumptions'!$Q$40,"--") -> 78360 | AE125: =IFERROR(U125*'Inputs & Assumptions'!$Q$41,"--") -> 12100 | AF125: =IFERROR(V125*'Inputs & Assumptions'!$Q$42,"--") -> 138000 | AG125: =IFERROR(W125*'Inputs & Assumptions'!$Q$43,"--") -> 1159637.5 | AH125: =IFERROR(X125*'Inputs & Assumptions'!$Q$44,"--") -> 62816.175 | AI125: =IFERROR(Y125*'Inputs & Assumptions'!$Q$45,"--") -> 700 | AJ125: =IFERROR(Z125*'Inputs & Assumptions'!$Q$46,"--") -> 0 | AK125: =IFERROR(AA125*'Inputs & Assumptions'!$Q$47,"--") -> 97500 | AL125: =IFERROR(AB125*'Inputs & Assumptions'!$Q$48,"--") -> 495269 | AM125: =IFERROR(AC125*'Inputs & Assumptions'!$Q$49,"--") -> 0
A126: 1311 | B126: Eatontown Borough | C126: Monmouth | D126: 3402519840 | E126: 123 | F126: 2970187411 | G126: 19712869.75 | H126: 0.6636911084 | I126: 7040541.641 | J126: 3738.026312 | K126: 1.970547702 | L126: 8073145.01 | M126: 30742945 | N126: 58528959.76 | O126: 0.3368054008 | P126: 0.137934196 | Q126: 0.5252604032 | R126: 24070 | S126: 292.5027686 | T126: 2006746 | U126: 466420 | V126: 611950 | W126: 8350099.05 | X126: 5035912.8 | Y126: 76772.36 | Z126: 105500 | AA126: 424800 | AB126: 3006964 | AC126: 149000 | AD126: =IFERROR(T126*'Inputs & Assumptions'!$Q$40,"--") -> 200674.6 | AE126: =IFERROR(U126*'Inputs & Assumptions'!$Q$41,"--") -> 46642 | AF126: =IFERROR(V126*'Inputs & Assumptions'!$Q$42,"--") -> 305975 | AG126: =IFERROR(W126*'Inputs & Assumptions'!$Q$43,"--") -> 4175049.525 | AH126: =IFERROR(X126*'Inputs & Assumptions'!$Q$44,"--") -> 503591.28 | AI126: =IFERROR(Y126*'Inputs & Assumptions'!$Q$45,"--") -> 7677.236 | AJ126: =IFERROR(Z126*'Inputs & Assumptions'!$Q$46,"--") -> 10550 | AK126: =IFERROR(AA126*'Inputs & Assumptions'!$Q$47,"--") -> 212400 | AL126: =IFERROR(AB126*'Inputs & Assumptions'!$Q$48,"--") -> 1503482 | AM126: =IFERROR(AC126*'Inputs & Assumptions'!$Q$49,"--") -> 74500
A127: 0213 | B127: Edgewater Borough | C127: Bergen | D127: 3400320020 | E127: 124 | F127: 4192518055 | G127: 26454604.68 | H127: 0.6309956053 | I127: 7053434.4 | J127: 621.4789221 | K127: 1.596958272 | L127: 9899708.2 | M127: 30598451 | N127: 66952763.88 | O127: 0.3951234146 | P127: 0.1478610833 | Q127: 0.4570155021 | R127: 17969 | S127: 392.5334966 | T127: 3290450 | U127: 120044 | V127: 533500 | W127: 8070900 | X127: 2506100 | Y127: 339500 | Z127: 1343815 | AA127: 1203500 | AB127: 2570744 | AC127: 208243 | AD127: =IFERROR(T127*'Inputs & Assumptions'!$Q$40,"--") -> 329045 | AE127: =IFERROR(U127*'Inputs & Assumptions'!$Q$41,"--") -> 12004.4 | AF127: =IFERROR(V127*'Inputs & Assumptions'!$Q$42,"--") -> 266750 | AG127: =IFERROR(W127*'Inputs & Assumptions'!$Q$43,"--") -> 4035450 | AH127: =IFERROR(X127*'Inputs & Assumptions'!$Q$44,"--") -> 250610 | AI127: =IFERROR(Y127*'Inputs & Assumptions'!$Q$45,"--") -> 33950 | AJ127: =IFERROR(Z127*'Inputs & Assumptions'!$Q$46,"--") -> 134381.5 | AK127: =IFERROR(AA127*'Inputs & Assumptions'!$Q$47,"--") -> 601750 | AL127: =IFERROR(AB127*'Inputs & Assumptions'!$Q$48,"--") -> 1285372 | AM127: =IFERROR(AC127*'Inputs & Assumptions'!$Q$49,"--") -> 104121.5
A128: 0312 | B128: Edgewater Park Township | C128: Burlington | D128: 3400520050 | E128: 125 | F128: 696870884 | G128: 6964781.78 | H128: 0.9994364724 | I128: 2316500.515 | J128: 1868.425787 | K128: 3.352330631 | L128: 2967530.32 | M128: 13429104 | N128: 23361416.1 | O128: 0.298131832 | P128: 0.1270269879 | Q128: 0.5748411801 | R128: 10182 | S128: 227.5093808 | T128: 941900 | U128: 46750 | V128: 312000 | W128: 2478747.81 | X128: 1164991.1 | Y128: 19200 | Z128: 3500 | AA128: 281000 | AB128: 941285 | AC128: 184700 | AD128: =IFERROR(T128*'Inputs & Assumptions'!$Q$40,"--") -> 94190 | AE128: =IFERROR(U128*'Inputs & Assumptions'!$Q$41,"--") -> 4675 | AF128: =IFERROR(V128*'Inputs & Assumptions'!$Q$42,"--") -> 156000 | AG128: =IFERROR(W128*'Inputs & Assumptions'!$Q$43,"--") -> 1239373.905 | AH128: =IFERROR(X128*'Inputs & Assumptions'!$Q$44,"--") -> 116499.11 | AI128: =IFERROR(Y128*'Inputs & Assumptions'!$Q$45,"--") -> 1920 | AJ128: =IFERROR(Z128*'Inputs & Assumptions'!$Q$46,"--") -> 350 | AK128: =IFERROR(AA128*'Inputs & Assumptions'!$Q$47,"--") -> 140500 | AL128: =IFERROR(AB128*'Inputs & Assumptions'!$Q$48,"--") -> 470642.5 | AM128: =IFERROR(AC128*'Inputs & Assumptions'!$Q$49,"--") -> 92350
A129: 1205 | B129: Edison Township | C129: Middlesex | D129: 3402320230 | E129: 126 | F129: 7380324900 | G129: 113490005.3 | H129: 1.537737252 | I129: 35305612 | J129: 19243.40522 | K129: 5.702752581 | L129: 71859745.38 | M129: 235531918 | N129: 420881668.7 | O129: 0.2696482498 | P129: 0.1707362205 | Q129: 0.5596155297 | R129: 160586 | S129: 219.8548566 | T129: 9066639.4 | U129: 994827.8 | V129: 2429919.33 | W129: 59794169.1 | X129: 8796896.68 | Y129: 2477881 | Z129: 6422293 | AA129: 0 | AB129: 2044831 | AC129: 790597 | AD129: =IFERROR(T129*'Inputs & Assumptions'!$Q$40,"--") -> 906663.94 | AE129: =IFERROR(U129*'Inputs & Assumptions'!$Q$41,"--") -> 99482.78 | AF129: =IFERROR(V129*'Inputs & Assumptions'!$Q$42,"--") -> 1214959.665 | AG129: =IFERROR(W129*'Inputs & Assumptions'!$Q$43,"--") -> 29897084.55 | AH129: =IFERROR(X129*'Inputs & Assumptions'!$Q$44,"--") -> 879689.668 | AI129: =IFERROR(Y129*'Inputs & Assumptions'!$Q$45,"--") -> 247788.1 | AJ129: =IFERROR(Z129*'Inputs & Assumptions'!$Q$46,"--") -> 642229.3 | AK129: =IFERROR(AA129*'Inputs & Assumptions'!$Q$47,"--") -> 0 | AL129: =IFERROR(AB129*'Inputs & Assumptions'!$Q$48,"--") -> 1022415.5 | AM129: =IFERROR(AC129*'Inputs & Assumptions'!$Q$49,"--") -> 395298.5
A130: 0107 | B130: Egg Harbor City | C130: Atlantic | D130: 3400120350 | E130: 127 | F130: 201946800 | G130: 4643857.85 | H130: 2.299545152 | I130: 1795509.21 | J130: 6944.599098 | K130: 5.390614602 | L130: 1300519.84 | M130: 4941796 | N130: 10886173.69 | O130: 0.426583112 | P130: 0.1194652848 | Q130: 0.4539516033 | R130: 5689 | S130: 315.610689 | T130: 586800 | U130: 102000 | V130: 68850 | W130: 1864517.62 | X130: 1532940 | Y130: 10200 | Z130: 19364 | AA130: 537500 | AB130: 669890 | AC130: 0 | AD130: =IFERROR(T130*'Inputs & Assumptions'!$Q$40,"--") -> 58680 | AE130: =IFERROR(U130*'Inputs & Assumptions'!$Q$41,"--") -> 10200 | AF130: =IFERROR(V130*'Inputs & Assumptions'!$Q$42,"--") -> 34425 | AG130: =IFERROR(W130*'Inputs & Assumptions'!$Q$43,"--") -> 932258.81 | AH130: =IFERROR(X130*'Inputs & Assumptions'!$Q$44,"--") -> 153294 | AI130: =IFERROR(Y130*'Inputs & Assumptions'!$Q$45,"--") -> 1020 | AJ130: =IFERROR(Z130*'Inputs & Assumptions'!$Q$46,"--") -> 1936.4 | AK130: =IFERROR(AA130*'Inputs & Assumptions'!$Q$47,"--") -> 268750 | AL130: =IFERROR(AB130*'Inputs & Assumptions'!$Q$48,"--") -> 334945 | AM130: =IFERROR(AC130*'Inputs & Assumptions'!$Q$49,"--") -> 0
A131: 0108 | B131: Egg Harbor Township | C131: Atlantic | D131: 3400120290 | E131: 128 | F131: 4115569150 | G131: 27251962.68 | H131: 0.6621675323 | I131: 11308206.11 | J131: 42910.03104 | K131: 3.3475207 | L131: 25397408.53 | M131: 85120158 | N131: 137769529.2 | O131: 0.1978083458 | P131: 0.1843470663 | Q131: 0.6178445879 | R131: 60521 | S131: 186.8476415 | T131: 2925010 | U131: 339250 | V131: 670700 | W131: 12744980.86 | X131: 4546951 | Y131: 55285.8 | Z131: 0 | AA131: 1943533 | AB131: 5683899 | AC131: 0 | AD131: =IFERROR(T131*'Inputs & Assumptions'!$Q$40,"--") -> 292501 | AE131: =IFERROR(U131*'Inputs & Assumptions'!$Q$41,"--") -> 33925 | AF131: =IFERROR(V131*'Inputs & Assumptions'!$Q$42,"--") -> 335350 | AG131: =IFERROR(W131*'Inputs & Assumptions'!$Q$43,"--") -> 6372490.43 | AH131: =IFERROR(X131*'Inputs & Assumptions'!$Q$44,"--") -> 454695.1 | AI131: =IFERROR(Y131*'Inputs & Assumptions'!$Q$45,"--") -> 5528.58 | AJ131: =IFERROR(Z131*'Inputs & Assumptions'!$Q$46,"--") -> 0 | AK131: =IFERROR(AA131*'Inputs & Assumptions'!$Q$47,"--") -> 971766.5 | AL131: =IFERROR(AB131*'Inputs & Assumptions'!$Q$48,"--") -> 2841949.5 | AM131: =IFERROR(AC131*'Inputs & Assumptions'!$Q$49,"--") -> 0
A132: 2004 | B132: Elizabeth City | C132: Union | D132: 3403921000 | E132: 129 | F132: 940707482 | G132: 184857583.8 | H132: =G132/(F132/100) -> 19.65091034 | I132: =IF(IFERROR(SUM(AD132:AM132),"--")=0,"--",IFERROR(SUM(AD132:AM132),"--")) -> 82805048.54 | J132: 7884.010098 | K132: 31.42961802 | L132: 50990060.43 | M132: 59813124 | N132: 295660768.3 | O132: =G132/N132 -> 0.6252354174 | P132: =L132/N132 -> 0.1724613676 | Q132: =M132/N132 -> 0.2023032151 | R132: 169276 | S132: =IFERROR(I132/R132,"--") -> 489.1718173 | T132: 29252966 | U132: 0 | V132: 0 | W132: 98532737.51 | X132: 35223220 | Y132: 9657126.82 | Z132: 4400000 | AA132: 12850000 | AB132: 34969800 | AC132: 3550897 | AD132: =IFERROR(T132*'Inputs & Assumptions'!$Q$40,"--") -> 2925296.6 | AE132: =IFERROR(U132*'Inputs & Assumptions'!$Q$41,"--") -> 0 | AF132: =IFERROR(V132*'Inputs & Assumptions'!$Q$42,"--") -> 0 | AG132: =IFERROR(W132*'Inputs & Assumptions'!$Q$43,"--") -> 49266368.76 | AH132: =IFERROR(X132*'Inputs & Assumptions'!$Q$44,"--") -> 3522322 | AI132: =IFERROR(Y132*'Inputs & Assumptions'!$Q$45,"--") -> 965712.682 | AJ132: =IFERROR(Z132*'Inputs & Assumptions'!$Q$46,"--") -> 440000 | AK132: =IFERROR(AA132*'Inputs & Assumptions'!$Q$47,"--") -> 6425000 | AL132: =IFERROR(AB132*'Inputs & Assumptions'!$Q$48,"--") -> 17484900 | AM132: =IFERROR(AC132*'Inputs & Assumptions'!$Q$49,"--") -> 1775448.5
A133: 0804 | B133: Elk Township | C133: Gloucester | D133: 3401521060 | E133: =E132+1 -> 130 | F133: 384584500 | G133: 3600118.32 | H133: 0.9361059325 | I133: 1707859.814 | J133: 12260.4586 | K133: 3.628323453 | L133: 2879249.29 | M133: 7474602 | N133: 13953969.61 | O133: 0.2579995815 | P133: 0.2063390827 | Q133: 0.5356613357 | R133: 4936 | S133: 346.0007727 | T133: 509566 | U133: 82450 | V133: 87750 | W133: 1854713.32 | X133: 2612910.54 | Y133: 4450 | Z133: 0 | AA133: 229000 | AB133: 536173 | AC133: 66208 | AD133: =IFERROR(T133*'Inputs & Assumptions'!$Q$40,"--") -> 50956.6 | AE133: =IFERROR(U133*'Inputs & Assumptions'!$Q$41,"--") -> 8245 | AF133: =IFERROR(V133*'Inputs & Assumptions'!$Q$42,"--") -> 43875 | AG133: =IFERROR(W133*'Inputs & Assumptions'!$Q$43,"--") -> 927356.66 | AH133: =IFERROR(X133*'Inputs & Assumptions'!$Q$44,"--") -> 261291.054 | AI133: =IFERROR(Y133*'Inputs & Assumptions'!$Q$45,"--") -> 445 | AJ133: =IFERROR(Z133*'Inputs & Assumptions'!$Q$46,"--") -> 0 | AK133: =IFERROR(AA133*'Inputs & Assumptions'!$Q$47,"--") -> 114500 | AL133: =IFERROR(AB133*'Inputs & Assumptions'!$Q$48,"--") -> 268086.5 | AM133: =IFERROR(AC133*'Inputs & Assumptions'!$Q$49,"--") -> 33104
A134: 1702 | B134: Elmer Borough | C134: Salem | D134: 3403321240 | E134: 131 | F134: 105321200 | G134: 745674 | H134: 0.7079999089 | I134: 271432.405 | J134: 571.9624835 | K134: 3.947112139 | L134: 1482976.87 | M134: 1928495 | N134: 4157145.87 | O134: 0.1793716226 | P134: 0.3567295727 | Q134: 0.4638988047 | R134: 2378 | S134: 114.1431476 | T134: 421516 | U134: 10225 | V134: 13402 | W134: 262961.87 | X134: 186879 | Y134: 20093 | Z134: 13334 | AA134: 67738.07 | AB134: 68353.47 | AC134: 0 | AD134: =IFERROR(T134*'Inputs & Assumptions'!$Q$40,"--") -> 42151.6 | AE134: =IFERROR(U134*'Inputs & Assumptions'!$Q$41,"--") -> 1022.5 | AF134: =IFERROR(V134*'Inputs & Assumptions'!$Q$42,"--") -> 6701 | AG134: =IFERROR(W134*'Inputs & Assumptions'!$Q$43,"--") -> 131480.935 | AH134: =IFERROR(X134*'Inputs & Assumptions'!$Q$44,"--") -> 18687.9 | AI134: =IFERROR(Y134*'Inputs & Assumptions'!$Q$45,"--") -> 2009.3 | AJ134: =IFERROR(Z134*'Inputs & Assumptions'!$Q$46,"--") -> 1333.4 | AK134: =IFERROR(AA134*'Inputs & Assumptions'!$Q$47,"--") -> 33869.035 | AL134: =IFERROR(AB134*'Inputs & Assumptions'!$Q$48,"--") -> 34176.735 | AM134: =IFERROR(AC134*'Inputs & Assumptions'!$Q$49,"--") -> 0
A135: 0211 | B135: Elmwood Park Borough | C135: Bergen | D135: 3400321300 | E135: 132 | F135: 2120011389 | G135: 20049897.22 | H135: 0.9457447882 | I135: 7851867.94 | J135: 1691.463564 | K135: 2.991277088 | L135: 6511772.72 | M135: 36853745 | N135: 63415414.94 | O135: 0.3161675633 | P135: 0.1026843824 | Q135: 0.5811480542 | R135: 27820 | S135: 282.2382437 | T135: 4686500 | U135: 167800 | V135: 526950 | W135: 8265313 | X135: 1656000 | Y135: 41000 | Z135: 894524 | AA135: 1877458.08 | AB135: 3254550 | AC135: 290300 | AD135: =IFERROR(T135*'Inputs & Assumptions'!$Q$40,"--") -> 468650 | AE135: =IFERROR(U135*'Inputs & Assumptions'!$Q$41,"--") -> 16780 | AF135: =IFERROR(V135*'Inputs & Assumptions'!$Q$42,"--") -> 263475 | AG135: =IFERROR(W135*'Inputs & Assumptions'!$Q$43,"--") -> 4132656.5 | AH135: =IFERROR(X135*'Inputs & Assumptions'!$Q$44,"--") -> 165600 | AI135: =IFERROR(Y135*'Inputs & Assumptions'!$Q$45,"--") -> 4100 | AJ135: =IFERROR(Z135*'Inputs & Assumptions'!$Q$46,"--") -> 89452.4 | AK135: =IFERROR(AA135*'Inputs & Assumptions'!$Q$47,"--") -> 938729.04 | AL135: =IFERROR(AB135*'Inputs & Assumptions'!$Q$48,"--") -> 1627275 | AM135: =IFERROR(AC135*'Inputs & Assumptions'!$Q$49,"--") -> 145150
A136: 1703 | B136: Elsinboro Township | C136: Salem | D136: 3403321330 | E136: 133 | F136: 115860992 | G136: 487702.46 | H136: 0.4209375835 | I136: 147617 | J136: 7635.992258 | K136: 2.956576662 | L136: 1384080.59 | M136: 1553736 | N136: 3425519.05 | O136: 0.1423733025 | P136: 0.4040498884 | Q136: 0.453576809 | R136: 918 | S136: 160.8028322 | T136: 159853 | U136: 10209 | V136: 18169 | W136: 162412 | X136: 153415 | Y136: 9073 | Z136: 0 | AA136: 34800 | AB136: 13343 | AC136: 0 | AD136: =IFERROR(T136*'Inputs & Assumptions'!$Q$40,"--") -> 15985.3 | AE136: =IFERROR(U136*'Inputs & Assumptions'!$Q$41,"--") -> 1020.9 | AF136: =IFERROR(V136*'Inputs & Assumptions'!$Q$42,"--") -> 9084.5 | AG136: =IFERROR(W136*'Inputs & Assumptions'!$Q$43,"--") -> 81206 | AH136: =IFERROR(X136*'Inputs & Assumptions'!$Q$44,"--") -> 15341.5 | AI136: =IFERROR(Y136*'Inputs & Assumptions'!$Q$45,"--") -> 907.3 | AJ136: =IFERROR(Z136*'Inputs & Assumptions'!$Q$46,"--") -> 0 | AK136: =IFERROR(AA136*'Inputs & Assumptions'!$Q$47,"--") -> 17400 | AL136: =IFERROR(AB136*'Inputs & Assumptions'!$Q$48,"--") -> 6671.5 | AM136: =IFERROR(AC136*'Inputs & Assumptions'!$Q$49,"--") -> 0
A137: 0214 | B137: Emerson Borough | C137: Bergen | D137: 3400321450 | E137: 134 | F137: 1215603800 | G137: 12058593 | H137: 0.9919838191 | I137: 3432828.5 | J137: 1427.78098 | K137: 3.215013151 | L137: 3626490.03 | M137: 23396739 | N137: 39081822.03 | O137: 0.3085473597 | P137: 0.09279224564 | Q137: 0.5986603946 | R137: 9164 | S137: 374.5993562 | T137: 1024125 | U137: 26700 | V137: 282640 | W137: 3856620 | X137: 2607214 | Y137: 104570 | Z137: 504541 | AA137: 268000 | AB137: 1515962 | AC137: 89005 | AD137: =IFERROR(T137*'Inputs & Assumptions'!$Q$40,"--") -> 102412.5 | AE137: =IFERROR(U137*'Inputs & Assumptions'!$Q$41,"--") -> 2670 | AF137: =IFERROR(V137*'Inputs & Assumptions'!$Q$42,"--") -> 141320 | AG137: =IFERROR(W137*'Inputs & Assumptions'!$Q$43,"--") -> 1928310 | AH137: =IFERROR(X137*'Inputs & Assumptions'!$Q$44,"--") -> 260721.4 | AI137: =IFERROR(Y137*'Inputs & Assumptions'!$Q$45,"--") -> 10457 | AJ137: =IFERROR(Z137*'Inputs & Assumptions'!$Q$46,"--") -> 50454.1 | AK137: =IFERROR(AA137*'Inputs & Assumptions'!$Q$47,"--") -> 134000 | AL137: =IFERROR(AB137*'Inputs & Assumptions'!$Q$48,"--") -> 757981 | AM137: =IFERROR(AC137*'Inputs & Assumptions'!$Q$49,"--") -> 44502.5
A138: 0215 | B138: Englewood City | C138: Bergen | D138: 3400321480 | E138: 135 | F138: 4546651800 | G138: 61408210.46 | H138: 1.350624881 | I138: 18937069.26 | J138: 3152.29957 | K138: 2.979158031 | L138: 14302845.79 | M138: 59740886 | N138: 135451942.2 | O138: 0.4533579175 | P138: 0.1055935083 | Q138: 0.4410485742 | R138: 41551 | S138: 455.7548377 | T138: 4149200 | U138: 87500 | V138: 1384850 | W138: 23451300 | X138: 6830000 | Y138: 934192.63 | Z138: 2105870 | AA138: 1336000 | AB138: 8268636 | AC138: 612000 | AD138: =IFERROR(T138*'Inputs & Assumptions'!$Q$40,"--") -> 414920 | AE138: =IFERROR(U138*'Inputs & Assumptions'!$Q$41,"--") -> 8750 | AF138: =IFERROR(V138*'Inputs & Assumptions'!$Q$42,"--") -> 692425 | AG138: =IFERROR(W138*'Inputs & Assumptions'!$Q$43,"--") -> 11725650 | AH138: =IFERROR(X138*'Inputs & Assumptions'!$Q$44,"--") -> 683000 | AI138: =IFERROR(Y138*'Inputs & Assumptions'!$Q$45,"--") -> 93419.263 | AJ138: =IFERROR(Z138*'Inputs & Assumptions'!$Q$46,"--") -> 210587 | AK138: =IFERROR(AA138*'Inputs & Assumptions'!$Q$47,"--") -> 668000 | AL138: =IFERROR(AB138*'Inputs & Assumptions'!$Q$48,"--") -> 4134318 | AM138: =IFERROR(AC138*'Inputs & Assumptions'!$Q$49,"--") -> 306000
A139: 0216 | B139: Englewood Cliffs Borough | C139: Bergen | D139: 3400321510 | E139: 136 | F139: 3542984659 | G139: 16336880 | H139: 0.4611050166 | I139: -- | J139: 1360.726738 | K139: 1.140394604 | L139: 9352925.87 | M139: 14714200 | N139: 40404005.87 | O139: 0.4043381256 | P139: 0.2314851131 | Q139: 0.3641767613 | R139: 13320 | S139: -- | T139: No data | U139: No data | V139: No data | W139: No data | X139: No data | Y139: No data | Z139: No data | AA139: No data | AB139: No data | AC139: No data | AD139: =IFERROR(T139*'Inputs & Assumptions'!$Q$40,"--") -> -- | AE139: =IFERROR(U139*'Inputs & Assumptions'!$Q$41,"--") -> -- | AF139: =IFERROR(V139*'Inputs & Assumptions'!$Q$42,"--") -> -- | AG139: =IFERROR(W139*'Inputs & Assumptions'!$Q$43,"--") -> -- | AH139: =IFERROR(X139*'Inputs & Assumptions'!$Q$44,"--") -> -- | AI139: =IFERROR(Y139*'Inputs & Assumptions'!$Q$45,"--") -> -- | AJ139: =IFERROR(Z139*'Inputs & Assumptions'!$Q$46,"--") -> -- | AK139: =IFERROR(AA139*'Inputs & Assumptions'!$Q$47,"--") -> -- | AL139: =IFERROR(AB139*'Inputs & Assumptions'!$Q$48,"--") -> -- | AM139: =IFERROR(AC139*'Inputs & Assumptions'!$Q$49,"--") -> --
A140: 1312 | B140: Englishtown Borough | C140: Monmouth | D140: 3402521570 | E140: 137 | F140: 357218400 | G140: 1937462.07 | H140: 0.5423746565 | I140: 906559.3 | J140: 364.6930456 | K140: 1.800981316 | L140: 765173.57 | M140: 3730801 | N140: 6433436.64 | O140: 0.3011550713 | P140: 0.118936987 | Q140: 0.5799079417 | R140: 3478 | S140: 260.6553479 | T140: 772210 | U140: 10885 | V140: 30305 | W140: 893720.8 | X140: 202500 | Y140: 1500 | Z140: 0 | AA140: 276700 | AB140: 271600 | AC140: 143373.8 | AD140: =IFERROR(T140*'Inputs & Assumptions'!$Q$40,"--") -> 77221 | AE140: =IFERROR(U140*'Inputs & Assumptions'!$Q$41,"--") -> 1088.5 | AF140: =IFERROR(V140*'Inputs & Assumptions'!$Q$42,"--") -> 15152.5 | AG140: =IFERROR(W140*'Inputs & Assumptions'!$Q$43,"--") -> 446860.4 | AH140: =IFERROR(X140*'Inputs & Assumptions'!$Q$44,"--") -> 20250 | AI140: =IFERROR(Y140*'Inputs & Assumptions'!$Q$45,"--") -> 150 | AJ140: =IFERROR(Z140*'Inputs & Assumptions'!$Q$46,"--") -> 0 | AK140: =IFERROR(AA140*'Inputs & Assumptions'!$Q$47,"--") -> 138350 | AL140: =IFERROR(AB140*'Inputs & Assumptions'!$Q$48,"--") -> 135800 | AM140: =IFERROR(AC140*'Inputs & Assumptions'!$Q$49,"--") -> 71686.9
A141: 0706 | B141: Essex Fells Borough | C141: Essex | D141: 3401321840 | E141: 138 | F141: 754034900 | G141: 4301984.13 | H141: 0.5705285167 | I141: 1738438.63 | J141: 901.3197212 | K141: 2.167975395 | L141: 3497330.97 | M141: 8547976 | N141: 16347291.1 | O141: 0.2631618966 | P141: 0.2139394808 | Q141: 0.5228986226 | R141: 2660 | S141: 653.5483571 | T141: 445925 | U141: 25800 | V141: 62800 | W141: 1835542.81 | X141: 3373922.249 | Y141: 1000 | Z141: 2000 | AA141: 0 | AB141: 808805 | AC141: 0 | AD141: =IFERROR(T141*'Inputs & Assumptions'!$Q$40,"--") -> 44592.5 | AE141: =IFERROR(U141*'Inputs & Assumptions'!$Q$41,"--") -> 2580 | AF141: =IFERROR(V141*'Inputs & Assumptions'!$Q$42,"--") -> 31400 | AG141: =IFERROR(W141*'Inputs & Assumptions'!$Q$43,"--") -> 917771.405 | AH141: =IFERROR(X141*'Inputs & Assumptions'!$Q$44,"--") -> 337392.2249 | AI141: =IFERROR(Y141*'Inputs & Assumptions'!$Q$45,"--") -> 100 | AJ141: =IFERROR(Z141*'Inputs & Assumptions'!$Q$46,"--") -> 200 | AK141: =IFERROR(AA141*'Inputs & Assumptions'!$Q$47,"--") -> 0 | AL141: =IFERROR(AB141*'Inputs & Assumptions'!$Q$48,"--") -> 404402.5 | AM141: =IFERROR(AC141*'Inputs & Assumptions'!$Q$49,"--") -> 0
A142: 0109 | B142: Estell Manor City | C142: Atlantic | D142: 3400121870 | E142: 139 | F142: 158006500 | G142: 648538.99 | H142: 0.4104508296 | I142: 234653.725 | J142: 34167.69507 | K142: 2.874435881 | L142: 1011017.54 | M142: 2882239 | N142: 4541795.53 | O142: 0.1427935242 | P142: 0.2226030506 | Q142: 0.6346034252 | R142: 1877 | S142: 125.0153037 | T142: 423050 | U142: 59000 | V142: 0 | W142: 100200 | X142: 130000 | Y142: 9500 | Z142: 0 | AA142: 192000 | AB142: 44797.45 | AC142: 8000 | AD142: =IFERROR(T142*'Inputs & Assumptions'!$Q$40,"--") -> 42305 | AE142: =IFERROR(U142*'Inputs & Assumptions'!$Q$41,"--") -> 5900 | AF142: =IFERROR(V142*'Inputs & Assumptions'!$Q$42,"--") -> 0 | AG142: =IFERROR(W142*'Inputs & Assumptions'!$Q$43,"--") -> 50100 | AH142: =IFERROR(X142*'Inputs & Assumptions'!$Q$44,"--") -> 13000 | AI142: =IFERROR(Y142*'Inputs & Assumptions'!$Q$45,"--") -> 950 | AJ142: =IFERROR(Z142*'Inputs & Assumptions'!$Q$46,"--") -> 0 | AK142: =IFERROR(AA142*'Inputs & Assumptions'!$Q$47,"--") -> 96000 | AL142: =IFERROR(AB142*'Inputs & Assumptions'!$Q$48,"--") -> 22398.725 | AM142: =IFERROR(AC142*'Inputs & Assumptions'!$Q$49,"--") -> 4000
A143: 0313 | B143: Evesham Township | C143: Burlington | D143: 3400522110 | E143: 140 | F143: 5291683807 | G143: 29665388.58 | H143: 0.5606039526 | I143: 10944489.7 | J143: 18659.74898 | K143: 3.016603219 | L143: 23166537.48 | M143: 106797178 | N143: 159629104.1 | O143: 0.185839473 | P143: 0.1451272787 | Q143: 0.6690332482 | R143: 63597 | S143: 172.0912888 | T143: 3003363.6 | U143: 395375 | V143: 713920 | W143: 10633708 | X143: 5073770 | Y143: 13250 | Z143: 0 | AA143: 3034899 | AB143: 5490949.67 | AC143: 318351 | AD143: =IFERROR(T143*'Inputs & Assumptions'!$Q$40,"--") -> 300336.36 | AE143: =IFERROR(U143*'Inputs & Assumptions'!$Q$41,"--") -> 39537.5 | AF143: =IFERROR(V143*'Inputs & Assumptions'!$Q$42,"--") -> 356960 | AG143: =IFERROR(W143*'Inputs & Assumptions'!$Q$43,"--") -> 5316854 | AH143: =IFERROR(X143*'Inputs & Assumptions'!$Q$44,"--") -> 507377 | AI143: =IFERROR(Y143*'Inputs & Assumptions'!$Q$45,"--") -> 1325 | AJ143: =IFERROR(Z143*'Inputs & Assumptions'!$Q$46,"--") -> 0 | AK143: =IFERROR(AA143*'Inputs & Assumptions'!$Q$47,"--") -> 1517449.5 | AL143: =IFERROR(AB143*'Inputs & Assumptions'!$Q$48,"--") -> 2745474.835 | AM143: =IFERROR(AC143*'Inputs & Assumptions'!$Q$49,"--") -> 159175.5
A144: 1102 | B144: Ewing Township | C144: Mercer | D144: 3402122185 | E144: 141 | F144: 3330077160 | G144: 33900307.46 | H144: 1.018003663 | I144: 14993397.34 | J144: 9732.050935 | K144: 3.696687662 | L144: 24146482.06 | M144: 65055762 | N144: 123102551.5 | O144: 0.2753826549 | P144: 0.1961493223 | Q144: 0.5284680228 | R144: 52528 | S144: 285.4362881 | T144: 14412781 | U144: 121000 | V144: 325000 | W144: 16556174.86 | X144: 2773000 | Y144: 1052908.13 | Z144: 0 | AA144: 3106540 | AB144: 5782642 | AC144: 544500 | AD144: =IFERROR(T144*'Inputs & Assumptions'!$Q$40,"--") -> 1441278.1 | AE144: =IFERROR(U144*'Inputs & Assumptions'!$Q$41,"--") -> 12100 | AF144: =IFERROR(V144*'Inputs & Assumptions'!$Q$42,"--") -> 162500 | AG144: =IFERROR(W144*'Inputs & Assumptions'!$Q$43,"--") -> 8278087.43 | AH144: =IFERROR(X144*'Inputs & Assumptions'!$Q$44,"--") -> 277300 | AI144: =IFERROR(Y144*'Inputs & Assumptions'!$Q$45,"--") -> 105290.813 | AJ144: =IFERROR(Z144*'Inputs & Assumptions'!$Q$46,"--") -> 0 | AK144: =IFERROR(AA144*'Inputs & Assumptions'!$Q$47,"--") -> 1553270 | AL144: =IFERROR(AB144*'Inputs & Assumptions'!$Q$48,"--") -> 2891321 | AM144: =IFERROR(AC144*'Inputs & Assumptions'!$Q$49,"--") -> 272250
A145: 1313 | B145: Fair Haven Borough | C145: Monmouth | D145: 3402522440 | E145: 142 | F145: 2357990059 | G145: 8077883.43 | H145: 0.342574957 | I145: 2178914.174 | J145: 1019.824247 | K145: 1.573673007 | L145: 5679248.63 | M145: 23349921 | N145: 37107053.06 | O145: 0.2176913218 | P145: 0.1530503816 | Q145: 0.6292582966 | R145: 7273 | S145: 299.5894643 | T145: 1060702 | U145: 139575 | V145: 31086 | W145: 2236055.32 | X145: 1495218.14 | Y145: 77900 | Z145: 108840 | AA145: 530000 | AB145: 967000 | AC145: 17240 | AD145: =IFERROR(T145*'Inputs & Assumptions'!$Q$40,"--") -> 106070.2 | AE145: =IFERROR(U145*'Inputs & Assumptions'!$Q$41,"--") -> 13957.5 | AF145: =IFERROR(V145*'Inputs & Assumptions'!$Q$42,"--") -> 15543 | AG145: =IFERROR(W145*'Inputs & Assumptions'!$Q$43,"--") -> 1118027.66 | AH145: =IFERROR(X145*'Inputs & Assumptions'!$Q$44,"--") -> 149521.814 | AI145: =IFERROR(Y145*'Inputs & Assumptions'!$Q$45,"--") -> 7790 | AJ145: =IFERROR(Z145*'Inputs & Assumptions'!$Q$46,"--") -> 10884 | AK145: =IFERROR(AA145*'Inputs & Assumptions'!$Q$47,"--") -> 265000 | AL145: =IFERROR(AB145*'Inputs & Assumptions'!$Q$48,"--") -> 483500 | AM145: =IFERROR(AC145*'Inputs & Assumptions'!$Q$49,"--") -> 8620
A146: 0217 | B146: Fair Lawn Borough | C146: Bergen | D146: 3400322470 | E146: 143 | F146: 4340188299 | G146: 39142655.25 | H146: 0.9018653697 | I146: 14191642.29 | J146: 3286.424363 | K146: 3.494747298 | L146: 14881645.06 | M146: 97654313 | N146: 151678613.3 | O146: 0.2580631138 | P146: 0.09811300839 | Q146: 0.6438238778 | R146: 43414 | S146: 326.8909173 | T146: 10860760 | U146: 37800 | V146: 1031500 | W146: 13939150 | X146: 5075750 | Y146: 562450 | Z146: 2510884 | AA146: 2669500 | AB146: 6558605.77 | AC146: 375000 | AD146: =IFERROR(T146*'Inputs & Assumptions'!$Q$40,"--") -> 1086076 | AE146: =IFERROR(U146*'Inputs & Assumptions'!$Q$41,"--") -> 3780 | AF146: =IFERROR(V146*'Inputs & Assumptions'!$Q$42,"--") -> 515750 | AG146: =IFERROR(W146*'Inputs & Assumptions'!$Q$43,"--") -> 6969575 | AH146: =IFERROR(X146*'Inputs & Assumptions'!$Q$44,"--") -> 507575 | AI146: =IFERROR(Y146*'Inputs & Assumptions'!$Q$45,"--") -> 56245 | AJ146: =IFERROR(Z146*'Inputs & Assumptions'!$Q$46,"--") -> 251088.4 | AK146: =IFERROR(AA146*'Inputs & Assumptions'!$Q$47,"--") -> 1334750 | AL146: =IFERROR(AB146*'Inputs & Assumptions'!$Q$48,"--") -> 3279302.885 | AM146: =IFERROR(AC146*'Inputs & Assumptions'!$Q$49,"--") -> 187500
A147: 0605 | B147: Fairfield Township | C147: Cumberland | D147: 3401122350 | E147: 144 | F147: 317814699 | G147: 1395251.52 | H147: 0.4390141565 | I147: 369433.741 | J147: 26316.08319 | K147: 2.647476717 | L147: 3318391.64 | M147: 3700427 | N147: 8414070.16 | O147: 0.1658236137 | P147: 0.3943860197 | Q147: 0.4397903666 | R147: 6610 | S147: 55.89012723 | T147: 638450 | U147: 45000 | V147: 69000 | W147: 191350 | X147: 844647.41 | Y147: 55500 | Z147: 0 | AA147: 0 | AB147: 99798 | AC147: 62000 | AD147: =IFERROR(T147*'Inputs & Assumptions'!$Q$40,"--") -> 63845 | AE147: =IFERROR(U147*'Inputs & Assumptions'!$Q$41,"--") -> 4500 | AF147: =IFERROR(V147*'Inputs & Assumptions'!$Q$42,"--") -> 34500 | AG147: =IFERROR(W147*'Inputs & Assumptions'!$Q$43,"--") -> 95675 | AH147: =IFERROR(X147*'Inputs & Assumptions'!$Q$44,"--") -> 84464.741 | AI147: =IFERROR(Y147*'Inputs & Assumptions'!$Q$45,"--") -> 5550 | AJ147: =IFERROR(Z147*'Inputs & Assumptions'!$Q$46,"--") -> 0 | AK147: =IFERROR(AA147*'Inputs & Assumptions'!$Q$47,"--") -> 0 | AL147: =IFERROR(AB147*'Inputs & Assumptions'!$Q$48,"--") -> 49899 | AM147: =IFERROR(AC147*'Inputs & Assumptions'!$Q$49,"--") -> 31000
A148: 0707 | B148: Fairfield Township | C148: Essex | D148: 3401322385 | E148: 145 | F148: 3202627100 | G148: 17265888.74 | H148: 0.5391164254 | I148: 6280767.149 | J148: 6482.060763 | K148: 2.052649405 | L148: 16325870.38 | M148: 32146947 | N148: 65738706.12 | O148: 0.2626441827 | P148: 0.2483448693 | Q148: 0.489010948 | R148: 25491 | S148: 246.3915558 | T148: 2163500 | U148: 44000 | V148: 420000 | W148: 6811000 | X148: 5097125.34 | Y148: 167000 | Z148: 1266396 | AA148: 921150 | AB148: 2411780.03 | AC148: 250000 | AD148: =IFERROR(T148*'Inputs & Assumptions'!$Q$40,"--") -> 216350 | AE148: =IFERROR(U148*'Inputs & Assumptions'!$Q$41,"--") -> 4400 | AF148: =IFERROR(V148*'Inputs & Assumptions'!$Q$42,"--") -> 210000 | AG148: =IFERROR(W148*'Inputs & Assumptions'!$Q$43,"--") -> 3405500 | AH148: =IFERROR(X148*'Inputs & Assumptions'!$Q$44,"--") -> 509712.534 | AI148: =IFERROR(Y148*'Inputs & Assumptions'!$Q$45,"--") -> 16700 | AJ148: =IFERROR(Z148*'Inputs & Assumptions'!$Q$46,"--") -> 126639.6 | AK148: =IFERROR(AA148*'Inputs & Assumptions'!$Q$47,"--") -> 460575 | AL148: =IFERROR(AB148*'Inputs & Assumptions'!$Q$48,"--") -> 1205890.015 | AM148: =IFERROR(AC148*'Inputs & Assumptions'!$Q$49,"--") -> 125000
A149: 0218 | B149: Fairview Borough | C149: Bergen | D149: 3400322560 | E149: 146 | F149: 1643857628 | G149: 16905029.21 | H149: 1.028375507 | I149: 3202386.743 | J149: 539.9435697 | K149: 2.260590929 | L149: 4041965.22 | M149: 16213902 | N149: 37160896.43 | O149: 0.4549144621 | P149: 0.1087693142 | Q149: 0.4363162237 | R149: 16868 | S149: 189.8498188 | T149: 17664089.53 | U149: 0 | V149: 0 | W149: 0 | X149: 0 | Y149: 0 | Z149: 0 | AA149: 350000 | AB149: 2521955.58 | AC149: 0 | AD149: =IFERROR(T149*'Inputs & Assumptions'!$Q$40,"--") -> 1766408.953 | AE149: =IFERROR(U149*'Inputs & Assumptions'!$Q$41,"--") -> 0 | AF149: =IFERROR(V149*'Inputs & Assumptions'!$Q$42,"--") -> 0 | AG149: =IFERROR(W149*'Inputs & Assumptions'!$Q$43,"--") -> 0 | AH149: =IFERROR(X149*'Inputs & Assumptions'!$Q$44,"--") -> 0 | AI149: =IFERROR(Y149*'Inputs & Assumptions'!$Q$45,"--") -> 0 | AJ149: =IFERROR(Z149*'Inputs & Assumptions'!$Q$46,"--") -> 0 | AK149: =IFERROR(AA149*'Inputs & Assumptions'!$Q$47,"--") -> 175000 | AL149: =IFERROR(AB149*'Inputs & Assumptions'!$Q$48,"--") -> 1260977.79 | AM149: =IFERROR(AC149*'Inputs & Assumptions'!$Q$49,"--") -> 0
A150: 2005 | B150: Fanwood Borough | C150: Union | D150: 3403922860 | E150: 147 | F150: 1269133426 | G150: 7352664.34 | H150: 0.5793452595 | I150: 2090494.296 | J150: 857.3735298 | K150: 2.843519796 | L150: 6011608.86 | M150: 22723787 | N150: 36088060.2 | O150: 0.2037422987 | P150: 0.1665816568 | Q150: 0.6296760445 | R150: 8530 | S150: 245.0755329 | T150: 1186589.33 | U150: 89820 | V150: 0 | W150: 2463000 | X150: 965000 | Y150: 89075.63 | Z150: 485178 | AA150: 0 | AB150: 1015456 | AC150: 139400 | AD150: =IFERROR(T150*'Inputs & Assumptions'!$Q$40,"--") -> 118658.933 | AE150: =IFERROR(U150*'Inputs & Assumptions'!$Q$41,"--") -> 8982 | AF150: =IFERROR(V150*'Inputs & Assumptions'!$Q$42,"--") -> 0 | AG150: =IFERROR(W150*'Inputs & Assumptions'!$Q$43,"--") -> 1231500 | AH150: =IFERROR(X150*'Inputs & Assumptions'!$Q$44,"--") -> 96500 | AI150: =IFERROR(Y150*'Inputs & Assumptions'!$Q$45,"--") -> 8907.563 | AJ150: =IFERROR(Z150*'Inputs & Assumptions'!$Q$46,"--") -> 48517.8 | AK150: =IFERROR(AA150*'Inputs & Assumptions'!$Q$47,"--") -> 0 | AL150: =IFERROR(AB150*'Inputs & Assumptions'!$Q$48,"--") -> 507728 | AM150: =IFERROR(AC150*'Inputs & Assumptions'!$Q$49,"--") -> 69700
A151: 1807 | B151: Far Hills Borough | C151: Somerset | D151: 3403522890 | E151: 148 | F151: 445261500 | G151: 2461901.43 | H151: 0.5529113633 | I151: 950410.914 | J151: 3101.862417 | K151: 1.318168833 | L151: 1457475.89 | M151: 1949921 | N151: 5869298.32 | O151: 0.4194541316 | P151: 0.2483219987 | Q151: 0.3322238696 | R151: 1579 | S151: 601.9068486 | T151: 509971 | U151: 131342 | V151: 71556 | W151: 1150660.46 | X151: 162460 | Y151: 15901 | Z151: 145517.84 | AA151: 0 | AB151: 385819.34 | AC151: 99747.66 | AD151: =IFERROR(T151*'Inputs & Assumptions'!$Q$40,"--") -> 50997.1 | AE151: =IFERROR(U151*'Inputs & Assumptions'!$Q$41,"--") -> 13134.2 | AF151: =IFERROR(V151*'Inputs & Assumptions'!$Q$42,"--") -> 35778 | AG151: =IFERROR(W151*'Inputs & Assumptions'!$Q$43,"--") -> 575330.23 | AH151: =IFERROR(X151*'Inputs & Assumptions'!$Q$44,"--") -> 16246 | AI151: =IFERROR(Y151*'Inputs & Assumptions'!$Q$45,"--") -> 1590.1 | AJ151: =IFERROR(Z151*'Inputs & Assumptions'!$Q$46,"--") -> 14551.784 | AK151: =IFERROR(AA151*'Inputs & Assumptions'!$Q$47,"--") -> 0 | AL151: =IFERROR(AB151*'Inputs & Assumptions'!$Q$48,"--") -> 192909.67 | AM151: =IFERROR(AC151*'Inputs & Assumptions'!$Q$49,"--") -> 49873.83
A152: 1314 | B152: Farmingdale Borough | C152: Monmouth | D152: 3402522950 | E152: 149 | F152: 221170500 | G152: 643848.41 | H152: 0.2911095331 | I152: 215777.5 | J152: 333.0665351 | K152: 1.890132251 | L152: 496154.54 | M152: 3040412 | N152: 4180414.95 | O152: 0.1540154309 | P152: 0.1186854764 | Q152: 0.7272990926 | R152: 2168 | S152: 99.52836716 | T152: 197875 | U152: 11600 | V152: 40870 | W152: 130700 | X152: 705250 | Y152: 0 | Z152: 0 | AA152: 0 | AB152: 71040 | AC152: 6000 | AD152: =IFERROR(T152*'Inputs & Assumptions'!$Q$40,"--") -> 19787.5 | AE152: =IFERROR(U152*'Inputs & Assumptions'!$Q$41,"--") -> 1160 | AF152: =IFERROR(V152*'Inputs & Assumptions'!$Q$42,"--") -> 20435 | AG152: =IFERROR(W152*'Inputs & Assumptions'!$Q$43,"--") -> 65350 | AH152: =IFERROR(X152*'Inputs & Assumptions'!$Q$44,"--") -> 70525 | AI152: =IFERROR(Y152*'Inputs & Assumptions'!$Q$45,"--") -> 0 | AJ152: =IFERROR(Z152*'Inputs & Assumptions'!$Q$46,"--") -> 0 | AK152: =IFERROR(AA152*'Inputs & Assumptions'!$Q$47,"--") -> 0 | AL152: =IFERROR(AB152*'Inputs & Assumptions'!$Q$48,"--") -> 35520 | AM152: =IFERROR(AC152*'Inputs & Assumptions'!$Q$49,"--") -> 3000
A153: 0314 | B153: Fieldsboro Borough | C153: Burlington | D153: 3400523250 | E153: 150 | F153: 53402100 | G153: 325763 | H153: 0.6100190816 | I153: 168412.863 | J153: 178.4077882 | K153: 2.909476275 | L153: 229636.43 | M153: 998322 | N153: 1553721.43 | O153: 0.2096662849 | P153: 0.1477976847 | Q153: 0.6425360304 | R153: 885 | S153: 190.2970203 | T153: 460611.48 | U153: 4500 | V153: 4000 | W153: 46800 | X153: 54100 | Y153: 0 | Z153: 0 | AA153: 81452.56 | AB153: 37930.87 | AC153: 62800 | AD153: =IFERROR(T153*'Inputs & Assumptions'!$Q$40,"--") -> 46061.148 | AE153: =IFERROR(U153*'Inputs & Assumptions'!$Q$41,"--") -> 450 | AF153: =IFERROR(V153*'Inputs & Assumptions'!$Q$42,"--") -> 2000 | AG153: =IFERROR(W153*'Inputs & Assumptions'!$Q$43,"--") -> 23400 | AH153: =IFERROR(X153*'Inputs & Assumptions'!$Q$44,"--") -> 5410 | AI153: =IFERROR(Y153*'Inputs & Assumptions'!$Q$45,"--") -> 0 | AJ153: =IFERROR(Z153*'Inputs & Assumptions'!$Q$46,"--") -> 0 | AK153: =IFERROR(AA153*'Inputs & Assumptions'!$Q$47,"--") -> 40726.28 | AL153: =IFERROR(AB153*'Inputs & Assumptions'!$Q$48,"--") -> 18965.435 | AM153: =IFERROR(AC153*'Inputs & Assumptions'!$Q$49,"--") -> 31400
A154: 1009 | B154: Flemington Borough | C154: Hunterdon | D154: 3401923700 | E154: 151 | F154: 531029400 | G154: 5674614.54 | H154: 1.068606473 | I154: 2468296.305 | J154: 689.5952223 | K154: 2.899199235 | L154: 1730012.76 | M154: 7990973 | N154: 15395600.3 | O154: 0.368586767 | P154: 0.1123705946 | Q154: 0.5190426384 | R154: 9527 | S154: 259.0843188 | T154: 3775672 | U154: 66200 | V154: 146450 | W154: 2186191.25 | X154: 328200 | Y154: 27000 | Z154: 375000 | AA154: 478023.96 | AB154: 1021413 | AC154: 190100 | AD154: =IFERROR(T154*'Inputs & Assumptions'!$Q$40,"--") -> 377567.2 | AE154: =IFERROR(U154*'Inputs & Assumptions'!$Q$41,"--") -> 6620 | AF154: =IFERROR(V154*'Inputs & Assumptions'!$Q$42,"--") -> 73225 | AG154: =IFERROR(W154*'Inputs & Assumptions'!$Q$43,"--") -> 1093095.625 | AH154: =IFERROR(X154*'Inputs & Assumptions'!$Q$44,"--") -> 32820 | AI154: =IFERROR(Y154*'Inputs & Assumptions'!$Q$45,"--") -> 2700 | AJ154: =IFERROR(Z154*'Inputs & Assumptions'!$Q$46,"--") -> 37500 | AK154: =IFERROR(AA154*'Inputs & Assumptions'!$Q$47,"--") -> 239011.98 | AL154: =IFERROR(AB154*'Inputs & Assumptions'!$Q$48,"--") -> 510706.5 | AM154: =IFERROR(AC154*'Inputs & Assumptions'!$Q$49,"--") -> 95050
A155: 0315 | B155: Florence Township | C155: Burlington | D155: 3400523850 | E155: 152 | F155: 1337542400 | G155: 6363449.03 | H155: 0.4757568082 | I155: 4885764.673 | J155: 6251.917036 | K155: 2.402819025 | L155: 5210538.23 | M155: 20564736 | N155: 32138723.26 | O155: 0.1979994345 | P155: 0.1621264849 | Q155: 0.6398740807 | R155: 17289 | S155: 282.5938269 | T155: 6744719.08 | U155: 51925 | V155: 643890 | W155: 4354998 | X155: 860757 | Y155: 4881 | Z155: 129500 | AA155: 1028476 | AB155: 1935297.93 | AC155: 250511 | AD155: =IFERROR(T155*'Inputs & Assumptions'!$Q$40,"--") -> 674471.908 | AE155: =IFERROR(U155*'Inputs & Assumptions'!$Q$41,"--") -> 5192.5 | AF155: =IFERROR(V155*'Inputs & Assumptions'!$Q$42,"--") -> 321945 | AG155: =IFERROR(W155*'Inputs & Assumptions'!$Q$43,"--") -> 2177499 | AH155: =IFERROR(X155*'Inputs & Assumptions'!$Q$44,"--") -> 86075.7 | AI155: =IFERROR(Y155*'Inputs & Assumptions'!$Q$45,"--") -> 488.1 | AJ155: =IFERROR(Z155*'Inputs & Assumptions'!$Q$46,"--") -> 12950 | AK155: =IFERROR(AA155*'Inputs & Assumptions'!$Q$47,"--") -> 514238 | AL155: =IFERROR(AB155*'Inputs & Assumptions'!$Q$48,"--") -> 967648.965 | AM155: =IFERROR(AC155*'Inputs & Assumptions'!$Q$49,"--") -> 125255.5
A156: 1411 | B156: Florham Park Borough | C156: Morris | D156: 3402723910 | E156: 153 | F156: 3753932620 | G156: 17001350.45 | H156: 0.4528943956 | I156: 5916947.107 | J156: 4676.802005 | K156: 1.597151445 | L156: 10093866.63 | M156: 32860772 | N156: 59955989.08 | O156: 0.2835638393 | P156: 0.1683546012 | Q156: 0.5480815596 | R156: 27148 | S156: 217.9514921 | T156: 9263441.32 | U156: 132725 | V156: 699375 | W156: 5766788.75 | X156: 2799742 | Y156: 295045 | Z156: 1285129 | AA156: 125000 | AB156: 2333184 | AC156: 154330 | AD156: =IFERROR(T156*'Inputs & Assumptions'!$Q$40,"--") -> 926344.132 | AE156: =IFERROR(U156*'Inputs & Assumptions'!$Q$41,"--") -> 13272.5 | AF156: =IFERROR(V156*'Inputs & Assumptions'!$Q$42,"--") -> 349687.5 | AG156: =IFERROR(W156*'Inputs & Assumptions'!$Q$43,"--") -> 2883394.375 | AH156: =IFERROR(X156*'Inputs & Assumptions'!$Q$44,"--") -> 279974.2 | AI156: =IFERROR(Y156*'Inputs & Assumptions'!$Q$45,"--") -> 29504.5 | AJ156: =IFERROR(Z156*'Inputs & Assumptions'!$Q$46,"--") -> 128512.9 | AK156: =IFERROR(AA156*'Inputs & Assumptions'!$Q$47,"--") -> 62500 | AL156: =IFERROR(AB156*'Inputs & Assumptions'!$Q$48,"--") -> 1166592 | AM156: =IFERROR(AC156*'Inputs & Assumptions'!$Q$49,"--") -> 77165
A157: 0110 | B157: Folsom Borough | C157: Atlantic | D157: 3400123940 | E157: 154 | F157: 175801300 | G157: 772212.24 | H157: 0.439252861 | I157: 187788.235 | J157: 5289.066618 | K157: 2.203007191 | L157: 1005575.04 | M157: 2095128 | N157: 3872915.28 | O157: 0.1993878472 | P157: 0.259642922 | Q157: 0.5409692308 | R157: 3131 | S157: 59.97707921 | T157: 282250 | U157: 10920 | V157: 0 | W157: 3700 | X157: 213154 | Y157: 59513.35 | Z157: 0 | AA157: 193960 | AB157: 64749 | AC157: 0 | AD157: =IFERROR(T157*'Inputs & Assumptions'!$Q$40,"--") -> 28225 | AE157: =IFERROR(U157*'Inputs & Assumptions'!$Q$41,"--") -> 1092 | AF157: =IFERROR(V157*'Inputs & Assumptions'!$Q$42,"--") -> 0 | AG157: =IFERROR(W157*'Inputs & Assumptions'!$Q$43,"--") -> 1850 | AH157: =IFERROR(X157*'Inputs & Assumptions'!$Q$44,"--") -> 21315.4 | AI157: =IFERROR(Y157*'Inputs & Assumptions'!$Q$45,"--") -> 5951.335 | AJ157: =IFERROR(Z157*'Inputs & Assumptions'!$Q$46,"--") -> 0 | AK157: =IFERROR(AA157*'Inputs & Assumptions'!$Q$47,"--") -> 96980 | AL157: =IFERROR(AB157*'Inputs & Assumptions'!$Q$48,"--") -> 32374.5 | AM157: =IFERROR(AC157*'Inputs & Assumptions'!$Q$49,"--") -> 0
A158: 0219 | B158: Fort Lee Borough | C158: Bergen | D158: 3400324420 | E158: 155 | F158: 6692502232 | G158: 72729643.74 | H158: 1.086733201 | I158: 20858899.72 | J158: 1611.292975 | K158: 2.473587395 | L158: 17365707.87 | M158: 75449540 | N158: 165544891.6 | O158: 0.4393348718 | P158: 0.1049002944 | Q158: 0.4557648337 | R158: 49341 | S158: 422.7498373 | T158: 3834920 | U158: 225266 | V158: 1084042 | W158: 24642207.8 | X158: 6024165.27 | Y158: 1878915 | Z158: 3077377 | AA158: 3500000 | AB158: 8662082.99 | AC158: 821338 | AD158: =IFERROR(T158*'Inputs & Assumptions'!$Q$40,"--") -> 383492 | AE158: =IFERROR(U158*'Inputs & Assumptions'!$Q$41,"--") -> 22526.6 | AF158: =IFERROR(V158*'Inputs & Assumptions'!$Q$42,"--") -> 542021 | AG158: =IFERROR(W158*'Inputs & Assumptions'!$Q$43,"--") -> 12321103.9 | AH158: =IFERROR(X158*'Inputs & Assumptions'!$Q$44,"--") -> 602416.527 | AI158: =IFERROR(Y158*'Inputs & Assumptions'!$Q$45,"--") -> 187891.5 | AJ158: =IFERROR(Z158*'Inputs & Assumptions'!$Q$46,"--") -> 307737.7 | AK158: =IFERROR(AA158*'Inputs & Assumptions'!$Q$47,"--") -> 1750000 | AL158: =IFERROR(AB158*'Inputs & Assumptions'!$Q$48,"--") -> 4331041.495 | AM158: =IFERROR(AC158*'Inputs & Assumptions'!$Q$49,"--") -> 410669
A159: 1905 | B159: Frankford Township | C159: Sussex | D159: 3403724810 | E159: 156 | F159: 742943100 | G159: 3002276.51 | H159: 0.4041058474 | I159: 683536 | J159: 21680.66514 | K159: 2.884422195 | L159: 4762461.16 | M159: 13664878 | N159: 21429615.67 | O159: 0.1400994099 | P159: 0.2222373576 | Q159: 0.6376632325 | R159: 6857 | S159: 99.68441009 | T159: 603800 | U159: 40000 | V159: 122200 | W159: 232300 | X159: 1294000 | Y159: 11000 | Z159: 0 | AA159: 14200 | AB159: 319112 | AC159: 289500 | AD159: =IFERROR(T159*'Inputs & Assumptions'!$Q$40,"--") -> 60380 | AE159: =IFERROR(U159*'Inputs & Assumptions'!$Q$41,"--") -> 4000 | AF159: =IFERROR(V159*'Inputs & Assumptions'!$Q$42,"--") -> 61100 | AG159: =IFERROR(W159*'Inputs & Assumptions'!$Q$43,"--") -> 116150 | AH159: =IFERROR(X159*'Inputs & Assumptions'!$Q$44,"--") -> 129400 | AI159: =IFERROR(Y159*'Inputs & Assumptions'!$Q$45,"--") -> 1100 | AJ159: =IFERROR(Z159*'Inputs & Assumptions'!$Q$46,"--") -> 0 | AK159: =IFERROR(AA159*'Inputs & Assumptions'!$Q$47,"--") -> 7100 | AL159: =IFERROR(AB159*'Inputs & Assumptions'!$Q$48,"--") -> 159556 | AM159: =IFERROR(AC159*'Inputs & Assumptions'!$Q$49,"--") -> 144750
A160: 1906 | B160: Franklin Borough | C160: Sussex | D160: 3403724930 | E160: 157 | F160: 622845620 | G160: 5170994 | H160: 0.8302208178 | I160: 2451417.88 | J160: 2787.889707 | K160: 2.756134658 | L160: 3015192 | M160: 8980278 | N160: 17166464 | O160: 0.3012265077 | P160: 0.1756443261 | Q160: 0.5231291663 | R160: 6294 | S160: 389.4848872 | T160: 785059 | U160: 30900 | V160: 42360 | W160: 2385000.2 | X160: 2779538 | Y160: 63871 | Z160: 0 | AA160: 612299.96 | AB160: 947164 | AC160: 184138 | AD160: =IFERROR(T160*'Inputs & Assumptions'!$Q$40,"--") -> 78505.9 | AE160: =IFERROR(U160*'Inputs & Assumptions'!$Q$41,"--") -> 3090 | AF160: =IFERROR(V160*'Inputs & Assumptions'!$Q$42,"--") -> 21180 | AG160: =IFERROR(W160*'Inputs & Assumptions'!$Q$43,"--") -> 1192500.1 | AH160: =IFERROR(X160*'Inputs & Assumptions'!$Q$44,"--") -> 277953.8 | AI160: =IFERROR(Y160*'Inputs & Assumptions'!$Q$45,"--") -> 6387.1 | AJ160: =IFERROR(Z160*'Inputs & Assumptions'!$Q$46,"--") -> 0 | AK160: =IFERROR(AA160*'Inputs & Assumptions'!$Q$47,"--") -> 306149.98 | AL160: =IFERROR(AB160*'Inputs & Assumptions'!$Q$48,"--") -> 473582 | AM160: =IFERROR(AC160*'Inputs & Assumptions'!$Q$49,"--") -> 92069
A161: 0220 | B161: Franklin Lakes Borough | C161: Bergen | D161: 3400324990 | E161: 158 | F161: 4513685700 | G161: 13724392 | H161: 0.304061756 | I161: 4468763.7 | J161: 6025.202637 | K161: 1.729067282 | L161: 11771532.67 | M161: 52548738 | N161: 78044662.67 | O161: 0.1758530504 | P161: 0.1508307201 | Q161: 0.6733162295 | R161: 16497 | S161: 270.8834152 | T161: 1492380 | U161: 37485 | V161: 497040 | W161: 4428142 | X161: 3095785 | Y161: 258265 | Z161: 1619087 | AA161: 659745 | AB161: 1872635 | AC161: 179365 | AD161: =IFERROR(T161*'Inputs & Assumptions'!$Q$40,"--") -> 149238 | AE161: =IFERROR(U161*'Inputs & Assumptions'!$Q$41,"--") -> 3748.5 | AF161: =IFERROR(V161*'Inputs & Assumptions'!$Q$42,"--") -> 248520 | AG161: =IFERROR(W161*'Inputs & Assumptions'!$Q$43,"--") -> 2214071 | AH161: =IFERROR(X161*'Inputs & Assumptions'!$Q$44,"--") -> 309578.5 | AI161: =IFERROR(Y161*'Inputs & Assumptions'!$Q$45,"--") -> 25826.5 | AJ161: =IFERROR(Z161*'Inputs & Assumptions'!$Q$46,"--") -> 161908.7 | AK161: =IFERROR(AA161*'Inputs & Assumptions'!$Q$47,"--") -> 329872.5 | AL161: =IFERROR(AB161*'Inputs & Assumptions'!$Q$48,"--") -> 936317.5 | AM161: =IFERROR(AC161*'Inputs & Assumptions'!$Q$49,"--") -> 89682.5
A162: 0805 | B162: Franklin Township | C162: Gloucester | D162: 3401524840 | E162: 159 | F162: 1244641300 | G162: 9649056.6 | H162: 0.7752479851 | I162: 3384786.882 | J162: 35731.39408 | K162: 3.563217006 | L162: 9322206.86 | M162: 25378007 | N162: 44349270.46 | O162: 0.2175696804 | P162: 0.2101997792 | Q162: 0.5722305404 | R162: 19572 | S162: 172.9402658 | T162: 1193000 | U162: 499750 | V162: 156600 | W162: 2701145.02 | X162: 1691182.3 | Y162: 91050 | Z162: 549026.42 | AA162: 1043000 | AB162: 1812477 | AC162: 251550 | AD162: =IFERROR(T162*'Inputs & Assumptions'!$Q$40,"--") -> 119300 | AE162: =IFERROR(U162*'Inputs & Assumptions'!$Q$41,"--") -> 49975 | AF162: =IFERROR(V162*'Inputs & Assumptions'!$Q$42,"--") -> 78300 | AG162: =IFERROR(W162*'Inputs & Assumptions'!$Q$43,"--") -> 1350572.51 | AH162: =IFERROR(X162*'Inputs & Assumptions'!$Q$44,"--") -> 169118.23 | AI162: =IFERROR(Y162*'Inputs & Assumptions'!$Q$45,"--") -> 9105 | AJ162: =IFERROR(Z162*'Inputs & Assumptions'!$Q$46,"--") -> 54902.642 | AK162: =IFERROR(AA162*'Inputs & Assumptions'!$Q$47,"--") -> 521500 | AL162: =IFERROR(AB162*'Inputs & Assumptions'!$Q$48,"--") -> 906238.5 | AM162: =IFERROR(AC162*'Inputs & Assumptions'!$Q$49,"--") -> 125775
A163: 1010 | B163: Franklin Township | C163: Hunterdon | D163: 3401924870 | E163: 160 | F163: 548540200 | G163: 2590599.59 | H163: 0.472271602 | I163: 730539.965 | J163: 14742.40973 | K163: 2.760989417 | L163: 2173238.28 | M163: 10381299 | N163: 15145136.87 | O163: 0.1710515799 | P163: 0.1434941327 | Q163: 0.6854542873 | R163: 3959 | S163: 184.5263867 | T163: 600648 | U163: 25564 | V163: 117236 | W163: 743841.73 | X163: 534431 | Y163: 23068 | Z163: 0 | AA163: 0 | AB163: 363260 | AC163: 0 | AD163: =IFERROR(T163*'Inputs & Assumptions'!$Q$40,"--") -> 60064.8 | AE163: =IFERROR(U163*'Inputs & Assumptions'!$Q$41,"--") -> 2556.4 | AF163: =IFERROR(V163*'Inputs & Assumptions'!$Q$42,"--") -> 58618 | AG163: =IFERROR(W163*'Inputs & Assumptions'!$Q$43,"--") -> 371920.865 | AH163: =IFERROR(X163*'Inputs & Assumptions'!$Q$44,"--") -> 53443.1 | AI163: =IFERROR(Y163*'Inputs & Assumptions'!$Q$45,"--") -> 2306.8 | AJ163: =IFERROR(Z163*'Inputs & Assumptions'!$Q$46,"--") -> 0 | AK163: =IFERROR(AA163*'Inputs & Assumptions'!$Q$47,"--") -> 0 | AL163: =IFERROR(AB163*'Inputs & Assumptions'!$Q$48,"--") -> 181630 | AM163: =IFERROR(AC163*'Inputs & Assumptions'!$Q$49,"--") -> 0
A164: 1808 | B164: Franklin Township | C164: Somerset | D164: 3403524900 | E164: 161 | F164: 13766118400 | G164: 47204393.54 | H164: 0.3429027135 | I164: 17110792.38 | J164: 29548.93883 | K164: 1.86727588 | L164: 45024536.93 | M164: 164822478 | N164: 257051408.5 | O164: 0.1836379494 | P164: 0.1751577134 | Q164: 0.6412043372 | R164: 94820 | S164: 180.4555198 | T164: 4430980.89 | U164: 477175.83 | V164: 1577691.83 | W164: 17716013.68 | X164: 18254887.16 | Y164: 256755.8 | Z164: 4478589 | AA164: 863734.19 | AB164: 8042735 | AC164: 441732.33 | AD164: =IFERROR(T164*'Inputs & Assumptions'!$Q$40,"--") -> 443098.089 | AE164: =IFERROR(U164*'Inputs & Assumptions'!$Q$41,"--") -> 47717.583 | AF164: =IFERROR(V164*'Inputs & Assumptions'!$Q$42,"--") -> 788845.915 | AG164: =IFERROR(W164*'Inputs & Assumptions'!$Q$43,"--") -> 8858006.84 | AH164: =IFERROR(X164*'Inputs & Assumptions'!$Q$44,"--") -> 1825488.716 | AI164: =IFERROR(Y164*'Inputs & Assumptions'!$Q$45,"--") -> 25675.58 | AJ164: =IFERROR(Z164*'Inputs & Assumptions'!$Q$46,"--") -> 447858.9 | AK164: =IFERROR(AA164*'Inputs & Assumptions'!$Q$47,"--") -> 431867.095 | AL164: =IFERROR(AB164*'Inputs & Assumptions'!$Q$48,"--") -> 4021367.5 | AM164: =IFERROR(AC164*'Inputs & Assumptions'!$Q$49,"--") -> 220866.165
A165: 2105 | B165: Franklin Township | C165: Warren | D165: 3404124960 | E165: 162 | F165: 413228072 | G165: 1368813.76 | H165: 0.3312489767 | I165: 279450.75 | J165: 14988.6751 | K165: 3.173317356 | L165: 3122213.37 | M165: 8622011 | N165: 13113038.13 | O165: 0.1043857073 | P165: 0.2380999231 | Q165: 0.6575143696 | R165: 3694 | S165: 75.64990525 | T165: 721199.5 | U165: 78881 | V165: 0 | W165: 171436 | X165: 468500 | Y165: 11067 | Z165: 0 | AA165: 0 | AB165: 95122 | AC165: 36414 | AD165: =IFERROR(T165*'Inputs & Assumptions'!$Q$40,"--") -> 72119.95 | AE165: =IFERROR(U165*'Inputs & Assumptions'!$Q$41,"--") -> 7888.1 | AF165: =IFERROR(V165*'Inputs & Assumptions'!$Q$42,"--") -> 0 | AG165: =IFERROR(W165*'Inputs & Assumptions'!$Q$43,"--") -> 85718 | AH165: =IFERROR(X165*'Inputs & Assumptions'!$Q$44,"--") -> 46850 | AI165: =IFERROR(Y165*'Inputs & Assumptions'!$Q$45,"--") -> 1106.7 | AJ165: =IFERROR(Z165*'Inputs & Assumptions'!$Q$46,"--") -> 0 | AK165: =IFERROR(AA165*'Inputs & Assumptions'!$Q$47,"--") -> 0 | AL165: =IFERROR(AB165*'Inputs & Assumptions'!$Q$48,"--") -> 47561 | AM165: =IFERROR(AC165*'Inputs & Assumptions'!$Q$49,"--") -> 18207
A166: 1907 | B166: Fredon Township | C166: Sussex | D166: 3403725140 | E166: 163 | F166: 435234300 | G166: 1980819 | H166: 0.455115555 | I166: 304572.9 | J166: 11289.36154 | K166: 2.984442722 | L166: 2541318.39 | M166: 8467181 | N166: 12989318.39 | O166: 0.1524959925 | P166: 0.1956467856 | Q166: 0.6518572219 | R166: 3548 | S166: 85.84354566 | T166: 490543 | U166: 74758 | V166: 0 | W166: 115095 | X166: 1032963 | Y166: 23535 | Z166: 0 | AA166: 0 | AB166: 142151 | AC166: 27540 | AD166: =IFERROR(T166*'Inputs & Assumptions'!$Q$40,"--") -> 49054.3 | AE166: =IFERROR(U166*'Inputs & Assumptions'!$Q$41,"--") -> 7475.8 | AF166: =IFERROR(V166*'Inputs & Assumptions'!$Q$42,"--") -> 0 | AG166: =IFERROR(W166*'Inputs & Assumptions'!$Q$43,"--") -> 57547.5 | AH166: =IFERROR(X166*'Inputs & Assumptions'!$Q$44,"--") -> 103296.3 | AI166: =IFERROR(Y166*'Inputs & Assumptions'!$Q$45,"--") -> 2353.5 | AJ166: =IFERROR(Z166*'Inputs & Assumptions'!$Q$46,"--") -> 0 | AK166: =IFERROR(AA166*'Inputs & Assumptions'!$Q$47,"--") -> 0 | AL166: =IFERROR(AB166*'Inputs & Assumptions'!$Q$48,"--") -> 71075.5 | AM166: =IFERROR(AC166*'Inputs & Assumptions'!$Q$49,"--") -> 13770
A167: 1315 | B167: Freehold Borough | C167: Monmouth | D167: 3402525200 | E167: 164 | F167: 1486388900 | G167: 12604129.93 | H167: 0.8479698637 | I167: 5192869.555 | J167: 1236.630466 | K167: 2.096204803 | L167: 3088364.59 | M167: 15465261 | N167: 31157755.52 | O167: 0.4045262478 | P167: 0.09912025236 | Q167: 0.4963534999 | R167: 20709 | S167: 250.7542399 | T167: 2364128 | U167: 24300 | V167: 428900 | W167: 5715131.16 | X167: 3304959.75 | Y167: 39950 | Z167: 463182 | AA167: 735768 | AB167: 1949636 | AC167: 317000 | AD167: =IFERROR(T167*'Inputs & Assumptions'!$Q$40,"--") -> 236412.8 | AE167: =IFERROR(U167*'Inputs & Assumptions'!$Q$41,"--") -> 2430 | AF167: =IFERROR(V167*'Inputs & Assumptions'!$Q$42,"--") -> 214450 | AG167: =IFERROR(W167*'Inputs & Assumptions'!$Q$43,"--") -> 2857565.58 | AH167: =IFERROR(X167*'Inputs & Assumptions'!$Q$44,"--") -> 330495.975 | AI167: =IFERROR(Y167*'Inputs & Assumptions'!$Q$45,"--") -> 3995 | AJ167: =IFERROR(Z167*'Inputs & Assumptions'!$Q$46,"--") -> 46318.2 | AK167: =IFERROR(AA167*'Inputs & Assumptions'!$Q$47,"--") -> 367884 | AL167: =IFERROR(AB167*'Inputs & Assumptions'!$Q$48,"--") -> 974818 | AM167: =IFERROR(AC167*'Inputs & Assumptions'!$Q$49,"--") -> 158500
A168: 1316 | B168: Freehold Township | C168: Monmouth | D168: 3402525230 | E168: 165 | F168: 8504590200 | G168: 27722174.23 | H168: 0.3259671963 | I168: 10834017.44 | J168: 24738.07283 | K168: 1.824674865 | L168: 19846511.53 | M168: 107612434 | N168: 155181119.8 | O168: 0.1786439889 | P168: 0.1278925655 | Q168: 0.6934634456 | R168: 52294 | S168: 207.1751529 | T168: 16585011.44 | U168: 399600 | V168: 858150 | W168: 10407800 | X168: 4573250 | Y168: 454000 | Z168: 954339 | AA168: 0 | AB168: 5312194.8 | AC168: 496650 | AD168: =IFERROR(T168*'Inputs & Assumptions'!$Q$40,"--") -> 1658501.144 | AE168: =IFERROR(U168*'Inputs & Assumptions'!$Q$41,"--") -> 39960 | AF168: =IFERROR(V168*'Inputs & Assumptions'!$Q$42,"--") -> 429075 | AG168: =IFERROR(W168*'Inputs & Assumptions'!$Q$43,"--") -> 5203900 | AH168: =IFERROR(X168*'Inputs & Assumptions'!$Q$44,"--") -> 457325 | AI168: =IFERROR(Y168*'Inputs & Assumptions'!$Q$45,"--") -> 45400 | AJ168: =IFERROR(Z168*'Inputs & Assumptions'!$Q$46,"--") -> 95433.9 | AK168: =IFERROR(AA168*'Inputs & Assumptions'!$Q$47,"--") -> 0 | AL168: =IFERROR(AB168*'Inputs & Assumptions'!$Q$48,"--") -> 2656097.4 | AM168: =IFERROR(AC168*'Inputs & Assumptions'!$Q$49,"--") -> 248325
A169: 2106 | B169: Frelinghuysen Township | C169: Warren | D169: 3404125320 | E169: 166 | F169: 289983285 | G169: 994714 | H169: 0.3430245988 | I169: 143121.3 | J169: 15118.95073 | K169: 2.701068446 | L169: 2097838.01 | M169: 4740095 | N169: 7832647.01 | O169: 0.1269958928 | P169: 0.267832574 | Q169: 0.6051715332 | R169: 2686 | S169: 53.28417722 | T169: 334102 | U169: 13450 | V169: 44250 | W169: 19870 | X169: 313725 | Y169: 8551 | Z169: 0 | AA169: 0 | AB169: 87907 | AC169: 250 | AD169: =IFERROR(T169*'Inputs & Assumptions'!$Q$40,"--") -> 33410.2 | AE169: =IFERROR(U169*'Inputs & Assumptions'!$Q$41,"--") -> 1345 | AF169: =IFERROR(V169*'Inputs & Assumptions'!$Q$42,"--") -> 22125 | AG169: =IFERROR(W169*'Inputs & Assumptions'!$Q$43,"--") -> 9935 | AH169: =IFERROR(X169*'Inputs & Assumptions'!$Q$44,"--") -> 31372.5 | AI169: =IFERROR(Y169*'Inputs & Assumptions'!$Q$45,"--") -> 855.1 | AJ169: =IFERROR(Z169*'Inputs & Assumptions'!$Q$46,"--") -> 0 | AK169: =IFERROR(AA169*'Inputs & Assumptions'!$Q$47,"--") -> 0 | AL169: =IFERROR(AB169*'Inputs & Assumptions'!$Q$48,"--") -> 43953.5 | AM169: =IFERROR(AC169*'Inputs & Assumptions'!$Q$49,"--") -> 125
A170: 1011 | B170: Frenchtown Borough | C170: Hunterdon | D170: 3401925350 | E170: 167 | F170: 148360936 | G170: 1447403.69 | H170: 0.9755962243 | I170: 504224.471 | J170: 722.1090879 | K170: 3.959359558 | L170: 738262.21 | M170: 3688477 | N170: 5874142.9 | O170: 0.246402533 | P170: 0.1256799881 | Q170: 0.6279174788 | R170: 2111 | S170: 238.8557418 | T170: 1021094.71 | U170: 30000 | V170: 0 | W170: 413700 | X170: 237700 | Y170: 10000 | Z170: 13900 | AA170: 152000 | AB170: 180210 | AC170: 0 | AD170: =IFERROR(T170*'Inputs & Assumptions'!$Q$40,"--") -> 102109.471 | AE170: =IFERROR(U170*'Inputs & Assumptions'!$Q$41,"--") -> 3000 | AF170: =IFERROR(V170*'Inputs & Assumptions'!$Q$42,"--") -> 0 | AG170: =IFERROR(W170*'Inputs & Assumptions'!$Q$43,"--") -> 206850 | AH170: =IFERROR(X170*'Inputs & Assumptions'!$Q$44,"--") -> 23770 | AI170: =IFERROR(Y170*'Inputs & Assumptions'!$Q$45,"--") -> 1000 | AJ170: =IFERROR(Z170*'Inputs & Assumptions'!$Q$46,"--") -> 1390 | AK170: =IFERROR(AA170*'Inputs & Assumptions'!$Q$47,"--") -> 76000 | AL170: =IFERROR(AB170*'Inputs & Assumptions'!$Q$48,"--") -> 90105 | AM170: =IFERROR(AC170*'Inputs & Assumptions'!$Q$49,"--") -> 0
A171: 0111 | B171: Galloway Township | C171: Atlantic | D171: 3400125560 | E171: 168 | F171: 2749755100 | G171: 17775291.8 | H171: 0.646431815 | I171: 8073069.4 | J171: 56747.40706 | K171: 3.325625318 | L171: 17931686.99 | M171: 55739573 | N171: 91446551.79 | O171: 0.1943790274 | P171: 0.1960892635 | Q171: 0.6095317091 | R171: 46172 | S171: 174.8477302 | T171: 8303074 | U171: 139950 | V171: 512550 | W171: 9505145 | X171: 2482425 | Y171: 3000 | Z171: 0 | AA171: 116000 | AB171: 3826754 | AC171: 0 | AD171: =IFERROR(T171*'Inputs & Assumptions'!$Q$40,"--") -> 830307.4 | AE171: =IFERROR(U171*'Inputs & Assumptions'!$Q$41,"--") -> 13995 | AF171: =IFERROR(V171*'Inputs & Assumptions'!$Q$42,"--") -> 256275 | AG171: =IFERROR(W171*'Inputs & Assumptions'!$Q$43,"--") -> 4752572.5 | AH171: =IFERROR(X171*'Inputs & Assumptions'!$Q$44,"--") -> 248242.5 | AI171: =IFERROR(Y171*'Inputs & Assumptions'!$Q$45,"--") -> 300 | AJ171: =IFERROR(Z171*'Inputs & Assumptions'!$Q$46,"--") -> 0 | AK171: =IFERROR(AA171*'Inputs & Assumptions'!$Q$47,"--") -> 58000 | AL171: =IFERROR(AB171*'Inputs & Assumptions'!$Q$48,"--") -> 1913377 | AM171: =IFERROR(AC171*'Inputs & Assumptions'!$Q$49,"--") -> 0
A172: 0221 | B172: Garfield City | C172: Bergen | D172: 3400325770 | E172: 169 | F172: 2165309900 | G172: 28975178 | H172: 1.33815386 | I172: 8710572.954 | J172: 1351.06418 | K172: 3.280688821 | L172: 7889919.83 | M172: 34171982 | N172: 71037079.83 | O172: 0.4078880786 | P172: 0.1110676262 | Q172: 0.4810442952 | R172: 36579 | S172: 238.1304288 | T172: 1822500 | U172: 60000 | V172: 613000 | W172: 10190379.52 | X172: 6699678.94 | Y172: 284000 | Z172: 1091658 | AA172: 0 | AB172: 4213370 | AC172: 412829 | AD172: =IFERROR(T172*'Inputs & Assumptions'!$Q$40,"--") -> 182250 | AE172: =IFERROR(U172*'Inputs & Assumptions'!$Q$41,"--") -> 6000 | AF172: =IFERROR(V172*'Inputs & Assumptions'!$Q$42,"--") -> 306500 | AG172: =IFERROR(W172*'Inputs & Assumptions'!$Q$43,"--") -> 5095189.76 | AH172: =IFERROR(X172*'Inputs & Assumptions'!$Q$44,"--") -> 669967.894 | AI172: =IFERROR(Y172*'Inputs & Assumptions'!$Q$45,"--") -> 28400 | AJ172: =IFERROR(Z172*'Inputs & Assumptions'!$Q$46,"--") -> 109165.8 | AK172: =IFERROR(AA172*'Inputs & Assumptions'!$Q$47,"--") -> 0 | AL172: =IFERROR(AB172*'Inputs & Assumptions'!$Q$48,"--") -> 2106685 | AM172: =IFERROR(AC172*'Inputs & Assumptions'!$Q$49,"--") -> 206414.5
A173: 2006 | B173: Garwood Borough | C173: Union | D173: 3403925800 | E173: 170 | F173: 749318936 | G173: 7236039 | H173: 0.9656821218 | I173: 2335992.161 | J173: 416.2473615 | K173: 2.70390363 | L173: 3563655.91 | M173: 9461167 | N173: 20260861.91 | O173: 0.3571436907 | P173: 0.1758886629 | Q173: 0.4669676464 | R173: 5908 | S173: 395.3947463 | T173: 909370 | U173: 30670 | V173: 0 | W173: 2663086.48 | X173: 927397.21 | Y173: 76859 | Z173: 335823 | AA173: 310300 | AB173: 1151874 | AC173: 90700 | AD173: =IFERROR(T173*'Inputs & Assumptions'!$Q$40,"--") -> 90937 | AE173: =IFERROR(U173*'Inputs & Assumptions'!$Q$41,"--") -> 3067 | AF173: =IFERROR(V173*'Inputs & Assumptions'!$Q$42,"--") -> 0 | AG173: =IFERROR(W173*'Inputs & Assumptions'!$Q$43,"--") -> 1331543.24 | AH173: =IFERROR(X173*'Inputs & Assumptions'!$Q$44,"--") -> 92739.721 | AI173: =IFERROR(Y173*'Inputs & Assumptions'!$Q$45,"--") -> 7685.9 | AJ173: =IFERROR(Z173*'Inputs & Assumptions'!$Q$46,"--") -> 33582.3 | AK173: =IFERROR(AA173*'Inputs & Assumptions'!$Q$47,"--") -> 155150 | AL173: =IFERROR(AB173*'Inputs & Assumptions'!$Q$48,"--") -> 575937 | AM173: =IFERROR(AC173*'Inputs & Assumptions'!$Q$49,"--") -> 45350
A174: 0413 | B174: Gibbsboro Borough | C174: Camden | D174: 3400726070 | E174: 171 | F174: 229451900 | G174: 2491665.51 | H174: 1.085920627 | I174: 713049.21 | J174: 1377.324553 | K174: 4.258870417 | L174: 2003615.58 | M174: 5276778 | N174: 9772059.09 | O174: 0.2549785554 | P174: 0.2050351478 | Q174: 0.5399862968 | R174: 3572 | S174: 199.6218393 | T174: 336775.8 | U174: 62000 | V174: 88500 | W174: 821282.72 | X174: 615774.4 | Y174: 10000 | Z174: 75099.65 | AA174: 0 | AB174: 230897 | AC174: 65488.73 | AD174: =IFERROR(T174*'Inputs & Assumptions'!$Q$40,"--") -> 33677.58 | AE174: =IFERROR(U174*'Inputs & Assumptions'!$Q$41,"--") -> 6200 | AF174: =IFERROR(V174*'Inputs & Assumptions'!$Q$42,"--") -> 44250 | AG174: =IFERROR(W174*'Inputs & Assumptions'!$Q$43,"--") -> 410641.36 | AH174: =IFERROR(X174*'Inputs & Assumptions'!$Q$44,"--") -> 61577.44 | AI174: =IFERROR(Y174*'Inputs & Assumptions'!$Q$45,"--") -> 1000 | AJ174: =IFERROR(Z174*'Inputs & Assumptions'!$Q$46,"--") -> 7509.965 | AK174: =IFERROR(AA174*'Inputs & Assumptions'!$Q$47,"--") -> 0 | AL174: =IFERROR(AB174*'Inputs & Assumptions'!$Q$48,"--") -> 115448.5 | AM174: =IFERROR(AC174*'Inputs & Assumptions'!$Q$49,"--") -> 32744.365
A175: 0806 | B175: Glassboro Borough | C175: Gloucester | D175: 3401526340 | E175: 172 | F175: 1337916600 | G175: 14397281.55 | H175: 1.076097086 | I175: 8872846.855 | J175: 5964.906725 | K175: 3.498962903 | L175: 9707959.96 | M175: 22707964 | N175: 46813205.51 | O175: 0.3075474408 | P175: 0.2073765266 | Q175: 0.4850760326 | R175: 29963 | S175: 296.1267849 | T175: 3618198 | U175: 71306 | V175: 231507 | W175: 8174522.77 | X175: 5574821.7 | Y175: 44399 | Z175: 83550 | AA175: 3002000 | AB175: 4086570 | AC175: 372639 | AD175: =IFERROR(T175*'Inputs & Assumptions'!$Q$40,"--") -> 361819.8 | AE175: =IFERROR(U175*'Inputs & Assumptions'!$Q$41,"--") -> 7130.6 | AF175: =IFERROR(V175*'Inputs & Assumptions'!$Q$42,"--") -> 115753.5 | AG175: =IFERROR(W175*'Inputs & Assumptions'!$Q$43,"--") -> 4087261.385 | AH175: =IFERROR(X175*'Inputs & Assumptions'!$Q$44,"--") -> 557482.17 | AI175: =IFERROR(Y175*'Inputs & Assumptions'!$Q$45,"--") -> 4439.9 | AJ175: =IFERROR(Z175*'Inputs & Assumptions'!$Q$46,"--") -> 8355 | AK175: =IFERROR(AA175*'Inputs & Assumptions'!$Q$47,"--") -> 1501000 | AL175: =IFERROR(AB175*'Inputs & Assumptions'!$Q$48,"--") -> 2043285 | AM175: =IFERROR(AC175*'Inputs & Assumptions'!$Q$49,"--") -> 186319.5
A176: 1012 | B176: Glen Gardner Borough | C176: Hunterdon | D176: 3401926550 | E176: 173 | F176: 139508763 | G176: 940284.98 | H176: 0.6739970736 | I176: 219278.428 | J176: 990.7036315 | K176: 3.796709738 | L176: 729339.81 | M176: 3627118 | N176: 5296742.79 | O176: 0.1775213593 | P176: 0.1376959084 | Q176: 0.6847827323 | R176: 1796 | S176: 122.0926659 | T176: 241851 | U176: 19257 | V176: 3000 | W176: 132050 | X176: 474973.28 | Y176: 5375 | Z176: 19293 | AA176: 72500 | AB176: 78857 | AC176: 0 | AD176: =IFERROR(T176*'Inputs & Assumptions'!$Q$40,"--") -> 24185.1 | AE176: =IFERROR(U176*'Inputs & Assumptions'!$Q$41,"--") -> 1925.7 | AF176: =IFERROR(V176*'Inputs & Assumptions'!$Q$42,"--") -> 1500 | AG176: =IFERROR(W176*'Inputs & Assumptions'!$Q$43,"--") -> 66025 | AH176: =IFERROR(X176*'Inputs & Assumptions'!$Q$44,"--") -> 47497.328 | AI176: =IFERROR(Y176*'Inputs & Assumptions'!$Q$45,"--") -> 537.5 | AJ176: =IFERROR(Z176*'Inputs & Assumptions'!$Q$46,"--") -> 1929.3 | AK176: =IFERROR(AA176*'Inputs & Assumptions'!$Q$47,"--") -> 36250 | AL176: =IFERROR(AB176*'Inputs & Assumptions'!$Q$48,"--") -> 39428.5 | AM176: =IFERROR(AC176*'Inputs & Assumptions'!$Q$49,"--") -> 0
A177: 0708 | B177: Glen Ridge Borough | C177: Essex | D177: 3401326610 | E177: 174 | F177: 1720115800 | G177: 13233044.78 | H177: 0.7693112743 | I177: 3496752.35 | J177: 815.8479817 | K177: 3.37343344 | L177: 9734991.82 | M177: 35058925 | N177: 58026961.6 | O177: 0.2280499343 | P177: 0.1677666993 | Q177: 0.6041833664 | R177: 9183 | S177: 380.7854024 | T177: 1221732.5 | U177: 43000 | V177: 225500 | W177: 3895288 | X177: 3166000 | Y177: 75500 | Z177: 791476 | AA177: 0 | AB177: 1622275 | AC177: 190900 | AD177: =IFERROR(T177*'Inputs & Assumptions'!$Q$40,"--") -> 122173.25 | AE177: =IFERROR(U177*'Inputs & Assumptions'!$Q$41,"--") -> 4300 | AF177: =IFERROR(V177*'Inputs & Assumptions'!$Q$42,"--") -> 112750 | AG177: =IFERROR(W177*'Inputs & Assumptions'!$Q$43,"--") -> 1947644 | AH177: =IFERROR(X177*'Inputs & Assumptions'!$Q$44,"--") -> 316600 | AI177: =IFERROR(Y177*'Inputs & Assumptions'!$Q$45,"--") -> 7550 | AJ177: =IFERROR(Z177*'Inputs & Assumptions'!$Q$46,"--") -> 79147.6 | AK177: =IFERROR(AA177*'Inputs & Assumptions'!$Q$47,"--") -> 0 | AL177: =IFERROR(AB177*'Inputs & Assumptions'!$Q$48,"--") -> 811137.5 | AM177: =IFERROR(AC177*'Inputs & Assumptions'!$Q$49,"--") -> 95450
A178: 0222 | B178: Glen Rock Borough | C178: Bergen | D178: 3400326640 | E178: 175 | F178: 2440585200 | G178: 17120956.55 | H178: 0.7015102997 | I178: 5588084.4 | J178: 1730.224746 | K178: 3.159903572 | L178: 7014331.37 | M178: 52984851 | N178: 77120138.92 | O178: 0.2220037047 | P178: 0.0909533031 | Q178: 0.6870429922 | R178: 15406 | S178: 362.7213034 | T178: 1671890 | U178: 107200 | V178: 391704 | W178: 4982728 | X178: 2309643 | Y178: 50500 | Z178: 998576 | AA178: 2623585 | AB178: 2008151 | AC178: 142439 | AD178: =IFERROR(T178*'Inputs & Assumptions'!$Q$40,"--") -> 167189 | AE178: =IFERROR(U178*'Inputs & Assumptions'!$Q$41,"--") -> 10720 | AF178: =IFERROR(V178*'Inputs & Assumptions'!$Q$42,"--") -> 195852 | AG178: =IFERROR(W178*'Inputs & Assumptions'!$Q$43,"--") -> 2491364 | AH178: =IFERROR(X178*'Inputs & Assumptions'!$Q$44,"--") -> 230964.3 | AI178: =IFERROR(Y178*'Inputs & Assumptions'!$Q$45,"--") -> 5050 | AJ178: =IFERROR(Z178*'Inputs & Assumptions'!$Q$46,"--") -> 99857.6 | AK178: =IFERROR(AA178*'Inputs & Assumptions'!$Q$47,"--") -> 1311792.5 | AL178: =IFERROR(AB178*'Inputs & Assumptions'!$Q$48,"--") -> 1004075.5 | AM178: =IFERROR(AC178*'Inputs & Assumptions'!$Q$49,"--") -> 71219.5
A179: 0414 | B179: Gloucester City City | C179: Camden | D179: 3400726820 | E179: 176 | F179: 522198950 | G179: 14908070.85 | H179: 2.854864195 | I179: 5993796.31 | J179: 1481.430501 | K179: 5.003586913 | L179: 4496270.47 | M179: 6724337 | N179: 26128678.32 | O179: 0.5705635267 | P179: 0.1720818181 | Q179: 0.2573546552 | R179: 13326 | S179: 449.7821034 | T179: 1320825 | U179: 21000 | V179: 626700 | W179: 7001337 | X179: 2230535 | Y179: 55000 | Z179: 521208 | AA179: 600000 | AB179: 2549042.02 | AC179: 380800 | AD179: =IFERROR(T179*'Inputs & Assumptions'!$Q$40,"--") -> 132082.5 | AE179: =IFERROR(U179*'Inputs & Assumptions'!$Q$41,"--") -> 2100 | AF179: =IFERROR(V179*'Inputs & Assumptions'!$Q$42,"--") -> 313350 | AG179: =IFERROR(W179*'Inputs & Assumptions'!$Q$43,"--") -> 3500668.5 | AH179: =IFERROR(X179*'Inputs & Assumptions'!$Q$44,"--") -> 223053.5 | AI179: =IFERROR(Y179*'Inputs & Assumptions'!$Q$45,"--") -> 5500 | AJ179: =IFERROR(Z179*'Inputs & Assumptions'!$Q$46,"--") -> 52120.8 | AK179: =IFERROR(AA179*'Inputs & Assumptions'!$Q$47,"--") -> 300000 | AL179: =IFERROR(AB179*'Inputs & Assumptions'!$Q$48,"--") -> 1274521.01 | AM179: =IFERROR(AC179*'Inputs & Assumptions'!$Q$49,"--") -> 190400
A180: 0415 | B180: Gloucester Township | C180: Camden | D180: 3400726760 | E180: 177 | F180: 4551672180 | G180: 58901255.54 | H180: 1.294057507 | I180: 18729680.27 | J180: 14690.80698 | K180: 3.988649191 | L180: 40986997.03 | M180: 81661983 | N180: 181550235.6 | O180: 0.3244350268 | P180: 0.2257611889 | Q180: 0.4498037843 | R180: 76638 | S180: 244.3915586 | T180: 5582310 | U180: 260900 | V180: 926300 | W180: 20522009.54 | X180: 10394950 | Y180: 276900 | Z180: 555075 | AA180: 2195000 | AB180: 9667724 | AC180: 734300 | AD180: =IFERROR(T180*'Inputs & Assumptions'!$Q$40,"--") -> 558231 | AE180: =IFERROR(U180*'Inputs & Assumptions'!$Q$41,"--") -> 26090 | AF180: =IFERROR(V180*'Inputs & Assumptions'!$Q$42,"--") -> 463150 | AG180: =IFERROR(W180*'Inputs & Assumptions'!$Q$43,"--") -> 10261004.77 | AH180: =IFERROR(X180*'Inputs & Assumptions'!$Q$44,"--") -> 1039495 | AI180: =IFERROR(Y180*'Inputs & Assumptions'!$Q$45,"--") -> 27690 | AJ180: =IFERROR(Z180*'Inputs & Assumptions'!$Q$46,"--") -> 55507.5 | AK180: =IFERROR(AA180*'Inputs & Assumptions'!$Q$47,"--") -> 1097500 | AL180: =IFERROR(AB180*'Inputs & Assumptions'!$Q$48,"--") -> 4833862 | AM180: =IFERROR(AC180*'Inputs & Assumptions'!$Q$49,"--") -> 367150
A181: 1809 | B181: Green Brook Township | C181: Somerset | D181: 3403527510 | E181: 178 | F181: 1729435300 | G181: 7772085.87 | H181: 0.44940021 | I181: 2882538.232 | J181: 2820.753721 | K181: 2.299752236 | L181: 6349525.12 | M181: 25651116 | N181: 39772726.99 | O181: 0.1954124461 | P181: 0.1596452042 | Q181: 0.6449423497 | R181: 9297 | S181: 310.0503638 | T181: 1101258 | U181: 139732 | V181: 160048 | W181: 3369988 | X181: 836334 | Y181: 942368.32 | Z181: 0 | AA181: 0 | AB181: 1453312 | AC181: 177790 | AD181: =IFERROR(T181*'Inputs & Assumptions'!$Q$40,"--") -> 110125.8 | AE181: =IFERROR(U181*'Inputs & Assumptions'!$Q$41,"--") -> 13973.2 | AF181: =IFERROR(V181*'Inputs & Assumptions'!$Q$42,"--") -> 80024 | AG181: =IFERROR(W181*'Inputs & Assumptions'!$Q$43,"--") -> 1684994 | AH181: =IFERROR(X181*'Inputs & Assumptions'!$Q$44,"--") -> 83633.4 | AI181: =IFERROR(Y181*'Inputs & Assumptions'!$Q$45,"--") -> 94236.832 | AJ181: =IFERROR(Z181*'Inputs & Assumptions'!$Q$46,"--") -> 0 | AK181: =IFERROR(AA181*'Inputs & Assumptions'!$Q$47,"--") -> 0 | AL181: =IFERROR(AB181*'Inputs & Assumptions'!$Q$48,"--") -> 726656 | AM181: =IFERROR(AC181*'Inputs & Assumptions'!$Q$49,"--") -> 88895
